Workbook

Sheet Entete
A1: Report ID | B1: Dep | C1: Typ | D1: Product ID | E1: Product Description | F1: Lot # | G1: Production Raw Material | H1: Finished Goods | I1: Cat | J1: Difference (RM less FG) | K1: Yield | L1: # ID | M1: Supplier | N1: Purchased Kg | O1: Price Paid/Kg | P1: Price Sale/Kg $P1 | Q1: RM Costing | R1: FG Selling $P1 | S1: Report ID Earning | T1: Code | U1: Fr/Fz | V1: Frais | W1: Congelé | X1: Date FG | Y1: Date Report ID
K2: =IF(ISNA(VLOOKUP($D:$D,rend,2,FALSE))=FALSE,VLOOKUP($D:$D,rend,2,FALSE),"") ->  | L2: =IF($C2="RM",IF(ISNA(VLOOKUP($F$2:$F$410,pos,2,FALSE))=FALSE,VLOOKUP($F2:$F$410,pos,2,FALSE),IF(ISNA(VLOOKUP($F$2:$F$410,lot,2,FALSE))=FALSE,VLOOKUP($F$2:$F$410,lot,2,FALSE),"MANQUANT")),"") ->  | M2: =IF($C2="RM",IF(ISNA(VLOOKUP($F$2:$F$410,pos,3,FALSE))=FALSE,VLOOKUP($F2:$F410,pos,3,FALSE),"OP"),"") ->  | N2: =IF($C2="RM",IF(ISNA(VLOOKUP($F2:$F$403,pos,4,FALSE))=FALSE,VLOOKUP($F$2:$F$403,pos,4,FALSE),""),"") ->  | O2: =IF($C2="RM",IF(ISNA(VLOOKUP($F$2:$F$410,pos,5,FALSE))=FALSE,VLOOKUP($F$2:$F$410,pos,5,FALSE),IF(ISNA(VLOOKUP($F$2:$F$410,lot,5,FALSE))=FALSE,VLOOKUP($F$2:$F$410,lot,5,FALSE),0)),"") ->  | P2: =IF($H2>0,VLOOKUP($D:$D,prix,15,FALSE),"") ->  | Q2: =IF($C2="RM",$O2*$G2,"") ->  | R2: =IF($H2>0,$H2*$P2,"") ->  | T2: =IF($F2>0,VALUE(LEFT($F2,4)),"") ->  | U2: =IF(F2>0,IF(ISERROR(SEARCH("*FZ*",$E2))=FALSE,"FZ",IF(ISERROR(SEARCH("*FR*",$E2))=FALSE,"FR","Aucun")),"") ->  | V2: =IF($C2="RM",IF($U2="FR",IF(ISNA(VLOOKUP($F:$F,lot,6,FALSE))=TRUE,VLOOKUP($T:$T,date,2,FALSE),VLOOKUP($F:$F,lot,6,FALSE)),""),"") ->  | W2: =IF($C2="RM",IF($U2="Fz",IF(ISNA(VLOOKUP($F:$F,lot,6,FALSE))=TRUE,VLOOKUP($T:$T,date,2,FALSE),VLOOKUP($F:$F,lot,6,FALSE)),""),"") ->  | X2: =IF($C2="FG",VLOOKUP($A:$A,op,4,FALSE),"") ->  | Z2: =IF(C2="rm",IF(U2="aucun","OK",IF(U2="fz",IF(Y2-W2>730,Y2-W2,"OK"),IF(Y2-V2<1,1,Y2-V2))),"") -> 
A6: Fonction Sous-Total | J6: =$G6-$H6 -> 0 | K6: =$H6/$G6 ->  | O6: =$Q6/$H6 ->  | S6: =($R6-$Q6)/$Q6 ->  | X6: =IF($C6="FG",VLOOKUP($A:$A,op,4,FALSE),"") ->  | Z6: =V3 -> 00:00:00
G8: Fonction Sous-Total Colonne G & H | Q8: Fonction Sous-Total Colonne Q & R
J9: (1) | K9: (2) | O9: (3) | S9: (4) | Z9: Saisie Manuelle
A10: À exporter d'interal pour commencer:
A11: Produc: | B11: Interal / Topics / System tools / Search wizard / Archive (production per day). Date, save, result, Export Data, coller feuille "Production #jour"
A12: Achats: | B12: Interal / Topics / System tools / Search Wizard / List of good received. Date, save, result, Export Data, coller feuille "Achats".
A13: Prix: | B13: Interal / Topics / System tools / search wizard / Liste de prix, result, Export Data, coller feuille "Prix"
B14: 1) | C14: Bouton: Achats de la feuille achats
B15: 2) | C15: Copier/Coller dans feuille POS ( Insert copied cells )
A16: Ensuite, suivre ces étapes | E16: Date: | F16: 2016-04-25
B17: 3) | C17: Bouton Date | F17: =F16+1 -> 2016-04-26
F18: =F17+1 -> 2016-04-27
F19: =F18+1 -> 2016-04-28
F20: =F19+1 -> 2016-04-29
B21: 4) | C21: Supprimer lignes sous-total vides
B22: 5) | C22: Sous-total #2: Gras, Gris
B23: 6) | C23: Copier/Coller Formule (1) (2) (3) (4) Colonne J, K, O, S Ligne Sous-Total
B24: 7) | C24: Faire l'analyse complète des OP, Valider les feuilles de recettes, Effectuer les corrections & Ajustements.
B25: 8) | C25: Enlever Emballage des RM, Inscrire Cat 01, 02, 03, 04, 05 Colonne I
B26: 9) | C26: Choisir Date OP, mettre dans colonne Z, ligne Sous-Total
B27: 10) | C27: Faire Copie de l'onglet de la feuille, Copier/Coller Value, Garder sous-total seulement, Enlever mot Total, Garder Colonnes: Yield, Price Paid/Kg, Report ID Earning, Date(z)
B28: 11) | C28: Coller ces informations dans l'onglet OP & supprimer l'onglet copié
B29: 12) | C29: Faire Copie de l'onglet de la feuille, Enlever les Sous-Totaux, Copier/Coller De A à I dans Fichier "Heures & Salaires". Mettre Colonne Lot# devant Report ID, Garder Colonnes: Lot #, Report ID, Product ID
B30: 13) | C30: Coller ces informations dans l'onglet Lots & supprimer l'onglet copié
B31: 14) | C31: Faire 2e Copie de l'onglet de la feuille, Enlever les Sous-Totaux, Copier/Coller De A à I dans Fichier "Heures & Salaires". Mettre Colonne Lot# devant Report ID, Garder Colonnes: Lot #, Report ID, Product ID
B32: 14) | C32: Remplacer les informations collés de l'étape 11) par ceux-là dans l'onglet OP & supprimer l'onglet copié
B33: 15) | C33: Masques les Colonnes en Jaune: V, X, Y
B34: 16) | C34: Ajuster sauts de page
B35: 17) | C35: Imprimer
B36: 18) | C36: Faire suivi à Roger & Terry

Sheet Production Mar
A1: Report ID | B1: Dep | C1: Typ | D1: Product ID | E1: Product Description | F1: Lot # | G1: Production Raw Material | H1: Finished Goods | I1: Cat | J1: Difference (RM less FG) | K1: Yield | L1: # ID | M1: Supplier | N1: Purchased Kg | O1: Price Paid/Kg | P1: Price Sale/Kg $P1 | Q1: RM Costing | R1: FG Selling $P1 | S1: Report ID Earning | T1: Code | U1: Fr/Fz | V1: Frais | W1: Congelé | X1: Date FG | Y1: Date Report ID | Z1: =Entete!F17 -> 2016-04-26
A2: 5413B04 | B2: Beef | C2: RM | D2: 30202 | E2: BAVETTE DE BOEUF A/AA FR #D | F2: 5413B04 | G2: 245.6 | K2: =IF(ISNA(VLOOKUP($D:$D,rend,2,FALSE))=FALSE,VLOOKUP($D:$D,rend,2,FALSE),"") -> 0.936350025 | L2: =IF($C2="RM",IF(ISNA(VLOOKUP($F$2:$F$478,pos,2,FALSE))=FALSE,VLOOKUP($F2:$F$478,pos,2,FALSE),IF(ISNA(VLOOKUP($F$2:$F$478,lot,2,FALSE))=FALSE,VLOOKUP($F$2:$F$478,lot,2,FALSE),"MANQUANT")),"") -> PO-0021794 | M2: =IF($C2="RM",IF(ISNA(VLOOKUP($F$2:$F$478,pos,3,FALSE))=FALSE,VLOOKUP($F2:$F478,pos,3,FALSE),"OP"),"") -> C&C | N2: =IF($C2="RM",IF(ISNA(VLOOKUP($F2:$F$471,pos,4,FALSE))=FALSE,VLOOKUP($F$2:$F$471,pos,4,FALSE),""),"") -> 1959.14 | O2: =IF($C2="RM",IF(ISNA(VLOOKUP($F$2:$F$478,pos,5,FALSE))=FALSE,VLOOKUP($F$2:$F$478,pos,5,FALSE),IF(ISNA(VLOOKUP($F$2:$F$478,lot,5,FALSE))=FALSE,VLOOKUP($F$2:$F$478,lot,5,FALSE),0)),"") -> 13.99 | P2: =IF($H2>0,VLOOKUP($D:$D,prix,15,FALSE),"") ->  | Q2: =IF($C2="RM",$O2*$G2,"") -> 3435.944 | R2: =IF($H2>0,$H2*$P2,"") ->  | T2: =IF($F2>0,VALUE(LEFT($F2,4)),"") -> 5413 | U2: =IF(F2>0,IF(ISERROR(SEARCH("*FZ*",$E2))=FALSE,"FZ",IF(ISERROR(SEARCH("*FR*",$E2))=FALSE,"FR","Aucun")),"") -> FR | V2: =IF($C2="RM",IF($U2="FR",IF(ISNA(VLOOKUP($F:$F,lot,6,FALSE))=TRUE,VLOOKUP($T:$T,date,2,FALSE),VLOOKUP($F:$F,lot,6,FALSE)),""),"") -> 2015-10-06 | W2: =IF($C2="RM",IF($U2="Fz",IF(ISNA(VLOOKUP($F:$F,lot,6,FALSE))=TRUE,VLOOKUP($T:$T,date,2,FALSE),VLOOKUP($F:$F,lot,6,FALSE)),""),"") ->  | X2: =IF($C2="FG",VLOOKUP($A:$A,op,4,FALSE),"") ->  | Y2: 2016-04-26 | Z2: =IF(C2="rm",IF(U2="aucun","OK",IF(U2="fz",IF(Y2-W2>730,Y2-W2,"OK"),IF(Y2-V2<1,1,Y2-V2))),"") -> 203
A3: 5413B04 | B3: Beef | C3: FG | D3: 31500 | E3: BEEF HOUSE TRIMMINGS FR @P | F3: 5413B041 | H3: 64.78 | K3: =IF(ISNA(VLOOKUP($D:$D,rend,2,FALSE))=FALSE,VLOOKUP($D:$D,rend,2,FALSE),"") -> 0.921966717 | L3: =IF($C3="RM",IF(ISNA(VLOOKUP($F$2:$F$478,pos,2,FALSE))=FALSE,VLOOKUP($F3:$F$478,pos,2,FALSE),IF(ISNA(VLOOKUP($F$2:$F$478,lot,2,FALSE))=FALSE,VLOOKUP($F$2:$F$478,lot,2,FALSE),"MANQUANT")),"") ->  | M3: =IF($C3="RM",IF(ISNA(VLOOKUP($F$2:$F$478,pos,3,FALSE))=FALSE,VLOOKUP($F3:$F479,pos,3,FALSE),"OP"),"") ->  | N3: =IF($C3="RM",IF(ISNA(VLOOKUP($F3:$F$471,pos,4,FALSE))=FALSE,VLOOKUP($F$2:$F$471,pos,4,FALSE),""),"") ->  | O3: =IF($C3="RM",IF(ISNA(VLOOKUP($F$2:$F$478,pos,5,FALSE))=FALSE,VLOOKUP($F$2:$F$478,pos,5,FALSE),IF(ISNA(VLOOKUP($F$2:$F$478,lot,5,FALSE))=FALSE,VLOOKUP($F$2:$F$478,lot,5,FALSE),0)),"") ->  | P3: =IF($H3>0,VLOOKUP($D:$D,prix,15,FALSE),"") -> 10 | Q3: =IF($C3="RM",$O3*$G3,"") ->  | R3: =IF($H3>0,$H3*$P3,"") -> 647.8 | T3: =IF($F3>0,VALUE(LEFT($F3,4)),"") -> 5413 | U3: =IF(F3>0,IF(ISERROR(SEARCH("*FZ*",$E3))=FALSE,"FZ",IF(ISERROR(SEARCH("*FR*",$E3))=FALSE,"FR","Aucun")),"") -> FR | V3: =IF($C3="RM",IF($U3="FR",IF(ISNA(VLOOKUP($F:$F,lot,6,FALSE))=TRUE,VLOOKUP($T:$T,date,2,FALSE),VLOOKUP($F:$F,lot,6,FALSE)),""),"") ->  | W3: =IF($C3="RM",IF($U3="Fz",IF(ISNA(VLOOKUP($F:$F,lot,6,FALSE))=TRUE,VLOOKUP($T:$T,date,2,FALSE),VLOOKUP($F:$F,lot,6,FALSE)),""),"") ->  | X3: =IF($C3="FG",VLOOKUP($A:$A,op,4,FALSE),"") ->  | Y3: 2016-04-26 | Z3: =IF(C3="rm",IF(U3="aucun","OK",IF(U3="fz",IF(Y3-W3>730,Y3-W3,"OK"),IF(Y3-V3<1,1,Y3-V3))),"") -> 
A4: 5413B04 | B4: Beef | C4: FG | D4: 31519 | E4: BAVETTE *IN PROCESS* FR | F4: 5413B042 | H4: 174.56 | K4: =IF(ISNA(VLOOKUP($D:$D,rend,2,FALSE))=FALSE,VLOOKUP($D:$D,rend,2,FALSE),"") -> 0.9294861894 | L4: =IF($C4="RM",IF(ISNA(VLOOKUP($F$2:$F$478,pos,2,FALSE))=FALSE,VLOOKUP($F4:$F$478,pos,2,FALSE),IF(ISNA(VLOOKUP($F$2:$F$478,lot,2,FALSE))=FALSE,VLOOKUP($F$2:$F$478,lot,2,FALSE),"MANQUANT")),"") ->  | M4: =IF($C4="RM",IF(ISNA(VLOOKUP($F$2:$F$478,pos,3,FALSE))=FALSE,VLOOKUP($F4:$F480,pos,3,FALSE),"OP"),"") ->  | N4: =IF($C4="RM",IF(ISNA(VLOOKUP($F4:$F$471,pos,4,FALSE))=FALSE,VLOOKUP($F$2:$F$471,pos,4,FALSE),""),"") ->  | O4: =IF($C4="RM",IF(ISNA(VLOOKUP($F$2:$F$478,pos,5,FALSE))=FALSE,VLOOKUP($F$2:$F$478,pos,5,FALSE),IF(ISNA(VLOOKUP($F$2:$F$478,lot,5,FALSE))=FALSE,VLOOKUP($F$2:$F$478,lot,5,FALSE),0)),"") ->  | P4: =IF($H4>0,VLOOKUP($D:$D,prix,15,FALSE),"") -> 20.8 | Q4: =IF($C4="RM",$O4*$G4,"") ->  | R4: =IF($H4>0,$H4*$P4,"") -> 3630.848 | T4: =IF($F4>0,VALUE(LEFT($F4,4)),"") -> 5413 | U4: =IF(F4>0,IF(ISERROR(SEARCH("*FZ*",$E4))=FALSE,"FZ",IF(ISERROR(SEARCH("*FR*",$E4))=FALSE,"FR","Aucun")),"") -> FR | V4: =IF($C4="RM",IF($U4="FR",IF(ISNA(VLOOKUP($F:$F,lot,6,FALSE))=TRUE,VLOOKUP($T:$T,date,2,FALSE),VLOOKUP($F:$F,lot,6,FALSE)),""),"") ->  | W4: =IF($C4="RM",IF($U4="Fz",IF(ISNA(VLOOKUP($F:$F,lot,6,FALSE))=TRUE,VLOOKUP($T:$T,date,2,FALSE),VLOOKUP($F:$F,lot,6,FALSE)),""),"") ->  | X4: =IF($C4="FG",VLOOKUP($A:$A,op,4,FALSE),"") ->  | Y4: 2016-04-26 | Z4: =IF(C4="rm",IF(U4="aucun","OK",IF(U4="fz",IF(Y4-W4>730,Y4-W4,"OK"),IF(Y4-V4<1,1,Y4-V4))),"") -> 
A5: 5413B04 Total | G5: =SUBTOTAL(9,G2:G4) -> 245.6 | H5: =SUBTOTAL(9,H2:H4) -> 239.34 | Q5: =SUBTOTAL(9,Q2:Q4) -> 3435.944 | R5: =SUBTOTAL(9,R2:R4) -> 4278.648
A6: 5484B0786B | B6: Beef | C6: RM | D6: 41342 | E6: TEXAN MEDALLION *IN PROCESS* CODE: 24003 (3X 12) FR #D | F6: 5484B0786 | G6: 21.6 | K6: =IF(ISNA(VLOOKUP($D:$D,rend,2,FALSE))=FALSE,VLOOKUP($D:$D,rend,2,FALSE),"") -> 0.9450369654 | L6: =IF($C6="RM",IF(ISNA(VLOOKUP($F$2:$F$478,pos,2,FALSE))=FALSE,VLOOKUP($F6:$F$478,pos,2,FALSE),IF(ISNA(VLOOKUP($F$2:$F$478,lot,2,FALSE))=FALSE,VLOOKUP($F$2:$F$478,lot,2,FALSE),"MANQUANT")),"") -> 5484B0775C | M6: =IF($C6="RM",IF(ISNA(VLOOKUP($F$2:$F$478,pos,3,FALSE))=FALSE,VLOOKUP($F6:$F481,pos,3,FALSE),"OP"),"") -> OP | N6: =IF($C6="RM",IF(ISNA(VLOOKUP($F6:$F$471,pos,4,FALSE))=FALSE,VLOOKUP($F$2:$F$471,pos,4,FALSE),""),"") ->  | O6: =IF($C6="RM",IF(ISNA(VLOOKUP($F$2:$F$478,pos,5,FALSE))=FALSE,VLOOKUP($F$2:$F$478,pos,5,FALSE),IF(ISNA(VLOOKUP($F$2:$F$478,lot,5,FALSE))=FALSE,VLOOKUP($F$2:$F$478,lot,5,FALSE),0)),"") -> 5.468410763 | P6: =IF($H6>0,VLOOKUP($D:$D,prix,15,FALSE),"") ->  | Q6: =IF($C6="RM",$O6*$G6,"") -> 118.1176725 | R6: =IF($H6>0,$H6*$P6,"") ->  | T6: =IF($F6>0,VALUE(LEFT($F6,4)),"") -> 5484 | U6: =IF(F6>0,IF(ISERROR(SEARCH("*FZ*",$E6))=FALSE,"FZ",IF(ISERROR(SEARCH("*FR*",$E6))=FALSE,"FR","Aucun")),"") -> FR | V6: =IF($C6="RM",IF($U6="FR",IF(ISNA(VLOOKUP($F:$F,lot,6,FALSE))=TRUE,VLOOKUP($T:$T,date,2,FALSE),VLOOKUP($F:$F,lot,6,FALSE)),""),"") -> 2016-04-22 | W6: =IF($C6="RM",IF($U6="Fz",IF(ISNA(VLOOKUP($F:$F,lot,6,FALSE))=TRUE,VLOOKUP($T:$T,date,2,FALSE),VLOOKUP($F:$F,lot,6,FALSE)),""),"") ->  | X6: =IF($C6="FG",VLOOKUP($A:$A,op,4,FALSE),"") ->  | Y6: 2016-04-26 | Z6: =IF(C6="rm",IF(U6="aucun","OK",IF(U6="fz",IF(Y6-W6>730,Y6-W6,"OK"),IF(Y6-V6<1,1,Y6-V6))),"") -> 4
A7: 5484B0786B | B7: Beef | C7: FG | D7: 24003 | E7: FILET DE PORC ASAISSONNE TEXAN**METRO( 3 X12 UN/ CS)115-125GR*4.32KG/SAC FR @P | F7: 5484B0792 | H7: 21.6 | K7: =IF(ISNA(VLOOKUP($D:$D,rend,2,FALSE))=FALSE,VLOOKUP($D:$D,rend,2,FALSE),"") -> 0.9349030212 | L7: =IF($C7="RM",IF(ISNA(VLOOKUP($F$2:$F$478,pos,2,FALSE))=FALSE,VLOOKUP($F7:$F$478,pos,2,FALSE),IF(ISNA(VLOOKUP($F$2:$F$478,lot,2,FALSE))=FALSE,VLOOKUP($F$2:$F$478,lot,2,FALSE),"MANQUANT")),"") ->  | M7: =IF($C7="RM",IF(ISNA(VLOOKUP($F$2:$F$478,pos,3,FALSE))=FALSE,VLOOKUP($F7:$F482,pos,3,FALSE),"OP"),"") ->  | N7: =IF($C7="RM",IF(ISNA(VLOOKUP($F7:$F$471,pos,4,FALSE))=FALSE,VLOOKUP($F$2:$F$471,pos,4,FALSE),""),"") ->  | O7: =IF($C7="RM",IF(ISNA(VLOOKUP($F$2:$F$478,pos,5,FALSE))=FALSE,VLOOKUP($F$2:$F$478,pos,5,FALSE),IF(ISNA(VLOOKUP($F$2:$F$478,lot,5,FALSE))=FALSE,VLOOKUP($F$2:$F$478,lot,5,FALSE),0)),"") ->  | P7: =IF($H7>0,VLOOKUP($D:$D,prix,15,FALSE),"") -> 8.851851852 | Q7: =IF($C7="RM",$O7*$G7,"") ->  | R7: =IF($H7>0,$H7*$P7,"") -> 191.2 | T7: =IF($F7>0,VALUE(LEFT($F7,4)),"") -> 5484 | U7: =IF(F7>0,IF(ISERROR(SEARCH("*FZ*",$E7))=FALSE,"FZ",IF(ISERROR(SEARCH("*FR*",$E7))=FALSE,"FR","Aucun")),"") -> FR | V7: =IF($C7="RM",IF($U7="FR",IF(ISNA(VLOOKUP($F:$F,lot,6,FALSE))=TRUE,VLOOKUP($T:$T,date,2,FALSE),VLOOKUP($F:$F,lot,6,FALSE)),""),"") ->  | W7: =IF($C7="RM",IF($U7="Fz",IF(ISNA(VLOOKUP($F:$F,lot,6,FALSE))=TRUE,VLOOKUP($T:$T,date,2,FALSE),VLOOKUP($F:$F,lot,6,FALSE)),""),"") ->  | X7: =IF($C7="FG",VLOOKUP($A:$A,op,4,FALSE),"") ->  | Y7: 2016-04-26 | Z7: =IF(C7="rm",IF(U7="aucun","OK",IF(U7="fz",IF(Y7-W7>730,Y7-W7,"OK"),IF(Y7-V7<1,1,Y7-V7))),"") -> 
A8: 5484B0786B Total | G8: =SUBTOTAL(9,G6:G7) -> 21.6 | H8: =SUBTOTAL(9,H6:H7) -> 21.6 | J8: =$G8-$H8 -> 0 | K8: =$H8/$G8 -> 1 | O8: =$Q8/$H8 -> 5.468410763 | Q8: =SUBTOTAL(9,Q6:Q7) -> 118.1176725 | R8: =SUBTOTAL(9,R6:R7) -> 191.2 | S8: =($R8-$Q8)/$Q8 -> 0.6187247513
A9: 5484B0791 | B9: Beef | C9: RM | D9: 1 | E9: ING EAU | F9: 5166AS | G9: 82.66 | K9: =IF(ISNA(VLOOKUP($D:$D,rend,2,FALSE))=FALSE,VLOOKUP($D:$D,rend,2,FALSE),"") ->  | L9: =IF($C9="RM",IF(ISNA(VLOOKUP($F$2:$F$478,pos,2,FALSE))=FALSE,VLOOKUP($F9:$F$478,pos,2,FALSE),IF(ISNA(VLOOKUP($F$2:$F$478,lot,2,FALSE))=FALSE,VLOOKUP($F$2:$F$478,lot,2,FALSE),"MANQUANT")),"") -> Aucun | M9: =IF($C9="RM",IF(ISNA(VLOOKUP($F$2:$F$478,pos,3,FALSE))=FALSE,VLOOKUP($F9:$F483,pos,3,FALSE),"OP"),"") -> Aucun | N9: =IF($C9="RM",IF(ISNA(VLOOKUP($F9:$F$471,pos,4,FALSE))=FALSE,VLOOKUP($F$2:$F$471,pos,4,FALSE),""),"") -> 0 | O9: =IF($C9="RM",IF(ISNA(VLOOKUP($F$2:$F$478,pos,5,FALSE))=FALSE,VLOOKUP($F$2:$F$478,pos,5,FALSE),IF(ISNA(VLOOKUP($F$2:$F$478,lot,5,FALSE))=FALSE,VLOOKUP($F$2:$F$478,lot,5,FALSE),0)),"") -> 0 | P9: =IF($H9>0,VLOOKUP($D:$D,prix,15,FALSE),"") ->  | Q9: =IF($C9="RM",$O9*$G9,"") -> 0 | R9: =IF($H9>0,$H9*$P9,"") ->  | T9: =IF($F9>0,VALUE(LEFT($F9,4)),"") -> 5166 | U9: =IF(F9>0,IF(ISERROR(SEARCH("*FZ*",$E9))=FALSE,"FZ",IF(ISERROR(SEARCH("*FR*",$E9))=FALSE,"FR","Aucun")),"") -> Aucun | V9: =IF($C9="RM",IF($U9="FR",IF(ISNA(VLOOKUP($F:$F,lot,6,FALSE))=TRUE,VLOOKUP($T:$T,date,2,FALSE),VLOOKUP($F:$F,lot,6,FALSE)),""),"") ->  | W9: =IF($C9="RM",IF($U9="Fz",IF(ISNA(VLOOKUP($F:$F,lot,6,FALSE))=TRUE,VLOOKUP($T:$T,date,2,FALSE),VLOOKUP($F:$F,lot,6,FALSE)),""),"") ->  | X9: =IF($C9="FG",VLOOKUP($A:$A,op,4,FALSE),"") ->  | Y9: 2016-04-26 | Z9: =IF(C9="rm",IF(U9="aucun","OK",IF(U9="fz",IF(Y9-W9>730,Y9-W9,"OK"),IF(Y9-V9<1,1,Y9-V9))),"") -> OK
A10: 5484B0791 | B10: Beef | C10: RM | D10: 41341 | E10: PORK FILET *IN PROCESS* FR #D | F10: 5484B0784 | G10: 20.66 | K10: =IF(ISNA(VLOOKUP($D:$D,rend,2,FALSE))=FALSE,VLOOKUP($D:$D,rend,2,FALSE),"") -> 0.9262984933 | L10: =IF($C10="RM",IF(ISNA(VLOOKUP($F$2:$F$478,pos,2,FALSE))=FALSE,VLOOKUP($F10:$F$478,pos,2,FALSE),IF(ISNA(VLOOKUP($F$2:$F$478,lot,2,FALSE))=FALSE,VLOOKUP($F$2:$F$478,lot,2,FALSE),"MANQUANT")),"") -> 5484B07N | M10: =IF($C10="RM",IF(ISNA(VLOOKUP($F$2:$F$478,pos,3,FALSE))=FALSE,VLOOKUP($F10:$F484,pos,3,FALSE),"OP"),"") -> OP | N10: =IF($C10="RM",IF(ISNA(VLOOKUP($F10:$F$471,pos,4,FALSE))=FALSE,VLOOKUP($F$2:$F$471,pos,4,FALSE),""),"") ->  | O10: =IF($C10="RM",IF(ISNA(VLOOKUP($F$2:$F$478,pos,5,FALSE))=FALSE,VLOOKUP($F$2:$F$478,pos,5,FALSE),IF(ISNA(VLOOKUP($F$2:$F$478,lot,5,FALSE))=FALSE,VLOOKUP($F$2:$F$478,lot,5,FALSE),0)),"") -> 6.689356436 | P10: =IF($H10>0,VLOOKUP($D:$D,prix,15,FALSE),"") ->  | Q10: =IF($C10="RM",$O10*$G10,"") -> 138.202104 | R10: =IF($H10>0,$H10*$P10,"") ->  | T10: =IF($F10>0,VALUE(LEFT($F10,4)),"") -> 5484 | U10: =IF(F10>0,IF(ISERROR(SEARCH("*FZ*",$E10))=FALSE,"FZ",IF(ISERROR(SEARCH("*FR*",$E10))=FALSE,"FR","Aucun")),"") -> FR | V10: =IF($C10="RM",IF($U10="FR",IF(ISNA(VLOOKUP($F:$F,lot,6,FALSE))=TRUE,VLOOKUP($T:$T,date,2,FALSE),VLOOKUP($F:$F,lot,6,FALSE)),""),"") -> 2016-04-22 | W10: =IF($C10="RM",IF($U10="Fz",IF(ISNA(VLOOKUP($F:$F,lot,6,FALSE))=TRUE,VLOOKUP($T:$T,date,2,FALSE),VLOOKUP($F:$F,lot,6,FALSE)),""),"") ->  | X10: =IF($C10="FG",VLOOKUP($A:$A,op,4,FALSE),"") ->  | Y10: 2016-04-26 | Z10: =IF(C10="rm",IF(U10="aucun","OK",IF(U10="fz",IF(Y10-W10>730,Y10-W10,"OK"),IF(Y10-V10<1,1,Y10-V10))),"") -> 4
A11: 5484B0791 | B11: Beef | C11: RM | D11: 41342 | E11: TEXAN MEDALLION *IN PROCESS* CODE: 24003 (3X 12) FR #D | F11: 5484B0786 | G11: 1.88 | K11: =IF(ISNA(VLOOKUP($D:$D,rend,2,FALSE))=FALSE,VLOOKUP($D:$D,rend,2,FALSE),"") -> 0.9450369654 | L11: =IF($C11="RM",IF(ISNA(VLOOKUP($F$2:$F$478,pos,2,FALSE))=FALSE,VLOOKUP($F11:$F$478,pos,2,FALSE),IF(ISNA(VLOOKUP($F$2:$F$478,lot,2,FALSE))=FALSE,VLOOKUP($F$2:$F$478,lot,2,FALSE),"MANQUANT")),"") -> 5484B0775C | M11: =IF($C11="RM",IF(ISNA(VLOOKUP($F$2:$F$478,pos,3,FALSE))=FALSE,VLOOKUP($F11:$F485,pos,3,FALSE),"OP"),"") -> OP | N11: =IF($C11="RM",IF(ISNA(VLOOKUP($F11:$F$471,pos,4,FALSE))=FALSE,VLOOKUP($F$2:$F$471,pos,4,FALSE),""),"") ->  | O11: =IF($C11="RM",IF(ISNA(VLOOKUP($F$2:$F$478,pos,5,FALSE))=FALSE,VLOOKUP($F$2:$F$478,pos,5,FALSE),IF(ISNA(VLOOKUP($F$2:$F$478,lot,5,FALSE))=FALSE,VLOOKUP($F$2:$F$478,lot,5,FALSE),0)),"") -> 5.468410763 | P11: =IF($H11>0,VLOOKUP($D:$D,prix,15,FALSE),"") ->  | Q11: =IF($C11="RM",$O11*$G11,"") -> 10.28061223 | R11: =IF($H11>0,$H11*$P11,"") ->  | T11: =IF($F11>0,VALUE(LEFT($F11,4)),"") -> 5484 | U11: =IF(F11>0,IF(ISERROR(SEARCH("*FZ*",$E11))=FALSE,"FZ",IF(ISERROR(SEARCH("*FR*",$E11))=FALSE,"FR","Aucun")),"") -> FR | V11: =IF($C11="RM",IF($U11="FR",IF(ISNA(VLOOKUP($F:$F,lot,6,FALSE))=TRUE,VLOOKUP($T:$T,date,2,FALSE),VLOOKUP($F:$F,lot,6,FALSE)),""),"") -> 2016-04-22 | W11: =IF($C11="RM",IF($U11="Fz",IF(ISNA(VLOOKUP($F:$F,lot,6,FALSE))=TRUE,VLOOKUP($T:$T,date,2,FALSE),VLOOKUP($F:$F,lot,6,FALSE)),""),"") ->  | X11: =IF($C11="FG",VLOOKUP($A:$A,op,4,FALSE),"") ->  | Y11: 2016-04-26 | Z11: =IF(C11="rm",IF(U11="aucun","OK",IF(U11="fz",IF(Y11-W11>730,Y11-W11,"OK"),IF(Y11-V11<1,1,Y11-V11))),"") -> 4
A12: 5484B0791 | B12: Beef | C12: RM | D12: 41341 | E12: PORK FILET *IN PROCESS* FR #D | F12: 5484B0791 | G12: 372.8 | K12: =IF(ISNA(VLOOKUP($D:$D,rend,2,FALSE))=FALSE,VLOOKUP($D:$D,rend,2,FALSE),"") -> 0.9262984933 | L12: =IF($C12="RM",IF(ISNA(VLOOKUP($F$2:$F$478,pos,2,FALSE))=FALSE,VLOOKUP($F12:$F$478,pos,2,FALSE),IF(ISNA(VLOOKUP($F$2:$F$478,lot,2,FALSE))=FALSE,VLOOKUP($F$2:$F$478,lot,2,FALSE),"MANQUANT")),"") -> 5484B07O | M12: =IF($C12="RM",IF(ISNA(VLOOKUP($F$2:$F$478,pos,3,FALSE))=FALSE,VLOOKUP($F12:$F486,pos,3,FALSE),"OP"),"") -> OP | N12: =IF($C12="RM",IF(ISNA(VLOOKUP($F12:$F$471,pos,4,FALSE))=FALSE,VLOOKUP($F$2:$F$471,pos,4,FALSE),""),"") ->  | O12: =IF($C12="RM",IF(ISNA(VLOOKUP($F$2:$F$478,pos,5,FALSE))=FALSE,VLOOKUP($F$2:$F$478,pos,5,FALSE),IF(ISNA(VLOOKUP($F$2:$F$478,lot,5,FALSE))=FALSE,VLOOKUP($F$2:$F$478,lot,5,FALSE),0)),"") -> 6.262419749 | P12: =IF($H12>0,VLOOKUP($D:$D,prix,15,FALSE),"") ->  | Q12: =IF($C12="RM",$O12*$G12,"") -> 2334.630083 | R12: =IF($H12>0,$H12*$P12,"") ->  | T12: =IF($F12>0,VALUE(LEFT($F12,4)),"") -> 5484 | U12: =IF(F12>0,IF(ISERROR(SEARCH("*FZ*",$E12))=FALSE,"FZ",IF(ISERROR(SEARCH("*FR*",$E12))=FALSE,"FR","Aucun")),"") -> FR | V12: =IF($C12="RM",IF($U12="FR",IF(ISNA(VLOOKUP($F:$F,lot,6,FALSE))=TRUE,VLOOKUP($T:$T,date,2,FALSE),VLOOKUP($F:$F,lot,6,FALSE)),""),"") -> 2016-04-25 | W12: =IF($C12="RM",IF($U12="Fz",IF(ISNA(VLOOKUP($F:$F,lot,6,FALSE))=TRUE,VLOOKUP($T:$T,date,2,FALSE),VLOOKUP($F:$F,lot,6,FALSE)),""),"") ->  | X12: =IF($C12="FG",VLOOKUP($A:$A,op,4,FALSE),"") ->  | Y12: 2016-04-26 | Z12: =IF(C12="rm",IF(U12="aucun","OK",IF(U12="fz",IF(Y12-W12>730,Y12-W12,"OK"),IF(Y12-V12<1,1,Y12-V12))),"") -> 1
A13: 5484B0791 | B13: Beef | C13: RM | D13: 12 | E13: ING BSA 2B3L022 / ASSAISONNEMENTS BBQ-TEXANE / ALLERG: AUCUN | F13: 6052AS02 | G13: 28.02 | K13: =IF(ISNA(VLOOKUP($D:$D,rend,2,FALSE))=FALSE,VLOOKUP($D:$D,rend,2,FALSE),"") ->  | L13: =IF($C13="RM",IF(ISNA(VLOOKUP($F$2:$F$478,pos,2,FALSE))=FALSE,VLOOKUP($F13:$F$478,pos,2,FALSE),IF(ISNA(VLOOKUP($F$2:$F$478,lot,2,FALSE))=FALSE,VLOOKUP($F$2:$F$478,lot,2,FALSE),"MANQUANT")),"") -> PO-0021710 | M13: =IF($C13="RM",IF(ISNA(VLOOKUP($F$2:$F$478,pos,3,FALSE))=FALSE,VLOOKUP($F13:$F487,pos,3,FALSE),"OP"),"") -> BSA | N13: =IF($C13="RM",IF(ISNA(VLOOKUP($F13:$F$471,pos,4,FALSE))=FALSE,VLOOKUP($F$2:$F$471,pos,4,FALSE),""),"") -> 100 | O13: =IF($C13="RM",IF(ISNA(VLOOKUP($F$2:$F$478,pos,5,FALSE))=FALSE,VLOOKUP($F$2:$F$478,pos,5,FALSE),IF(ISNA(VLOOKUP($F$2:$F$478,lot,5,FALSE))=FALSE,VLOOKUP($F$2:$F$478,lot,5,FALSE),0)),"") -> 10.42 | P13: =IF($H13>0,VLOOKUP($D:$D,prix,15,FALSE),"") ->  | Q13: =IF($C13="RM",$O13*$G13,"") -> 291.9684 | R13: =IF($H13>0,$H13*$P13,"") ->  | T13: =IF($F13>0,VALUE(LEFT($F13,4)),"") -> 6052 | U13: =IF(F13>0,IF(ISERROR(SEARCH("*FZ*",$E13))=FALSE,"FZ",IF(ISERROR(SEARCH("*FR*",$E13))=FALSE,"FR","Aucun")),"") -> Aucun | V13: =IF($C13="RM",IF($U13="FR",IF(ISNA(VLOOKUP($F:$F,lot,6,FALSE))=TRUE,VLOOKUP($T:$T,date,2,FALSE),VLOOKUP($F:$F,lot,6,FALSE)),""),"") ->  | W13: =IF($C13="RM",IF($U13="Fz",IF(ISNA(VLOOKUP($F:$F,lot,6,FALSE))=TRUE,VLOOKUP($T:$T,date,2,FALSE),VLOOKUP($F:$F,lot,6,FALSE)),""),"") ->  | X13: =IF($C13="FG",VLOOKUP($A:$A,op,4,FALSE),"") ->  | Y13: 2016-04-26 | Z13: =IF(C13="rm",IF(U13="aucun","OK",IF(U13="fz",IF(Y13-W13>730,Y13-W13,"OK"),IF(Y13-V13<1,1,Y13-V13))),"") -> OK
A14: 5484B0791 | B14: Beef | C14: FG | D14: 24003 | E14: FILET DE PORC ASAISSONNE TEXAN**METRO( 3 X12 UN/ CS)115-125GR*4.32KG/SAC FR @P | F14: 5484B0793 | H14: 410.4 | K14: =IF(ISNA(VLOOKUP($D:$D,rend,2,FALSE))=FALSE,VLOOKUP($D:$D,rend,2,FALSE),"") -> 0.9349030212 | L14: =IF($C14="RM",IF(ISNA(VLOOKUP($F$2:$F$478,pos,2,FALSE))=FALSE,VLOOKUP($F14:$F$478,pos,2,FALSE),IF(ISNA(VLOOKUP($F$2:$F$478,lot,2,FALSE))=FALSE,VLOOKUP($F$2:$F$478,lot,2,FALSE),"MANQUANT")),"") ->  | M14: =IF($C14="RM",IF(ISNA(VLOOKUP($F$2:$F$478,pos,3,FALSE))=FALSE,VLOOKUP($F14:$F488,pos,3,FALSE),"OP"),"") ->  | N14: =IF($C14="RM",IF(ISNA(VLOOKUP($F14:$F$471,pos,4,FALSE))=FALSE,VLOOKUP($F$2:$F$471,pos,4,FALSE),""),"") ->  | O14: =IF($C14="RM",IF(ISNA(VLOOKUP($F$2:$F$478,pos,5,FALSE))=FALSE,VLOOKUP($F$2:$F$478,pos,5,FALSE),IF(ISNA(VLOOKUP($F$2:$F$478,lot,5,FALSE))=FALSE,VLOOKUP($F$2:$F$478,lot,5,FALSE),0)),"") ->  | P14: =IF($H14>0,VLOOKUP($D:$D,prix,15,FALSE),"") -> 8.851851852 | Q14: =IF($C14="RM",$O14*$G14,"") ->  | R14: =IF($H14>0,$H14*$P14,"") -> 3632.8 | T14: =IF($F14>0,VALUE(LEFT($F14,4)),"") -> 5484 | U14: =IF(F14>0,IF(ISERROR(SEARCH("*FZ*",$E14))=FALSE,"FZ",IF(ISERROR(SEARCH("*FR*",$E14))=FALSE,"FR","Aucun")),"") -> FR | V14: =IF($C14="RM",IF($U14="FR",IF(ISNA(VLOOKUP($F:$F,lot,6,FALSE))=TRUE,VLOOKUP($T:$T,date,2,FALSE),VLOOKUP($F:$F,lot,6,FALSE)),""),"") ->  | W14: =IF($C14="RM",IF($U14="Fz",IF(ISNA(VLOOKUP($F:$F,lot,6,FALSE))=TRUE,VLOOKUP($T:$T,date,2,FALSE),VLOOKUP($F:$F,lot,6,FALSE)),""),"") ->  | X14: =IF($C14="FG",VLOOKUP($A:$A,op,4,FALSE),"") ->  | Y14: 2016-04-26 | Z14: =IF(C14="rm",IF(U14="aucun","OK",IF(U14="fz",IF(Y14-W14>730,Y14-W14,"OK"),IF(Y14-V14<1,1,Y14-V14))),"") -> 
A15: 5484B0791 | B15: Beef | C15: FG | D15: 41342 | E15: TEXAN MEDALLION *IN PROCESS* CODE: 24003 (3X 12) FR #D | F15: 5484B0794 | H15: 71.98 | K15: =IF(ISNA(VLOOKUP($D:$D,rend,2,FALSE))=FALSE,VLOOKUP($D:$D,rend,2,FALSE),"") -> 0.9450369654 | L15: =IF($C15="RM",IF(ISNA(VLOOKUP($F$2:$F$478,pos,2,FALSE))=FALSE,VLOOKUP($F15:$F$478,pos,2,FALSE),IF(ISNA(VLOOKUP($F$2:$F$478,lot,2,FALSE))=FALSE,VLOOKUP($F$2:$F$478,lot,2,FALSE),"MANQUANT")),"") ->  | M15: =IF($C15="RM",IF(ISNA(VLOOKUP($F$2:$F$478,pos,3,FALSE))=FALSE,VLOOKUP($F15:$F489,pos,3,FALSE),"OP"),"") ->  | N15: =IF($C15="RM",IF(ISNA(VLOOKUP($F15:$F$471,pos,4,FALSE))=FALSE,VLOOKUP($F$2:$F$471,pos,4,FALSE),""),"") ->  | O15: =IF($C15="RM",IF(ISNA(VLOOKUP($F$2:$F$478,pos,5,FALSE))=FALSE,VLOOKUP($F$2:$F$478,pos,5,FALSE),IF(ISNA(VLOOKUP($F$2:$F$478,lot,5,FALSE))=FALSE,VLOOKUP($F$2:$F$478,lot,5,FALSE),0)),"") ->  | P15: =IF($H15>0,VLOOKUP($D:$D,prix,15,FALSE),"") -> 8.85 | Q15: =IF($C15="RM",$O15*$G15,"") ->  | R15: =IF($H15>0,$H15*$P15,"") -> 637.023 | T15: =IF($F15>0,VALUE(LEFT($F15,4)),"") -> 5484 | U15: =IF(F15>0,IF(ISERROR(SEARCH("*FZ*",$E15))=FALSE,"FZ",IF(ISERROR(SEARCH("*FR*",$E15))=FALSE,"FR","Aucun")),"") -> FR | V15: =IF($C15="RM",IF($U15="FR",IF(ISNA(VLOOKUP($F:$F,lot,6,FALSE))=TRUE,VLOOKUP($T:$T,date,2,FALSE),VLOOKUP($F:$F,lot,6,FALSE)),""),"") ->  | W15: =IF($C15="RM",IF($U15="Fz",IF(ISNA(VLOOKUP($F:$F,lot,6,FALSE))=TRUE,VLOOKUP($T:$T,date,2,FALSE),VLOOKUP($F:$F,lot,6,FALSE)),""),"") ->  | X15: =IF($C15="FG",VLOOKUP($A:$A,op,4,FALSE),"") ->  | Y15: 2016-04-26 | Z15: =IF(C15="rm",IF(U15="aucun","OK",IF(U15="fz",IF(Y15-W15>730,Y15-W15,"OK"),IF(Y15-V15<1,1,Y15-V15))),"") -> 
A16: 5484B0791 Total | G16: =SUBTOTAL(9,G9:G15) -> 506.02 | H16: =SUBTOTAL(9,H9:H15) -> 482.38 | Q16: =SUBTOTAL(9,Q9:Q15) -> 2775.081199 | R16: =SUBTOTAL(9,R9:R15) -> 4269.823
A17: 5484B07P | B17: Beef | C17: RM | D17: 63002 | E17: PORK FILET IBP US (VAC X2) FZ | F17: 5484B07 | G17: 484.9 | K17: =IF(ISNA(VLOOKUP($D:$D,rend,2,FALSE))=FALSE,VLOOKUP($D:$D,rend,2,FALSE),"") -> 0.9419084469 | L17: =IF($C17="RM",IF(ISNA(VLOOKUP($F$2:$F$478,pos,2,FALSE))=FALSE,VLOOKUP($F17:$F$478,pos,2,FALSE),IF(ISNA(VLOOKUP($F$2:$F$478,lot,2,FALSE))=FALSE,VLOOKUP($F$2:$F$478,lot,2,FALSE),"MANQUANT")),"") -> PO-0021592 | M17: =IF($C17="RM",IF(ISNA(VLOOKUP($F$2:$F$478,pos,3,FALSE))=FALSE,VLOOKUP($F17:$F490,pos,3,FALSE),"OP"),"") -> CHIS | N17: =IF($C17="RM",IF(ISNA(VLOOKUP($F17:$F$471,pos,4,FALSE))=FALSE,VLOOKUP($F$2:$F$471,pos,4,FALSE),""),"") -> 5000.61 | O17: =IF($C17="RM",IF(ISNA(VLOOKUP($F$2:$F$478,pos,5,FALSE))=FALSE,VLOOKUP($F$2:$F$478,pos,5,FALSE),IF(ISNA(VLOOKUP($F$2:$F$478,lot,5,FALSE))=FALSE,VLOOKUP($F$2:$F$478,lot,5,FALSE),0)),"") -> 5.75 | P17: =IF($H17>0,VLOOKUP($D:$D,prix,15,FALSE),"") ->  | Q17: =IF($C17="RM",$O17*$G17,"") -> 2788.175 | R17: =IF($H17>0,$H17*$P17,"") ->  | T17: =IF($F17>0,VALUE(LEFT($F17,4)),"") -> 5484 | U17: =IF(F17>0,IF(ISERROR(SEARCH("*FZ*",$E17))=FALSE,"FZ",IF(ISERROR(SEARCH("*FR*",$E17))=FALSE,"FR","Aucun")),"") -> FZ | V17: =IF($C17="RM",IF($U17="FR",IF(ISNA(VLOOKUP($F:$F,lot,6,FALSE))=TRUE,VLOOKUP($T:$T,date,2,FALSE),VLOOKUP($F:$F,lot,6,FALSE)),""),"") ->  | W17: =IF($C17="RM",IF($U17="Fz",IF(ISNA(VLOOKUP($F:$F,lot,6,FALSE))=TRUE,VLOOKUP($T:$T,date,2,FALSE),VLOOKUP($F:$F,lot,6,FALSE)),""),"") -> 2015-11-25 | X17: =IF($C17="FG",VLOOKUP($A:$A,op,4,FALSE),"") ->  | Y17: 2016-04-26 | Z17: =IF(C17="rm",IF(U17="aucun","OK",IF(U17="fz",IF(Y17-W17>730,Y17-W17,"OK"),IF(Y17-V17<1,1,Y17-V17))),"") -> OK
A18: 5484B07P | B18: Beef | C18: FG | D18: 41351 | E18: PORK TABLE TRIMMINGS*IN PROCESS**25 KG/CS FZ | F18: 5484B0795 | H18: 75 | K18: =IF(ISNA(VLOOKUP($D:$D,rend,2,FALSE))=FALSE,VLOOKUP($D:$D,rend,2,FALSE),"") -> 0.9351588117 | L18: =IF($C18="RM",IF(ISNA(VLOOKUP($F$2:$F$478,pos,2,FALSE))=FALSE,VLOOKUP($F18:$F$478,pos,2,FALSE),IF(ISNA(VLOOKUP($F$2:$F$478,lot,2,FALSE))=FALSE,VLOOKUP($F$2:$F$478,lot,2,FALSE),"MANQUANT")),"") ->  | M18: =IF($C18="RM",IF(ISNA(VLOOKUP($F$2:$F$478,pos,3,FALSE))=FALSE,VLOOKUP($F18:$F491,pos,3,FALSE),"OP"),"") ->  | N18: =IF($C18="RM",IF(ISNA(VLOOKUP($F18:$F$471,pos,4,FALSE))=FALSE,VLOOKUP($F$2:$F$471,pos,4,FALSE),""),"") ->  | O18: =IF($C18="RM",IF(ISNA(VLOOKUP($F$2:$F$478,pos,5,FALSE))=FALSE,VLOOKUP($F$2:$F$478,pos,5,FALSE),IF(ISNA(VLOOKUP($F$2:$F$478,lot,5,FALSE))=FALSE,VLOOKUP($F$2:$F$478,lot,5,FALSE),0)),"") ->  | P18: =IF($H18>0,VLOOKUP($D:$D,prix,15,FALSE),"") -> 5.5 | Q18: =IF($C18="RM",$O18*$G18,"") ->  | R18: =IF($H18>0,$H18*$P18,"") -> 412.5 | T18: =IF($F18>0,VALUE(LEFT($F18,4)),"") -> 5484 | U18: =IF(F18>0,IF(ISERROR(SEARCH("*FZ*",$E18))=FALSE,"FZ",IF(ISERROR(SEARCH("*FR*",$E18))=FALSE,"FR","Aucun")),"") -> FZ | V18: =IF($C18="RM",IF($U18="FR",IF(ISNA(VLOOKUP($F:$F,lot,6,FALSE))=TRUE,VLOOKUP($T:$T,date,2,FALSE),VLOOKUP($F:$F,lot,6,FALSE)),""),"") ->  | W18: =IF($C18="RM",IF($U18="Fz",IF(ISNA(VLOOKUP($F:$F,lot,6,FALSE))=TRUE,VLOOKUP($T:$T,date,2,FALSE),VLOOKUP($F:$F,lot,6,FALSE)),""),"") ->  | X18: =IF($C18="FG",VLOOKUP($A:$A,op,4,FALSE),"") ->  | Y18: 2016-04-26 | Z18: =IF(C18="rm",IF(U18="aucun","OK",IF(U18="fz",IF(Y18-W18>730,Y18-W18,"OK"),IF(Y18-V18<1,1,Y18-V18))),"") -> 
A19: 5484B07P | B19: Beef | C19: FG | D19: 41341 | E19: PORK FILET *IN PROCESS* FR #D | F19: 5484B0796 | H19: 341.2 | K19: =IF(ISNA(VLOOKUP($D:$D,rend,2,FALSE))=FALSE,VLOOKUP($D:$D,rend,2,FALSE),"") -> 0.9262984933 | L19: =IF($C19="RM",IF(ISNA(VLOOKUP($F$2:$F$478,pos,2,FALSE))=FALSE,VLOOKUP($F19:$F$478,pos,2,FALSE),IF(ISNA(VLOOKUP($F$2:$F$478,lot,2,FALSE))=FALSE,VLOOKUP($F$2:$F$478,lot,2,FALSE),"MANQUANT")),"") ->  | M19: =IF($C19="RM",IF(ISNA(VLOOKUP($F$2:$F$478,pos,3,FALSE))=FALSE,VLOOKUP($F19:$F492,pos,3,FALSE),"OP"),"") ->  | N19: =IF($C19="RM",IF(ISNA(VLOOKUP($F19:$F$471,pos,4,FALSE))=FALSE,VLOOKUP($F$2:$F$471,pos,4,FALSE),""),"") ->  | O19: =IF($C19="RM",IF(ISNA(VLOOKUP($F$2:$F$478,pos,5,FALSE))=FALSE,VLOOKUP($F$2:$F$478,pos,5,FALSE),IF(ISNA(VLOOKUP($F$2:$F$478,lot,5,FALSE))=FALSE,VLOOKUP($F$2:$F$478,lot,5,FALSE),0)),"") ->  | P19: =IF($H19>0,VLOOKUP($D:$D,prix,15,FALSE),"") -> 6.15 | Q19: =IF($C19="RM",$O19*$G19,"") ->  | R19: =IF($H19>0,$H19*$P19,"") -> 2098.38 | T19: =IF($F19>0,VALUE(LEFT($F19,4)),"") -> 5484 | U19: =IF(F19>0,IF(ISERROR(SEARCH("*FZ*",$E19))=FALSE,"FZ",IF(ISERROR(SEARCH("*FR*",$E19))=FALSE,"FR","Aucun")),"") -> FR | V19: =IF($C19="RM",IF($U19="FR",IF(ISNA(VLOOKUP($F:$F,lot,6,FALSE))=TRUE,VLOOKUP($T:$T,date,2,FALSE),VLOOKUP($F:$F,lot,6,FALSE)),""),"") ->  | W19: =IF($C19="RM",IF($U19="Fz",IF(ISNA(VLOOKUP($F:$F,lot,6,FALSE))=TRUE,VLOOKUP($T:$T,date,2,FALSE),VLOOKUP($F:$F,lot,6,FALSE)),""),"") ->  | X19: =IF($C19="FG",VLOOKUP($A:$A,op,4,FALSE),"") ->  | Y19: 2016-04-26 | Z19: =IF(C19="rm",IF(U19="aucun","OK",IF(U19="fz",IF(Y19-W19>730,Y19-W19,"OK"),IF(Y19-V19<1,1,Y19-V19))),"") -> 
A20: 5484B07P Total | G20: =SUBTOTAL(9,G17:G19) -> 484.9 | H20: =SUBTOTAL(9,H17:H19) -> 416.2 | Q20: =SUBTOTAL(9,Q17:Q19) -> 2788.175 | R20: =SUBTOTAL(9,R17:R19) -> 2510.88
A21: 6046B04T | B21: Beef | C21: RM | D21: 1 | E21: ING EAU | F21: 5166AS | G21: 7 | K21: =IF(ISNA(VLOOKUP($D:$D,rend,2,FALSE))=FALSE,VLOOKUP($D:$D,rend,2,FALSE),"") ->  | L21: =IF($C21="RM",IF(ISNA(VLOOKUP($F$2:$F$478,pos,2,FALSE))=FALSE,VLOOKUP($F21:$F$478,pos,2,FALSE),IF(ISNA(VLOOKUP($F$2:$F$478,lot,2,FALSE))=FALSE,VLOOKUP($F$2:$F$478,lot,2,FALSE),"MANQUANT")),"") -> Aucun | M21: =IF($C21="RM",IF(ISNA(VLOOKUP($F$2:$F$478,pos,3,FALSE))=FALSE,VLOOKUP($F21:$F493,pos,3,FALSE),"OP"),"") -> Aucun | N21: =IF($C21="RM",IF(ISNA(VLOOKUP($F21:$F$471,pos,4,FALSE))=FALSE,VLOOKUP($F$2:$F$471,pos,4,FALSE),""),"") -> 0 | O21: =IF($C21="RM",IF(ISNA(VLOOKUP($F$2:$F$478,pos,5,FALSE))=FALSE,VLOOKUP($F$2:$F$478,pos,5,FALSE),IF(ISNA(VLOOKUP($F$2:$F$478,lot,5,FALSE))=FALSE,VLOOKUP($F$2:$F$478,lot,5,FALSE),0)),"") -> 0 | P21: =IF($H21>0,VLOOKUP($D:$D,prix,15,FALSE),"") ->  | Q21: =IF($C21="RM",$O21*$G21,"") -> 0 | R21: =IF($H21>0,$H21*$P21,"") ->  | T21: =IF($F21>0,VALUE(LEFT($F21,4)),"") -> 5166 | U21: =IF(F21>0,IF(ISERROR(SEARCH("*FZ*",$E21))=FALSE,"FZ",IF(ISERROR(SEARCH("*FR*",$E21))=FALSE,"FR","Aucun")),"") -> Aucun | V21: =IF($C21="RM",IF($U21="FR",IF(ISNA(VLOOKUP($F:$F,lot,6,FALSE))=TRUE,VLOOKUP($T:$T,date,2,FALSE),VLOOKUP($F:$F,lot,6,FALSE)),""),"") ->  | W21: =IF($C21="RM",IF($U21="Fz",IF(ISNA(VLOOKUP($F:$F,lot,6,FALSE))=TRUE,VLOOKUP($T:$T,date,2,FALSE),VLOOKUP($F:$F,lot,6,FALSE)),""),"") ->  | X21: =IF($C21="FG",VLOOKUP($A:$A,op,4,FALSE),"") ->  | Y21: 2016-04-26 | Z21: =IF(C21="rm",IF(U21="aucun","OK",IF(U21="fz",IF(Y21-W21>730,Y21-W21,"OK"),IF(Y21-V21<1,1,Y21-V21))),"") -> OK
A22: 6046B04T | B22: Beef | C22: RM | D22: 30032 | E22: BONELESS BEEF 65% TRIMMINGS**RM COA REQUIS FZ #D | F22: 5472B04 | G22: 81.66 | K22: =IF(ISNA(VLOOKUP($D:$D,rend,2,FALSE))=FALSE,VLOOKUP($D:$D,rend,2,FALSE),"") -> 0.9410735268 | L22: =IF($C22="RM",IF(ISNA(VLOOKUP($F$2:$F$478,pos,2,FALSE))=FALSE,VLOOKUP($F22:$F$478,pos,2,FALSE),IF(ISNA(VLOOKUP($F$2:$F$478,lot,2,FALSE))=FALSE,VLOOKUP($F$2:$F$478,lot,2,FALSE),"MANQUANT")),"") -> PO-0021789 | M22: =IF($C22="RM",IF(ISNA(VLOOKUP($F$2:$F$478,pos,3,FALSE))=FALSE,VLOOKUP($F22:$F494,pos,3,FALSE),"OP"),"") -> CHIS | N22: =IF($C22="RM",IF(ISNA(VLOOKUP($F22:$F$471,pos,4,FALSE))=FALSE,VLOOKUP($F$2:$F$471,pos,4,FALSE),""),"") -> 24171.36 | O22: =IF($C22="RM",IF(ISNA(VLOOKUP($F$2:$F$478,pos,5,FALSE))=FALSE,VLOOKUP($F$2:$F$478,pos,5,FALSE),IF(ISNA(VLOOKUP($F$2:$F$478,lot,5,FALSE))=FALSE,VLOOKUP($F$2:$F$478,lot,5,FALSE),0)),"") -> 3.15 | P22: =IF($H22>0,VLOOKUP($D:$D,prix,15,FALSE),"") ->  | Q22: =IF($C22="RM",$O22*$G22,"") -> 257.229 | R22: =IF($H22>0,$H22*$P22,"") ->  | T22: =IF($F22>0,VALUE(LEFT($F22,4)),"") -> 5472 | U22: =IF(F22>0,IF(ISERROR(SEARCH("*FZ*",$E22))=FALSE,"FZ",IF(ISERROR(SEARCH("*FR*",$E22))=FALSE,"FR","Aucun")),"") -> FZ | V22: =IF($C22="RM",IF($U22="FR",IF(ISNA(VLOOKUP($F:$F,lot,6,FALSE))=TRUE,VLOOKUP($T:$T,date,2,FALSE),VLOOKUP($F:$F,lot,6,FALSE)),""),"") ->  | W22: =IF($C22="RM",IF($U22="Fz",IF(ISNA(VLOOKUP($F:$F,lot,6,FALSE))=TRUE,VLOOKUP($T:$T,date,2,FALSE),VLOOKUP($F:$F,lot,6,FALSE)),""),"") -> 2015-11-16 | X22: =IF($C22="FG",VLOOKUP($A:$A,op,4,FALSE),"") ->  | Y22: 2016-04-26 | Z22: =IF(C22="rm",IF(U22="aucun","OK",IF(U22="fz",IF(Y22-W22>730,Y22-W22,"OK"),IF(Y22-V22<1,1,Y22-V22))),"") -> OK
A23: 6046B04T | B23: Beef | C23: RM | D23: 21 | E23: ING MMIS 303003-12.84 / ASSAISONNEMENTS OIGNONS ROTIS / ALLERG: BLE | F23: 5486AS02 | G23: 8 | K23: =IF(ISNA(VLOOKUP($D:$D,rend,2,FALSE))=FALSE,VLOOKUP($D:$D,rend,2,FALSE),"") ->  | L23: =IF($C23="RM",IF(ISNA(VLOOKUP($F$2:$F$478,pos,2,FALSE))=FALSE,VLOOKUP($F23:$F$478,pos,2,FALSE),IF(ISNA(VLOOKUP($F$2:$F$478,lot,2,FALSE))=FALSE,VLOOKUP($F$2:$F$478,lot,2,FALSE),"MANQUANT")),"") -> PO-0020895 | M23: =IF($C23="RM",IF(ISNA(VLOOKUP($F$2:$F$478,pos,3,FALSE))=FALSE,VLOOKUP($F23:$F495,pos,3,FALSE),"OP"),"") -> MMIS | N23: =IF($C23="RM",IF(ISNA(VLOOKUP($F23:$F$471,pos,4,FALSE))=FALSE,VLOOKUP($F$2:$F$471,pos,4,FALSE),""),"") -> 400 | O23: =IF($C23="RM",IF(ISNA(VLOOKUP($F$2:$F$478,pos,5,FALSE))=FALSE,VLOOKUP($F$2:$F$478,pos,5,FALSE),IF(ISNA(VLOOKUP($F$2:$F$478,lot,5,FALSE))=FALSE,VLOOKUP($F$2:$F$478,lot,5,FALSE),0)),"") -> 5.433 | P23: =IF($H23>0,VLOOKUP($D:$D,prix,15,FALSE),"") ->  | Q23: =IF($C23="RM",$O23*$G23,"") -> 43.464 | R23: =IF($H23>0,$H23*$P23,"") ->  | T23: =IF($F23>0,VALUE(LEFT($F23,4)),"") -> 5486 | U23: =IF(F23>0,IF(ISERROR(SEARCH("*FZ*",$E23))=FALSE,"FZ",IF(ISERROR(SEARCH("*FR*",$E23))=FALSE,"FR","Aucun")),"") -> Aucun | V23: =IF($C23="RM",IF($U23="FR",IF(ISNA(VLOOKUP($F:$F,lot,6,FALSE))=TRUE,VLOOKUP($T:$T,date,2,FALSE),VLOOKUP($F:$F,lot,6,FALSE)),""),"") ->  | W23: =IF($C23="RM",IF($U23="Fz",IF(ISNA(VLOOKUP($F:$F,lot,6,FALSE))=TRUE,VLOOKUP($T:$T,date,2,FALSE),VLOOKUP($F:$F,lot,6,FALSE)),""),"") ->  | X23: =IF($C23="FG",VLOOKUP($A:$A,op,4,FALSE),"") ->  | Y23: 2016-04-26 | Z23: =IF(C23="rm",IF(U23="aucun","OK",IF(U23="fz",IF(Y23-W23>730,Y23-W23,"OK"),IF(Y23-V23<1,1,Y23-V23))),"") -> OK
A24: 6046B04T | B24: Beef | C24: RM | D24: 9 | E24: GLACE CONCASSEE | F24: 6046AS01 | G24: 7 | K24: =IF(ISNA(VLOOKUP($D:$D,rend,2,FALSE))=FALSE,VLOOKUP($D:$D,rend,2,FALSE),"") ->  | L24: =IF($C24="RM",IF(ISNA(VLOOKUP($F$2:$F$478,pos,2,FALSE))=FALSE,VLOOKUP($F24:$F$478,pos,2,FALSE),IF(ISNA(VLOOKUP($F$2:$F$478,lot,2,FALSE))=FALSE,VLOOKUP($F$2:$F$478,lot,2,FALSE),"MANQUANT")),"") -> PO-0021148 | M24: =IF($C24="RM",IF(ISNA(VLOOKUP($F$2:$F$478,pos,3,FALSE))=FALSE,VLOOKUP($F24:$F496,pos,3,FALSE),"OP"),"") -> GLACIER | N24: =IF($C24="RM",IF(ISNA(VLOOKUP($F24:$F$471,pos,4,FALSE))=FALSE,VLOOKUP($F$2:$F$471,pos,4,FALSE),""),"") -> 1000 | O24: =IF($C24="RM",IF(ISNA(VLOOKUP($F$2:$F$478,pos,5,FALSE))=FALSE,VLOOKUP($F$2:$F$478,pos,5,FALSE),IF(ISNA(VLOOKUP($F$2:$F$478,lot,5,FALSE))=FALSE,VLOOKUP($F$2:$F$478,lot,5,FALSE),0)),"") -> 0.425 | P24: =IF($H24>0,VLOOKUP($D:$D,prix,15,FALSE),"") ->  | Q24: =IF($C24="RM",$O24*$G24,"") -> 2.975 | R24: =IF($H24>0,$H24*$P24,"") ->  | T24: =IF($F24>0,VALUE(LEFT($F24,4)),"") -> 6046 | U24: =IF(F24>0,IF(ISERROR(SEARCH("*FZ*",$E24))=FALSE,"FZ",IF(ISERROR(SEARCH("*FR*",$E24))=FALSE,"FR","Aucun")),"") -> Aucun | V24: =IF($C24="RM",IF($U24="FR",IF(ISNA(VLOOKUP($F:$F,lot,6,FALSE))=TRUE,VLOOKUP($T:$T,date,2,FALSE),VLOOKUP($F:$F,lot,6,FALSE)),""),"") ->  | W24: =IF($C24="RM",IF($U24="Fz",IF(ISNA(VLOOKUP($F:$F,lot,6,FALSE))=TRUE,VLOOKUP($T:$T,date,2,FALSE),VLOOKUP($F:$F,lot,6,FALSE)),""),"") ->  | X24: =IF($C24="FG",VLOOKUP($A:$A,op,4,FALSE),"") ->  | Y24: 2016-04-26 | Z24: =IF(C24="rm",IF(U24="aucun","OK",IF(U24="fz",IF(Y24-W24>730,Y24-W24,"OK"),IF(Y24-V24<1,1,Y24-V24))),"") -> OK
A25: 6046B04T | B25: Beef | C25: RM | D25: 30010 | E25: BONELESS BEEF *RM*95%* COA REQUIS FZ | F25: 6046B04 | G25: 27.22 | K25: =IF(ISNA(VLOOKUP($D:$D,rend,2,FALSE))=FALSE,VLOOKUP($D:$D,rend,2,FALSE),"") -> 0.9387103571 | L25: =IF($C25="RM",IF(ISNA(VLOOKUP($F$2:$F$478,pos,2,FALSE))=FALSE,VLOOKUP($F25:$F$478,pos,2,FALSE),IF(ISNA(VLOOKUP($F$2:$F$478,lot,2,FALSE))=FALSE,VLOOKUP($F$2:$F$478,lot,2,FALSE),"MANQUANT")),"") -> PO-0021001 | M25: =IF($C25="RM",IF(ISNA(VLOOKUP($F$2:$F$478,pos,3,FALSE))=FALSE,VLOOKUP($F25:$F497,pos,3,FALSE),"OP"),"") -> CHIS | N25: =IF($C25="RM",IF(ISNA(VLOOKUP($F25:$F$471,pos,4,FALSE))=FALSE,VLOOKUP($F$2:$F$471,pos,4,FALSE),""),"") -> 17965.2 | O25: =IF($C25="RM",IF(ISNA(VLOOKUP($F$2:$F$478,pos,5,FALSE))=FALSE,VLOOKUP($F$2:$F$478,pos,5,FALSE),IF(ISNA(VLOOKUP($F$2:$F$478,lot,5,FALSE))=FALSE,VLOOKUP($F$2:$F$478,lot,5,FALSE),0)),"") -> 5.86 | P25: =IF($H25>0,VLOOKUP($D:$D,prix,15,FALSE),"") ->  | Q25: =IF($C25="RM",$O25*$G25,"") -> 159.5092 | R25: =IF($H25>0,$H25*$P25,"") ->  | T25: =IF($F25>0,VALUE(LEFT($F25,4)),"") -> 6046 | U25: =IF(F25>0,IF(ISERROR(SEARCH("*FZ*",$E25))=FALSE,"FZ",IF(ISERROR(SEARCH("*FR*",$E25))=FALSE,"FR","Aucun")),"") -> FZ | V25: =IF($C25="RM",IF($U25="FR",IF(ISNA(VLOOKUP($F:$F,lot,6,FALSE))=TRUE,VLOOKUP($T:$T,date,2,FALSE),VLOOKUP($F:$F,lot,6,FALSE)),""),"") ->  | W25: =IF($C25="RM",IF($U25="Fz",IF(ISNA(VLOOKUP($F:$F,lot,6,FALSE))=TRUE,VLOOKUP($T:$T,date,2,FALSE),VLOOKUP($F:$F,lot,6,FALSE)),""),"") -> 2016-01-22 | X25: =IF($C25="FG",VLOOKUP($A:$A,op,4,FALSE),"") ->  | Y25: 2016-04-26 | Z25: =IF(C25="rm",IF(U25="aucun","OK",IF(U25="fz",IF(Y25-W25>730,Y25-W25,"OK"),IF(Y25-V25<1,1,Y25-V25))),"") -> OK
A26: 6046B04T | B26: Beef | C26: RM | D26: 30028 | E26: BONELESS **90 % BEEF (RM )**COA REQUIRED FR #D | F26: 6174B02 | G26: 47.12 | K26: =IF(ISNA(VLOOKUP($D:$D,rend,2,FALSE))=FALSE,VLOOKUP($D:$D,rend,2,FALSE),"") -> 0.9406880987 | L26: =IF($C26="RM",IF(ISNA(VLOOKUP($F$2:$F$478,pos,2,FALSE))=FALSE,VLOOKUP($F26:$F$478,pos,2,FALSE),IF(ISNA(VLOOKUP($F$2:$F$478,lot,2,FALSE))=FALSE,VLOOKUP($F$2:$F$478,lot,2,FALSE),"MANQUANT")),"") -> PO-0021749 | M26: =IF($C26="RM",IF(ISNA(VLOOKUP($F$2:$F$478,pos,3,FALSE))=FALSE,VLOOKUP($F26:$F498,pos,3,FALSE),"OP"),"") -> RYDI | N26: =IF($C26="RM",IF(ISNA(VLOOKUP($F26:$F$471,pos,4,FALSE))=FALSE,VLOOKUP($F$2:$F$471,pos,4,FALSE),""),"") -> 866.5 | O26: =IF($C26="RM",IF(ISNA(VLOOKUP($F$2:$F$478,pos,5,FALSE))=FALSE,VLOOKUP($F$2:$F$478,pos,5,FALSE),IF(ISNA(VLOOKUP($F$2:$F$478,lot,5,FALSE))=FALSE,VLOOKUP($F$2:$F$478,lot,5,FALSE),0)),"") -> 6.68 | P26: =IF($H26>0,VLOOKUP($D:$D,prix,15,FALSE),"") ->  | Q26: =IF($C26="RM",$O26*$G26,"") -> 314.7616 | R26: =IF($H26>0,$H26*$P26,"") ->  | T26: =IF($F26>0,VALUE(LEFT($F26,4)),"") -> 6174 | U26: =IF(F26>0,IF(ISERROR(SEARCH("*FZ*",$E26))=FALSE,"FZ",IF(ISERROR(SEARCH("*FR*",$E26))=FALSE,"FR","Aucun")),"") -> FR | V26: =IF($C26="RM",IF($U26="FR",IF(ISNA(VLOOKUP($F:$F,lot,6,FALSE))=TRUE,VLOOKUP($T:$T,date,2,FALSE),VLOOKUP($F:$F,lot,6,FALSE)),""),"") -> 2016-04-20 | W26: =IF($C26="RM",IF($U26="Fz",IF(ISNA(VLOOKUP($F:$F,lot,6,FALSE))=TRUE,VLOOKUP($T:$T,date,2,FALSE),VLOOKUP($F:$F,lot,6,FALSE)),""),"") ->  | X26: =IF($C26="FG",VLOOKUP($A:$A,op,4,FALSE),"") ->  | Y26: 2016-04-26 | Z26: =IF(C26="rm",IF(U26="aucun","OK",IF(U26="fz",IF(Y26-W26>730,Y26-W26,"OK"),IF(Y26-V26<1,1,Y26-V26))),"") -> 6
A27: 6046B04T | B27: Beef | C27: RM | D27: 30001 | E27: BNLS BEEF TRIMMINGS 65%**RAW MATERIAL* COA REQUIS FR #D | F27: 6175B07 | G27: 22 | K27: =IF(ISNA(VLOOKUP($D:$D,rend,2,FALSE))=FALSE,VLOOKUP($D:$D,rend,2,FALSE),"") -> 0.9387197344 | L27: =IF($C27="RM",IF(ISNA(VLOOKUP($F$2:$F$478,pos,2,FALSE))=FALSE,VLOOKUP($F27:$F$478,pos,2,FALSE),IF(ISNA(VLOOKUP($F$2:$F$478,lot,2,FALSE))=FALSE,VLOOKUP($F$2:$F$478,lot,2,FALSE),"MANQUANT")),"") -> PO-0021815 | M27: =IF($C27="RM",IF(ISNA(VLOOKUP($F$2:$F$478,pos,3,FALSE))=FALSE,VLOOKUP($F27:$F499,pos,3,FALSE),"OP"),"") -> RYDI | N27: =IF($C27="RM",IF(ISNA(VLOOKUP($F27:$F$471,pos,4,FALSE))=FALSE,VLOOKUP($F$2:$F$471,pos,4,FALSE),""),"") -> 800 | O27: =IF($C27="RM",IF(ISNA(VLOOKUP($F$2:$F$478,pos,5,FALSE))=FALSE,VLOOKUP($F$2:$F$478,pos,5,FALSE),IF(ISNA(VLOOKUP($F$2:$F$478,lot,5,FALSE))=FALSE,VLOOKUP($F$2:$F$478,lot,5,FALSE),0)),"") -> 3.79 | P27: =IF($H27>0,VLOOKUP($D:$D,prix,15,FALSE),"") ->  | Q27: =IF($C27="RM",$O27*$G27,"") -> 83.38 | R27: =IF($H27>0,$H27*$P27,"") ->  | T27: =IF($F27>0,VALUE(LEFT($F27,4)),"") -> 6175 | U27: =IF(F27>0,IF(ISERROR(SEARCH("*FZ*",$E27))=FALSE,"FZ",IF(ISERROR(SEARCH("*FR*",$E27))=FALSE,"FR","Aucun")),"") -> FR | V27: =IF($C27="RM",IF($U27="FR",IF(ISNA(VLOOKUP($F:$F,lot,6,FALSE))=TRUE,VLOOKUP($T:$T,date,2,FALSE),VLOOKUP($F:$F,lot,6,FALSE)),""),"") -> 2016-04-21 | W27: =IF($C27="RM",IF($U27="Fz",IF(ISNA(VLOOKUP($F:$F,lot,6,FALSE))=TRUE,VLOOKUP($T:$T,date,2,FALSE),VLOOKUP($F:$F,lot,6,FALSE)),""),"") ->  | X27: =IF($C27="FG",VLOOKUP($A:$A,op,4,FALSE),"") ->  | Y27: 2016-04-26 | Z27: =IF(C27="rm",IF(U27="aucun","OK",IF(U27="fz",IF(Y27-W27>730,Y27-W27,"OK"),IF(Y27-V27<1,1,Y27-V27))),"") -> 5
A28: 6046B04T | B28: Beef | C28: FG | D28: 11188 | E28: BEEF BURGER IMPERIO 1/3 LIVRE**5.3 OZ ( 24/CS 3.63KG/CS) FZ #D | F28: 6046B0423 | H28: 199.65 | K28: =IF(ISNA(VLOOKUP($D:$D,rend,2,FALSE))=FALSE,VLOOKUP($D:$D,rend,2,FALSE),"") -> 0.9741650707 | L28: =IF($C28="RM",IF(ISNA(VLOOKUP($F$2:$F$478,pos,2,FALSE))=FALSE,VLOOKUP($F28:$F$478,pos,2,FALSE),IF(ISNA(VLOOKUP($F$2:$F$478,lot,2,FALSE))=FALSE,VLOOKUP($F$2:$F$478,lot,2,FALSE),"MANQUANT")),"") ->  | M28: =IF($C28="RM",IF(ISNA(VLOOKUP($F$2:$F$478,pos,3,FALSE))=FALSE,VLOOKUP($F28:$F500,pos,3,FALSE),"OP"),"") ->  | N28: =IF($C28="RM",IF(ISNA(VLOOKUP($F28:$F$471,pos,4,FALSE))=FALSE,VLOOKUP($F$2:$F$471,pos,4,FALSE),""),"") ->  | O28: =IF($C28="RM",IF(ISNA(VLOOKUP($F$2:$F$478,pos,5,FALSE))=FALSE,VLOOKUP($F$2:$F$478,pos,5,FALSE),IF(ISNA(VLOOKUP($F$2:$F$478,lot,5,FALSE))=FALSE,VLOOKUP($F$2:$F$478,lot,5,FALSE),0)),"") ->  | P28: =IF($H28>0,VLOOKUP($D:$D,prix,15,FALSE),"") -> 7.873278237 | Q28: =IF($C28="RM",$O28*$G28,"") ->  | R28: =IF($H28>0,$H28*$P28,"") -> 1571.9 | T28: =IF($F28>0,VALUE(LEFT($F28,4)),"") -> 6046 | U28: =IF(F28>0,IF(ISERROR(SEARCH("*FZ*",$E28))=FALSE,"FZ",IF(ISERROR(SEARCH("*FR*",$E28))=FALSE,"FR","Aucun")),"") -> FZ | V28: =IF($C28="RM",IF($U28="FR",IF(ISNA(VLOOKUP($F:$F,lot,6,FALSE))=TRUE,VLOOKUP($T:$T,date,2,FALSE),VLOOKUP($F:$F,lot,6,FALSE)),""),"") ->  | W28: =IF($C28="RM",IF($U28="Fz",IF(ISNA(VLOOKUP($F:$F,lot,6,FALSE))=TRUE,VLOOKUP($T:$T,date,2,FALSE),VLOOKUP($F:$F,lot,6,FALSE)),""),"") ->  | X28: =IF($C28="FG",VLOOKUP($A:$A,op,4,FALSE),"") ->  | Y28: 2016-04-26 | Z28: =IF(C28="rm",IF(U28="aucun","OK",IF(U28="fz",IF(Y28-W28>730,Y28-W28,"OK"),IF(Y28-V28<1,1,Y28-V28))),"") -> 
A29: 6046B04T Total | G29: =SUBTOTAL(9,G21:G28) -> 200 | H29: =SUBTOTAL(9,H21:H28) -> 199.65 | Q29: =SUBTOTAL(9,Q21:Q28) -> 861.3188 | R29: =SUBTOTAL(9,R21:R28) -> 1571.9
A30: 6055B04L | B30: Beef | C30: RM | D30: 30020 | E30: BEEF RIB* RTS*** AA FR #D | F30: 6055B04 | G30: 44 | K30: =IF(ISNA(VLOOKUP($D:$D,rend,2,FALSE))=FALSE,VLOOKUP($D:$D,rend,2,FALSE),"") -> 0.8553828376 | L30: =IF($C30="RM",IF(ISNA(VLOOKUP($F$2:$F$478,pos,2,FALSE))=FALSE,VLOOKUP($F30:$F$478,pos,2,FALSE),IF(ISNA(VLOOKUP($F$2:$F$478,lot,2,FALSE))=FALSE,VLOOKUP($F$2:$F$478,lot,2,FALSE),"MANQUANT")),"") -> PO-0021328 | M30: =IF($C30="RM",IF(ISNA(VLOOKUP($F$2:$F$478,pos,3,FALSE))=FALSE,VLOOKUP($F30:$F501,pos,3,FALSE),"OP"),"") -> 99 | N30: =IF($C30="RM",IF(ISNA(VLOOKUP($F30:$F$471,pos,4,FALSE))=FALSE,VLOOKUP($F$2:$F$471,pos,4,FALSE),""),"") -> 1328.53 | O30: =IF($C30="RM",IF(ISNA(VLOOKUP($F$2:$F$478,pos,5,FALSE))=FALSE,VLOOKUP($F$2:$F$478,pos,5,FALSE),IF(ISNA(VLOOKUP($F$2:$F$478,lot,5,FALSE))=FALSE,VLOOKUP($F$2:$F$478,lot,5,FALSE),0)),"") -> 16 | P30: =IF($H30>0,VLOOKUP($D:$D,prix,15,FALSE),"") ->  | Q30: =IF($C30="RM",$O30*$G30,"") -> 704 | R30: =IF($H30>0,$H30*$P30,"") ->  | T30: =IF($F30>0,VALUE(LEFT($F30,4)),"") -> 6055 | U30: =IF(F30>0,IF(ISERROR(SEARCH("*FZ*",$E30))=FALSE,"FZ",IF(ISERROR(SEARCH("*FR*",$E30))=FALSE,"FR","Aucun")),"") -> FR | V30: =IF($C30="RM",IF($U30="FR",IF(ISNA(VLOOKUP($F:$F,lot,6,FALSE))=TRUE,VLOOKUP($T:$T,date,2,FALSE),VLOOKUP($F:$F,lot,6,FALSE)),""),"") -> 2016-01-28 | W30: =IF($C30="RM",IF($U30="Fz",IF(ISNA(VLOOKUP($F:$F,lot,6,FALSE))=TRUE,VLOOKUP($T:$T,date,2,FALSE),VLOOKUP($F:$F,lot,6,FALSE)),""),"") ->  | X30: =IF($C30="FG",VLOOKUP($A:$A,op,4,FALSE),"") ->  | Y30: 2016-04-26 | Z30: =IF(C30="rm",IF(U30="aucun","OK",IF(U30="fz",IF(Y30-W30>730,Y30-W30,"OK"),IF(Y30-V30<1,1,Y30-V30))),"") -> 89
A31: 6055B04L | B31: Beef | C31: RM | D31: 31506 | E31: BEEF RIB STEAK *IN PROCESS* CODE: 30409, 30714, 30415, 30460, 30420 FR | F31: 6055B0466 | G31: 19.02 | K31: =IF(ISNA(VLOOKUP($D:$D,rend,2,FALSE))=FALSE,VLOOKUP($D:$D,rend,2,FALSE),"") -> 0.9076483683 | L31: =IF($C31="RM",IF(ISNA(VLOOKUP($F$2:$F$478,pos,2,FALSE))=FALSE,VLOOKUP($F31:$F$478,pos,2,FALSE),IF(ISNA(VLOOKUP($F$2:$F$478,lot,2,FALSE))=FALSE,VLOOKUP($F$2:$F$478,lot,2,FALSE),"MANQUANT")),"") -> 6055B04J | M31: =IF($C31="RM",IF(ISNA(VLOOKUP($F$2:$F$478,pos,3,FALSE))=FALSE,VLOOKUP($F31:$F502,pos,3,FALSE),"OP"),"") -> OP | N31: =IF($C31="RM",IF(ISNA(VLOOKUP($F31:$F$471,pos,4,FALSE))=FALSE,VLOOKUP($F$2:$F$471,pos,4,FALSE),""),"") ->  | O31: =IF($C31="RM",IF(ISNA(VLOOKUP($F$2:$F$478,pos,5,FALSE))=FALSE,VLOOKUP($F$2:$F$478,pos,5,FALSE),IF(ISNA(VLOOKUP($F$2:$F$478,lot,5,FALSE))=FALSE,VLOOKUP($F$2:$F$478,lot,5,FALSE),0)),"") -> 16.38298153 | P31: =IF($H31>0,VLOOKUP($D:$D,prix,15,FALSE),"") ->  | Q31: =IF($C31="RM",$O31*$G31,"") -> 311.6043088 | R31: =IF($H31>0,$H31*$P31,"") ->  | T31: =IF($F31>0,VALUE(LEFT($F31,4)),"") -> 6055 | U31: =IF(F31>0,IF(ISERROR(SEARCH("*FZ*",$E31))=FALSE,"FZ",IF(ISERROR(SEARCH("*FR*",$E31))=FALSE,"FR","Aucun")),"") -> FR | V31: =IF($C31="RM",IF($U31="FR",IF(ISNA(VLOOKUP($F:$F,lot,6,FALSE))=TRUE,VLOOKUP($T:$T,date,2,FALSE),VLOOKUP($F:$F,lot,6,FALSE)),""),"") -> 2016-01-28 | W31: =IF($C31="RM",IF($U31="Fz",IF(ISNA(VLOOKUP($F:$F,lot,6,FALSE))=TRUE,VLOOKUP($T:$T,date,2,FALSE),VLOOKUP($F:$F,lot,6,FALSE)),""),"") ->  | X31: =IF($C31="FG",VLOOKUP($A:$A,op,4,FALSE),"") ->  | Y31: 2016-04-26 | Z31: =IF(C31="rm",IF(U31="aucun","OK",IF(U31="fz",IF(Y31-W31>730,Y31-W31,"OK"),IF(Y31-V31<1,1,Y31-V31))),"") -> 89
A32: 6055B04L | B32: Beef | C32: RM | D32: 31506 | E32: BEEF RIB STEAK *IN PROCESS* CODE: 30409, 30714, 30415, 30460, 30420 FR | F32: 6055B0475 | G32: 14.28 | K32: =IF(ISNA(VLOOKUP($D:$D,rend,2,FALSE))=FALSE,VLOOKUP($D:$D,rend,2,FALSE),"") -> 0.9076483683 | L32: =IF($C32="RM",IF(ISNA(VLOOKUP($F$2:$F$478,pos,2,FALSE))=FALSE,VLOOKUP($F32:$F$478,pos,2,FALSE),IF(ISNA(VLOOKUP($F$2:$F$478,lot,2,FALSE))=FALSE,VLOOKUP($F$2:$F$478,lot,2,FALSE),"MANQUANT")),"") -> 6055B04K | M32: =IF($C32="RM",IF(ISNA(VLOOKUP($F$2:$F$478,pos,3,FALSE))=FALSE,VLOOKUP($F32:$F503,pos,3,FALSE),"OP"),"") -> OP | N32: =IF($C32="RM",IF(ISNA(VLOOKUP($F32:$F$471,pos,4,FALSE))=FALSE,VLOOKUP($F$2:$F$471,pos,4,FALSE),""),"") ->  | O32: =IF($C32="RM",IF(ISNA(VLOOKUP($F$2:$F$478,pos,5,FALSE))=FALSE,VLOOKUP($F$2:$F$478,pos,5,FALSE),IF(ISNA(VLOOKUP($F$2:$F$478,lot,5,FALSE))=FALSE,VLOOKUP($F$2:$F$478,lot,5,FALSE),0)),"") -> 28.67104948 | P32: =IF($H32>0,VLOOKUP($D:$D,prix,15,FALSE),"") ->  | Q32: =IF($C32="RM",$O32*$G32,"") -> 409.4225866 | R32: =IF($H32>0,$H32*$P32,"") ->  | T32: =IF($F32>0,VALUE(LEFT($F32,4)),"") -> 6055 | U32: =IF(F32>0,IF(ISERROR(SEARCH("*FZ*",$E32))=FALSE,"FZ",IF(ISERROR(SEARCH("*FR*",$E32))=FALSE,"FR","Aucun")),"") -> FR | V32: =IF($C32="RM",IF($U32="FR",IF(ISNA(VLOOKUP($F:$F,lot,6,FALSE))=TRUE,VLOOKUP($T:$T,date,2,FALSE),VLOOKUP($F:$F,lot,6,FALSE)),""),"") -> 2016-01-28 | W32: =IF($C32="RM",IF($U32="Fz",IF(ISNA(VLOOKUP($F:$F,lot,6,FALSE))=TRUE,VLOOKUP($T:$T,date,2,FALSE),VLOOKUP($F:$F,lot,6,FALSE)),""),"") ->  | X32: =IF($C32="FG",VLOOKUP($A:$A,op,4,FALSE),"") ->  | Y32: 2016-04-26 | Z32: =IF(C32="rm",IF(U32="aucun","OK",IF(U32="fz",IF(Y32-W32>730,Y32-W32,"OK"),IF(Y32-V32<1,1,Y32-V32))),"") -> 89
A33: 6055B04L | B33: Beef | C33: RM | D33: 31506 | E33: BEEF RIB STEAK *IN PROCESS* CODE: 30409, 30714, 30415, 30460, 30420 FR | F33: 6076B0174 | G33: 10 | K33: =IF(ISNA(VLOOKUP($D:$D,rend,2,FALSE))=FALSE,VLOOKUP($D:$D,rend,2,FALSE),"") -> 0.9076483683 | L33: =IF($C33="RM",IF(ISNA(VLOOKUP($F$2:$F$478,pos,2,FALSE))=FALSE,VLOOKUP($F33:$F$478,pos,2,FALSE),IF(ISNA(VLOOKUP($F$2:$F$478,lot,2,FALSE))=FALSE,VLOOKUP($F$2:$F$478,lot,2,FALSE),"MANQUANT")),"") -> 6076B01L | M33: =IF($C33="RM",IF(ISNA(VLOOKUP($F$2:$F$478,pos,3,FALSE))=FALSE,VLOOKUP($F33:$F504,pos,3,FALSE),"OP"),"") -> OP | N33: =IF($C33="RM",IF(ISNA(VLOOKUP($F33:$F$471,pos,4,FALSE))=FALSE,VLOOKUP($F$2:$F$471,pos,4,FALSE),""),"") ->  | O33: =IF($C33="RM",IF(ISNA(VLOOKUP($F$2:$F$478,pos,5,FALSE))=FALSE,VLOOKUP($F$2:$F$478,pos,5,FALSE),IF(ISNA(VLOOKUP($F$2:$F$478,lot,5,FALSE))=FALSE,VLOOKUP($F$2:$F$478,lot,5,FALSE),0)),"") -> 18.18413534 | P33: =IF($H33>0,VLOOKUP($D:$D,prix,15,FALSE),"") ->  | Q33: =IF($C33="RM",$O33*$G33,"") -> 181.8413534 | R33: =IF($H33>0,$H33*$P33,"") ->  | T33: =IF($F33>0,VALUE(LEFT($F33,4)),"") -> 6076 | U33: =IF(F33>0,IF(ISERROR(SEARCH("*FZ*",$E33))=FALSE,"FZ",IF(ISERROR(SEARCH("*FR*",$E33))=FALSE,"FR","Aucun")),"") -> FR | V33: =IF($C33="RM",IF($U33="FR",IF(ISNA(VLOOKUP($F:$F,lot,6,FALSE))=TRUE,VLOOKUP($T:$T,date,2,FALSE),VLOOKUP($F:$F,lot,6,FALSE)),""),"") -> 2016-01-28 | W33: =IF($C33="RM",IF($U33="Fz",IF(ISNA(VLOOKUP($F:$F,lot,6,FALSE))=TRUE,VLOOKUP($T:$T,date,2,FALSE),VLOOKUP($F:$F,lot,6,FALSE)),""),"") ->  | X33: =IF($C33="FG",VLOOKUP($A:$A,op,4,FALSE),"") ->  | Y33: 2016-04-26 | Z33: =IF(C33="rm",IF(U33="aucun","OK",IF(U33="fz",IF(Y33-W33>730,Y33-W33,"OK"),IF(Y33-V33<1,1,Y33-V33))),"") -> 89
A34: 6055B04L | B34: Beef | C34: FG | D34: 99997 | E34: 14OZ-BEEF RIB STEAKS*PROMO* 20 X 1 COV*AA**8KG/CS FZ #D | F34: 6055B0478 | H34: 72 | K34: =IF(ISNA(VLOOKUP($D:$D,rend,2,FALSE))=FALSE,VLOOKUP($D:$D,rend,2,FALSE),"") -> 0.9255111449 | L34: =IF($C34="RM",IF(ISNA(VLOOKUP($F$2:$F$478,pos,2,FALSE))=FALSE,VLOOKUP($F34:$F$478,pos,2,FALSE),IF(ISNA(VLOOKUP($F$2:$F$478,lot,2,FALSE))=FALSE,VLOOKUP($F$2:$F$478,lot,2,FALSE),"MANQUANT")),"") ->  | M34: =IF($C34="RM",IF(ISNA(VLOOKUP($F$2:$F$478,pos,3,FALSE))=FALSE,VLOOKUP($F34:$F505,pos,3,FALSE),"OP"),"") ->  | N34: =IF($C34="RM",IF(ISNA(VLOOKUP($F34:$F$471,pos,4,FALSE))=FALSE,VLOOKUP($F$2:$F$471,pos,4,FALSE),""),"") ->  | O34: =IF($C34="RM",IF(ISNA(VLOOKUP($F$2:$F$478,pos,5,FALSE))=FALSE,VLOOKUP($F$2:$F$478,pos,5,FALSE),IF(ISNA(VLOOKUP($F$2:$F$478,lot,5,FALSE))=FALSE,VLOOKUP($F$2:$F$478,lot,5,FALSE),0)),"") ->  | P34: =IF($H34>0,VLOOKUP($D:$D,prix,15,FALSE),"") -> 23 | Q34: =IF($C34="RM",$O34*$G34,"") ->  | R34: =IF($H34>0,$H34*$P34,"") -> 1656 | T34: =IF($F34>0,VALUE(LEFT($F34,4)),"") -> 6055 | U34: =IF(F34>0,IF(ISERROR(SEARCH("*FZ*",$E34))=FALSE,"FZ",IF(ISERROR(SEARCH("*FR*",$E34))=FALSE,"FR","Aucun")),"") -> FZ | V34: =IF($C34="RM",IF($U34="FR",IF(ISNA(VLOOKUP($F:$F,lot,6,FALSE))=TRUE,VLOOKUP($T:$T,date,2,FALSE),VLOOKUP($F:$F,lot,6,FALSE)),""),"") ->  | W34: =IF($C34="RM",IF($U34="Fz",IF(ISNA(VLOOKUP($F:$F,lot,6,FALSE))=TRUE,VLOOKUP($T:$T,date,2,FALSE),VLOOKUP($F:$F,lot,6,FALSE)),""),"") ->  | X34: =IF($C34="FG",VLOOKUP($A:$A,op,4,FALSE),"") ->  | Y34: 2016-04-26 | Z34: =IF(C34="rm",IF(U34="aucun","OK",IF(U34="fz",IF(Y34-W34>730,Y34-W34,"OK"),IF(Y34-V34<1,1,Y34-V34))),"") -> 
A35: 6055B04L | B35: Beef | C35: FG | D35: 14114 | E35: 14 OZ-BEEF RIB STEAKS-12X1*AA FR @P | F35: 6055B0479 | H35: 19.5 | K35: =IF(ISNA(VLOOKUP($D:$D,rend,2,FALSE))=FALSE,VLOOKUP($D:$D,rend,2,FALSE),"") -> 0.9162333938 | L35: =IF($C35="RM",IF(ISNA(VLOOKUP($F$2:$F$478,pos,2,FALSE))=FALSE,VLOOKUP($F35:$F$478,pos,2,FALSE),IF(ISNA(VLOOKUP($F$2:$F$478,lot,2,FALSE))=FALSE,VLOOKUP($F$2:$F$478,lot,2,FALSE),"MANQUANT")),"") ->  | M35: =IF($C35="RM",IF(ISNA(VLOOKUP($F$2:$F$478,pos,3,FALSE))=FALSE,VLOOKUP($F35:$F506,pos,3,FALSE),"OP"),"") ->  | N35: =IF($C35="RM",IF(ISNA(VLOOKUP($F35:$F$471,pos,4,FALSE))=FALSE,VLOOKUP($F$2:$F$471,pos,4,FALSE),""),"") ->  | O35: =IF($C35="RM",IF(ISNA(VLOOKUP($F$2:$F$478,pos,5,FALSE))=FALSE,VLOOKUP($F$2:$F$478,pos,5,FALSE),IF(ISNA(VLOOKUP($F$2:$F$478,lot,5,FALSE))=FALSE,VLOOKUP($F$2:$F$478,lot,5,FALSE),0)),"") ->  | P35: =IF($H35>0,VLOOKUP($D:$D,prix,15,FALSE),"") -> 23 | Q35: =IF($C35="RM",$O35*$G35,"") ->  | R35: =IF($H35>0,$H35*$P35,"") -> 448.5 | T35: =IF($F35>0,VALUE(LEFT($F35,4)),"") -> 6055 | U35: =IF(F35>0,IF(ISERROR(SEARCH("*FZ*",$E35))=FALSE,"FZ",IF(ISERROR(SEARCH("*FR*",$E35))=FALSE,"FR","Aucun")),"") -> FR | V35: =IF($C35="RM",IF($U35="FR",IF(ISNA(VLOOKUP($F:$F,lot,6,FALSE))=TRUE,VLOOKUP($T:$T,date,2,FALSE),VLOOKUP($F:$F,lot,6,FALSE)),""),"") ->  | W35: =IF($C35="RM",IF($U35="Fz",IF(ISNA(VLOOKUP($F:$F,lot,6,FALSE))=TRUE,VLOOKUP($T:$T,date,2,FALSE),VLOOKUP($F:$F,lot,6,FALSE)),""),"") ->  | X35: =IF($C35="FG",VLOOKUP($A:$A,op,4,FALSE),"") ->  | Y35: 2016-04-26 | Z35: =IF(C35="rm",IF(U35="aucun","OK",IF(U35="fz",IF(Y35-W35>730,Y35-W35,"OK"),IF(Y35-V35<1,1,Y35-V35))),"") -> 
A36: 6055B04L | B36: Beef | C36: FG | D36: 30614 | E36: BEEF UNIT RIB STEAKS*12/CAISSES**COV X1*AAA*14 OZ FR @P | F36: 6055B0480 | H36: 5.02 | K36: =IF(ISNA(VLOOKUP($D:$D,rend,2,FALSE))=FALSE,VLOOKUP($D:$D,rend,2,FALSE),"") -> 0.9034279303 | L36: =IF($C36="RM",IF(ISNA(VLOOKUP($F$2:$F$478,pos,2,FALSE))=FALSE,VLOOKUP($F36:$F$478,pos,2,FALSE),IF(ISNA(VLOOKUP($F$2:$F$478,lot,2,FALSE))=FALSE,VLOOKUP($F$2:$F$478,lot,2,FALSE),"MANQUANT")),"") ->  | M36: =IF($C36="RM",IF(ISNA(VLOOKUP($F$2:$F$478,pos,3,FALSE))=FALSE,VLOOKUP($F36:$F507,pos,3,FALSE),"OP"),"") ->  | N36: =IF($C36="RM",IF(ISNA(VLOOKUP($F36:$F$471,pos,4,FALSE))=FALSE,VLOOKUP($F$2:$F$471,pos,4,FALSE),""),"") ->  | O36: =IF($C36="RM",IF(ISNA(VLOOKUP($F$2:$F$478,pos,5,FALSE))=FALSE,VLOOKUP($F$2:$F$478,pos,5,FALSE),IF(ISNA(VLOOKUP($F$2:$F$478,lot,5,FALSE))=FALSE,VLOOKUP($F$2:$F$478,lot,5,FALSE),0)),"") ->  | P36: =IF($H36>0,VLOOKUP($D:$D,prix,15,FALSE),"") -> 24.5 | Q36: =IF($C36="RM",$O36*$G36,"") ->  | R36: =IF($H36>0,$H36*$P36,"") -> 122.99 | T36: =IF($F36>0,VALUE(LEFT($F36,4)),"") -> 6055 | U36: =IF(F36>0,IF(ISERROR(SEARCH("*FZ*",$E36))=FALSE,"FZ",IF(ISERROR(SEARCH("*FR*",$E36))=FALSE,"FR","Aucun")),"") -> FR | V36: =IF($C36="RM",IF($U36="FR",IF(ISNA(VLOOKUP($F:$F,lot,6,FALSE))=TRUE,VLOOKUP($T:$T,date,2,FALSE),VLOOKUP($F:$F,lot,6,FALSE)),""),"") ->  | W36: =IF($C36="RM",IF($U36="Fz",IF(ISNA(VLOOKUP($F:$F,lot,6,FALSE))=TRUE,VLOOKUP($T:$T,date,2,FALSE),VLOOKUP($F:$F,lot,6,FALSE)),""),"") ->  | X36: =IF($C36="FG",VLOOKUP($A:$A,op,4,FALSE),"") ->  | Y36: 2016-04-26 | Z36: =IF(C36="rm",IF(U36="aucun","OK",IF(U36="fz",IF(Y36-W36>730,Y36-W36,"OK"),IF(Y36-V36<1,1,Y36-V36))),"") -> 
A37: 6055B04L | B37: Beef | C37: FG | D37: 30514 | E37: BEEF UNIT RIB STEAKS*12/CAISSES**COV X1*AA*14 OZ FR @P | F37: 6055B0481 | H37: 14.76 | K37: =IF(ISNA(VLOOKUP($D:$D,rend,2,FALSE))=FALSE,VLOOKUP($D:$D,rend,2,FALSE),"") -> 0.9060983192 | L37: =IF($C37="RM",IF(ISNA(VLOOKUP($F$2:$F$478,pos,2,FALSE))=FALSE,VLOOKUP($F37:$F$478,pos,2,FALSE),IF(ISNA(VLOOKUP($F$2:$F$478,lot,2,FALSE))=FALSE,VLOOKUP($F$2:$F$478,lot,2,FALSE),"MANQUANT")),"") ->  | M37: =IF($C37="RM",IF(ISNA(VLOOKUP($F$2:$F$478,pos,3,FALSE))=FALSE,VLOOKUP($F37:$F508,pos,3,FALSE),"OP"),"") ->  | N37: =IF($C37="RM",IF(ISNA(VLOOKUP($F37:$F$471,pos,4,FALSE))=FALSE,VLOOKUP($F$2:$F$471,pos,4,FALSE),""),"") ->  | O37: =IF($C37="RM",IF(ISNA(VLOOKUP($F$2:$F$478,pos,5,FALSE))=FALSE,VLOOKUP($F$2:$F$478,pos,5,FALSE),IF(ISNA(VLOOKUP($F$2:$F$478,lot,5,FALSE))=FALSE,VLOOKUP($F$2:$F$478,lot,5,FALSE),0)),"") ->  | P37: =IF($H37>0,VLOOKUP($D:$D,prix,15,FALSE),"") -> 22 | Q37: =IF($C37="RM",$O37*$G37,"") ->  | R37: =IF($H37>0,$H37*$P37,"") -> 324.72 | T37: =IF($F37>0,VALUE(LEFT($F37,4)),"") -> 6055 | U37: =IF(F37>0,IF(ISERROR(SEARCH("*FZ*",$E37))=FALSE,"FZ",IF(ISERROR(SEARCH("*FR*",$E37))=FALSE,"FR","Aucun")),"") -> FR | V37: =IF($C37="RM",IF($U37="FR",IF(ISNA(VLOOKUP($F:$F,lot,6,FALSE))=TRUE,VLOOKUP($T:$T,date,2,FALSE),VLOOKUP($F:$F,lot,6,FALSE)),""),"") ->  | W37: =IF($C37="RM",IF($U37="Fz",IF(ISNA(VLOOKUP($F:$F,lot,6,FALSE))=TRUE,VLOOKUP($T:$T,date,2,FALSE),VLOOKUP($F:$F,lot,6,FALSE)),""),"") ->  | X37: =IF($C37="FG",VLOOKUP($A:$A,op,4,FALSE),"") ->  | Y37: 2016-04-26 | Z37: =IF(C37="rm",IF(U37="aucun","OK",IF(U37="fz",IF(Y37-W37>730,Y37-W37,"OK"),IF(Y37-V37<1,1,Y37-V37))),"") -> 
A38: 6055B04L | B38: Beef | C38: FG | D38: 31331 | E38: BEEF UNIT RIB STEAK * 12 OZ**AA** CONAN BOX* 15 / CS**VACX1 FZ | F38: 6055B0482 | H38: 10.16 | K38: =IF(ISNA(VLOOKUP($D:$D,rend,2,FALSE))=FALSE,VLOOKUP($D:$D,rend,2,FALSE),"") -> 0.8909209149 | L38: =IF($C38="RM",IF(ISNA(VLOOKUP($F$2:$F$478,pos,2,FALSE))=FALSE,VLOOKUP($F38:$F$478,pos,2,FALSE),IF(ISNA(VLOOKUP($F$2:$F$478,lot,2,FALSE))=FALSE,VLOOKUP($F$2:$F$478,lot,2,FALSE),"MANQUANT")),"") ->  | M38: =IF($C38="RM",IF(ISNA(VLOOKUP($F$2:$F$478,pos,3,FALSE))=FALSE,VLOOKUP($F38:$F509,pos,3,FALSE),"OP"),"") ->  | N38: =IF($C38="RM",IF(ISNA(VLOOKUP($F38:$F$471,pos,4,FALSE))=FALSE,VLOOKUP($F$2:$F$471,pos,4,FALSE),""),"") ->  | O38: =IF($C38="RM",IF(ISNA(VLOOKUP($F$2:$F$478,pos,5,FALSE))=FALSE,VLOOKUP($F$2:$F$478,pos,5,FALSE),IF(ISNA(VLOOKUP($F$2:$F$478,lot,5,FALSE))=FALSE,VLOOKUP($F$2:$F$478,lot,5,FALSE),0)),"") ->  | P38: =IF($H38>0,VLOOKUP($D:$D,prix,15,FALSE),"") -> 24.5 | Q38: =IF($C38="RM",$O38*$G38,"") ->  | R38: =IF($H38>0,$H38*$P38,"") -> 248.92 | T38: =IF($F38>0,VALUE(LEFT($F38,4)),"") -> 6055 | U38: =IF(F38>0,IF(ISERROR(SEARCH("*FZ*",$E38))=FALSE,"FZ",IF(ISERROR(SEARCH("*FR*",$E38))=FALSE,"FR","Aucun")),"") -> FZ | V38: =IF($C38="RM",IF($U38="FR",IF(ISNA(VLOOKUP($F:$F,lot,6,FALSE))=TRUE,VLOOKUP($T:$T,date,2,FALSE),VLOOKUP($F:$F,lot,6,FALSE)),""),"") ->  | W38: =IF($C38="RM",IF($U38="Fz",IF(ISNA(VLOOKUP($F:$F,lot,6,FALSE))=TRUE,VLOOKUP($T:$T,date,2,FALSE),VLOOKUP($F:$F,lot,6,FALSE)),""),"") ->  | X38: =IF($C38="FG",VLOOKUP($A:$A,op,4,FALSE),"") ->  | Y38: 2016-04-26 | Z38: =IF(C38="rm",IF(U38="aucun","OK",IF(U38="fz",IF(Y38-W38>730,Y38-W38,"OK"),IF(Y38-V38<1,1,Y38-V38))),"") -> 
A39: 6055B04L | B39: Beef | C39: FG | D39: 30512 | E39: BEEF UNIT RIB STEAKS*12/CAISSES**COV X1*AA*12 OZ FR @P | F39: 6055B0483 | H39: 8.62 | K39: =IF(ISNA(VLOOKUP($D:$D,rend,2,FALSE))=FALSE,VLOOKUP($D:$D,rend,2,FALSE),"") -> 0.9159181845 | L39: =IF($C39="RM",IF(ISNA(VLOOKUP($F$2:$F$478,pos,2,FALSE))=FALSE,VLOOKUP($F39:$F$478,pos,2,FALSE),IF(ISNA(VLOOKUP($F$2:$F$478,lot,2,FALSE))=FALSE,VLOOKUP($F$2:$F$478,lot,2,FALSE),"MANQUANT")),"") ->  | M39: =IF($C39="RM",IF(ISNA(VLOOKUP($F$2:$F$478,pos,3,FALSE))=FALSE,VLOOKUP($F39:$F510,pos,3,FALSE),"OP"),"") ->  | N39: =IF($C39="RM",IF(ISNA(VLOOKUP($F39:$F$471,pos,4,FALSE))=FALSE,VLOOKUP($F$2:$F$471,pos,4,FALSE),""),"") ->  | O39: =IF($C39="RM",IF(ISNA(VLOOKUP($F$2:$F$478,pos,5,FALSE))=FALSE,VLOOKUP($F$2:$F$478,pos,5,FALSE),IF(ISNA(VLOOKUP($F$2:$F$478,lot,5,FALSE))=FALSE,VLOOKUP($F$2:$F$478,lot,5,FALSE),0)),"") ->  | P39: =IF($H39>0,VLOOKUP($D:$D,prix,15,FALSE),"") -> 22 | Q39: =IF($C39="RM",$O39*$G39,"") ->  | R39: =IF($H39>0,$H39*$P39,"") -> 189.64 | T39: =IF($F39>0,VALUE(LEFT($F39,4)),"") -> 6055 | U39: =IF(F39>0,IF(ISERROR(SEARCH("*FZ*",$E39))=FALSE,"FZ",IF(ISERROR(SEARCH("*FR*",$E39))=FALSE,"FR","Aucun")),"") -> FR | V39: =IF($C39="RM",IF($U39="FR",IF(ISNA(VLOOKUP($F:$F,lot,6,FALSE))=TRUE,VLOOKUP($T:$T,date,2,FALSE),VLOOKUP($F:$F,lot,6,FALSE)),""),"") ->  | W39: =IF($C39="RM",IF($U39="Fz",IF(ISNA(VLOOKUP($F:$F,lot,6,FALSE))=TRUE,VLOOKUP($T:$T,date,2,FALSE),VLOOKUP($F:$F,lot,6,FALSE)),""),"") ->  | X39: =IF($C39="FG",VLOOKUP($A:$A,op,4,FALSE),"") ->  | Y39: 2016-04-26 | Z39: =IF(C39="rm",IF(U39="aucun","OK",IF(U39="fz",IF(Y39-W39>730,Y39-W39,"OK"),IF(Y39-V39<1,1,Y39-V39))),"") -> 
A40: 6055B04L | B40: Beef | C40: FG | D40: 30510 | E40: BEEF UNIT RIB STEAKS*12/CAISSES**COV X1*AA*10 OZ FR @P | F40: 6055B0484 | H40: 4.48 | K40: =IF(ISNA(VLOOKUP($D:$D,rend,2,FALSE))=FALSE,VLOOKUP($D:$D,rend,2,FALSE),"") -> 0.9014706651 | L40: =IF($C40="RM",IF(ISNA(VLOOKUP($F$2:$F$478,pos,2,FALSE))=FALSE,VLOOKUP($F40:$F$478,pos,2,FALSE),IF(ISNA(VLOOKUP($F$2:$F$478,lot,2,FALSE))=FALSE,VLOOKUP($F$2:$F$478,lot,2,FALSE),"MANQUANT")),"") ->  | M40: =IF($C40="RM",IF(ISNA(VLOOKUP($F$2:$F$478,pos,3,FALSE))=FALSE,VLOOKUP($F40:$F511,pos,3,FALSE),"OP"),"") ->  | N40: =IF($C40="RM",IF(ISNA(VLOOKUP($F40:$F$471,pos,4,FALSE))=FALSE,VLOOKUP($F$2:$F$471,pos,4,FALSE),""),"") ->  | O40: =IF($C40="RM",IF(ISNA(VLOOKUP($F$2:$F$478,pos,5,FALSE))=FALSE,VLOOKUP($F$2:$F$478,pos,5,FALSE),IF(ISNA(VLOOKUP($F$2:$F$478,lot,5,FALSE))=FALSE,VLOOKUP($F$2:$F$478,lot,5,FALSE),0)),"") ->  | P40: =IF($H40>0,VLOOKUP($D:$D,prix,15,FALSE),"") -> 22 | Q40: =IF($C40="RM",$O40*$G40,"") ->  | R40: =IF($H40>0,$H40*$P40,"") -> 98.56 | T40: =IF($F40>0,VALUE(LEFT($F40,4)),"") -> 6055 | U40: =IF(F40>0,IF(ISERROR(SEARCH("*FZ*",$E40))=FALSE,"FZ",IF(ISERROR(SEARCH("*FR*",$E40))=FALSE,"FR","Aucun")),"") -> FR | V40: =IF($C40="RM",IF($U40="FR",IF(ISNA(VLOOKUP($F:$F,lot,6,FALSE))=TRUE,VLOOKUP($T:$T,date,2,FALSE),VLOOKUP($F:$F,lot,6,FALSE)),""),"") ->  | W40: =IF($C40="RM",IF($U40="Fz",IF(ISNA(VLOOKUP($F:$F,lot,6,FALSE))=TRUE,VLOOKUP($T:$T,date,2,FALSE),VLOOKUP($F:$F,lot,6,FALSE)),""),"") ->  | X40: =IF($C40="FG",VLOOKUP($A:$A,op,4,FALSE),"") ->  | Y40: 2016-04-26 | Z40: =IF(C40="rm",IF(U40="aucun","OK",IF(U40="fz",IF(Y40-W40>730,Y40-W40,"OK"),IF(Y40-V40<1,1,Y40-V40))),"") -> 
A41: 6055B04L | B41: Beef | C41: FG | D41: 30516 | E41: BEEF UNIT RIB STEAKS*12/CAISSES**COV X1*AA*16 OZ FR @P | F41: 6055B0485 | H41: 11.24 | K41: =IF(ISNA(VLOOKUP($D:$D,rend,2,FALSE))=FALSE,VLOOKUP($D:$D,rend,2,FALSE),"") -> 0.9015570181 | L41: =IF($C41="RM",IF(ISNA(VLOOKUP($F$2:$F$478,pos,2,FALSE))=FALSE,VLOOKUP($F41:$F$478,pos,2,FALSE),IF(ISNA(VLOOKUP($F$2:$F$478,lot,2,FALSE))=FALSE,VLOOKUP($F$2:$F$478,lot,2,FALSE),"MANQUANT")),"") ->  | M41: =IF($C41="RM",IF(ISNA(VLOOKUP($F$2:$F$478,pos,3,FALSE))=FALSE,VLOOKUP($F41:$F512,pos,3,FALSE),"OP"),"") ->  | N41: =IF($C41="RM",IF(ISNA(VLOOKUP($F41:$F$471,pos,4,FALSE))=FALSE,VLOOKUP($F$2:$F$471,pos,4,FALSE),""),"") ->  | O41: =IF($C41="RM",IF(ISNA(VLOOKUP($F$2:$F$478,pos,5,FALSE))=FALSE,VLOOKUP($F$2:$F$478,pos,5,FALSE),IF(ISNA(VLOOKUP($F$2:$F$478,lot,5,FALSE))=FALSE,VLOOKUP($F$2:$F$478,lot,5,FALSE),0)),"") ->  | P41: =IF($H41>0,VLOOKUP($D:$D,prix,15,FALSE),"") -> 22 | Q41: =IF($C41="RM",$O41*$G41,"") ->  | R41: =IF($H41>0,$H41*$P41,"") -> 247.28 | T41: =IF($F41>0,VALUE(LEFT($F41,4)),"") -> 6055 | U41: =IF(F41>0,IF(ISERROR(SEARCH("*FZ*",$E41))=FALSE,"FZ",IF(ISERROR(SEARCH("*FR*",$E41))=FALSE,"FR","Aucun")),"") -> FR | V41: =IF($C41="RM",IF($U41="FR",IF(ISNA(VLOOKUP($F:$F,lot,6,FALSE))=TRUE,VLOOKUP($T:$T,date,2,FALSE),VLOOKUP($F:$F,lot,6,FALSE)),""),"") ->  | W41: =IF($C41="RM",IF($U41="Fz",IF(ISNA(VLOOKUP($F:$F,lot,6,FALSE))=TRUE,VLOOKUP($T:$T,date,2,FALSE),VLOOKUP($F:$F,lot,6,FALSE)),""),"") ->  | X41: =IF($C41="FG",VLOOKUP($A:$A,op,4,FALSE),"") ->  | Y41: 2016-04-26 | Z41: =IF(C41="rm",IF(U41="aucun","OK",IF(U41="fz",IF(Y41-W41>730,Y41-W41,"OK"),IF(Y41-V41<1,1,Y41-V41))),"") -> 
A42: 6055B04L | B42: Beef | C42: FG | D42: 31506 | E42: BEEF RIB STEAK *IN PROCESS* CODE: 30409, 30714, 30415, 30460, 30420 FR | F42: 6055B0486 | H42: 2 | K42: =IF(ISNA(VLOOKUP($D:$D,rend,2,FALSE))=FALSE,VLOOKUP($D:$D,rend,2,FALSE),"") -> 0.9076483683 | L42: =IF($C42="RM",IF(ISNA(VLOOKUP($F$2:$F$478,pos,2,FALSE))=FALSE,VLOOKUP($F42:$F$478,pos,2,FALSE),IF(ISNA(VLOOKUP($F$2:$F$478,lot,2,FALSE))=FALSE,VLOOKUP($F$2:$F$478,lot,2,FALSE),"MANQUANT")),"") ->  | M42: =IF($C42="RM",IF(ISNA(VLOOKUP($F$2:$F$478,pos,3,FALSE))=FALSE,VLOOKUP($F42:$F513,pos,3,FALSE),"OP"),"") ->  | N42: =IF($C42="RM",IF(ISNA(VLOOKUP($F42:$F$471,pos,4,FALSE))=FALSE,VLOOKUP($F$2:$F$471,pos,4,FALSE),""),"") ->  | O42: =IF($C42="RM",IF(ISNA(VLOOKUP($F$2:$F$478,pos,5,FALSE))=FALSE,VLOOKUP($F$2:$F$478,pos,5,FALSE),IF(ISNA(VLOOKUP($F$2:$F$478,lot,5,FALSE))=FALSE,VLOOKUP($F$2:$F$478,lot,5,FALSE),0)),"") ->  | P42: =IF($H42>0,VLOOKUP($D:$D,prix,15,FALSE),"") -> 18.5 | Q42: =IF($C42="RM",$O42*$G42,"") ->  | R42: =IF($H42>0,$H42*$P42,"") -> 37 | T42: =IF($F42>0,VALUE(LEFT($F42,4)),"") -> 6055 | U42: =IF(F42>0,IF(ISERROR(SEARCH("*FZ*",$E42))=FALSE,"FZ",IF(ISERROR(SEARCH("*FR*",$E42))=FALSE,"FR","Aucun")),"") -> FR | V42: =IF($C42="RM",IF($U42="FR",IF(ISNA(VLOOKUP($F:$F,lot,6,FALSE))=TRUE,VLOOKUP($T:$T,date,2,FALSE),VLOOKUP($F:$F,lot,6,FALSE)),""),"") ->  | W42: =IF($C42="RM",IF($U42="Fz",IF(ISNA(VLOOKUP($F:$F,lot,6,FALSE))=TRUE,VLOOKUP($T:$T,date,2,FALSE),VLOOKUP($F:$F,lot,6,FALSE)),""),"") ->  | X42: =IF($C42="FG",VLOOKUP($A:$A,op,4,FALSE),"") ->  | Y42: 2016-04-26 | Z42: =IF(C42="rm",IF(U42="aucun","OK",IF(U42="fz",IF(Y42-W42>730,Y42-W42,"OK"),IF(Y42-V42<1,1,Y42-V42))),"") -> 
A43: 6055B04L Total | G43: =SUBTOTAL(9,G30:G42) -> 87.3 | H43: =SUBTOTAL(9,H30:H42) -> 147.78 | Q43: =SUBTOTAL(9,Q30:Q42) -> 1606.868249 | R43: =SUBTOTAL(9,R30:R42) -> 3373.61
A44: 6094B07206 | B44: Beef | C44: RM | D44: 41344 | E44: PORK CHOPS SEASONED BBQ SPARERIBS *IN PROCESS* CODE: 24007,24008 FR | F44: 6094B07206 | G44: 37.8 | K44: =IF(ISNA(VLOOKUP($D:$D,rend,2,FALSE))=FALSE,VLOOKUP($D:$D,rend,2,FALSE),"") -> 0.9632411009 | L44: =IF($C44="RM",IF(ISNA(VLOOKUP($F$2:$F$478,pos,2,FALSE))=FALSE,VLOOKUP($F44:$F$478,pos,2,FALSE),IF(ISNA(VLOOKUP($F$2:$F$478,lot,2,FALSE))=FALSE,VLOOKUP($F$2:$F$478,lot,2,FALSE),"MANQUANT")),"") -> 6094B07203 | M44: =IF($C44="RM",IF(ISNA(VLOOKUP($F$2:$F$478,pos,3,FALSE))=FALSE,VLOOKUP($F44:$F514,pos,3,FALSE),"OP"),"") -> OP | N44: =IF($C44="RM",IF(ISNA(VLOOKUP($F44:$F$471,pos,4,FALSE))=FALSE,VLOOKUP($F$2:$F$471,pos,4,FALSE),""),"") ->  | O44: =IF($C44="RM",IF(ISNA(VLOOKUP($F$2:$F$478,pos,5,FALSE))=FALSE,VLOOKUP($F$2:$F$478,pos,5,FALSE),IF(ISNA(VLOOKUP($F$2:$F$478,lot,5,FALSE))=FALSE,VLOOKUP($F$2:$F$478,lot,5,FALSE),0)),"") -> 3.997766816 | P44: =IF($H44>0,VLOOKUP($D:$D,prix,15,FALSE),"") ->  | Q44: =IF($C44="RM",$O44*$G44,"") -> 151.1155857 | R44: =IF($H44>0,$H44*$P44,"") ->  | T44: =IF($F44>0,VALUE(LEFT($F44,4)),"") -> 6094 | U44: =IF(F44>0,IF(ISERROR(SEARCH("*FZ*",$E44))=FALSE,"FZ",IF(ISERROR(SEARCH("*FR*",$E44))=FALSE,"FR","Aucun")),"") -> FR | V44: =IF($C44="RM",IF($U44="FR",IF(ISNA(VLOOKUP($F:$F,lot,6,FALSE))=TRUE,VLOOKUP($T:$T,date,2,FALSE),VLOOKUP($F:$F,lot,6,FALSE)),""),"") -> 2016-04-25 | W44: =IF($C44="RM",IF($U44="Fz",IF(ISNA(VLOOKUP($F:$F,lot,6,FALSE))=TRUE,VLOOKUP($T:$T,date,2,FALSE),VLOOKUP($F:$F,lot,6,FALSE)),""),"") ->  | X44: =IF($C44="FG",VLOOKUP($A:$A,op,4,FALSE),"") ->  | Y44: 2016-04-26 | Z44: =IF(C44="rm",IF(U44="aucun","OK",IF(U44="fz",IF(Y44-W44>730,Y44-W44,"OK"),IF(Y44-V44<1,1,Y44-V44))),"") -> 1
A45: 6094B07206 | B45: Beef | C45: FG | D45: 24007 | E45: PORK CHOPS SEASONED BBQ SPARERIBS**7 OZ (3 SAC X9 UNIT ) /CS 5.4KG/CS) FR @P | F45: 6094B07213 | H45: 37.8 | K45: =IF(ISNA(VLOOKUP($D:$D,rend,2,FALSE))=FALSE,VLOOKUP($D:$D,rend,2,FALSE),"") -> 0.9547963661 | L45: =IF($C45="RM",IF(ISNA(VLOOKUP($F$2:$F$478,pos,2,FALSE))=FALSE,VLOOKUP($F45:$F$478,pos,2,FALSE),IF(ISNA(VLOOKUP($F$2:$F$478,lot,2,FALSE))=FALSE,VLOOKUP($F$2:$F$478,lot,2,FALSE),"MANQUANT")),"") ->  | M45: =IF($C45="RM",IF(ISNA(VLOOKUP($F$2:$F$478,pos,3,FALSE))=FALSE,VLOOKUP($F45:$F515,pos,3,FALSE),"OP"),"") ->  | N45: =IF($C45="RM",IF(ISNA(VLOOKUP($F45:$F$471,pos,4,FALSE))=FALSE,VLOOKUP($F$2:$F$471,pos,4,FALSE),""),"") ->  | O45: =IF($C45="RM",IF(ISNA(VLOOKUP($F$2:$F$478,pos,5,FALSE))=FALSE,VLOOKUP($F$2:$F$478,pos,5,FALSE),IF(ISNA(VLOOKUP($F$2:$F$478,lot,5,FALSE))=FALSE,VLOOKUP($F$2:$F$478,lot,5,FALSE),0)),"") ->  | P45: =IF($H45>0,VLOOKUP($D:$D,prix,15,FALSE),"") -> 6.1 | Q45: =IF($C45="RM",$O45*$G45,"") ->  | R45: =IF($H45>0,$H45*$P45,"") -> 230.58 | T45: =IF($F45>0,VALUE(LEFT($F45,4)),"") -> 6094 | U45: =IF(F45>0,IF(ISERROR(SEARCH("*FZ*",$E45))=FALSE,"FZ",IF(ISERROR(SEARCH("*FR*",$E45))=FALSE,"FR","Aucun")),"") -> FR | V45: =IF($C45="RM",IF($U45="FR",IF(ISNA(VLOOKUP($F:$F,lot,6,FALSE))=TRUE,VLOOKUP($T:$T,date,2,FALSE),VLOOKUP($F:$F,lot,6,FALSE)),""),"") ->  | W45: =IF($C45="RM",IF($U45="Fz",IF(ISNA(VLOOKUP($F:$F,lot,6,FALSE))=TRUE,VLOOKUP($T:$T,date,2,FALSE),VLOOKUP($F:$F,lot,6,FALSE)),""),"") ->  | X45: =IF($C45="FG",VLOOKUP($A:$A,op,4,FALSE),"") ->  | Y45: 2016-04-26 | Z45: =IF(C45="rm",IF(U45="aucun","OK",IF(U45="fz",IF(Y45-W45>730,Y45-W45,"OK"),IF(Y45-V45<1,1,Y45-V45))),"") -> 
A46: 6094B07206 Total | G46: =SUBTOTAL(9,G44:G45) -> 37.8 | H46: =SUBTOTAL(9,H44:H45) -> 37.8 | Q46: =SUBTOTAL(9,Q44:Q45) -> 151.1155857 | R46: =SUBTOTAL(9,R44:R45) -> 230.58
A47: 6094B07208 | B47: Beef | C47: RM | D47: 41344 | E47: PORK CHOPS SEASONED BBQ SPARERIBS *IN PROCESS* CODE: 24007,24008 FR | F47: 6094B07208 | G47: 502.2 | K47: =IF(ISNA(VLOOKUP($D:$D,rend,2,FALSE))=FALSE,VLOOKUP($D:$D,rend,2,FALSE),"") -> 0.9632411009 | L47: =IF($C47="RM",IF(ISNA(VLOOKUP($F$2:$F$478,pos,2,FALSE))=FALSE,VLOOKUP($F47:$F$478,pos,2,FALSE),IF(ISNA(VLOOKUP($F$2:$F$478,lot,2,FALSE))=FALSE,VLOOKUP($F$2:$F$478,lot,2,FALSE),"MANQUANT")),"") -> 6094B07203B | M47: =IF($C47="RM",IF(ISNA(VLOOKUP($F$2:$F$478,pos,3,FALSE))=FALSE,VLOOKUP($F47:$F516,pos,3,FALSE),"OP"),"") -> OP | N47: =IF($C47="RM",IF(ISNA(VLOOKUP($F47:$F$471,pos,4,FALSE))=FALSE,VLOOKUP($F$2:$F$471,pos,4,FALSE),""),"") ->  | O47: =IF($C47="RM",IF(ISNA(VLOOKUP($F$2:$F$478,pos,5,FALSE))=FALSE,VLOOKUP($F$2:$F$478,pos,5,FALSE),IF(ISNA(VLOOKUP($F$2:$F$478,lot,5,FALSE))=FALSE,VLOOKUP($F$2:$F$478,lot,5,FALSE),0)),"") -> 3.760910268 | P47: =IF($H47>0,VLOOKUP($D:$D,prix,15,FALSE),"") ->  | Q47: =IF($C47="RM",$O47*$G47,"") -> 1888.729136 | R47: =IF($H47>0,$H47*$P47,"") ->  | T47: =IF($F47>0,VALUE(LEFT($F47,4)),"") -> 6094 | U47: =IF(F47>0,IF(ISERROR(SEARCH("*FZ*",$E47))=FALSE,"FZ",IF(ISERROR(SEARCH("*FR*",$E47))=FALSE,"FR","Aucun")),"") -> FR | V47: =IF($C47="RM",IF($U47="FR",IF(ISNA(VLOOKUP($F:$F,lot,6,FALSE))=TRUE,VLOOKUP($T:$T,date,2,FALSE),VLOOKUP($F:$F,lot,6,FALSE)),""),"") -> 2016-04-22 | W47: =IF($C47="RM",IF($U47="Fz",IF(ISNA(VLOOKUP($F:$F,lot,6,FALSE))=TRUE,VLOOKUP($T:$T,date,2,FALSE),VLOOKUP($F:$F,lot,6,FALSE)),""),"") ->  | X47: =IF($C47="FG",VLOOKUP($A:$A,op,4,FALSE),"") ->  | Y47: 2016-04-26 | Z47: =IF(C47="rm",IF(U47="aucun","OK",IF(U47="fz",IF(Y47-W47>730,Y47-W47,"OK"),IF(Y47-V47<1,1,Y47-V47))),"") -> 4
A48: 6094B07208 | B48: Beef | C48: FG | D48: 24007 | E48: PORK CHOPS SEASONED BBQ SPARERIBS**7 OZ (3 SAC X9 UNIT ) /CS 5.4KG/CS) FR @P | F48: 6094B07214 | H48: 502.2 | K48: =IF(ISNA(VLOOKUP($D:$D,rend,2,FALSE))=FALSE,VLOOKUP($D:$D,rend,2,FALSE),"") -> 0.9547963661 | L48: =IF($C48="RM",IF(ISNA(VLOOKUP($F$2:$F$478,pos,2,FALSE))=FALSE,VLOOKUP($F48:$F$478,pos,2,FALSE),IF(ISNA(VLOOKUP($F$2:$F$478,lot,2,FALSE))=FALSE,VLOOKUP($F$2:$F$478,lot,2,FALSE),"MANQUANT")),"") ->  | M48: =IF($C48="RM",IF(ISNA(VLOOKUP($F$2:$F$478,pos,3,FALSE))=FALSE,VLOOKUP($F48:$F517,pos,3,FALSE),"OP"),"") ->  | N48: =IF($C48="RM",IF(ISNA(VLOOKUP($F48:$F$471,pos,4,FALSE))=FALSE,VLOOKUP($F$2:$F$471,pos,4,FALSE),""),"") ->  | O48: =IF($C48="RM",IF(ISNA(VLOOKUP($F$2:$F$478,pos,5,FALSE))=FALSE,VLOOKUP($F$2:$F$478,pos,5,FALSE),IF(ISNA(VLOOKUP($F$2:$F$478,lot,5,FALSE))=FALSE,VLOOKUP($F$2:$F$478,lot,5,FALSE),0)),"") ->  | P48: =IF($H48>0,VLOOKUP($D:$D,prix,15,FALSE),"") -> 6.1 | Q48: =IF($C48="RM",$O48*$G48,"") ->  | R48: =IF($H48>0,$H48*$P48,"") -> 3063.42 | T48: =IF($F48>0,VALUE(LEFT($F48,4)),"") -> 6094 | U48: =IF(F48>0,IF(ISERROR(SEARCH("*FZ*",$E48))=FALSE,"FZ",IF(ISERROR(SEARCH("*FR*",$E48))=FALSE,"FR","Aucun")),"") -> FR | V48: =IF($C48="RM",IF($U48="FR",IF(ISNA(VLOOKUP($F:$F,lot,6,FALSE))=TRUE,VLOOKUP($T:$T,date,2,FALSE),VLOOKUP($F:$F,lot,6,FALSE)),""),"") ->  | W48: =IF($C48="RM",IF($U48="Fz",IF(ISNA(VLOOKUP($F:$F,lot,6,FALSE))=TRUE,VLOOKUP($T:$T,date,2,FALSE),VLOOKUP($F:$F,lot,6,FALSE)),""),"") ->  | X48: =IF($C48="FG",VLOOKUP($A:$A,op,4,FALSE),"") ->  | Y48: 2016-04-26 | Z48: =IF(C48="rm",IF(U48="aucun","OK",IF(U48="fz",IF(Y48-W48>730,Y48-W48,"OK"),IF(Y48-V48<1,1,Y48-V48))),"") -> 
A49: 6094B07208 Total | G49: =SUBTOTAL(9,G47:G48) -> 502.2 | H49: =SUBTOTAL(9,H47:H48) -> 502.2 | Q49: =SUBTOTAL(9,Q47:Q48) -> 1888.729136 | R49: =SUBTOTAL(9,R47:R48) -> 3063.42
A50: 6094B07209 | B50: Beef | C50: RM | D50: 41345 | E50: PORK ROAST SEASONED BBQ*IN PROCESS* CODE: 24006 (4 X 1.7 KG/CS**6.8 KG/CS) FR | F50: 6094B07209 | G50: 136 | K50: =IF(ISNA(VLOOKUP($D:$D,rend,2,FALSE))=FALSE,VLOOKUP($D:$D,rend,2,FALSE),"") -> 0.9576455336 | L50: =IF($C50="RM",IF(ISNA(VLOOKUP($F$2:$F$478,pos,2,FALSE))=FALSE,VLOOKUP($F50:$F$478,pos,2,FALSE),IF(ISNA(VLOOKUP($F$2:$F$478,lot,2,FALSE))=FALSE,VLOOKUP($F$2:$F$478,lot,2,FALSE),"MANQUANT")),"") -> 6094B07207 | M50: =IF($C50="RM",IF(ISNA(VLOOKUP($F$2:$F$478,pos,3,FALSE))=FALSE,VLOOKUP($F50:$F518,pos,3,FALSE),"OP"),"") -> OP | N50: =IF($C50="RM",IF(ISNA(VLOOKUP($F50:$F$471,pos,4,FALSE))=FALSE,VLOOKUP($F$2:$F$471,pos,4,FALSE),""),"") ->  | O50: =IF($C50="RM",IF(ISNA(VLOOKUP($F$2:$F$478,pos,5,FALSE))=FALSE,VLOOKUP($F$2:$F$478,pos,5,FALSE),IF(ISNA(VLOOKUP($F$2:$F$478,lot,5,FALSE))=FALSE,VLOOKUP($F$2:$F$478,lot,5,FALSE),0)),"") -> 3.924674292 | P50: =IF($H50>0,VLOOKUP($D:$D,prix,15,FALSE),"") ->  | Q50: =IF($C50="RM",$O50*$G50,"") -> 533.7557037 | R50: =IF($H50>0,$H50*$P50,"") ->  | T50: =IF($F50>0,VALUE(LEFT($F50,4)),"") -> 6094 | U50: =IF(F50>0,IF(ISERROR(SEARCH("*FZ*",$E50))=FALSE,"FZ",IF(ISERROR(SEARCH("*FR*",$E50))=FALSE,"FR","Aucun")),"") -> FR | V50: =IF($C50="RM",IF($U50="FR",IF(ISNA(VLOOKUP($F:$F,lot,6,FALSE))=TRUE,VLOOKUP($T:$T,date,2,FALSE),VLOOKUP($F:$F,lot,6,FALSE)),""),"") -> 2016-04-25 | W50: =IF($C50="RM",IF($U50="Fz",IF(ISNA(VLOOKUP($F:$F,lot,6,FALSE))=TRUE,VLOOKUP($T:$T,date,2,FALSE),VLOOKUP($F:$F,lot,6,FALSE)),""),"") ->  | X50: =IF($C50="FG",VLOOKUP($A:$A,op,4,FALSE),"") ->  | Y50: 2016-04-26 | Z50: =IF(C50="rm",IF(U50="aucun","OK",IF(U50="fz",IF(Y50-W50>730,Y50-W50,"OK"),IF(Y50-V50<1,1,Y50-V50))),"") -> 1
A51: 6094B07209 | B51: Beef | C51: FG | D51: 24006 | E51: PORK ROAST SEASONED BBQ SPARERIBS**1.7KG (4/CS, 6.8KG/CS) FR @P | F51: 6094B07215 | H51: 136 | K51: =IF(ISNA(VLOOKUP($D:$D,rend,2,FALSE))=FALSE,VLOOKUP($D:$D,rend,2,FALSE),"") -> 0.9511479744 | L51: =IF($C51="RM",IF(ISNA(VLOOKUP($F$2:$F$478,pos,2,FALSE))=FALSE,VLOOKUP($F51:$F$478,pos,2,FALSE),IF(ISNA(VLOOKUP($F$2:$F$478,lot,2,FALSE))=FALSE,VLOOKUP($F$2:$F$478,lot,2,FALSE),"MANQUANT")),"") ->  | M51: =IF($C51="RM",IF(ISNA(VLOOKUP($F$2:$F$478,pos,3,FALSE))=FALSE,VLOOKUP($F51:$F519,pos,3,FALSE),"OP"),"") ->  | N51: =IF($C51="RM",IF(ISNA(VLOOKUP($F51:$F$471,pos,4,FALSE))=FALSE,VLOOKUP($F$2:$F$471,pos,4,FALSE),""),"") ->  | O51: =IF($C51="RM",IF(ISNA(VLOOKUP($F$2:$F$478,pos,5,FALSE))=FALSE,VLOOKUP($F$2:$F$478,pos,5,FALSE),IF(ISNA(VLOOKUP($F$2:$F$478,lot,5,FALSE))=FALSE,VLOOKUP($F$2:$F$478,lot,5,FALSE),0)),"") ->  | P51: =IF($H51>0,VLOOKUP($D:$D,prix,15,FALSE),"") -> 6.1 | Q51: =IF($C51="RM",$O51*$G51,"") ->  | R51: =IF($H51>0,$H51*$P51,"") -> 829.6 | T51: =IF($F51>0,VALUE(LEFT($F51,4)),"") -> 6094 | U51: =IF(F51>0,IF(ISERROR(SEARCH("*FZ*",$E51))=FALSE,"FZ",IF(ISERROR(SEARCH("*FR*",$E51))=FALSE,"FR","Aucun")),"") -> FR | V51: =IF($C51="RM",IF($U51="FR",IF(ISNA(VLOOKUP($F:$F,lot,6,FALSE))=TRUE,VLOOKUP($T:$T,date,2,FALSE),VLOOKUP($F:$F,lot,6,FALSE)),""),"") ->  | W51: =IF($C51="RM",IF($U51="Fz",IF(ISNA(VLOOKUP($F:$F,lot,6,FALSE))=TRUE,VLOOKUP($T:$T,date,2,FALSE),VLOOKUP($F:$F,lot,6,FALSE)),""),"") ->  | X51: =IF($C51="FG",VLOOKUP($A:$A,op,4,FALSE),"") ->  | Y51: 2016-04-26 | Z51: =IF(C51="rm",IF(U51="aucun","OK",IF(U51="fz",IF(Y51-W51>730,Y51-W51,"OK"),IF(Y51-V51<1,1,Y51-V51))),"") -> 
A52: 6094B07209 Total | G52: =SUBTOTAL(9,G50:G51) -> 136 | H52: =SUBTOTAL(9,H50:H51) -> 136 | Q52: =SUBTOTAL(9,Q50:Q51) -> 533.7557037 | R52: =SUBTOTAL(9,R50:R51) -> 829.6
A53: 6094B07220 | B53: Beef | C53: RM | D53: 1 | E53: ING EAU | F53: 5166AS | G53: 14.37 | K53: =IF(ISNA(VLOOKUP($D:$D,rend,2,FALSE))=FALSE,VLOOKUP($D:$D,rend,2,FALSE),"") ->  | L53: =IF($C53="RM",IF(ISNA(VLOOKUP($F$2:$F$478,pos,2,FALSE))=FALSE,VLOOKUP($F53:$F$478,pos,2,FALSE),IF(ISNA(VLOOKUP($F$2:$F$478,lot,2,FALSE))=FALSE,VLOOKUP($F$2:$F$478,lot,2,FALSE),"MANQUANT")),"") -> Aucun | M53: =IF($C53="RM",IF(ISNA(VLOOKUP($F$2:$F$478,pos,3,FALSE))=FALSE,VLOOKUP($F53:$F520,pos,3,FALSE),"OP"),"") -> Aucun | N53: =IF($C53="RM",IF(ISNA(VLOOKUP($F53:$F$471,pos,4,FALSE))=FALSE,VLOOKUP($F$2:$F$471,pos,4,FALSE),""),"") -> 0 | O53: =IF($C53="RM",IF(ISNA(VLOOKUP($F$2:$F$478,pos,5,FALSE))=FALSE,VLOOKUP($F$2:$F$478,pos,5,FALSE),IF(ISNA(VLOOKUP($F$2:$F$478,lot,5,FALSE))=FALSE,VLOOKUP($F$2:$F$478,lot,5,FALSE),0)),"") -> 0 | P53: =IF($H53>0,VLOOKUP($D:$D,prix,15,FALSE),"") ->  | Q53: =IF($C53="RM",$O53*$G53,"") -> 0 | R53: =IF($H53>0,$H53*$P53,"") ->  | T53: =IF($F53>0,VALUE(LEFT($F53,4)),"") -> 5166 | U53: =IF(F53>0,IF(ISERROR(SEARCH("*FZ*",$E53))=FALSE,"FZ",IF(ISERROR(SEARCH("*FR*",$E53))=FALSE,"FR","Aucun")),"") -> Aucun | V53: =IF($C53="RM",IF($U53="FR",IF(ISNA(VLOOKUP($F:$F,lot,6,FALSE))=TRUE,VLOOKUP($T:$T,date,2,FALSE),VLOOKUP($F:$F,lot,6,FALSE)),""),"") ->  | W53: =IF($C53="RM",IF($U53="Fz",IF(ISNA(VLOOKUP($F:$F,lot,6,FALSE))=TRUE,VLOOKUP($T:$T,date,2,FALSE),VLOOKUP($F:$F,lot,6,FALSE)),""),"") ->  | X53: =IF($C53="FG",VLOOKUP($A:$A,op,4,FALSE),"") ->  | Y53: 2016-04-26 | Z53: =IF(C53="rm",IF(U53="aucun","OK",IF(U53="fz",IF(Y53-W53>730,Y53-W53,"OK"),IF(Y53-V53<1,1,Y53-V53))),"") -> OK
A54: 6094B07220 | B54: Beef | C54: RM | D54: 41346 | E54: PORK ROAST NATURE *IN PROCESS* CODE: 24006 FR | F54: 6094B07220 | G54: 128.31 | K54: =IF(ISNA(VLOOKUP($D:$D,rend,2,FALSE))=FALSE,VLOOKUP($D:$D,rend,2,FALSE),"") -> 0.9342629608 | L54: =IF($C54="RM",IF(ISNA(VLOOKUP($F$2:$F$478,pos,2,FALSE))=FALSE,VLOOKUP($F54:$F$478,pos,2,FALSE),IF(ISNA(VLOOKUP($F$2:$F$478,lot,2,FALSE))=FALSE,VLOOKUP($F$2:$F$478,lot,2,FALSE),"MANQUANT")),"") -> MANQUANT | M54: =IF($C54="RM",IF(ISNA(VLOOKUP($F$2:$F$478,pos,3,FALSE))=FALSE,VLOOKUP($F54:$F521,pos,3,FALSE),"OP"),"") -> OP | N54: =IF($C54="RM",IF(ISNA(VLOOKUP($F54:$F$471,pos,4,FALSE))=FALSE,VLOOKUP($F$2:$F$471,pos,4,FALSE),""),"") ->  | O54: =IF($C54="RM",IF(ISNA(VLOOKUP($F$2:$F$478,pos,5,FALSE))=FALSE,VLOOKUP($F$2:$F$478,pos,5,FALSE),IF(ISNA(VLOOKUP($F$2:$F$478,lot,5,FALSE))=FALSE,VLOOKUP($F$2:$F$478,lot,5,FALSE),0)),"") -> 0 | P54: =IF($H54>0,VLOOKUP($D:$D,prix,15,FALSE),"") ->  | Q54: =IF($C54="RM",$O54*$G54,"") -> 0 | R54: =IF($H54>0,$H54*$P54,"") ->  | T54: =IF($F54>0,VALUE(LEFT($F54,4)),"") -> 6094 | U54: =IF(F54>0,IF(ISERROR(SEARCH("*FZ*",$E54))=FALSE,"FZ",IF(ISERROR(SEARCH("*FR*",$E54))=FALSE,"FR","Aucun")),"") -> FR | V54: =IF($C54="RM",IF($U54="FR",IF(ISNA(VLOOKUP($F:$F,lot,6,FALSE))=TRUE,VLOOKUP($T:$T,date,2,FALSE),VLOOKUP($F:$F,lot,6,FALSE)),""),"") -> 2016-02-24 | W54: =IF($C54="RM",IF($U54="Fz",IF(ISNA(VLOOKUP($F:$F,lot,6,FALSE))=TRUE,VLOOKUP($T:$T,date,2,FALSE),VLOOKUP($F:$F,lot,6,FALSE)),""),"") ->  | X54: =IF($C54="FG",VLOOKUP($A:$A,op,4,FALSE),"") ->  | Y54: 2016-04-26 | Z54: =IF(C54="rm",IF(U54="aucun","OK",IF(U54="fz",IF(Y54-W54>730,Y54-W54,"OK"),IF(Y54-V54<1,1,Y54-V54))),"") -> 62
A55: 6094B07220 | B55: Beef | C55: RM | D55: 19 | E55: ING MONTOUR 7139 / MARINADE STYLE COTES-LEVEES / ALLERG: AUCUN | F55: 6163AS01 | G55: 11.32 | K55: =IF(ISNA(VLOOKUP($D:$D,rend,2,FALSE))=FALSE,VLOOKUP($D:$D,rend,2,FALSE),"") ->  | L55: =IF($C55="RM",IF(ISNA(VLOOKUP($F$2:$F$478,pos,2,FALSE))=FALSE,VLOOKUP($F55:$F$478,pos,2,FALSE),IF(ISNA(VLOOKUP($F$2:$F$478,lot,2,FALSE))=FALSE,VLOOKUP($F$2:$F$478,lot,2,FALSE),"MANQUANT")),"") -> PO-0021711 | M55: =IF($C55="RM",IF(ISNA(VLOOKUP($F$2:$F$478,pos,3,FALSE))=FALSE,VLOOKUP($F55:$F522,pos,3,FALSE),"OP"),"") -> MONTO | N55: =IF($C55="RM",IF(ISNA(VLOOKUP($F55:$F$471,pos,4,FALSE))=FALSE,VLOOKUP($F$2:$F$471,pos,4,FALSE),""),"") -> 300 | O55: =IF($C55="RM",IF(ISNA(VLOOKUP($F$2:$F$478,pos,5,FALSE))=FALSE,VLOOKUP($F$2:$F$478,pos,5,FALSE),IF(ISNA(VLOOKUP($F$2:$F$478,lot,5,FALSE))=FALSE,VLOOKUP($F$2:$F$478,lot,5,FALSE),0)),"") -> 7.94 | P55: =IF($H55>0,VLOOKUP($D:$D,prix,15,FALSE),"") ->  | Q55: =IF($C55="RM",$O55*$G55,"") -> 89.8808 | R55: =IF($H55>0,$H55*$P55,"") ->  | T55: =IF($F55>0,VALUE(LEFT($F55,4)),"") -> 6163 | U55: =IF(F55>0,IF(ISERROR(SEARCH("*FZ*",$E55))=FALSE,"FZ",IF(ISERROR(SEARCH("*FR*",$E55))=FALSE,"FR","Aucun")),"") -> Aucun | V55: =IF($C55="RM",IF($U55="FR",IF(ISNA(VLOOKUP($F:$F,lot,6,FALSE))=TRUE,VLOOKUP($T:$T,date,2,FALSE),VLOOKUP($F:$F,lot,6,FALSE)),""),"") ->  | W55: =IF($C55="RM",IF($U55="Fz",IF(ISNA(VLOOKUP($F:$F,lot,6,FALSE))=TRUE,VLOOKUP($T:$T,date,2,FALSE),VLOOKUP($F:$F,lot,6,FALSE)),""),"") ->  | X55: =IF($C55="FG",VLOOKUP($A:$A,op,4,FALSE),"") ->  | Y55: 2016-04-26 | Z55: =IF(C55="rm",IF(U55="aucun","OK",IF(U55="fz",IF(Y55-W55>730,Y55-W55,"OK"),IF(Y55-V55<1,1,Y55-V55))),"") -> OK
A56: 6094B07220 | B56: Beef | C56: FG | D56: 41345 | E56: PORK ROAST SEASONED BBQ*IN PROCESS* CODE: 24006 (4 X 1.7 KG/CS**6.8 KG/CS) FR | F56: 6094B07221 | H56: 154 | K56: =IF(ISNA(VLOOKUP($D:$D,rend,2,FALSE))=FALSE,VLOOKUP($D:$D,rend,2,FALSE),"") -> 0.9576455336 | L56: =IF($C56="RM",IF(ISNA(VLOOKUP($F$2:$F$478,pos,2,FALSE))=FALSE,VLOOKUP($F56:$F$478,pos,2,FALSE),IF(ISNA(VLOOKUP($F$2:$F$478,lot,2,FALSE))=FALSE,VLOOKUP($F$2:$F$478,lot,2,FALSE),"MANQUANT")),"") ->  | M56: =IF($C56="RM",IF(ISNA(VLOOKUP($F$2:$F$478,pos,3,FALSE))=FALSE,VLOOKUP($F56:$F523,pos,3,FALSE),"OP"),"") ->  | N56: =IF($C56="RM",IF(ISNA(VLOOKUP($F56:$F$471,pos,4,FALSE))=FALSE,VLOOKUP($F$2:$F$471,pos,4,FALSE),""),"") ->  | O56: =IF($C56="RM",IF(ISNA(VLOOKUP($F$2:$F$478,pos,5,FALSE))=FALSE,VLOOKUP($F$2:$F$478,pos,5,FALSE),IF(ISNA(VLOOKUP($F$2:$F$478,lot,5,FALSE))=FALSE,VLOOKUP($F$2:$F$478,lot,5,FALSE),0)),"") ->  | P56: =IF($H56>0,VLOOKUP($D:$D,prix,15,FALSE),"") -> 6.1 | Q56: =IF($C56="RM",$O56*$G56,"") ->  | R56: =IF($H56>0,$H56*$P56,"") -> 939.4 | T56: =IF($F56>0,VALUE(LEFT($F56,4)),"") -> 6094 | U56: =IF(F56>0,IF(ISERROR(SEARCH("*FZ*",$E56))=FALSE,"FZ",IF(ISERROR(SEARCH("*FR*",$E56))=FALSE,"FR","Aucun")),"") -> FR | V56: =IF($C56="RM",IF($U56="FR",IF(ISNA(VLOOKUP($F:$F,lot,6,FALSE))=TRUE,VLOOKUP($T:$T,date,2,FALSE),VLOOKUP($F:$F,lot,6,FALSE)),""),"") ->  | W56: =IF($C56="RM",IF($U56="Fz",IF(ISNA(VLOOKUP($F:$F,lot,6,FALSE))=TRUE,VLOOKUP($T:$T,date,2,FALSE),VLOOKUP($F:$F,lot,6,FALSE)),""),"") ->  | X56: =IF($C56="FG",VLOOKUP($A:$A,op,4,FALSE),"") ->  | Y56: 2016-04-26 | Z56: =IF(C56="rm",IF(U56="aucun","OK",IF(U56="fz",IF(Y56-W56>730,Y56-W56,"OK"),IF(Y56-V56<1,1,Y56-V56))),"") -> 
A57: 6094B07220 Total | G57: =SUBTOTAL(9,G53:G56) -> 154 | H57: =SUBTOTAL(9,H53:H56) -> 154 | Q57: =SUBTOTAL(9,Q53:Q56) -> 89.8808 | R57: =SUBTOTAL(9,R53:R56) -> 939.4
A58: 6094B07AD | B58: Beef | C58: RM | D58: 41071 | E58: BONELESS PORK LOINS STRIPS MAIN MUSCLE FZ #D | F58: 6094B07 | G58: 326.56 | K58: =IF(ISNA(VLOOKUP($D:$D,rend,2,FALSE))=FALSE,VLOOKUP($D:$D,rend,2,FALSE),"") -> 0.9079341769 | L58: =IF($C58="RM",IF(ISNA(VLOOKUP($F$2:$F$478,pos,2,FALSE))=FALSE,VLOOKUP($F58:$F$478,pos,2,FALSE),IF(ISNA(VLOOKUP($F$2:$F$478,lot,2,FALSE))=FALSE,VLOOKUP($F$2:$F$478,lot,2,FALSE),"MANQUANT")),"") -> PO-0021440 | M58: =IF($C58="RM",IF(ISNA(VLOOKUP($F$2:$F$478,pos,3,FALSE))=FALSE,VLOOKUP($F58:$F524,pos,3,FALSE),"OP"),"") -> CHIS | N58: =IF($C58="RM",IF(ISNA(VLOOKUP($F58:$F$471,pos,4,FALSE))=FALSE,VLOOKUP($F$2:$F$471,pos,4,FALSE),""),"") -> 10757.76 | O58: =IF($C58="RM",IF(ISNA(VLOOKUP($F$2:$F$478,pos,5,FALSE))=FALSE,VLOOKUP($F$2:$F$478,pos,5,FALSE),IF(ISNA(VLOOKUP($F$2:$F$478,lot,5,FALSE))=FALSE,VLOOKUP($F$2:$F$478,lot,5,FALSE),0)),"") -> 4.05 | P58: =IF($H58>0,VLOOKUP($D:$D,prix,15,FALSE),"") ->  | Q58: =IF($C58="RM",$O58*$G58,"") -> 1322.568 | R58: =IF($H58>0,$H58*$P58,"") ->  | T58: =IF($F58>0,VALUE(LEFT($F58,4)),"") -> 6094 | U58: =IF(F58>0,IF(ISERROR(SEARCH("*FZ*",$E58))=FALSE,"FZ",IF(ISERROR(SEARCH("*FR*",$E58))=FALSE,"FR","Aucun")),"") -> FZ | V58: =IF($C58="RM",IF($U58="FR",IF(ISNA(VLOOKUP($F:$F,lot,6,FALSE))=TRUE,VLOOKUP($T:$T,date,2,FALSE),VLOOKUP($F:$F,lot,6,FALSE)),""),"") ->  | W58: =IF($C58="RM",IF($U58="Fz",IF(ISNA(VLOOKUP($F:$F,lot,6,FALSE))=TRUE,VLOOKUP($T:$T,date,2,FALSE),VLOOKUP($F:$F,lot,6,FALSE)),""),"") -> 2016-02-24 | X58: =IF($C58="FG",VLOOKUP($A:$A,op,4,FALSE),"") ->  | Y58: 2016-04-26 | Z58: =IF(C58="rm",IF(U58="aucun","OK",IF(U58="fz",IF(Y58-W58>730,Y58-W58,"OK"),IF(Y58-V58<1,1,Y58-V58))),"") -> OK
A59: 6094B07AD | B59: Beef | C59: FG | D59: 41217 | E59: BONELESS PORK SIRLOIN STRIPS *1/4" X 3"* 5 X 1 KG FZ #D | F59: 6094B07216 | H59: 0 | K59: =IF(ISNA(VLOOKUP($D:$D,rend,2,FALSE))=FALSE,VLOOKUP($D:$D,rend,2,FALSE),"") -> 0.6695230734 | L59: =IF($C59="RM",IF(ISNA(VLOOKUP($F$2:$F$478,pos,2,FALSE))=FALSE,VLOOKUP($F59:$F$478,pos,2,FALSE),IF(ISNA(VLOOKUP($F$2:$F$478,lot,2,FALSE))=FALSE,VLOOKUP($F$2:$F$478,lot,2,FALSE),"MANQUANT")),"") ->  | M59: =IF($C59="RM",IF(ISNA(VLOOKUP($F$2:$F$478,pos,3,FALSE))=FALSE,VLOOKUP($F59:$F525,pos,3,FALSE),"OP"),"") ->  | N59: =IF($C59="RM",IF(ISNA(VLOOKUP($F59:$F$471,pos,4,FALSE))=FALSE,VLOOKUP($F$2:$F$471,pos,4,FALSE),""),"") ->  | O59: =IF($C59="RM",IF(ISNA(VLOOKUP($F$2:$F$478,pos,5,FALSE))=FALSE,VLOOKUP($F$2:$F$478,pos,5,FALSE),IF(ISNA(VLOOKUP($F$2:$F$478,lot,5,FALSE))=FALSE,VLOOKUP($F$2:$F$478,lot,5,FALSE),0)),"") ->  | P59: =IF($H59>0,VLOOKUP($D:$D,prix,15,FALSE),"") ->  | Q59: =IF($C59="RM",$O59*$G59,"") ->  | R59: =IF($H59>0,$H59*$P59,"") ->  | T59: =IF($F59>0,VALUE(LEFT($F59,4)),"") -> 6094 | U59: =IF(F59>0,IF(ISERROR(SEARCH("*FZ*",$E59))=FALSE,"FZ",IF(ISERROR(SEARCH("*FR*",$E59))=FALSE,"FR","Aucun")),"") -> FZ | V59: =IF($C59="RM",IF($U59="FR",IF(ISNA(VLOOKUP($F:$F,lot,6,FALSE))=TRUE,VLOOKUP($T:$T,date,2,FALSE),VLOOKUP($F:$F,lot,6,FALSE)),""),"") ->  | W59: =IF($C59="RM",IF($U59="Fz",IF(ISNA(VLOOKUP($F:$F,lot,6,FALSE))=TRUE,VLOOKUP($T:$T,date,2,FALSE),VLOOKUP($F:$F,lot,6,FALSE)),""),"") ->  | X59: =IF($C59="FG",VLOOKUP($A:$A,op,4,FALSE),"") ->  | Y59: 2016-04-26 | Z59: =IF(C59="rm",IF(U59="aucun","OK",IF(U59="fz",IF(Y59-W59>730,Y59-W59,"OK"),IF(Y59-V59<1,1,Y59-V59))),"") -> 
A60: 6094B07AD | B60: Beef | C60: FG | D60: 41216 | E60: BONELESS PORK SIRLOIN ROAST APROX. 1 KG *4/CS* FZ #D | F60: 6094B07217 | H60: 20.36 | K60: =IF(ISNA(VLOOKUP($D:$D,rend,2,FALSE))=FALSE,VLOOKUP($D:$D,rend,2,FALSE),"") -> 0.9491887876 | L60: =IF($C60="RM",IF(ISNA(VLOOKUP($F$2:$F$478,pos,2,FALSE))=FALSE,VLOOKUP($F60:$F$478,pos,2,FALSE),IF(ISNA(VLOOKUP($F$2:$F$478,lot,2,FALSE))=FALSE,VLOOKUP($F$2:$F$478,lot,2,FALSE),"MANQUANT")),"") ->  | M60: =IF($C60="RM",IF(ISNA(VLOOKUP($F$2:$F$478,pos,3,FALSE))=FALSE,VLOOKUP($F60:$F526,pos,3,FALSE),"OP"),"") ->  | N60: =IF($C60="RM",IF(ISNA(VLOOKUP($F60:$F$471,pos,4,FALSE))=FALSE,VLOOKUP($F$2:$F$471,pos,4,FALSE),""),"") ->  | O60: =IF($C60="RM",IF(ISNA(VLOOKUP($F$2:$F$478,pos,5,FALSE))=FALSE,VLOOKUP($F$2:$F$478,pos,5,FALSE),IF(ISNA(VLOOKUP($F$2:$F$478,lot,5,FALSE))=FALSE,VLOOKUP($F$2:$F$478,lot,5,FALSE),0)),"") ->  | P60: =IF($H60>0,VLOOKUP($D:$D,prix,15,FALSE),"") -> 6.25 | Q60: =IF($C60="RM",$O60*$G60,"") ->  | R60: =IF($H60>0,$H60*$P60,"") -> 127.25 | T60: =IF($F60>0,VALUE(LEFT($F60,4)),"") -> 6094 | U60: =IF(F60>0,IF(ISERROR(SEARCH("*FZ*",$E60))=FALSE,"FZ",IF(ISERROR(SEARCH("*FR*",$E60))=FALSE,"FR","Aucun")),"") -> FZ | V60: =IF($C60="RM",IF($U60="FR",IF(ISNA(VLOOKUP($F:$F,lot,6,FALSE))=TRUE,VLOOKUP($T:$T,date,2,FALSE),VLOOKUP($F:$F,lot,6,FALSE)),""),"") ->  | W60: =IF($C60="RM",IF($U60="Fz",IF(ISNA(VLOOKUP($F:$F,lot,6,FALSE))=TRUE,VLOOKUP($T:$T,date,2,FALSE),VLOOKUP($F:$F,lot,6,FALSE)),""),"") ->  | X60: =IF($C60="FG",VLOOKUP($A:$A,op,4,FALSE),"") ->  | Y60: 2016-04-26 | Z60: =IF(C60="rm",IF(U60="aucun","OK",IF(U60="fz",IF(Y60-W60>730,Y60-W60,"OK"),IF(Y60-V60<1,1,Y60-V60))),"") -> 
A61: 6094B07AD | B61: Beef | C61: FG | D61: 41271 | E61: CUBES DE PORC 1 TO 1 1/2 INCH ***2X2.5 KG * BOITE ALIMPLUS FZ #D | F61: 6094B07218 | H61: 15 | K61: =IF(ISNA(VLOOKUP($D:$D,rend,2,FALSE))=FALSE,VLOOKUP($D:$D,rend,2,FALSE),"") -> 0.9331408682 | L61: =IF($C61="RM",IF(ISNA(VLOOKUP($F$2:$F$478,pos,2,FALSE))=FALSE,VLOOKUP($F61:$F$478,pos,2,FALSE),IF(ISNA(VLOOKUP($F$2:$F$478,lot,2,FALSE))=FALSE,VLOOKUP($F$2:$F$478,lot,2,FALSE),"MANQUANT")),"") ->  | M61: =IF($C61="RM",IF(ISNA(VLOOKUP($F$2:$F$478,pos,3,FALSE))=FALSE,VLOOKUP($F61:$F527,pos,3,FALSE),"OP"),"") ->  | N61: =IF($C61="RM",IF(ISNA(VLOOKUP($F61:$F$471,pos,4,FALSE))=FALSE,VLOOKUP($F$2:$F$471,pos,4,FALSE),""),"") ->  | O61: =IF($C61="RM",IF(ISNA(VLOOKUP($F$2:$F$478,pos,5,FALSE))=FALSE,VLOOKUP($F$2:$F$478,pos,5,FALSE),IF(ISNA(VLOOKUP($F$2:$F$478,lot,5,FALSE))=FALSE,VLOOKUP($F$2:$F$478,lot,5,FALSE),0)),"") ->  | P61: =IF($H61>0,VLOOKUP($D:$D,prix,15,FALSE),"") -> 5.5 | Q61: =IF($C61="RM",$O61*$G61,"") ->  | R61: =IF($H61>0,$H61*$P61,"") -> 82.5 | T61: =IF($F61>0,VALUE(LEFT($F61,4)),"") -> 6094 | U61: =IF(F61>0,IF(ISERROR(SEARCH("*FZ*",$E61))=FALSE,"FZ",IF(ISERROR(SEARCH("*FR*",$E61))=FALSE,"FR","Aucun")),"") -> FZ | V61: =IF($C61="RM",IF($U61="FR",IF(ISNA(VLOOKUP($F:$F,lot,6,FALSE))=TRUE,VLOOKUP($T:$T,date,2,FALSE),VLOOKUP($F:$F,lot,6,FALSE)),""),"") ->  | W61: =IF($C61="RM",IF($U61="Fz",IF(ISNA(VLOOKUP($F:$F,lot,6,FALSE))=TRUE,VLOOKUP($T:$T,date,2,FALSE),VLOOKUP($F:$F,lot,6,FALSE)),""),"") ->  | X61: =IF($C61="FG",VLOOKUP($A:$A,op,4,FALSE),"") ->  | Y61: 2016-04-26 | Z61: =IF(C61="rm",IF(U61="aucun","OK",IF(U61="fz",IF(Y61-W61>730,Y61-W61,"OK"),IF(Y61-V61<1,1,Y61-V61))),"") -> 
A62: 6094B07AD | B62: Beef | C62: FG | D62: 41347 | E62: CUBES DE PORC*IN PROCESS* CODE: 41270 FR | F62: 6094B07219 | H62: 2.5 | K62: =IF(ISNA(VLOOKUP($D:$D,rend,2,FALSE))=FALSE,VLOOKUP($D:$D,rend,2,FALSE),"") -> 0.9009024599 | L62: =IF($C62="RM",IF(ISNA(VLOOKUP($F$2:$F$478,pos,2,FALSE))=FALSE,VLOOKUP($F62:$F$478,pos,2,FALSE),IF(ISNA(VLOOKUP($F$2:$F$478,lot,2,FALSE))=FALSE,VLOOKUP($F$2:$F$478,lot,2,FALSE),"MANQUANT")),"") ->  | M62: =IF($C62="RM",IF(ISNA(VLOOKUP($F$2:$F$478,pos,3,FALSE))=FALSE,VLOOKUP($F62:$F528,pos,3,FALSE),"OP"),"") ->  | N62: =IF($C62="RM",IF(ISNA(VLOOKUP($F62:$F$471,pos,4,FALSE))=FALSE,VLOOKUP($F$2:$F$471,pos,4,FALSE),""),"") ->  | O62: =IF($C62="RM",IF(ISNA(VLOOKUP($F$2:$F$478,pos,5,FALSE))=FALSE,VLOOKUP($F$2:$F$478,pos,5,FALSE),IF(ISNA(VLOOKUP($F$2:$F$478,lot,5,FALSE))=FALSE,VLOOKUP($F$2:$F$478,lot,5,FALSE),0)),"") ->  | P62: =IF($H62>0,VLOOKUP($D:$D,prix,15,FALSE),"") -> 5.5 | Q62: =IF($C62="RM",$O62*$G62,"") ->  | R62: =IF($H62>0,$H62*$P62,"") -> 13.75 | T62: =IF($F62>0,VALUE(LEFT($F62,4)),"") -> 6094 | U62: =IF(F62>0,IF(ISERROR(SEARCH("*FZ*",$E62))=FALSE,"FZ",IF(ISERROR(SEARCH("*FR*",$E62))=FALSE,"FR","Aucun")),"") -> FR | V62: =IF($C62="RM",IF($U62="FR",IF(ISNA(VLOOKUP($F:$F,lot,6,FALSE))=TRUE,VLOOKUP($T:$T,date,2,FALSE),VLOOKUP($F:$F,lot,6,FALSE)),""),"") ->  | W62: =IF($C62="RM",IF($U62="Fz",IF(ISNA(VLOOKUP($F:$F,lot,6,FALSE))=TRUE,VLOOKUP($T:$T,date,2,FALSE),VLOOKUP($F:$F,lot,6,FALSE)),""),"") ->  | X62: =IF($C62="FG",VLOOKUP($A:$A,op,4,FALSE),"") ->  | Y62: 2016-04-26 | Z62: =IF(C62="rm",IF(U62="aucun","OK",IF(U62="fz",IF(Y62-W62>730,Y62-W62,"OK"),IF(Y62-V62<1,1,Y62-V62))),"") -> 
A63: 6094B07AD | B63: Beef | C63: FG | D63: 41346 | E63: PORK ROAST NATURE *IN PROCESS* CODE: 24006 FR | F63: 6094B07220 | H63: 128.31 | K63: =IF(ISNA(VLOOKUP($D:$D,rend,2,FALSE))=FALSE,VLOOKUP($D:$D,rend,2,FALSE),"") -> 0.9342629608 | L63: =IF($C63="RM",IF(ISNA(VLOOKUP($F$2:$F$478,pos,2,FALSE))=FALSE,VLOOKUP($F63:$F$478,pos,2,FALSE),IF(ISNA(VLOOKUP($F$2:$F$478,lot,2,FALSE))=FALSE,VLOOKUP($F$2:$F$478,lot,2,FALSE),"MANQUANT")),"") ->  | M63: =IF($C63="RM",IF(ISNA(VLOOKUP($F$2:$F$478,pos,3,FALSE))=FALSE,VLOOKUP($F63:$F529,pos,3,FALSE),"OP"),"") ->  | N63: =IF($C63="RM",IF(ISNA(VLOOKUP($F63:$F$471,pos,4,FALSE))=FALSE,VLOOKUP($F$2:$F$471,pos,4,FALSE),""),"") ->  | O63: =IF($C63="RM",IF(ISNA(VLOOKUP($F$2:$F$478,pos,5,FALSE))=FALSE,VLOOKUP($F$2:$F$478,pos,5,FALSE),IF(ISNA(VLOOKUP($F$2:$F$478,lot,5,FALSE))=FALSE,VLOOKUP($F$2:$F$478,lot,5,FALSE),0)),"") ->  | P63: =IF($H63>0,VLOOKUP($D:$D,prix,15,FALSE),"") -> 6.1 | Q63: =IF($C63="RM",$O63*$G63,"") ->  | R63: =IF($H63>0,$H63*$P63,"") -> 782.691 | T63: =IF($F63>0,VALUE(LEFT($F63,4)),"") -> 6094 | U63: =IF(F63>0,IF(ISERROR(SEARCH("*FZ*",$E63))=FALSE,"FZ",IF(ISERROR(SEARCH("*FR*",$E63))=FALSE,"FR","Aucun")),"") -> FR | V63: =IF($C63="RM",IF($U63="FR",IF(ISNA(VLOOKUP($F:$F,lot,6,FALSE))=TRUE,VLOOKUP($T:$T,date,2,FALSE),VLOOKUP($F:$F,lot,6,FALSE)),""),"") ->  | W63: =IF($C63="RM",IF($U63="Fz",IF(ISNA(VLOOKUP($F:$F,lot,6,FALSE))=TRUE,VLOOKUP($T:$T,date,2,FALSE),VLOOKUP($F:$F,lot,6,FALSE)),""),"") ->  | X63: =IF($C63="FG",VLOOKUP($A:$A,op,4,FALSE),"") ->  | Y63: 2016-04-26 | Z63: =IF(C63="rm",IF(U63="aucun","OK",IF(U63="fz",IF(Y63-W63>730,Y63-W63,"OK"),IF(Y63-V63<1,1,Y63-V63))),"") -> 
A64: 6094B07AD | B64: Beef | C64: FG | D64: 41351 | E64: PORK TABLE TRIMMINGS*IN PROCESS**25 KG/CS FZ | F64: 6094B07222 | H64: 50 | K64: =IF(ISNA(VLOOKUP($D:$D,rend,2,FALSE))=FALSE,VLOOKUP($D:$D,rend,2,FALSE),"") -> 0.9351588117 | L64: =IF($C64="RM",IF(ISNA(VLOOKUP($F$2:$F$478,pos,2,FALSE))=FALSE,VLOOKUP($F64:$F$478,pos,2,FALSE),IF(ISNA(VLOOKUP($F$2:$F$478,lot,2,FALSE))=FALSE,VLOOKUP($F$2:$F$478,lot,2,FALSE),"MANQUANT")),"") ->  | M64: =IF($C64="RM",IF(ISNA(VLOOKUP($F$2:$F$478,pos,3,FALSE))=FALSE,VLOOKUP($F64:$F530,pos,3,FALSE),"OP"),"") ->  | N64: =IF($C64="RM",IF(ISNA(VLOOKUP($F64:$F$471,pos,4,FALSE))=FALSE,VLOOKUP($F$2:$F$471,pos,4,FALSE),""),"") ->  | O64: =IF($C64="RM",IF(ISNA(VLOOKUP($F$2:$F$478,pos,5,FALSE))=FALSE,VLOOKUP($F$2:$F$478,pos,5,FALSE),IF(ISNA(VLOOKUP($F$2:$F$478,lot,5,FALSE))=FALSE,VLOOKUP($F$2:$F$478,lot,5,FALSE),0)),"") ->  | P64: =IF($H64>0,VLOOKUP($D:$D,prix,15,FALSE),"") -> 5.5 | Q64: =IF($C64="RM",$O64*$G64,"") ->  | R64: =IF($H64>0,$H64*$P64,"") -> 275 | T64: =IF($F64>0,VALUE(LEFT($F64,4)),"") -> 6094 | U64: =IF(F64>0,IF(ISERROR(SEARCH("*FZ*",$E64))=FALSE,"FZ",IF(ISERROR(SEARCH("*FR*",$E64))=FALSE,"FR","Aucun")),"") -> FZ | V64: =IF($C64="RM",IF($U64="FR",IF(ISNA(VLOOKUP($F:$F,lot,6,FALSE))=TRUE,VLOOKUP($T:$T,date,2,FALSE),VLOOKUP($F:$F,lot,6,FALSE)),""),"") ->  | W64: =IF($C64="RM",IF($U64="Fz",IF(ISNA(VLOOKUP($F:$F,lot,6,FALSE))=TRUE,VLOOKUP($T:$T,date,2,FALSE),VLOOKUP($F:$F,lot,6,FALSE)),""),"") ->  | X64: =IF($C64="FG",VLOOKUP($A:$A,op,4,FALSE),"") ->  | Y64: 2016-04-26 | Z64: =IF(C64="rm",IF(U64="aucun","OK",IF(U64="fz",IF(Y64-W64>730,Y64-W64,"OK"),IF(Y64-V64<1,1,Y64-V64))),"") -> 
A65: 6094B07AD Total | G65: =SUBTOTAL(9,G58:G64) -> 326.56 | H65: =SUBTOTAL(9,H58:H64) -> 216.17 | Q65: =SUBTOTAL(9,Q58:Q64) -> 1322.568 | R65: =SUBTOTAL(9,R58:R64) -> 1281.191
A66: 6102B06C | B66: Beef | C66: RM | D66: 30101 | E66: BEEF TENDERLOIN * XL**JBS * 5UP FR #D | F66: 6102B06 | G66: 11.68 | K66: =IF(ISNA(VLOOKUP($D:$D,rend,2,FALSE))=FALSE,VLOOKUP($D:$D,rend,2,FALSE),"") -> 0.7526428093 | L66: =IF($C66="RM",IF(ISNA(VLOOKUP($F$2:$F$478,pos,2,FALSE))=FALSE,VLOOKUP($F66:$F$478,pos,2,FALSE),IF(ISNA(VLOOKUP($F$2:$F$478,lot,2,FALSE))=FALSE,VLOOKUP($F$2:$F$478,lot,2,FALSE),"MANQUANT")),"") -> PO-0021505 | M66: =IF($C66="RM",IF(ISNA(VLOOKUP($F$2:$F$478,pos,3,FALSE))=FALSE,VLOOKUP($F66:$F531,pos,3,FALSE),"OP"),"") -> C&C | N66: =IF($C66="RM",IF(ISNA(VLOOKUP($F66:$F$471,pos,4,FALSE))=FALSE,VLOOKUP($F$2:$F$471,pos,4,FALSE),""),"") -> 67.39 | O66: =IF($C66="RM",IF(ISNA(VLOOKUP($F$2:$F$478,pos,5,FALSE))=FALSE,VLOOKUP($F$2:$F$478,pos,5,FALSE),IF(ISNA(VLOOKUP($F$2:$F$478,lot,5,FALSE))=FALSE,VLOOKUP($F$2:$F$478,lot,5,FALSE),0)),"") -> 17.95 | P66: =IF($H66>0,VLOOKUP($D:$D,prix,15,FALSE),"") ->  | Q66: =IF($C66="RM",$O66*$G66,"") -> 209.656 | R66: =IF($H66>0,$H66*$P66,"") ->  | T66: =IF($F66>0,VALUE(LEFT($F66,4)),"") -> 6102 | U66: =IF(F66>0,IF(ISERROR(SEARCH("*FZ*",$E66))=FALSE,"FZ",IF(ISERROR(SEARCH("*FR*",$E66))=FALSE,"FR","Aucun")),"") -> FR | V66: =IF($C66="RM",IF($U66="FR",IF(ISNA(VLOOKUP($F:$F,lot,6,FALSE))=TRUE,VLOOKUP($T:$T,date,2,FALSE),VLOOKUP($F:$F,lot,6,FALSE)),""),"") -> 2016-02-29 | W66: =IF($C66="RM",IF($U66="Fz",IF(ISNA(VLOOKUP($F:$F,lot,6,FALSE))=TRUE,VLOOKUP($T:$T,date,2,FALSE),VLOOKUP($F:$F,lot,6,FALSE)),""),"") ->  | X66: =IF($C66="FG",VLOOKUP($A:$A,op,4,FALSE),"") ->  | Y66: 2016-04-26 | Z66: =IF(C66="rm",IF(U66="aucun","OK",IF(U66="fz",IF(Y66-W66>730,Y66-W66,"OK"),IF(Y66-V66<1,1,Y66-V66))),"") -> 57
A67: 6102B06C | B67: Beef | C67: FG | D67: 31300 | E67: UNIT MEDALLION COW FILETS VAC FR @P | F67: 6102B064 | H67: 5.38 | K67: =IF(ISNA(VLOOKUP($D:$D,rend,2,FALSE))=FALSE,VLOOKUP($D:$D,rend,2,FALSE),"") -> 0.7439168203 | L67: =IF($C67="RM",IF(ISNA(VLOOKUP($F$2:$F$478,pos,2,FALSE))=FALSE,VLOOKUP($F67:$F$478,pos,2,FALSE),IF(ISNA(VLOOKUP($F$2:$F$478,lot,2,FALSE))=FALSE,VLOOKUP($F$2:$F$478,lot,2,FALSE),"MANQUANT")),"") ->  | M67: =IF($C67="RM",IF(ISNA(VLOOKUP($F$2:$F$478,pos,3,FALSE))=FALSE,VLOOKUP($F67:$F532,pos,3,FALSE),"OP"),"") ->  | N67: =IF($C67="RM",IF(ISNA(VLOOKUP($F67:$F$471,pos,4,FALSE))=FALSE,VLOOKUP($F$2:$F$471,pos,4,FALSE),""),"") ->  | O67: =IF($C67="RM",IF(ISNA(VLOOKUP($F$2:$F$478,pos,5,FALSE))=FALSE,VLOOKUP($F$2:$F$478,pos,5,FALSE),IF(ISNA(VLOOKUP($F$2:$F$478,lot,5,FALSE))=FALSE,VLOOKUP($F$2:$F$478,lot,5,FALSE),0)),"") ->  | P67: =IF($H67>0,VLOOKUP($D:$D,prix,15,FALSE),"") -> 34.5 | Q67: =IF($C67="RM",$O67*$G67,"") ->  | R67: =IF($H67>0,$H67*$P67,"") -> 185.61 | T67: =IF($F67>0,VALUE(LEFT($F67,4)),"") -> 6102 | U67: =IF(F67>0,IF(ISERROR(SEARCH("*FZ*",$E67))=FALSE,"FZ",IF(ISERROR(SEARCH("*FR*",$E67))=FALSE,"FR","Aucun")),"") -> FR | V67: =IF($C67="RM",IF($U67="FR",IF(ISNA(VLOOKUP($F:$F,lot,6,FALSE))=TRUE,VLOOKUP($T:$T,date,2,FALSE),VLOOKUP($F:$F,lot,6,FALSE)),""),"") ->  | W67: =IF($C67="RM",IF($U67="Fz",IF(ISNA(VLOOKUP($F:$F,lot,6,FALSE))=TRUE,VLOOKUP($T:$T,date,2,FALSE),VLOOKUP($F:$F,lot,6,FALSE)),""),"") ->  | X67: =IF($C67="FG",VLOOKUP($A:$A,op,4,FALSE),"") ->  | Y67: 2016-04-26 | Z67: =IF(C67="rm",IF(U67="aucun","OK",IF(U67="fz",IF(Y67-W67>730,Y67-W67,"OK"),IF(Y67-V67<1,1,Y67-V67))),"") -> 
A68: 6102B06C | B68: Beef | C68: FG | D68: 31500 | E68: BEEF HOUSE TRIMMINGS FR @P | F68: 6102B065 | H68: 2.62 | K68: =IF(ISNA(VLOOKUP($D:$D,rend,2,FALSE))=FALSE,VLOOKUP($D:$D,rend,2,FALSE),"") -> 0.921966717 | L68: =IF($C68="RM",IF(ISNA(VLOOKUP($F$2:$F$478,pos,2,FALSE))=FALSE,VLOOKUP($F68:$F$478,pos,2,FALSE),IF(ISNA(VLOOKUP($F$2:$F$478,lot,2,FALSE))=FALSE,VLOOKUP($F$2:$F$478,lot,2,FALSE),"MANQUANT")),"") ->  | M68: =IF($C68="RM",IF(ISNA(VLOOKUP($F$2:$F$478,pos,3,FALSE))=FALSE,VLOOKUP($F68:$F533,pos,3,FALSE),"OP"),"") ->  | N68: =IF($C68="RM",IF(ISNA(VLOOKUP($F68:$F$471,pos,4,FALSE))=FALSE,VLOOKUP($F$2:$F$471,pos,4,FALSE),""),"") ->  | O68: =IF($C68="RM",IF(ISNA(VLOOKUP($F$2:$F$478,pos,5,FALSE))=FALSE,VLOOKUP($F$2:$F$478,pos,5,FALSE),IF(ISNA(VLOOKUP($F$2:$F$478,lot,5,FALSE))=FALSE,VLOOKUP($F$2:$F$478,lot,5,FALSE),0)),"") ->  | P68: =IF($H68>0,VLOOKUP($D:$D,prix,15,FALSE),"") -> 10 | Q68: =IF($C68="RM",$O68*$G68,"") ->  | R68: =IF($H68>0,$H68*$P68,"") -> 26.2 | T68: =IF($F68>0,VALUE(LEFT($F68,4)),"") -> 6102 | U68: =IF(F68>0,IF(ISERROR(SEARCH("*FZ*",$E68))=FALSE,"FZ",IF(ISERROR(SEARCH("*FR*",$E68))=FALSE,"FR","Aucun")),"") -> FR | V68: =IF($C68="RM",IF($U68="FR",IF(ISNA(VLOOKUP($F:$F,lot,6,FALSE))=TRUE,VLOOKUP($T:$T,date,2,FALSE),VLOOKUP($F:$F,lot,6,FALSE)),""),"") ->  | W68: =IF($C68="RM",IF($U68="Fz",IF(ISNA(VLOOKUP($F:$F,lot,6,FALSE))=TRUE,VLOOKUP($T:$T,date,2,FALSE),VLOOKUP($F:$F,lot,6,FALSE)),""),"") ->  | X68: =IF($C68="FG",VLOOKUP($A:$A,op,4,FALSE),"") ->  | Y68: 2016-04-26 | Z68: =IF(C68="rm",IF(U68="aucun","OK",IF(U68="fz",IF(Y68-W68>730,Y68-W68,"OK"),IF(Y68-V68<1,1,Y68-V68))),"") -> 
A69: 6102B06C Total | G69: =SUBTOTAL(9,G66:G68) -> 11.68 | H69: =SUBTOTAL(9,H66:H68) -> 8 | Q69: =SUBTOTAL(9,Q66:Q68) -> 209.656 | R69: =SUBTOTAL(9,R66:R68) -> 211.81
A70: 6103B033 | B70: Beef | C70: RM | D70: 1 | E70: ING EAU | F70: 5166AS | G70: 169.4 | K70: =IF(ISNA(VLOOKUP($D:$D,rend,2,FALSE))=FALSE,VLOOKUP($D:$D,rend,2,FALSE),"") ->  | L70: =IF($C70="RM",IF(ISNA(VLOOKUP($F$2:$F$478,pos,2,FALSE))=FALSE,VLOOKUP($F70:$F$478,pos,2,FALSE),IF(ISNA(VLOOKUP($F$2:$F$478,lot,2,FALSE))=FALSE,VLOOKUP($F$2:$F$478,lot,2,FALSE),"MANQUANT")),"") -> Aucun | M70: =IF($C70="RM",IF(ISNA(VLOOKUP($F$2:$F$478,pos,3,FALSE))=FALSE,VLOOKUP($F70:$F534,pos,3,FALSE),"OP"),"") -> Aucun | N70: =IF($C70="RM",IF(ISNA(VLOOKUP($F70:$F$471,pos,4,FALSE))=FALSE,VLOOKUP($F$2:$F$471,pos,4,FALSE),""),"") -> 0 | O70: =IF($C70="RM",IF(ISNA(VLOOKUP($F$2:$F$478,pos,5,FALSE))=FALSE,VLOOKUP($F$2:$F$478,pos,5,FALSE),IF(ISNA(VLOOKUP($F$2:$F$478,lot,5,FALSE))=FALSE,VLOOKUP($F$2:$F$478,lot,5,FALSE),0)),"") -> 0 | P70: =IF($H70>0,VLOOKUP($D:$D,prix,15,FALSE),"") ->  | Q70: =IF($C70="RM",$O70*$G70,"") -> 0 | R70: =IF($H70>0,$H70*$P70,"") ->  | T70: =IF($F70>0,VALUE(LEFT($F70,4)),"") -> 5166 | U70: =IF(F70>0,IF(ISERROR(SEARCH("*FZ*",$E70))=FALSE,"FZ",IF(ISERROR(SEARCH("*FR*",$E70))=FALSE,"FR","Aucun")),"") -> Aucun | V70: =IF($C70="RM",IF($U70="FR",IF(ISNA(VLOOKUP($F:$F,lot,6,FALSE))=TRUE,VLOOKUP($T:$T,date,2,FALSE),VLOOKUP($F:$F,lot,6,FALSE)),""),"") ->  | W70: =IF($C70="RM",IF($U70="Fz",IF(ISNA(VLOOKUP($F:$F,lot,6,FALSE))=TRUE,VLOOKUP($T:$T,date,2,FALSE),VLOOKUP($F:$F,lot,6,FALSE)),""),"") ->  | X70: =IF($C70="FG",VLOOKUP($A:$A,op,4,FALSE),"") ->  | Y70: 2016-04-26 | Z70: =IF(C70="rm",IF(U70="aucun","OK",IF(U70="fz",IF(Y70-W70>730,Y70-W70,"OK"),IF(Y70-V70<1,1,Y70-V70))),"") -> OK
A71: 6103B033 | B71: Beef | C71: RM | D71: 16 | E71: ING BSA 2A8E033 / TRIPOLYPHOSPHATE DE SODIUM GRANULE (3562) / ALLERG: AUCUN | F71: 6055AS01 | G71: 2.59 | K71: =IF(ISNA(VLOOKUP($D:$D,rend,2,FALSE))=FALSE,VLOOKUP($D:$D,rend,2,FALSE),"") ->  | L71: =IF($C71="RM",IF(ISNA(VLOOKUP($F$2:$F$478,pos,2,FALSE))=FALSE,VLOOKUP($F71:$F$478,pos,2,FALSE),IF(ISNA(VLOOKUP($F$2:$F$478,lot,2,FALSE))=FALSE,VLOOKUP($F$2:$F$478,lot,2,FALSE),"MANQUANT")),"") -> PO-0021532 | M71: =IF($C71="RM",IF(ISNA(VLOOKUP($F$2:$F$478,pos,3,FALSE))=FALSE,VLOOKUP($F71:$F535,pos,3,FALSE),"OP"),"") -> BSA | N71: =IF($C71="RM",IF(ISNA(VLOOKUP($F71:$F$471,pos,4,FALSE))=FALSE,VLOOKUP($F$2:$F$471,pos,4,FALSE),""),"") -> 25 | O71: =IF($C71="RM",IF(ISNA(VLOOKUP($F$2:$F$478,pos,5,FALSE))=FALSE,VLOOKUP($F$2:$F$478,pos,5,FALSE),IF(ISNA(VLOOKUP($F$2:$F$478,lot,5,FALSE))=FALSE,VLOOKUP($F$2:$F$478,lot,5,FALSE),0)),"") -> 2.78 | P71: =IF($H71>0,VLOOKUP($D:$D,prix,15,FALSE),"") ->  | Q71: =IF($C71="RM",$O71*$G71,"") -> 7.2002 | R71: =IF($H71>0,$H71*$P71,"") ->  | T71: =IF($F71>0,VALUE(LEFT($F71,4)),"") -> 6055 | U71: =IF(F71>0,IF(ISERROR(SEARCH("*FZ*",$E71))=FALSE,"FZ",IF(ISERROR(SEARCH("*FR*",$E71))=FALSE,"FR","Aucun")),"") -> Aucun | V71: =IF($C71="RM",IF($U71="FR",IF(ISNA(VLOOKUP($F:$F,lot,6,FALSE))=TRUE,VLOOKUP($T:$T,date,2,FALSE),VLOOKUP($F:$F,lot,6,FALSE)),""),"") ->  | W71: =IF($C71="RM",IF($U71="Fz",IF(ISNA(VLOOKUP($F:$F,lot,6,FALSE))=TRUE,VLOOKUP($T:$T,date,2,FALSE),VLOOKUP($F:$F,lot,6,FALSE)),""),"") ->  | X71: =IF($C71="FG",VLOOKUP($A:$A,op,4,FALSE),"") ->  | Y71: 2016-04-26 | Z71: =IF(C71="rm",IF(U71="aucun","OK",IF(U71="fz",IF(Y71-W71>730,Y71-W71,"OK"),IF(Y71-V71<1,1,Y71-V71))),"") -> OK
A72: 6103B033 | B72: Beef | C72: RM | D72: 31505 | E72: BEEF CUBES *IN PROCESS* CODE: 30314, 30304 FR | F72: 6103B033 | G72: 433.1 | K72: =IF(ISNA(VLOOKUP($D:$D,rend,2,FALSE))=FALSE,VLOOKUP($D:$D,rend,2,FALSE),"") -> 0.9378724696 | L72: =IF($C72="RM",IF(ISNA(VLOOKUP($F$2:$F$478,pos,2,FALSE))=FALSE,VLOOKUP($F72:$F$478,pos,2,FALSE),IF(ISNA(VLOOKUP($F$2:$F$478,lot,2,FALSE))=FALSE,VLOOKUP($F$2:$F$478,lot,2,FALSE),"MANQUANT")),"") -> 6103B03 | M72: =IF($C72="RM",IF(ISNA(VLOOKUP($F$2:$F$478,pos,3,FALSE))=FALSE,VLOOKUP($F72:$F536,pos,3,FALSE),"OP"),"") -> OP | N72: =IF($C72="RM",IF(ISNA(VLOOKUP($F72:$F$471,pos,4,FALSE))=FALSE,VLOOKUP($F$2:$F$471,pos,4,FALSE),""),"") ->  | O72: =IF($C72="RM",IF(ISNA(VLOOKUP($F$2:$F$478,pos,5,FALSE))=FALSE,VLOOKUP($F$2:$F$478,pos,5,FALSE),IF(ISNA(VLOOKUP($F$2:$F$478,lot,5,FALSE))=FALSE,VLOOKUP($F$2:$F$478,lot,5,FALSE),0)),"") -> 8.223600339 | P72: =IF($H72>0,VLOOKUP($D:$D,prix,15,FALSE),"") ->  | Q72: =IF($C72="RM",$O72*$G72,"") -> 3561.641307 | R72: =IF($H72>0,$H72*$P72,"") ->  | T72: =IF($F72>0,VALUE(LEFT($F72,4)),"") -> 6103 | U72: =IF(F72>0,IF(ISERROR(SEARCH("*FZ*",$E72))=FALSE,"FZ",IF(ISERROR(SEARCH("*FR*",$E72))=FALSE,"FR","Aucun")),"") -> FR | V72: =IF($C72="RM",IF($U72="FR",IF(ISNA(VLOOKUP($F:$F,lot,6,FALSE))=TRUE,VLOOKUP($T:$T,date,2,FALSE),VLOOKUP($F:$F,lot,6,FALSE)),""),"") -> 2016-03-01 | W72: =IF($C72="RM",IF($U72="Fz",IF(ISNA(VLOOKUP($F:$F,lot,6,FALSE))=TRUE,VLOOKUP($T:$T,date,2,FALSE),VLOOKUP($F:$F,lot,6,FALSE)),""),"") ->  | X72: =IF($C72="FG",VLOOKUP($A:$A,op,4,FALSE),"") ->  | Y72: 2016-04-26 | Z72: =IF(C72="rm",IF(U72="aucun","OK",IF(U72="fz",IF(Y72-W72>730,Y72-W72,"OK"),IF(Y72-V72<1,1,Y72-V72))),"") -> 56
A73: 6103B033 | B73: Beef | C73: RM | D73: 15 | E73: ING BSA 2B1A038 / SEL HI GRADE POLY OU TOP FLO / ALLERG: AUCUN | F73: 6133AS01 | G73: 4.88 | K73: =IF(ISNA(VLOOKUP($D:$D,rend,2,FALSE))=FALSE,VLOOKUP($D:$D,rend,2,FALSE),"") ->  | L73: =IF($C73="RM",IF(ISNA(VLOOKUP($F$2:$F$478,pos,2,FALSE))=FALSE,VLOOKUP($F73:$F$478,pos,2,FALSE),IF(ISNA(VLOOKUP($F$2:$F$478,lot,2,FALSE))=FALSE,VLOOKUP($F$2:$F$478,lot,2,FALSE),"MANQUANT")),"") -> PO-0021532 | M73: =IF($C73="RM",IF(ISNA(VLOOKUP($F$2:$F$478,pos,3,FALSE))=FALSE,VLOOKUP($F73:$F537,pos,3,FALSE),"OP"),"") -> BSA | N73: =IF($C73="RM",IF(ISNA(VLOOKUP($F73:$F$471,pos,4,FALSE))=FALSE,VLOOKUP($F$2:$F$471,pos,4,FALSE),""),"") -> 40 | O73: =IF($C73="RM",IF(ISNA(VLOOKUP($F$2:$F$478,pos,5,FALSE))=FALSE,VLOOKUP($F$2:$F$478,pos,5,FALSE),IF(ISNA(VLOOKUP($F$2:$F$478,lot,5,FALSE))=FALSE,VLOOKUP($F$2:$F$478,lot,5,FALSE),0)),"") -> 0.39 | P73: =IF($H73>0,VLOOKUP($D:$D,prix,15,FALSE),"") ->  | Q73: =IF($C73="RM",$O73*$G73,"") -> 1.9032 | R73: =IF($H73>0,$H73*$P73,"") ->  | T73: =IF($F73>0,VALUE(LEFT($F73,4)),"") -> 6133 | U73: =IF(F73>0,IF(ISERROR(SEARCH("*FZ*",$E73))=FALSE,"FZ",IF(ISERROR(SEARCH("*FR*",$E73))=FALSE,"FR","Aucun")),"") -> Aucun | V73: =IF($C73="RM",IF($U73="FR",IF(ISNA(VLOOKUP($F:$F,lot,6,FALSE))=TRUE,VLOOKUP($T:$T,date,2,FALSE),VLOOKUP($F:$F,lot,6,FALSE)),""),"") ->  | W73: =IF($C73="RM",IF($U73="Fz",IF(ISNA(VLOOKUP($F:$F,lot,6,FALSE))=TRUE,VLOOKUP($T:$T,date,2,FALSE),VLOOKUP($F:$F,lot,6,FALSE)),""),"") ->  | X73: =IF($C73="FG",VLOOKUP($A:$A,op,4,FALSE),"") ->  | Y73: 2016-04-26 | Z73: =IF(C73="rm",IF(U73="aucun","OK",IF(U73="fz",IF(Y73-W73>730,Y73-W73,"OK"),IF(Y73-V73<1,1,Y73-V73))),"") -> OK
A74: 6103B033 | B74: Beef | C74: FG | D74: 24132 | E74: BEEF LANIERES SEASONNED**1.5 to INCH X 3/8 X 3/8 SUNCHEF**25 KG/CS FR #P( avrg 2 | F74: 6103B034 | H74: 609.28 | K74: =IF(ISNA(VLOOKUP($D:$D,rend,2,FALSE))=FALSE,VLOOKUP($D:$D,rend,2,FALSE),"") -> 0.9337219726 | L74: =IF($C74="RM",IF(ISNA(VLOOKUP($F$2:$F$478,pos,2,FALSE))=FALSE,VLOOKUP($F74:$F$478,pos,2,FALSE),IF(ISNA(VLOOKUP($F$2:$F$478,lot,2,FALSE))=FALSE,VLOOKUP($F$2:$F$478,lot,2,FALSE),"MANQUANT")),"") ->  | M74: =IF($C74="RM",IF(ISNA(VLOOKUP($F$2:$F$478,pos,3,FALSE))=FALSE,VLOOKUP($F74:$F538,pos,3,FALSE),"OP"),"") ->  | N74: =IF($C74="RM",IF(ISNA(VLOOKUP($F74:$F$471,pos,4,FALSE))=FALSE,VLOOKUP($F$2:$F$471,pos,4,FALSE),""),"") ->  | O74: =IF($C74="RM",IF(ISNA(VLOOKUP($F$2:$F$478,pos,5,FALSE))=FALSE,VLOOKUP($F$2:$F$478,pos,5,FALSE),IF(ISNA(VLOOKUP($F$2:$F$478,lot,5,FALSE))=FALSE,VLOOKUP($F$2:$F$478,lot,5,FALSE),0)),"") ->  | P74: =IF($H74>0,VLOOKUP($D:$D,prix,15,FALSE),"") -> 9 | Q74: =IF($C74="RM",$O74*$G74,"") ->  | R74: =IF($H74>0,$H74*$P74,"") -> 5483.52 | T74: =IF($F74>0,VALUE(LEFT($F74,4)),"") -> 6103 | U74: =IF(F74>0,IF(ISERROR(SEARCH("*FZ*",$E74))=FALSE,"FZ",IF(ISERROR(SEARCH("*FR*",$E74))=FALSE,"FR","Aucun")),"") -> FR | V74: =IF($C74="RM",IF($U74="FR",IF(ISNA(VLOOKUP($F:$F,lot,6,FALSE))=TRUE,VLOOKUP($T:$T,date,2,FALSE),VLOOKUP($F:$F,lot,6,FALSE)),""),"") ->  | W74: =IF($C74="RM",IF($U74="Fz",IF(ISNA(VLOOKUP($F:$F,lot,6,FALSE))=TRUE,VLOOKUP($T:$T,date,2,FALSE),VLOOKUP($F:$F,lot,6,FALSE)),""),"") ->  | X74: =IF($C74="FG",VLOOKUP($A:$A,op,4,FALSE),"") ->  | Y74: 2016-04-26 | Z74: =IF(C74="rm",IF(U74="aucun","OK",IF(U74="fz",IF(Y74-W74>730,Y74-W74,"OK"),IF(Y74-V74<1,1,Y74-V74))),"") -> 
A75: 6103B033 Total | G75: =SUBTOTAL(9,G70:G74) -> 609.97 | H75: =SUBTOTAL(9,H70:H74) -> 609.28 | Q75: =SUBTOTAL(9,Q70:Q74) -> 3570.744707 | R75: =SUBTOTAL(9,R70:R74) -> 5483.52
A76: 6104B06B | B76: Beef | C76: RM | D76: 30041 | E76: BEEF STRIPLOIN BNLS AAH 0X1 FR | F76: 6104B06 | G76: 86.6 | K76: =IF(ISNA(VLOOKUP($D:$D,rend,2,FALSE))=FALSE,VLOOKUP($D:$D,rend,2,FALSE),"") -> 0.8818315074 | L76: =IF($C76="RM",IF(ISNA(VLOOKUP($F$2:$F$478,pos,2,FALSE))=FALSE,VLOOKUP($F76:$F$478,pos,2,FALSE),IF(ISNA(VLOOKUP($F$2:$F$478,lot,2,FALSE))=FALSE,VLOOKUP($F$2:$F$478,lot,2,FALSE),"MANQUANT")),"") -> PO-0021707 | M76: =IF($C76="RM",IF(ISNA(VLOOKUP($F$2:$F$478,pos,3,FALSE))=FALSE,VLOOKUP($F76:$F539,pos,3,FALSE),"OP"),"") -> RETA | N76: =IF($C76="RM",IF(ISNA(VLOOKUP($F76:$F$471,pos,4,FALSE))=FALSE,VLOOKUP($F$2:$F$471,pos,4,FALSE),""),"") -> 778.954178 | O76: =IF($C76="RM",IF(ISNA(VLOOKUP($F$2:$F$478,pos,5,FALSE))=FALSE,VLOOKUP($F$2:$F$478,pos,5,FALSE),IF(ISNA(VLOOKUP($F$2:$F$478,lot,5,FALSE))=FALSE,VLOOKUP($F$2:$F$478,lot,5,FALSE),0)),"") -> 17.39 | P76: =IF($H76>0,VLOOKUP($D:$D,prix,15,FALSE),"") ->  | Q76: =IF($C76="RM",$O76*$G76,"") -> 1505.974 | R76: =IF($H76>0,$H76*$P76,"") ->  | T76: =IF($F76>0,VALUE(LEFT($F76,4)),"") -> 6104 | U76: =IF(F76>0,IF(ISERROR(SEARCH("*FZ*",$E76))=FALSE,"FZ",IF(ISERROR(SEARCH("*FR*",$E76))=FALSE,"FR","Aucun")),"") -> FR | V76: =IF($C76="RM",IF($U76="FR",IF(ISNA(VLOOKUP($F:$F,lot,6,FALSE))=TRUE,VLOOKUP($T:$T,date,2,FALSE),VLOOKUP($F:$F,lot,6,FALSE)),""),"") -> 2016-03-02 | W76: =IF($C76="RM",IF($U76="Fz",IF(ISNA(VLOOKUP($F:$F,lot,6,FALSE))=TRUE,VLOOKUP($T:$T,date,2,FALSE),VLOOKUP($F:$F,lot,6,FALSE)),""),"") ->  | X76: =IF($C76="FG",VLOOKUP($A:$A,op,4,FALSE),"") ->  | Y76: 2016-04-26 | Z76: =IF(C76="rm",IF(U76="aucun","OK",IF(U76="fz",IF(Y76-W76>730,Y76-W76,"OK"),IF(Y76-V76<1,1,Y76-V76))),"") -> 55
A77: 6104B06B | B77: Beef | C77: FG | D77: 31211 | E77: *AAA ANGUS *UNIT STRIPLOIN STEAKS *VACUUM* FR @P | F77: 6104B061 | H77: 41.28 | K77: =IF(ISNA(VLOOKUP($D:$D,rend,2,FALSE))=FALSE,VLOOKUP($D:$D,rend,2,FALSE),"") -> 0.8752589649 | L77: =IF($C77="RM",IF(ISNA(VLOOKUP($F$2:$F$478,pos,2,FALSE))=FALSE,VLOOKUP($F77:$F$478,pos,2,FALSE),IF(ISNA(VLOOKUP($F$2:$F$478,lot,2,FALSE))=FALSE,VLOOKUP($F$2:$F$478,lot,2,FALSE),"MANQUANT")),"") ->  | M77: =IF($C77="RM",IF(ISNA(VLOOKUP($F$2:$F$478,pos,3,FALSE))=FALSE,VLOOKUP($F77:$F540,pos,3,FALSE),"OP"),"") ->  | N77: =IF($C77="RM",IF(ISNA(VLOOKUP($F77:$F$471,pos,4,FALSE))=FALSE,VLOOKUP($F$2:$F$471,pos,4,FALSE),""),"") ->  | O77: =IF($C77="RM",IF(ISNA(VLOOKUP($F$2:$F$478,pos,5,FALSE))=FALSE,VLOOKUP($F$2:$F$478,pos,5,FALSE),IF(ISNA(VLOOKUP($F$2:$F$478,lot,5,FALSE))=FALSE,VLOOKUP($F$2:$F$478,lot,5,FALSE),0)),"") ->  | P77: =IF($H77>0,VLOOKUP($D:$D,prix,15,FALSE),"") -> 29.5 | Q77: =IF($C77="RM",$O77*$G77,"") ->  | R77: =IF($H77>0,$H77*$P77,"") -> 1217.76 | T77: =IF($F77>0,VALUE(LEFT($F77,4)),"") -> 6104 | U77: =IF(F77>0,IF(ISERROR(SEARCH("*FZ*",$E77))=FALSE,"FZ",IF(ISERROR(SEARCH("*FR*",$E77))=FALSE,"FR","Aucun")),"") -> FR | V77: =IF($C77="RM",IF($U77="FR",IF(ISNA(VLOOKUP($F:$F,lot,6,FALSE))=TRUE,VLOOKUP($T:$T,date,2,FALSE),VLOOKUP($F:$F,lot,6,FALSE)),""),"") ->  | W77: =IF($C77="RM",IF($U77="Fz",IF(ISNA(VLOOKUP($F:$F,lot,6,FALSE))=TRUE,VLOOKUP($T:$T,date,2,FALSE),VLOOKUP($F:$F,lot,6,FALSE)),""),"") ->  | X77: =IF($C77="FG",VLOOKUP($A:$A,op,4,FALSE),"") ->  | Y77: 2016-04-26 | Z77: =IF(C77="rm",IF(U77="aucun","OK",IF(U77="fz",IF(Y77-W77>730,Y77-W77,"OK"),IF(Y77-V77<1,1,Y77-V77))),"") -> 
A78: 6104B06B | B78: Beef | C78: FG | D78: 31206 | E78: UNIT STRIPLOIN SL*FRESH*VACUUM AA FR @P | F78: 6104B062 | H78: 2.54 | K78: =IF(ISNA(VLOOKUP($D:$D,rend,2,FALSE))=FALSE,VLOOKUP($D:$D,rend,2,FALSE),"") -> 0.8739439729 | L78: =IF($C78="RM",IF(ISNA(VLOOKUP($F$2:$F$478,pos,2,FALSE))=FALSE,VLOOKUP($F78:$F$478,pos,2,FALSE),IF(ISNA(VLOOKUP($F$2:$F$478,lot,2,FALSE))=FALSE,VLOOKUP($F$2:$F$478,lot,2,FALSE),"MANQUANT")),"") ->  | M78: =IF($C78="RM",IF(ISNA(VLOOKUP($F$2:$F$478,pos,3,FALSE))=FALSE,VLOOKUP($F78:$F541,pos,3,FALSE),"OP"),"") ->  | N78: =IF($C78="RM",IF(ISNA(VLOOKUP($F78:$F$471,pos,4,FALSE))=FALSE,VLOOKUP($F$2:$F$471,pos,4,FALSE),""),"") ->  | O78: =IF($C78="RM",IF(ISNA(VLOOKUP($F$2:$F$478,pos,5,FALSE))=FALSE,VLOOKUP($F$2:$F$478,pos,5,FALSE),IF(ISNA(VLOOKUP($F$2:$F$478,lot,5,FALSE))=FALSE,VLOOKUP($F$2:$F$478,lot,5,FALSE),0)),"") ->  | P78: =IF($H78>0,VLOOKUP($D:$D,prix,15,FALSE),"") -> 25 | Q78: =IF($C78="RM",$O78*$G78,"") ->  | R78: =IF($H78>0,$H78*$P78,"") -> 63.5 | T78: =IF($F78>0,VALUE(LEFT($F78,4)),"") -> 6104 | U78: =IF(F78>0,IF(ISERROR(SEARCH("*FZ*",$E78))=FALSE,"FZ",IF(ISERROR(SEARCH("*FR*",$E78))=FALSE,"FR","Aucun")),"") -> FR | V78: =IF($C78="RM",IF($U78="FR",IF(ISNA(VLOOKUP($F:$F,lot,6,FALSE))=TRUE,VLOOKUP($T:$T,date,2,FALSE),VLOOKUP($F:$F,lot,6,FALSE)),""),"") ->  | W78: =IF($C78="RM",IF($U78="Fz",IF(ISNA(VLOOKUP($F:$F,lot,6,FALSE))=TRUE,VLOOKUP($T:$T,date,2,FALSE),VLOOKUP($F:$F,lot,6,FALSE)),""),"") ->  | X78: =IF($C78="FG",VLOOKUP($A:$A,op,4,FALSE),"") ->  | Y78: 2016-04-26 | Z78: =IF(C78="rm",IF(U78="aucun","OK",IF(U78="fz",IF(Y78-W78>730,Y78-W78,"OK"),IF(Y78-V78<1,1,Y78-V78))),"") -> 
A79: 6104B06B | B79: Beef | C79: FG | D79: 31500 | E79: BEEF HOUSE TRIMMINGS FR @P | F79: 6104B063 | H79: 19.32 | K79: =IF(ISNA(VLOOKUP($D:$D,rend,2,FALSE))=FALSE,VLOOKUP($D:$D,rend,2,FALSE),"") -> 0.921966717 | L79: =IF($C79="RM",IF(ISNA(VLOOKUP($F$2:$F$478,pos,2,FALSE))=FALSE,VLOOKUP($F79:$F$478,pos,2,FALSE),IF(ISNA(VLOOKUP($F$2:$F$478,lot,2,FALSE))=FALSE,VLOOKUP($F$2:$F$478,lot,2,FALSE),"MANQUANT")),"") ->  | M79: =IF($C79="RM",IF(ISNA(VLOOKUP($F$2:$F$478,pos,3,FALSE))=FALSE,VLOOKUP($F79:$F542,pos,3,FALSE),"OP"),"") ->  | N79: =IF($C79="RM",IF(ISNA(VLOOKUP($F79:$F$471,pos,4,FALSE))=FALSE,VLOOKUP($F$2:$F$471,pos,4,FALSE),""),"") ->  | O79: =IF($C79="RM",IF(ISNA(VLOOKUP($F$2:$F$478,pos,5,FALSE))=FALSE,VLOOKUP($F$2:$F$478,pos,5,FALSE),IF(ISNA(VLOOKUP($F$2:$F$478,lot,5,FALSE))=FALSE,VLOOKUP($F$2:$F$478,lot,5,FALSE),0)),"") ->  | P79: =IF($H79>0,VLOOKUP($D:$D,prix,15,FALSE),"") -> 10 | Q79: =IF($C79="RM",$O79*$G79,"") ->  | R79: =IF($H79>0,$H79*$P79,"") -> 193.2 | T79: =IF($F79>0,VALUE(LEFT($F79,4)),"") -> 6104 | U79: =IF(F79>0,IF(ISERROR(SEARCH("*FZ*",$E79))=FALSE,"FZ",IF(ISERROR(SEARCH("*FR*",$E79))=FALSE,"FR","Aucun")),"") -> FR | V79: =IF($C79="RM",IF($U79="FR",IF(ISNA(VLOOKUP($F:$F,lot,6,FALSE))=TRUE,VLOOKUP($T:$T,date,2,FALSE),VLOOKUP($F:$F,lot,6,FALSE)),""),"") ->  | W79: =IF($C79="RM",IF($U79="Fz",IF(ISNA(VLOOKUP($F:$F,lot,6,FALSE))=TRUE,VLOOKUP($T:$T,date,2,FALSE),VLOOKUP($F:$F,lot,6,FALSE)),""),"") ->  | X79: =IF($C79="FG",VLOOKUP($A:$A,op,4,FALSE),"") ->  | Y79: 2016-04-26 | Z79: =IF(C79="rm",IF(U79="aucun","OK",IF(U79="fz",IF(Y79-W79>730,Y79-W79,"OK"),IF(Y79-V79<1,1,Y79-V79))),"") -> 
A80: 6104B06B | B80: Beef | C80: FG | D80: 99990 | E80: 8OZ-BEEF STRIPLOIN STEAKS*PROMO* 20 X 1 COV*AA**4.54KG/CS FZ #D | F80: 6104B064 | H80: 13.62 | K80: =IF(ISNA(VLOOKUP($D:$D,rend,2,FALSE))=FALSE,VLOOKUP($D:$D,rend,2,FALSE),"") -> 0.8762943022 | L80: =IF($C80="RM",IF(ISNA(VLOOKUP($F$2:$F$478,pos,2,FALSE))=FALSE,VLOOKUP($F80:$F$478,pos,2,FALSE),IF(ISNA(VLOOKUP($F$2:$F$478,lot,2,FALSE))=FALSE,VLOOKUP($F$2:$F$478,lot,2,FALSE),"MANQUANT")),"") ->  | M80: =IF($C80="RM",IF(ISNA(VLOOKUP($F$2:$F$478,pos,3,FALSE))=FALSE,VLOOKUP($F80:$F543,pos,3,FALSE),"OP"),"") ->  | N80: =IF($C80="RM",IF(ISNA(VLOOKUP($F80:$F$471,pos,4,FALSE))=FALSE,VLOOKUP($F$2:$F$471,pos,4,FALSE),""),"") ->  | O80: =IF($C80="RM",IF(ISNA(VLOOKUP($F$2:$F$478,pos,5,FALSE))=FALSE,VLOOKUP($F$2:$F$478,pos,5,FALSE),IF(ISNA(VLOOKUP($F$2:$F$478,lot,5,FALSE))=FALSE,VLOOKUP($F$2:$F$478,lot,5,FALSE),0)),"") ->  | P80: =IF($H80>0,VLOOKUP($D:$D,prix,15,FALSE),"") -> 25 | Q80: =IF($C80="RM",$O80*$G80,"") ->  | R80: =IF($H80>0,$H80*$P80,"") -> 340.5 | T80: =IF($F80>0,VALUE(LEFT($F80,4)),"") -> 6104 | U80: =IF(F80>0,IF(ISERROR(SEARCH("*FZ*",$E80))=FALSE,"FZ",IF(ISERROR(SEARCH("*FR*",$E80))=FALSE,"FR","Aucun")),"") -> FZ | V80: =IF($C80="RM",IF($U80="FR",IF(ISNA(VLOOKUP($F:$F,lot,6,FALSE))=TRUE,VLOOKUP($T:$T,date,2,FALSE),VLOOKUP($F:$F,lot,6,FALSE)),""),"") ->  | W80: =IF($C80="RM",IF($U80="Fz",IF(ISNA(VLOOKUP($F:$F,lot,6,FALSE))=TRUE,VLOOKUP($T:$T,date,2,FALSE),VLOOKUP($F:$F,lot,6,FALSE)),""),"") ->  | X80: =IF($C80="FG",VLOOKUP($A:$A,op,4,FALSE),"") ->  | Y80: 2016-04-26 | Z80: =IF(C80="rm",IF(U80="aucun","OK",IF(U80="fz",IF(Y80-W80>730,Y80-W80,"OK"),IF(Y80-V80<1,1,Y80-V80))),"") -> 
A81: 6104B06B | B81: Beef | C81: FG | D81: 31507 | E81: BEEF STRIPLOIN STEAK *IN PROCESS* 33150, 99990, 31412 FR | F81: 6104B065 | H81: 10.08 | K81: =IF(ISNA(VLOOKUP($D:$D,rend,2,FALSE))=FALSE,VLOOKUP($D:$D,rend,2,FALSE),"") -> 0.8994566375 | L81: =IF($C81="RM",IF(ISNA(VLOOKUP($F$2:$F$478,pos,2,FALSE))=FALSE,VLOOKUP($F81:$F$478,pos,2,FALSE),IF(ISNA(VLOOKUP($F$2:$F$478,lot,2,FALSE))=FALSE,VLOOKUP($F$2:$F$478,lot,2,FALSE),"MANQUANT")),"") ->  | M81: =IF($C81="RM",IF(ISNA(VLOOKUP($F$2:$F$478,pos,3,FALSE))=FALSE,VLOOKUP($F81:$F544,pos,3,FALSE),"OP"),"") ->  | N81: =IF($C81="RM",IF(ISNA(VLOOKUP($F81:$F$471,pos,4,FALSE))=FALSE,VLOOKUP($F$2:$F$471,pos,4,FALSE),""),"") ->  | O81: =IF($C81="RM",IF(ISNA(VLOOKUP($F$2:$F$478,pos,5,FALSE))=FALSE,VLOOKUP($F$2:$F$478,pos,5,FALSE),IF(ISNA(VLOOKUP($F$2:$F$478,lot,5,FALSE))=FALSE,VLOOKUP($F$2:$F$478,lot,5,FALSE),0)),"") ->  | P81: =IF($H81>0,VLOOKUP($D:$D,prix,15,FALSE),"") -> 22 | Q81: =IF($C81="RM",$O81*$G81,"") ->  | R81: =IF($H81>0,$H81*$P81,"") -> 221.76 | T81: =IF($F81>0,VALUE(LEFT($F81,4)),"") -> 6104 | U81: =IF(F81>0,IF(ISERROR(SEARCH("*FZ*",$E81))=FALSE,"FZ",IF(ISERROR(SEARCH("*FR*",$E81))=FALSE,"FR","Aucun")),"") -> FR | V81: =IF($C81="RM",IF($U81="FR",IF(ISNA(VLOOKUP($F:$F,lot,6,FALSE))=TRUE,VLOOKUP($T:$T,date,2,FALSE),VLOOKUP($F:$F,lot,6,FALSE)),""),"") ->  | W81: =IF($C81="RM",IF($U81="Fz",IF(ISNA(VLOOKUP($F:$F,lot,6,FALSE))=TRUE,VLOOKUP($T:$T,date,2,FALSE),VLOOKUP($F:$F,lot,6,FALSE)),""),"") ->  | X81: =IF($C81="FG",VLOOKUP($A:$A,op,4,FALSE),"") ->  | Y81: 2016-04-26 | Z81: =IF(C81="rm",IF(U81="aucun","OK",IF(U81="fz",IF(Y81-W81>730,Y81-W81,"OK"),IF(Y81-V81<1,1,Y81-V81))),"") -> 
A82: 6104B06B Total | G82: =SUBTOTAL(9,G76:G81) -> 86.6 | H82: =SUBTOTAL(9,H76:H81) -> 86.84 | Q82: =SUBTOTAL(9,Q76:Q81) -> 1505.974 | R82: =SUBTOTAL(9,R76:R81) -> 2036.72
A83: 6106B03B | B83: Beef | C83: RM | D83: 30312 | E83: BEEF SHOULDER FLAT IRON**RM**A+ FR #D | F83: 6106b03 | G83: 78.91 | K83: =IF(ISNA(VLOOKUP($D:$D,rend,2,FALSE))=FALSE,VLOOKUP($D:$D,rend,2,FALSE),"") -> 0.9069016835 | L83: =IF($C83="RM",IF(ISNA(VLOOKUP($F$2:$F$478,pos,2,FALSE))=FALSE,VLOOKUP($F83:$F$478,pos,2,FALSE),IF(ISNA(VLOOKUP($F$2:$F$478,lot,2,FALSE))=FALSE,VLOOKUP($F$2:$F$478,lot,2,FALSE),"MANQUANT")),"") -> PO-0021526 | M83: =IF($C83="RM",IF(ISNA(VLOOKUP($F$2:$F$478,pos,3,FALSE))=FALSE,VLOOKUP($F83:$F545,pos,3,FALSE),"OP"),"") -> DECA | N83: =IF($C83="RM",IF(ISNA(VLOOKUP($F83:$F$471,pos,4,FALSE))=FALSE,VLOOKUP($F$2:$F$471,pos,4,FALSE),""),"") -> 195.53 | O83: =IF($C83="RM",IF(ISNA(VLOOKUP($F$2:$F$478,pos,5,FALSE))=FALSE,VLOOKUP($F$2:$F$478,pos,5,FALSE),IF(ISNA(VLOOKUP($F$2:$F$478,lot,5,FALSE))=FALSE,VLOOKUP($F$2:$F$478,lot,5,FALSE),0)),"") -> 9.39 | P83: =IF($H83>0,VLOOKUP($D:$D,prix,15,FALSE),"") ->  | Q83: =IF($C83="RM",$O83*$G83,"") -> 740.9649 | R83: =IF($H83>0,$H83*$P83,"") ->  | T83: =IF($F83>0,VALUE(LEFT($F83,4)),"") -> 6106 | U83: =IF(F83>0,IF(ISERROR(SEARCH("*FZ*",$E83))=FALSE,"FZ",IF(ISERROR(SEARCH("*FR*",$E83))=FALSE,"FR","Aucun")),"") -> FR | V83: =IF($C83="RM",IF($U83="FR",IF(ISNA(VLOOKUP($F:$F,lot,6,FALSE))=TRUE,VLOOKUP($T:$T,date,2,FALSE),VLOOKUP($F:$F,lot,6,FALSE)),""),"") -> 2016-03-04 | W83: =IF($C83="RM",IF($U83="Fz",IF(ISNA(VLOOKUP($F:$F,lot,6,FALSE))=TRUE,VLOOKUP($T:$T,date,2,FALSE),VLOOKUP($F:$F,lot,6,FALSE)),""),"") ->  | X83: =IF($C83="FG",VLOOKUP($A:$A,op,4,FALSE),"") ->  | Y83: 2016-04-26 | Z83: =IF(C83="rm",IF(U83="aucun","OK",IF(U83="fz",IF(Y83-W83>730,Y83-W83,"OK"),IF(Y83-V83<1,1,Y83-V83))),"") -> 53
A84: 6106B03B | B84: Beef | C84: FG | D84: 33302 | E84: BEEF SHOULDER FLAT IRON STEAKS AA**36 X 8 OZ VACX1*BOITE BLANCHE FR #D | F84: 6106B033 | H84: 11.3 | K84: =IF(ISNA(VLOOKUP($D:$D,rend,2,FALSE))=FALSE,VLOOKUP($D:$D,rend,2,FALSE),"") -> 0.8641126571 | L84: =IF($C84="RM",IF(ISNA(VLOOKUP($F$2:$F$478,pos,2,FALSE))=FALSE,VLOOKUP($F84:$F$478,pos,2,FALSE),IF(ISNA(VLOOKUP($F$2:$F$478,lot,2,FALSE))=FALSE,VLOOKUP($F$2:$F$478,lot,2,FALSE),"MANQUANT")),"") ->  | M84: =IF($C84="RM",IF(ISNA(VLOOKUP($F$2:$F$478,pos,3,FALSE))=FALSE,VLOOKUP($F84:$F546,pos,3,FALSE),"OP"),"") ->  | N84: =IF($C84="RM",IF(ISNA(VLOOKUP($F84:$F$471,pos,4,FALSE))=FALSE,VLOOKUP($F$2:$F$471,pos,4,FALSE),""),"") ->  | O84: =IF($C84="RM",IF(ISNA(VLOOKUP($F$2:$F$478,pos,5,FALSE))=FALSE,VLOOKUP($F$2:$F$478,pos,5,FALSE),IF(ISNA(VLOOKUP($F$2:$F$478,lot,5,FALSE))=FALSE,VLOOKUP($F$2:$F$478,lot,5,FALSE),0)),"") ->  | P84: =IF($H84>0,VLOOKUP($D:$D,prix,15,FALSE),"") -> 20 | Q84: =IF($C84="RM",$O84*$G84,"") ->  | R84: =IF($H84>0,$H84*$P84,"") -> 226 | T84: =IF($F84>0,VALUE(LEFT($F84,4)),"") -> 6106 | U84: =IF(F84>0,IF(ISERROR(SEARCH("*FZ*",$E84))=FALSE,"FZ",IF(ISERROR(SEARCH("*FR*",$E84))=FALSE,"FR","Aucun")),"") -> FR | V84: =IF($C84="RM",IF($U84="FR",IF(ISNA(VLOOKUP($F:$F,lot,6,FALSE))=TRUE,VLOOKUP($T:$T,date,2,FALSE),VLOOKUP($F:$F,lot,6,FALSE)),""),"") ->  | W84: =IF($C84="RM",IF($U84="Fz",IF(ISNA(VLOOKUP($F:$F,lot,6,FALSE))=TRUE,VLOOKUP($T:$T,date,2,FALSE),VLOOKUP($F:$F,lot,6,FALSE)),""),"") ->  | X84: =IF($C84="FG",VLOOKUP($A:$A,op,4,FALSE),"") ->  | Y84: 2016-04-26 | Z84: =IF(C84="rm",IF(U84="aucun","OK",IF(U84="fz",IF(Y84-W84>730,Y84-W84,"OK"),IF(Y84-V84<1,1,Y84-V84))),"") -> 
A85: 6106B03B | B85: Beef | C85: FG | D85: 33311 | E85: BEEF FLAT IRON STEAK AAA**12 X 285GR (A+ PORTION 12/CS) FR | F85: 6106B034 | H85: 27.92 | K85: =IF(ISNA(VLOOKUP($D:$D,rend,2,FALSE))=FALSE,VLOOKUP($D:$D,rend,2,FALSE),"") -> 0.8832050838 | L85: =IF($C85="RM",IF(ISNA(VLOOKUP($F$2:$F$478,pos,2,FALSE))=FALSE,VLOOKUP($F85:$F$478,pos,2,FALSE),IF(ISNA(VLOOKUP($F$2:$F$478,lot,2,FALSE))=FALSE,VLOOKUP($F$2:$F$478,lot,2,FALSE),"MANQUANT")),"") ->  | M85: =IF($C85="RM",IF(ISNA(VLOOKUP($F$2:$F$478,pos,3,FALSE))=FALSE,VLOOKUP($F85:$F547,pos,3,FALSE),"OP"),"") ->  | N85: =IF($C85="RM",IF(ISNA(VLOOKUP($F85:$F$471,pos,4,FALSE))=FALSE,VLOOKUP($F$2:$F$471,pos,4,FALSE),""),"") ->  | O85: =IF($C85="RM",IF(ISNA(VLOOKUP($F$2:$F$478,pos,5,FALSE))=FALSE,VLOOKUP($F$2:$F$478,pos,5,FALSE),IF(ISNA(VLOOKUP($F$2:$F$478,lot,5,FALSE))=FALSE,VLOOKUP($F$2:$F$478,lot,5,FALSE),0)),"") ->  | P85: =IF($H85>0,VLOOKUP($D:$D,prix,15,FALSE),"") -> 19.95 | Q85: =IF($C85="RM",$O85*$G85,"") ->  | R85: =IF($H85>0,$H85*$P85,"") -> 557.004 | T85: =IF($F85>0,VALUE(LEFT($F85,4)),"") -> 6106 | U85: =IF(F85>0,IF(ISERROR(SEARCH("*FZ*",$E85))=FALSE,"FZ",IF(ISERROR(SEARCH("*FR*",$E85))=FALSE,"FR","Aucun")),"") -> FR | V85: =IF($C85="RM",IF($U85="FR",IF(ISNA(VLOOKUP($F:$F,lot,6,FALSE))=TRUE,VLOOKUP($T:$T,date,2,FALSE),VLOOKUP($F:$F,lot,6,FALSE)),""),"") ->  | W85: =IF($C85="RM",IF($U85="Fz",IF(ISNA(VLOOKUP($F:$F,lot,6,FALSE))=TRUE,VLOOKUP($T:$T,date,2,FALSE),VLOOKUP($F:$F,lot,6,FALSE)),""),"") ->  | X85: =IF($C85="FG",VLOOKUP($A:$A,op,4,FALSE),"") ->  | Y85: 2016-04-26 | Z85: =IF(C85="rm",IF(U85="aucun","OK",IF(U85="fz",IF(Y85-W85>730,Y85-W85,"OK"),IF(Y85-V85<1,1,Y85-V85))),"") -> 
A86: 6106B03B | B86: Beef | C86: FG | D86: 31500 | E86: BEEF HOUSE TRIMMINGS FR @P | F86: 6106B035 | H86: 17.68 | K86: =IF(ISNA(VLOOKUP($D:$D,rend,2,FALSE))=FALSE,VLOOKUP($D:$D,rend,2,FALSE),"") -> 0.921966717 | L86: =IF($C86="RM",IF(ISNA(VLOOKUP($F$2:$F$478,pos,2,FALSE))=FALSE,VLOOKUP($F86:$F$478,pos,2,FALSE),IF(ISNA(VLOOKUP($F$2:$F$478,lot,2,FALSE))=FALSE,VLOOKUP($F$2:$F$478,lot,2,FALSE),"MANQUANT")),"") ->  | M86: =IF($C86="RM",IF(ISNA(VLOOKUP($F$2:$F$478,pos,3,FALSE))=FALSE,VLOOKUP($F86:$F548,pos,3,FALSE),"OP"),"") ->  | N86: =IF($C86="RM",IF(ISNA(VLOOKUP($F86:$F$471,pos,4,FALSE))=FALSE,VLOOKUP($F$2:$F$471,pos,4,FALSE),""),"") ->  | O86: =IF($C86="RM",IF(ISNA(VLOOKUP($F$2:$F$478,pos,5,FALSE))=FALSE,VLOOKUP($F$2:$F$478,pos,5,FALSE),IF(ISNA(VLOOKUP($F$2:$F$478,lot,5,FALSE))=FALSE,VLOOKUP($F$2:$F$478,lot,5,FALSE),0)),"") ->  | P86: =IF($H86>0,VLOOKUP($D:$D,prix,15,FALSE),"") -> 10 | Q86: =IF($C86="RM",$O86*$G86,"") ->  | R86: =IF($H86>0,$H86*$P86,"") -> 176.8 | T86: =IF($F86>0,VALUE(LEFT($F86,4)),"") -> 6106 | U86: =IF(F86>0,IF(ISERROR(SEARCH("*FZ*",$E86))=FALSE,"FZ",IF(ISERROR(SEARCH("*FR*",$E86))=FALSE,"FR","Aucun")),"") -> FR | V86: =IF($C86="RM",IF($U86="FR",IF(ISNA(VLOOKUP($F:$F,lot,6,FALSE))=TRUE,VLOOKUP($T:$T,date,2,FALSE),VLOOKUP($F:$F,lot,6,FALSE)),""),"") ->  | W86: =IF($C86="RM",IF($U86="Fz",IF(ISNA(VLOOKUP($F:$F,lot,6,FALSE))=TRUE,VLOOKUP($T:$T,date,2,FALSE),VLOOKUP($F:$F,lot,6,FALSE)),""),"") ->  | X86: =IF($C86="FG",VLOOKUP($A:$A,op,4,FALSE),"") ->  | Y86: 2016-04-26 | Z86: =IF(C86="rm",IF(U86="aucun","OK",IF(U86="fz",IF(Y86-W86>730,Y86-W86,"OK"),IF(Y86-V86<1,1,Y86-V86))),"") -> 
A87: 6106B03B | B87: Beef | C87: FG | D87: 31505 | E87: BEEF CUBES *IN PROCESS* CODE: 30314, 30304 FR | F87: 6106B036 | H87: 8.38 | K87: =IF(ISNA(VLOOKUP($D:$D,rend,2,FALSE))=FALSE,VLOOKUP($D:$D,rend,2,FALSE),"") -> 0.9378724696 | L87: =IF($C87="RM",IF(ISNA(VLOOKUP($F$2:$F$478,pos,2,FALSE))=FALSE,VLOOKUP($F87:$F$478,pos,2,FALSE),IF(ISNA(VLOOKUP($F$2:$F$478,lot,2,FALSE))=FALSE,VLOOKUP($F$2:$F$478,lot,2,FALSE),"MANQUANT")),"") ->  | M87: =IF($C87="RM",IF(ISNA(VLOOKUP($F$2:$F$478,pos,3,FALSE))=FALSE,VLOOKUP($F87:$F549,pos,3,FALSE),"OP"),"") ->  | N87: =IF($C87="RM",IF(ISNA(VLOOKUP($F87:$F$471,pos,4,FALSE))=FALSE,VLOOKUP($F$2:$F$471,pos,4,FALSE),""),"") ->  | O87: =IF($C87="RM",IF(ISNA(VLOOKUP($F$2:$F$478,pos,5,FALSE))=FALSE,VLOOKUP($F$2:$F$478,pos,5,FALSE),IF(ISNA(VLOOKUP($F$2:$F$478,lot,5,FALSE))=FALSE,VLOOKUP($F$2:$F$478,lot,5,FALSE),0)),"") ->  | P87: =IF($H87>0,VLOOKUP($D:$D,prix,15,FALSE),"") -> 11 | Q87: =IF($C87="RM",$O87*$G87,"") ->  | R87: =IF($H87>0,$H87*$P87,"") -> 92.18 | T87: =IF($F87>0,VALUE(LEFT($F87,4)),"") -> 6106 | U87: =IF(F87>0,IF(ISERROR(SEARCH("*FZ*",$E87))=FALSE,"FZ",IF(ISERROR(SEARCH("*FR*",$E87))=FALSE,"FR","Aucun")),"") -> FR | V87: =IF($C87="RM",IF($U87="FR",IF(ISNA(VLOOKUP($F:$F,lot,6,FALSE))=TRUE,VLOOKUP($T:$T,date,2,FALSE),VLOOKUP($F:$F,lot,6,FALSE)),""),"") ->  | W87: =IF($C87="RM",IF($U87="Fz",IF(ISNA(VLOOKUP($F:$F,lot,6,FALSE))=TRUE,VLOOKUP($T:$T,date,2,FALSE),VLOOKUP($F:$F,lot,6,FALSE)),""),"") ->  | X87: =IF($C87="FG",VLOOKUP($A:$A,op,4,FALSE),"") ->  | Y87: 2016-04-26 | Z87: =IF(C87="rm",IF(U87="aucun","OK",IF(U87="fz",IF(Y87-W87>730,Y87-W87,"OK"),IF(Y87-V87<1,1,Y87-V87))),"") -> 
A88: 6106B03B Total | G88: =SUBTOTAL(9,G83:G87) -> 78.91 | H88: =SUBTOTAL(9,H83:H87) -> 65.28 | Q88: =SUBTOTAL(9,Q83:Q87) -> 740.9649 | R88: =SUBTOTAL(9,R83:R87) -> 1051.984
A89: 6122B07B | B89: Beef | C89: RM | D89: 30009 | E89: BEEF CHUCK TENDER*RAWMAT FR | F89: 6122B07 | G89: 704.5 | K89: =IF(ISNA(VLOOKUP($D:$D,rend,2,FALSE))=FALSE,VLOOKUP($D:$D,rend,2,FALSE),"") -> 0.9449358774 | L89: =IF($C89="RM",IF(ISNA(VLOOKUP($F$2:$F$478,pos,2,FALSE))=FALSE,VLOOKUP($F89:$F$478,pos,2,FALSE),IF(ISNA(VLOOKUP($F$2:$F$478,lot,2,FALSE))=FALSE,VLOOKUP($F$2:$F$478,lot,2,FALSE),"MANQUANT")),"") -> PO-0021651 | M89: =IF($C89="RM",IF(ISNA(VLOOKUP($F$2:$F$478,pos,3,FALSE))=FALSE,VLOOKUP($F89:$F550,pos,3,FALSE),"OP"),"") -> C&C | N89: =IF($C89="RM",IF(ISNA(VLOOKUP($F89:$F$471,pos,4,FALSE))=FALSE,VLOOKUP($F$2:$F$471,pos,4,FALSE),""),"") -> 2615.18 | O89: =IF($C89="RM",IF(ISNA(VLOOKUP($F$2:$F$478,pos,5,FALSE))=FALSE,VLOOKUP($F$2:$F$478,pos,5,FALSE),IF(ISNA(VLOOKUP($F$2:$F$478,lot,5,FALSE))=FALSE,VLOOKUP($F$2:$F$478,lot,5,FALSE),0)),"") -> 6.79 | P89: =IF($H89>0,VLOOKUP($D:$D,prix,15,FALSE),"") ->  | Q89: =IF($C89="RM",$O89*$G89,"") -> 4783.555 | R89: =IF($H89>0,$H89*$P89,"") ->  | T89: =IF($F89>0,VALUE(LEFT($F89,4)),"") -> 6122 | U89: =IF(F89>0,IF(ISERROR(SEARCH("*FZ*",$E89))=FALSE,"FZ",IF(ISERROR(SEARCH("*FR*",$E89))=FALSE,"FR","Aucun")),"") -> FR | V89: =IF($C89="RM",IF($U89="FR",IF(ISNA(VLOOKUP($F:$F,lot,6,FALSE))=TRUE,VLOOKUP($T:$T,date,2,FALSE),VLOOKUP($F:$F,lot,6,FALSE)),""),"") -> 2016-03-14 | W89: =IF($C89="RM",IF($U89="Fz",IF(ISNA(VLOOKUP($F:$F,lot,6,FALSE))=TRUE,VLOOKUP($T:$T,date,2,FALSE),VLOOKUP($F:$F,lot,6,FALSE)),""),"") ->  | X89: =IF($C89="FG",VLOOKUP($A:$A,op,4,FALSE),"") ->  | Y89: 2016-04-26 | Z89: =IF(C89="rm",IF(U89="aucun","OK",IF(U89="fz",IF(Y89-W89>730,Y89-W89,"OK"),IF(Y89-V89<1,1,Y89-V89))),"") -> 43
A90: 6122B07B | B90: Beef | C90: RM | D90: 31505 | E90: BEEF CUBES *IN PROCESS* CODE: 30314, 30304 FR | F90: 6122B073 | G90: 45 | K90: =IF(ISNA(VLOOKUP($D:$D,rend,2,FALSE))=FALSE,VLOOKUP($D:$D,rend,2,FALSE),"") -> 0.9378724696 | L90: =IF($C90="RM",IF(ISNA(VLOOKUP($F$2:$F$478,pos,2,FALSE))=FALSE,VLOOKUP($F90:$F$478,pos,2,FALSE),IF(ISNA(VLOOKUP($F$2:$F$478,lot,2,FALSE))=FALSE,VLOOKUP($F$2:$F$478,lot,2,FALSE),"MANQUANT")),"") -> MANQUANT | M90: =IF($C90="RM",IF(ISNA(VLOOKUP($F$2:$F$478,pos,3,FALSE))=FALSE,VLOOKUP($F90:$F551,pos,3,FALSE),"OP"),"") -> OP | N90: =IF($C90="RM",IF(ISNA(VLOOKUP($F90:$F$471,pos,4,FALSE))=FALSE,VLOOKUP($F$2:$F$471,pos,4,FALSE),""),"") ->  | O90: =IF($C90="RM",IF(ISNA(VLOOKUP($F$2:$F$478,pos,5,FALSE))=FALSE,VLOOKUP($F$2:$F$478,pos,5,FALSE),IF(ISNA(VLOOKUP($F$2:$F$478,lot,5,FALSE))=FALSE,VLOOKUP($F$2:$F$478,lot,5,FALSE),0)),"") -> 0 | P90: =IF($H90>0,VLOOKUP($D:$D,prix,15,FALSE),"") ->  | Q90: =IF($C90="RM",$O90*$G90,"") -> 0 | R90: =IF($H90>0,$H90*$P90,"") ->  | T90: =IF($F90>0,VALUE(LEFT($F90,4)),"") -> 6122 | U90: =IF(F90>0,IF(ISERROR(SEARCH("*FZ*",$E90))=FALSE,"FZ",IF(ISERROR(SEARCH("*FR*",$E90))=FALSE,"FR","Aucun")),"") -> FR | V90: =IF($C90="RM",IF($U90="FR",IF(ISNA(VLOOKUP($F:$F,lot,6,FALSE))=TRUE,VLOOKUP($T:$T,date,2,FALSE),VLOOKUP($F:$F,lot,6,FALSE)),""),"") -> 2016-03-14 | W90: =IF($C90="RM",IF($U90="Fz",IF(ISNA(VLOOKUP($F:$F,lot,6,FALSE))=TRUE,VLOOKUP($T:$T,date,2,FALSE),VLOOKUP($F:$F,lot,6,FALSE)),""),"") ->  | X90: =IF($C90="FG",VLOOKUP($A:$A,op,4,FALSE),"") ->  | Y90: 2016-04-26 | Z90: =IF(C90="rm",IF(U90="aucun","OK",IF(U90="fz",IF(Y90-W90>730,Y90-W90,"OK"),IF(Y90-V90<1,1,Y90-V90))),"") -> 43
A91: 6122B07B | B91: Beef | C91: RM | D91: 31505 | E91: BEEF CUBES *IN PROCESS* CODE: 30314, 30304 FR | F91: 6125B1136 | G91: 32.56 | K91: =IF(ISNA(VLOOKUP($D:$D,rend,2,FALSE))=FALSE,VLOOKUP($D:$D,rend,2,FALSE),"") -> 0.9378724696 | L91: =IF($C91="RM",IF(ISNA(VLOOKUP($F$2:$F$478,pos,2,FALSE))=FALSE,VLOOKUP($F91:$F$478,pos,2,FALSE),IF(ISNA(VLOOKUP($F$2:$F$478,lot,2,FALSE))=FALSE,VLOOKUP($F$2:$F$478,lot,2,FALSE),"MANQUANT")),"") -> MANQUANT | M91: =IF($C91="RM",IF(ISNA(VLOOKUP($F$2:$F$478,pos,3,FALSE))=FALSE,VLOOKUP($F91:$F552,pos,3,FALSE),"OP"),"") -> OP | N91: =IF($C91="RM",IF(ISNA(VLOOKUP($F91:$F$471,pos,4,FALSE))=FALSE,VLOOKUP($F$2:$F$471,pos,4,FALSE),""),"") ->  | O91: =IF($C91="RM",IF(ISNA(VLOOKUP($F$2:$F$478,pos,5,FALSE))=FALSE,VLOOKUP($F$2:$F$478,pos,5,FALSE),IF(ISNA(VLOOKUP($F$2:$F$478,lot,5,FALSE))=FALSE,VLOOKUP($F$2:$F$478,lot,5,FALSE),0)),"") -> 0 | P91: =IF($H91>0,VLOOKUP($D:$D,prix,15,FALSE),"") ->  | Q91: =IF($C91="RM",$O91*$G91,"") -> 0 | R91: =IF($H91>0,$H91*$P91,"") ->  | T91: =IF($F91>0,VALUE(LEFT($F91,4)),"") -> 6125 | U91: =IF(F91>0,IF(ISERROR(SEARCH("*FZ*",$E91))=FALSE,"FZ",IF(ISERROR(SEARCH("*FR*",$E91))=FALSE,"FR","Aucun")),"") -> FR | V91: =IF($C91="RM",IF($U91="FR",IF(ISNA(VLOOKUP($F:$F,lot,6,FALSE))=TRUE,VLOOKUP($T:$T,date,2,FALSE),VLOOKUP($F:$F,lot,6,FALSE)),""),"") -> 2016-03-17 | W91: =IF($C91="RM",IF($U91="Fz",IF(ISNA(VLOOKUP($F:$F,lot,6,FALSE))=TRUE,VLOOKUP($T:$T,date,2,FALSE),VLOOKUP($F:$F,lot,6,FALSE)),""),"") ->  | X91: =IF($C91="FG",VLOOKUP($A:$A,op,4,FALSE),"") ->  | Y91: 2016-04-26 | Z91: =IF(C91="rm",IF(U91="aucun","OK",IF(U91="fz",IF(Y91-W91>730,Y91-W91,"OK"),IF(Y91-V91<1,1,Y91-V91))),"") -> 40
A92: 6122B07B | B92: Beef | C92: FG | D92: 31505 | E92: BEEF CUBES *IN PROCESS* CODE: 30314, 30304 FR | F92: 6122B073 | H92: 212.6 | K92: =IF(ISNA(VLOOKUP($D:$D,rend,2,FALSE))=FALSE,VLOOKUP($D:$D,rend,2,FALSE),"") -> 0.9378724696 | L92: =IF($C92="RM",IF(ISNA(VLOOKUP($F$2:$F$478,pos,2,FALSE))=FALSE,VLOOKUP($F92:$F$478,pos,2,FALSE),IF(ISNA(VLOOKUP($F$2:$F$478,lot,2,FALSE))=FALSE,VLOOKUP($F$2:$F$478,lot,2,FALSE),"MANQUANT")),"") ->  | M92: =IF($C92="RM",IF(ISNA(VLOOKUP($F$2:$F$478,pos,3,FALSE))=FALSE,VLOOKUP($F92:$F553,pos,3,FALSE),"OP"),"") ->  | N92: =IF($C92="RM",IF(ISNA(VLOOKUP($F92:$F$471,pos,4,FALSE))=FALSE,VLOOKUP($F$2:$F$471,pos,4,FALSE),""),"") ->  | O92: =IF($C92="RM",IF(ISNA(VLOOKUP($F$2:$F$478,pos,5,FALSE))=FALSE,VLOOKUP($F$2:$F$478,pos,5,FALSE),IF(ISNA(VLOOKUP($F$2:$F$478,lot,5,FALSE))=FALSE,VLOOKUP($F$2:$F$478,lot,5,FALSE),0)),"") ->  | P92: =IF($H92>0,VLOOKUP($D:$D,prix,15,FALSE),"") -> 11 | Q92: =IF($C92="RM",$O92*$G92,"") ->  | R92: =IF($H92>0,$H92*$P92,"") -> 2338.6 | T92: =IF($F92>0,VALUE(LEFT($F92,4)),"") -> 6122 | U92: =IF(F92>0,IF(ISERROR(SEARCH("*FZ*",$E92))=FALSE,"FZ",IF(ISERROR(SEARCH("*FR*",$E92))=FALSE,"FR","Aucun")),"") -> FR | V92: =IF($C92="RM",IF($U92="FR",IF(ISNA(VLOOKUP($F:$F,lot,6,FALSE))=TRUE,VLOOKUP($T:$T,date,2,FALSE),VLOOKUP($F:$F,lot,6,FALSE)),""),"") ->  | W92: =IF($C92="RM",IF($U92="Fz",IF(ISNA(VLOOKUP($F:$F,lot,6,FALSE))=TRUE,VLOOKUP($T:$T,date,2,FALSE),VLOOKUP($F:$F,lot,6,FALSE)),""),"") ->  | X92: =IF($C92="FG",VLOOKUP($A:$A,op,4,FALSE),"") ->  | Y92: 2016-04-26 | Z92: =IF(C92="rm",IF(U92="aucun","OK",IF(U92="fz",IF(Y92-W92>730,Y92-W92,"OK"),IF(Y92-V92<1,1,Y92-V92))),"") -> 
A93: 6122B07B | B93: Beef | C93: FG | D93: 30311 | E93: BONELESS BEEF LANIERES**5 KG/CS FZ #D | F93: 6122B074 | H93: 60 | K93: =IF(ISNA(VLOOKUP($D:$D,rend,2,FALSE))=FALSE,VLOOKUP($D:$D,rend,2,FALSE),"") -> 0.9093097828 | L93: =IF($C93="RM",IF(ISNA(VLOOKUP($F$2:$F$478,pos,2,FALSE))=FALSE,VLOOKUP($F93:$F$478,pos,2,FALSE),IF(ISNA(VLOOKUP($F$2:$F$478,lot,2,FALSE))=FALSE,VLOOKUP($F$2:$F$478,lot,2,FALSE),"MANQUANT")),"") ->  | M93: =IF($C93="RM",IF(ISNA(VLOOKUP($F$2:$F$478,pos,3,FALSE))=FALSE,VLOOKUP($F93:$F554,pos,3,FALSE),"OP"),"") ->  | N93: =IF($C93="RM",IF(ISNA(VLOOKUP($F93:$F$471,pos,4,FALSE))=FALSE,VLOOKUP($F$2:$F$471,pos,4,FALSE),""),"") ->  | O93: =IF($C93="RM",IF(ISNA(VLOOKUP($F$2:$F$478,pos,5,FALSE))=FALSE,VLOOKUP($F$2:$F$478,pos,5,FALSE),IF(ISNA(VLOOKUP($F$2:$F$478,lot,5,FALSE))=FALSE,VLOOKUP($F$2:$F$478,lot,5,FALSE),0)),"") ->  | P93: =IF($H93>0,VLOOKUP($D:$D,prix,15,FALSE),"") -> 11.2 | Q93: =IF($C93="RM",$O93*$G93,"") ->  | R93: =IF($H93>0,$H93*$P93,"") -> 672 | T93: =IF($F93>0,VALUE(LEFT($F93,4)),"") -> 6122 | U93: =IF(F93>0,IF(ISERROR(SEARCH("*FZ*",$E93))=FALSE,"FZ",IF(ISERROR(SEARCH("*FR*",$E93))=FALSE,"FR","Aucun")),"") -> FZ | V93: =IF($C93="RM",IF($U93="FR",IF(ISNA(VLOOKUP($F:$F,lot,6,FALSE))=TRUE,VLOOKUP($T:$T,date,2,FALSE),VLOOKUP($F:$F,lot,6,FALSE)),""),"") ->  | W93: =IF($C93="RM",IF($U93="Fz",IF(ISNA(VLOOKUP($F:$F,lot,6,FALSE))=TRUE,VLOOKUP($T:$T,date,2,FALSE),VLOOKUP($F:$F,lot,6,FALSE)),""),"") ->  | X93: =IF($C93="FG",VLOOKUP($A:$A,op,4,FALSE),"") ->  | Y93: 2016-04-26 | Z93: =IF(C93="rm",IF(U93="aucun","OK",IF(U93="fz",IF(Y93-W93>730,Y93-W93,"OK"),IF(Y93-V93<1,1,Y93-V93))),"") -> 
A94: 6122B07B | B94: Beef | C94: FG | D94: 31500 | E94: BEEF HOUSE TRIMMINGS FR @P | F94: 6122B075 | H94: 63.1 | K94: =IF(ISNA(VLOOKUP($D:$D,rend,2,FALSE))=FALSE,VLOOKUP($D:$D,rend,2,FALSE),"") -> 0.921966717 | L94: =IF($C94="RM",IF(ISNA(VLOOKUP($F$2:$F$478,pos,2,FALSE))=FALSE,VLOOKUP($F94:$F$478,pos,2,FALSE),IF(ISNA(VLOOKUP($F$2:$F$478,lot,2,FALSE))=FALSE,VLOOKUP($F$2:$F$478,lot,2,FALSE),"MANQUANT")),"") ->  | M94: =IF($C94="RM",IF(ISNA(VLOOKUP($F$2:$F$478,pos,3,FALSE))=FALSE,VLOOKUP($F94:$F555,pos,3,FALSE),"OP"),"") ->  | N94: =IF($C94="RM",IF(ISNA(VLOOKUP($F94:$F$471,pos,4,FALSE))=FALSE,VLOOKUP($F$2:$F$471,pos,4,FALSE),""),"") ->  | O94: =IF($C94="RM",IF(ISNA(VLOOKUP($F$2:$F$478,pos,5,FALSE))=FALSE,VLOOKUP($F$2:$F$478,pos,5,FALSE),IF(ISNA(VLOOKUP($F$2:$F$478,lot,5,FALSE))=FALSE,VLOOKUP($F$2:$F$478,lot,5,FALSE),0)),"") ->  | P94: =IF($H94>0,VLOOKUP($D:$D,prix,15,FALSE),"") -> 10 | Q94: =IF($C94="RM",$O94*$G94,"") ->  | R94: =IF($H94>0,$H94*$P94,"") -> 631 | T94: =IF($F94>0,VALUE(LEFT($F94,4)),"") -> 6122 | U94: =IF(F94>0,IF(ISERROR(SEARCH("*FZ*",$E94))=FALSE,"FZ",IF(ISERROR(SEARCH("*FR*",$E94))=FALSE,"FR","Aucun")),"") -> FR | V94: =IF($C94="RM",IF($U94="FR",IF(ISNA(VLOOKUP($F:$F,lot,6,FALSE))=TRUE,VLOOKUP($T:$T,date,2,FALSE),VLOOKUP($F:$F,lot,6,FALSE)),""),"") ->  | W94: =IF($C94="RM",IF($U94="Fz",IF(ISNA(VLOOKUP($F:$F,lot,6,FALSE))=TRUE,VLOOKUP($T:$T,date,2,FALSE),VLOOKUP($F:$F,lot,6,FALSE)),""),"") ->  | X94: =IF($C94="FG",VLOOKUP($A:$A,op,4,FALSE),"") ->  | Y94: 2016-04-26 | Z94: =IF(C94="rm",IF(U94="aucun","OK",IF(U94="fz",IF(Y94-W94>730,Y94-W94,"OK"),IF(Y94-V94<1,1,Y94-V94))),"") -> 
A95: 6122B07B | B95: Beef | C95: FG | D95: 30325 | E95: BEEF STEW**FOR ALIMPLUS* 85 % 2X2.5KG FZ #D | F95: 6122B076 | H95: 310 | K95: =IF(ISNA(VLOOKUP($D:$D,rend,2,FALSE))=FALSE,VLOOKUP($D:$D,rend,2,FALSE),"") -> 0.9742205991 | L95: =IF($C95="RM",IF(ISNA(VLOOKUP($F$2:$F$478,pos,2,FALSE))=FALSE,VLOOKUP($F95:$F$478,pos,2,FALSE),IF(ISNA(VLOOKUP($F$2:$F$478,lot,2,FALSE))=FALSE,VLOOKUP($F$2:$F$478,lot,2,FALSE),"MANQUANT")),"") ->  | M95: =IF($C95="RM",IF(ISNA(VLOOKUP($F$2:$F$478,pos,3,FALSE))=FALSE,VLOOKUP($F95:$F556,pos,3,FALSE),"OP"),"") ->  | N95: =IF($C95="RM",IF(ISNA(VLOOKUP($F95:$F$471,pos,4,FALSE))=FALSE,VLOOKUP($F$2:$F$471,pos,4,FALSE),""),"") ->  | O95: =IF($C95="RM",IF(ISNA(VLOOKUP($F$2:$F$478,pos,5,FALSE))=FALSE,VLOOKUP($F$2:$F$478,pos,5,FALSE),IF(ISNA(VLOOKUP($F$2:$F$478,lot,5,FALSE))=FALSE,VLOOKUP($F$2:$F$478,lot,5,FALSE),0)),"") ->  | P95: =IF($H95>0,VLOOKUP($D:$D,prix,15,FALSE),"") -> 11.25 | Q95: =IF($C95="RM",$O95*$G95,"") ->  | R95: =IF($H95>0,$H95*$P95,"") -> 3487.5 | T95: =IF($F95>0,VALUE(LEFT($F95,4)),"") -> 6122 | U95: =IF(F95>0,IF(ISERROR(SEARCH("*FZ*",$E95))=FALSE,"FZ",IF(ISERROR(SEARCH("*FR*",$E95))=FALSE,"FR","Aucun")),"") -> FZ | V95: =IF($C95="RM",IF($U95="FR",IF(ISNA(VLOOKUP($F:$F,lot,6,FALSE))=TRUE,VLOOKUP($T:$T,date,2,FALSE),VLOOKUP($F:$F,lot,6,FALSE)),""),"") ->  | W95: =IF($C95="RM",IF($U95="Fz",IF(ISNA(VLOOKUP($F:$F,lot,6,FALSE))=TRUE,VLOOKUP($T:$T,date,2,FALSE),VLOOKUP($F:$F,lot,6,FALSE)),""),"") ->  | X95: =IF($C95="FG",VLOOKUP($A:$A,op,4,FALSE),"") ->  | Y95: 2016-04-26 | Z95: =IF(C95="rm",IF(U95="aucun","OK",IF(U95="fz",IF(Y95-W95>730,Y95-W95,"OK"),IF(Y95-V95<1,1,Y95-V95))),"") -> 
A96: 6122B07B | B96: Beef | C96: FG | D96: 31500 | E96: BEEF HOUSE TRIMMINGS FR @P | F96: 6122B077 | H96: 131.82 | K96: =IF(ISNA(VLOOKUP($D:$D,rend,2,FALSE))=FALSE,VLOOKUP($D:$D,rend,2,FALSE),"") -> 0.921966717 | L96: =IF($C96="RM",IF(ISNA(VLOOKUP($F$2:$F$478,pos,2,FALSE))=FALSE,VLOOKUP($F96:$F$478,pos,2,FALSE),IF(ISNA(VLOOKUP($F$2:$F$478,lot,2,FALSE))=FALSE,VLOOKUP($F$2:$F$478,lot,2,FALSE),"MANQUANT")),"") ->  | M96: =IF($C96="RM",IF(ISNA(VLOOKUP($F$2:$F$478,pos,3,FALSE))=FALSE,VLOOKUP($F96:$F557,pos,3,FALSE),"OP"),"") ->  | N96: =IF($C96="RM",IF(ISNA(VLOOKUP($F96:$F$471,pos,4,FALSE))=FALSE,VLOOKUP($F$2:$F$471,pos,4,FALSE),""),"") ->  | O96: =IF($C96="RM",IF(ISNA(VLOOKUP($F$2:$F$478,pos,5,FALSE))=FALSE,VLOOKUP($F$2:$F$478,pos,5,FALSE),IF(ISNA(VLOOKUP($F$2:$F$478,lot,5,FALSE))=FALSE,VLOOKUP($F$2:$F$478,lot,5,FALSE),0)),"") ->  | P96: =IF($H96>0,VLOOKUP($D:$D,prix,15,FALSE),"") -> 10 | Q96: =IF($C96="RM",$O96*$G96,"") ->  | R96: =IF($H96>0,$H96*$P96,"") -> 1318.2 | T96: =IF($F96>0,VALUE(LEFT($F96,4)),"") -> 6122 | U96: =IF(F96>0,IF(ISERROR(SEARCH("*FZ*",$E96))=FALSE,"FZ",IF(ISERROR(SEARCH("*FR*",$E96))=FALSE,"FR","Aucun")),"") -> FR | V96: =IF($C96="RM",IF($U96="FR",IF(ISNA(VLOOKUP($F:$F,lot,6,FALSE))=TRUE,VLOOKUP($T:$T,date,2,FALSE),VLOOKUP($F:$F,lot,6,FALSE)),""),"") ->  | W96: =IF($C96="RM",IF($U96="Fz",IF(ISNA(VLOOKUP($F:$F,lot,6,FALSE))=TRUE,VLOOKUP($T:$T,date,2,FALSE),VLOOKUP($F:$F,lot,6,FALSE)),""),"") ->  | X96: =IF($C96="FG",VLOOKUP($A:$A,op,4,FALSE),"") ->  | Y96: 2016-04-26 | Z96: =IF(C96="rm",IF(U96="aucun","OK",IF(U96="fz",IF(Y96-W96>730,Y96-W96,"OK"),IF(Y96-V96<1,1,Y96-V96))),"") -> 
A97: 6122B07B Total | G97: =SUBTOTAL(9,G89:G96) -> 782.06 | H97: =SUBTOTAL(9,H89:H96) -> 777.52 | Q97: =SUBTOTAL(9,Q89:Q96) -> 4783.555 | R97: =SUBTOTAL(9,R89:R96) -> 8447.3
A98: 6125B11I | B98: Beef | C98: RM | D98: 30180 | E98: BEEF INSIDE ROUND* AA**regular FR #D | F98: 6125B11 | G98: 95.4 | K98: =IF(ISNA(VLOOKUP($D:$D,rend,2,FALSE))=FALSE,VLOOKUP($D:$D,rend,2,FALSE),"") -> 0.89813475 | L98: =IF($C98="RM",IF(ISNA(VLOOKUP($F$2:$F$478,pos,2,FALSE))=FALSE,VLOOKUP($F98:$F$478,pos,2,FALSE),IF(ISNA(VLOOKUP($F$2:$F$478,lot,2,FALSE))=FALSE,VLOOKUP($F$2:$F$478,lot,2,FALSE),"MANQUANT")),"") -> PO-0021642 | M98: =IF($C98="RM",IF(ISNA(VLOOKUP($F$2:$F$478,pos,3,FALSE))=FALSE,VLOOKUP($F98:$F558,pos,3,FALSE),"OP"),"") -> C&C | N98: =IF($C98="RM",IF(ISNA(VLOOKUP($F98:$F$471,pos,4,FALSE))=FALSE,VLOOKUP($F$2:$F$471,pos,4,FALSE),""),"") -> 1145.08 | O98: =IF($C98="RM",IF(ISNA(VLOOKUP($F$2:$F$478,pos,5,FALSE))=FALSE,VLOOKUP($F$2:$F$478,pos,5,FALSE),IF(ISNA(VLOOKUP($F$2:$F$478,lot,5,FALSE))=FALSE,VLOOKUP($F$2:$F$478,lot,5,FALSE),0)),"") -> 7.09 | P98: =IF($H98>0,VLOOKUP($D:$D,prix,15,FALSE),"") ->  | Q98: =IF($C98="RM",$O98*$G98,"") -> 676.386 | R98: =IF($H98>0,$H98*$P98,"") ->  | T98: =IF($F98>0,VALUE(LEFT($F98,4)),"") -> 6125 | U98: =IF(F98>0,IF(ISERROR(SEARCH("*FZ*",$E98))=FALSE,"FZ",IF(ISERROR(SEARCH("*FR*",$E98))=FALSE,"FR","Aucun")),"") -> FR | V98: =IF($C98="RM",IF($U98="FR",IF(ISNA(VLOOKUP($F:$F,lot,6,FALSE))=TRUE,VLOOKUP($T:$T,date,2,FALSE),VLOOKUP($F:$F,lot,6,FALSE)),""),"") -> 2016-03-17 | W98: =IF($C98="RM",IF($U98="Fz",IF(ISNA(VLOOKUP($F:$F,lot,6,FALSE))=TRUE,VLOOKUP($T:$T,date,2,FALSE),VLOOKUP($F:$F,lot,6,FALSE)),""),"") ->  | X98: =IF($C98="FG",VLOOKUP($A:$A,op,4,FALSE),"") ->  | Y98: 2016-04-26 | Z98: =IF(C98="rm",IF(U98="aucun","OK",IF(U98="fz",IF(Y98-W98>730,Y98-W98,"OK"),IF(Y98-V98<1,1,Y98-V98))),"") -> 40
A99: 6125B11I | B99: Beef | C99: RM | D99: 30180 | E99: BEEF INSIDE ROUND* AA**regular FR #D | F99: 6142B04 | G99: 32.09 | K99: =IF(ISNA(VLOOKUP($D:$D,rend,2,FALSE))=FALSE,VLOOKUP($D:$D,rend,2,FALSE),"") -> 0.89813475 | L99: =IF($C99="RM",IF(ISNA(VLOOKUP($F$2:$F$478,pos,2,FALSE))=FALSE,VLOOKUP($F99:$F$478,pos,2,FALSE),IF(ISNA(VLOOKUP($F$2:$F$478,lot,2,FALSE))=FALSE,VLOOKUP($F$2:$F$478,lot,2,FALSE),"MANQUANT")),"") -> PO-0021763 | M99: =IF($C99="RM",IF(ISNA(VLOOKUP($F$2:$F$478,pos,3,FALSE))=FALSE,VLOOKUP($F99:$F559,pos,3,FALSE),"OP"),"") -> C&C | N99: =IF($C99="RM",IF(ISNA(VLOOKUP($F99:$F$471,pos,4,FALSE))=FALSE,VLOOKUP($F$2:$F$471,pos,4,FALSE),""),"") -> 1021.33 | O99: =IF($C99="RM",IF(ISNA(VLOOKUP($F$2:$F$478,pos,5,FALSE))=FALSE,VLOOKUP($F$2:$F$478,pos,5,FALSE),IF(ISNA(VLOOKUP($F$2:$F$478,lot,5,FALSE))=FALSE,VLOOKUP($F$2:$F$478,lot,5,FALSE),0)),"") -> 7.09 | P99: =IF($H99>0,VLOOKUP($D:$D,prix,15,FALSE),"") ->  | Q99: =IF($C99="RM",$O99*$G99,"") -> 227.5181 | R99: =IF($H99>0,$H99*$P99,"") ->  | T99: =IF($F99>0,VALUE(LEFT($F99,4)),"") -> 6142 | U99: =IF(F99>0,IF(ISERROR(SEARCH("*FZ*",$E99))=FALSE,"FZ",IF(ISERROR(SEARCH("*FR*",$E99))=FALSE,"FR","Aucun")),"") -> FR | V99: =IF($C99="RM",IF($U99="FR",IF(ISNA(VLOOKUP($F:$F,lot,6,FALSE))=TRUE,VLOOKUP($T:$T,date,2,FALSE),VLOOKUP($F:$F,lot,6,FALSE)),""),"") -> 2016-03-28 | W99: =IF($C99="RM",IF($U99="Fz",IF(ISNA(VLOOKUP($F:$F,lot,6,FALSE))=TRUE,VLOOKUP($T:$T,date,2,FALSE),VLOOKUP($F:$F,lot,6,FALSE)),""),"") ->  | X99: =IF($C99="FG",VLOOKUP($A:$A,op,4,FALSE),"") ->  | Y99: 2016-04-26 | Z99: =IF(C99="rm",IF(U99="aucun","OK",IF(U99="fz",IF(Y99-W99>730,Y99-W99,"OK"),IF(Y99-V99<1,1,Y99-V99))),"") -> 29
A100: 6125B11I | B100: Beef | C100: FG | D100: 31505 | E100: BEEF CUBES *IN PROCESS* CODE: 30314, 30304 FR | F100: 6125B1136 | H100: 32.56 | K100: =IF(ISNA(VLOOKUP($D:$D,rend,2,FALSE))=FALSE,VLOOKUP($D:$D,rend,2,FALSE),"") -> 0.9378724696 | L100: =IF($C100="RM",IF(ISNA(VLOOKUP($F$2:$F$478,pos,2,FALSE))=FALSE,VLOOKUP($F100:$F$478,pos,2,FALSE),IF(ISNA(VLOOKUP($F$2:$F$478,lot,2,FALSE))=FALSE,VLOOKUP($F$2:$F$478,lot,2,FALSE),"MANQUANT")),"") ->  | M100: =IF($C100="RM",IF(ISNA(VLOOKUP($F$2:$F$478,pos,3,FALSE))=FALSE,VLOOKUP($F100:$F560,pos,3,FALSE),"OP"),"") ->  | N100: =IF($C100="RM",IF(ISNA(VLOOKUP($F100:$F$471,pos,4,FALSE))=FALSE,VLOOKUP($F$2:$F$471,pos,4,FALSE),""),"") ->  | O100: =IF($C100="RM",IF(ISNA(VLOOKUP($F$2:$F$478,pos,5,FALSE))=FALSE,VLOOKUP($F$2:$F$478,pos,5,FALSE),IF(ISNA(VLOOKUP($F$2:$F$478,lot,5,FALSE))=FALSE,VLOOKUP($F$2:$F$478,lot,5,FALSE),0)),"") ->  | P100: =IF($H100>0,VLOOKUP($D:$D,prix,15,FALSE),"") -> 11 | Q100: =IF($C100="RM",$O100*$G100,"") ->  | R100: =IF($H100>0,$H100*$P100,"") -> 358.16 | T100: =IF($F100>0,VALUE(LEFT($F100,4)),"") -> 6125 | U100: =IF(F100>0,IF(ISERROR(SEARCH("*FZ*",$E100))=FALSE,"FZ",IF(ISERROR(SEARCH("*FR*",$E100))=FALSE,"FR","Aucun")),"") -> FR | V100: =IF($C100="RM",IF($U100="FR",IF(ISNA(VLOOKUP($F:$F,lot,6,FALSE))=TRUE,VLOOKUP($T:$T,date,2,FALSE),VLOOKUP($F:$F,lot,6,FALSE)),""),"") ->  | W100: =IF($C100="RM",IF($U100="Fz",IF(ISNA(VLOOKUP($F:$F,lot,6,FALSE))=TRUE,VLOOKUP($T:$T,date,2,FALSE),VLOOKUP($F:$F,lot,6,FALSE)),""),"") ->  | X100: =IF($C100="FG",VLOOKUP($A:$A,op,4,FALSE),"") ->  | Y100: 2016-04-26 | Z100: =IF(C100="rm",IF(U100="aucun","OK",IF(U100="fz",IF(Y100-W100>730,Y100-W100,"OK"),IF(Y100-V100<1,1,Y100-V100))),"") -> 
A101: 6125B11I | B101: Beef | C101: FG | D101: 13340 | E101: BEEF INSIDE STEAKS* 160-180 gr**COV 1X1**24/CS FR @P | F101: 6125B1137 | H101: 44.2 | K101: =IF(ISNA(VLOOKUP($D:$D,rend,2,FALSE))=FALSE,VLOOKUP($D:$D,rend,2,FALSE),"") -> 0.8336413887 | L101: =IF($C101="RM",IF(ISNA(VLOOKUP($F$2:$F$478,pos,2,FALSE))=FALSE,VLOOKUP($F101:$F$478,pos,2,FALSE),IF(ISNA(VLOOKUP($F$2:$F$478,lot,2,FALSE))=FALSE,VLOOKUP($F$2:$F$478,lot,2,FALSE),"MANQUANT")),"") ->  | M101: =IF($C101="RM",IF(ISNA(VLOOKUP($F$2:$F$478,pos,3,FALSE))=FALSE,VLOOKUP($F101:$F561,pos,3,FALSE),"OP"),"") ->  | N101: =IF($C101="RM",IF(ISNA(VLOOKUP($F101:$F$471,pos,4,FALSE))=FALSE,VLOOKUP($F$2:$F$471,pos,4,FALSE),""),"") ->  | O101: =IF($C101="RM",IF(ISNA(VLOOKUP($F$2:$F$478,pos,5,FALSE))=FALSE,VLOOKUP($F$2:$F$478,pos,5,FALSE),IF(ISNA(VLOOKUP($F$2:$F$478,lot,5,FALSE))=FALSE,VLOOKUP($F$2:$F$478,lot,5,FALSE),0)),"") ->  | P101: =IF($H101>0,VLOOKUP($D:$D,prix,15,FALSE),"") -> 13 | Q101: =IF($C101="RM",$O101*$G101,"") ->  | R101: =IF($H101>0,$H101*$P101,"") -> 574.6 | T101: =IF($F101>0,VALUE(LEFT($F101,4)),"") -> 6125 | U101: =IF(F101>0,IF(ISERROR(SEARCH("*FZ*",$E101))=FALSE,"FZ",IF(ISERROR(SEARCH("*FR*",$E101))=FALSE,"FR","Aucun")),"") -> FR | V101: =IF($C101="RM",IF($U101="FR",IF(ISNA(VLOOKUP($F:$F,lot,6,FALSE))=TRUE,VLOOKUP($T:$T,date,2,FALSE),VLOOKUP($F:$F,lot,6,FALSE)),""),"") ->  | W101: =IF($C101="RM",IF($U101="Fz",IF(ISNA(VLOOKUP($F:$F,lot,6,FALSE))=TRUE,VLOOKUP($T:$T,date,2,FALSE),VLOOKUP($F:$F,lot,6,FALSE)),""),"") ->  | X101: =IF($C101="FG",VLOOKUP($A:$A,op,4,FALSE),"") ->  | Y101: 2016-04-26 | Z101: =IF(C101="rm",IF(U101="aucun","OK",IF(U101="fz",IF(Y101-W101>730,Y101-W101,"OK"),IF(Y101-V101<1,1,Y101-V101))),"") -> 
A102: 6125B11I | B102: Beef | C102: FG | D102: 31500 | E102: BEEF HOUSE TRIMMINGS FR @P | F102: 6125B1138 | H102: 44.94 | K102: =IF(ISNA(VLOOKUP($D:$D,rend,2,FALSE))=FALSE,VLOOKUP($D:$D,rend,2,FALSE),"") -> 0.921966717 | L102: =IF($C102="RM",IF(ISNA(VLOOKUP($F$2:$F$478,pos,2,FALSE))=FALSE,VLOOKUP($F102:$F$478,pos,2,FALSE),IF(ISNA(VLOOKUP($F$2:$F$478,lot,2,FALSE))=FALSE,VLOOKUP($F$2:$F$478,lot,2,FALSE),"MANQUANT")),"") ->  | M102: =IF($C102="RM",IF(ISNA(VLOOKUP($F$2:$F$478,pos,3,FALSE))=FALSE,VLOOKUP($F102:$F562,pos,3,FALSE),"OP"),"") ->  | N102: =IF($C102="RM",IF(ISNA(VLOOKUP($F102:$F$471,pos,4,FALSE))=FALSE,VLOOKUP($F$2:$F$471,pos,4,FALSE),""),"") ->  | O102: =IF($C102="RM",IF(ISNA(VLOOKUP($F$2:$F$478,pos,5,FALSE))=FALSE,VLOOKUP($F$2:$F$478,pos,5,FALSE),IF(ISNA(VLOOKUP($F$2:$F$478,lot,5,FALSE))=FALSE,VLOOKUP($F$2:$F$478,lot,5,FALSE),0)),"") ->  | P102: =IF($H102>0,VLOOKUP($D:$D,prix,15,FALSE),"") -> 10 | Q102: =IF($C102="RM",$O102*$G102,"") ->  | R102: =IF($H102>0,$H102*$P102,"") -> 449.4 | T102: =IF($F102>0,VALUE(LEFT($F102,4)),"") -> 6125 | U102: =IF(F102>0,IF(ISERROR(SEARCH("*FZ*",$E102))=FALSE,"FZ",IF(ISERROR(SEARCH("*FR*",$E102))=FALSE,"FR","Aucun")),"") -> FR | V102: =IF($C102="RM",IF($U102="FR",IF(ISNA(VLOOKUP($F:$F,lot,6,FALSE))=TRUE,VLOOKUP($T:$T,date,2,FALSE),VLOOKUP($F:$F,lot,6,FALSE)),""),"") ->  | W102: =IF($C102="RM",IF($U102="Fz",IF(ISNA(VLOOKUP($F:$F,lot,6,FALSE))=TRUE,VLOOKUP($T:$T,date,2,FALSE),VLOOKUP($F:$F,lot,6,FALSE)),""),"") ->  | X102: =IF($C102="FG",VLOOKUP($A:$A,op,4,FALSE),"") ->  | Y102: 2016-04-26 | Z102: =IF(C102="rm",IF(U102="aucun","OK",IF(U102="fz",IF(Y102-W102>730,Y102-W102,"OK"),IF(Y102-V102<1,1,Y102-V102))),"") -> 
A103: 6125B11I Total | G103: =SUBTOTAL(9,G98:G102) -> 127.49 | H103: =SUBTOTAL(9,H98:H102) -> 121.7 | Q103: =SUBTOTAL(9,Q98:Q102) -> 903.9041 | R103: =SUBTOTAL(9,R98:R102) -> 1382.16
A104: 6144B0112B | B104: Beef | C104: RM | D104: 45207 | E104: BONELESS VEAL FOR CUTLETS *IN PROCESS* CODE: 45202,203,206,209,210 FR | F104: 6144B0112 | G104: 18.4 | K104: =IF(ISNA(VLOOKUP($D:$D,rend,2,FALSE))=FALSE,VLOOKUP($D:$D,rend,2,FALSE),"") -> 0.9454287172 | L104: =IF($C104="RM",IF(ISNA(VLOOKUP($F$2:$F$478,pos,2,FALSE))=FALSE,VLOOKUP($F104:$F$478,pos,2,FALSE),IF(ISNA(VLOOKUP($F$2:$F$478,lot,2,FALSE))=FALSE,VLOOKUP($F$2:$F$478,lot,2,FALSE),"MANQUANT")),"") -> 6144B01B | M104: =IF($C104="RM",IF(ISNA(VLOOKUP($F$2:$F$478,pos,3,FALSE))=FALSE,VLOOKUP($F104:$F563,pos,3,FALSE),"OP"),"") -> OP | N104: =IF($C104="RM",IF(ISNA(VLOOKUP($F104:$F$471,pos,4,FALSE))=FALSE,VLOOKUP($F$2:$F$471,pos,4,FALSE),""),"") ->  | O104: =IF($C104="RM",IF(ISNA(VLOOKUP($F$2:$F$478,pos,5,FALSE))=FALSE,VLOOKUP($F$2:$F$478,pos,5,FALSE),IF(ISNA(VLOOKUP($F$2:$F$478,lot,5,FALSE))=FALSE,VLOOKUP($F$2:$F$478,lot,5,FALSE),0)),"") -> 10.20001121 | P104: =IF($H104>0,VLOOKUP($D:$D,prix,15,FALSE),"") ->  | Q104: =IF($C104="RM",$O104*$G104,"") -> 187.6802063 | R104: =IF($H104>0,$H104*$P104,"") ->  | T104: =IF($F104>0,VALUE(LEFT($F104,4)),"") -> 6144 | U104: =IF(F104>0,IF(ISERROR(SEARCH("*FZ*",$E104))=FALSE,"FZ",IF(ISERROR(SEARCH("*FR*",$E104))=FALSE,"FR","Aucun")),"") -> FR | V104: =IF($C104="RM",IF($U104="FR",IF(ISNA(VLOOKUP($F:$F,lot,6,FALSE))=TRUE,VLOOKUP($T:$T,date,2,FALSE),VLOOKUP($F:$F,lot,6,FALSE)),""),"") -> 2016-03-30 | W104: =IF($C104="RM",IF($U104="Fz",IF(ISNA(VLOOKUP($F:$F,lot,6,FALSE))=TRUE,VLOOKUP($T:$T,date,2,FALSE),VLOOKUP($F:$F,lot,6,FALSE)),""),"") ->  | X104: =IF($C104="FG",VLOOKUP($A:$A,op,4,FALSE),"") ->  | Y104: 2016-04-26 | Z104: =IF(C104="rm",IF(U104="aucun","OK",IF(U104="fz",IF(Y104-W104>730,Y104-W104,"OK"),IF(Y104-V104<1,1,Y104-V104))),"") -> 27
A105: 6144B0112B | B105: Beef | C105: FG | D105: 45203 | E105: VEAL INSIDE FOR SCALOPINI FR #D | F105: 6144B0116 | H105: 18.4 | K105: =IF(ISNA(VLOOKUP($D:$D,rend,2,FALSE))=FALSE,VLOOKUP($D:$D,rend,2,FALSE),"") -> 0.9628673915 | L105: =IF($C105="RM",IF(ISNA(VLOOKUP($F$2:$F$478,pos,2,FALSE))=FALSE,VLOOKUP($F105:$F$478,pos,2,FALSE),IF(ISNA(VLOOKUP($F$2:$F$478,lot,2,FALSE))=FALSE,VLOOKUP($F$2:$F$478,lot,2,FALSE),"MANQUANT")),"") ->  | M105: =IF($C105="RM",IF(ISNA(VLOOKUP($F$2:$F$478,pos,3,FALSE))=FALSE,VLOOKUP($F105:$F564,pos,3,FALSE),"OP"),"") ->  | N105: =IF($C105="RM",IF(ISNA(VLOOKUP($F105:$F$471,pos,4,FALSE))=FALSE,VLOOKUP($F$2:$F$471,pos,4,FALSE),""),"") ->  | O105: =IF($C105="RM",IF(ISNA(VLOOKUP($F$2:$F$478,pos,5,FALSE))=FALSE,VLOOKUP($F$2:$F$478,pos,5,FALSE),IF(ISNA(VLOOKUP($F$2:$F$478,lot,5,FALSE))=FALSE,VLOOKUP($F$2:$F$478,lot,5,FALSE),0)),"") ->  | P105: =IF($H105>0,VLOOKUP($D:$D,prix,15,FALSE),"") -> 19.95 | Q105: =IF($C105="RM",$O105*$G105,"") ->  | R105: =IF($H105>0,$H105*$P105,"") -> 367.08 | T105: =IF($F105>0,VALUE(LEFT($F105,4)),"") -> 6144 | U105: =IF(F105>0,IF(ISERROR(SEARCH("*FZ*",$E105))=FALSE,"FZ",IF(ISERROR(SEARCH("*FR*",$E105))=FALSE,"FR","Aucun")),"") -> FR | V105: =IF($C105="RM",IF($U105="FR",IF(ISNA(VLOOKUP($F:$F,lot,6,FALSE))=TRUE,VLOOKUP($T:$T,date,2,FALSE),VLOOKUP($F:$F,lot,6,FALSE)),""),"") ->  | W105: =IF($C105="RM",IF($U105="Fz",IF(ISNA(VLOOKUP($F:$F,lot,6,FALSE))=TRUE,VLOOKUP($T:$T,date,2,FALSE),VLOOKUP($F:$F,lot,6,FALSE)),""),"") ->  | X105: =IF($C105="FG",VLOOKUP($A:$A,op,4,FALSE),"") ->  | Y105: 2016-04-26 | Z105: =IF(C105="rm",IF(U105="aucun","OK",IF(U105="fz",IF(Y105-W105>730,Y105-W105,"OK"),IF(Y105-V105<1,1,Y105-V105))),"") -> 
A106: 6144B0112B Total | G106: =SUBTOTAL(9,G104:G105) -> 18.4 | H106: =SUBTOTAL(9,H104:H105) -> 18.4 | Q106: =SUBTOTAL(9,Q104:Q105) -> 187.6802063 | R106: =SUBTOTAL(9,R104:R105) -> 367.08
A107: 6153B022 | B107: Beef | C107: RM | D107: 45207 | E107: BONELESS VEAL FOR CUTLETS *IN PROCESS* CODE: 45202,203,206,209,210 FR | F107: 6153B022 | G107: 10.71 | K107: =IF(ISNA(VLOOKUP($D:$D,rend,2,FALSE))=FALSE,VLOOKUP($D:$D,rend,2,FALSE),"") -> 0.9454287172 | L107: =IF($C107="RM",IF(ISNA(VLOOKUP($F$2:$F$478,pos,2,FALSE))=FALSE,VLOOKUP($F107:$F$478,pos,2,FALSE),IF(ISNA(VLOOKUP($F$2:$F$478,lot,2,FALSE))=FALSE,VLOOKUP($F$2:$F$478,lot,2,FALSE),"MANQUANT")),"") -> 6153B02 | M107: =IF($C107="RM",IF(ISNA(VLOOKUP($F$2:$F$478,pos,3,FALSE))=FALSE,VLOOKUP($F107:$F565,pos,3,FALSE),"OP"),"") -> OP | N107: =IF($C107="RM",IF(ISNA(VLOOKUP($F107:$F$471,pos,4,FALSE))=FALSE,VLOOKUP($F$2:$F$471,pos,4,FALSE),""),"") ->  | O107: =IF($C107="RM",IF(ISNA(VLOOKUP($F$2:$F$478,pos,5,FALSE))=FALSE,VLOOKUP($F$2:$F$478,pos,5,FALSE),IF(ISNA(VLOOKUP($F$2:$F$478,lot,5,FALSE))=FALSE,VLOOKUP($F$2:$F$478,lot,5,FALSE),0)),"") -> 11.55963699 | P107: =IF($H107>0,VLOOKUP($D:$D,prix,15,FALSE),"") ->  | Q107: =IF($C107="RM",$O107*$G107,"") -> 123.8037122 | R107: =IF($H107>0,$H107*$P107,"") ->  | T107: =IF($F107>0,VALUE(LEFT($F107,4)),"") -> 6153 | U107: =IF(F107>0,IF(ISERROR(SEARCH("*FZ*",$E107))=FALSE,"FZ",IF(ISERROR(SEARCH("*FR*",$E107))=FALSE,"FR","Aucun")),"") -> FR | V107: =IF($C107="RM",IF($U107="FR",IF(ISNA(VLOOKUP($F:$F,lot,6,FALSE))=TRUE,VLOOKUP($T:$T,date,2,FALSE),VLOOKUP($F:$F,lot,6,FALSE)),""),"") -> 2016-04-05 | W107: =IF($C107="RM",IF($U107="Fz",IF(ISNA(VLOOKUP($F:$F,lot,6,FALSE))=TRUE,VLOOKUP($T:$T,date,2,FALSE),VLOOKUP($F:$F,lot,6,FALSE)),""),"") ->  | X107: =IF($C107="FG",VLOOKUP($A:$A,op,4,FALSE),"") ->  | Y107: 2016-04-26 | Z107: =IF(C107="rm",IF(U107="aucun","OK",IF(U107="fz",IF(Y107-W107>730,Y107-W107,"OK"),IF(Y107-V107<1,1,Y107-V107))),"") -> 21
A108: 6153B022 | B108: Beef | C108: FG | D108: 45209 | E108: VEAL CUTLETS TENDERIZED*UNIT LAYER PACK FR @P | F108: 6153B023 | H108: 5.26 | K108: =IF(ISNA(VLOOKUP($D:$D,rend,2,FALSE))=FALSE,VLOOKUP($D:$D,rend,2,FALSE),"") -> 0.9534629519 | L108: =IF($C108="RM",IF(ISNA(VLOOKUP($F$2:$F$478,pos,2,FALSE))=FALSE,VLOOKUP($F108:$F$478,pos,2,FALSE),IF(ISNA(VLOOKUP($F$2:$F$478,lot,2,FALSE))=FALSE,VLOOKUP($F$2:$F$478,lot,2,FALSE),"MANQUANT")),"") ->  | M108: =IF($C108="RM",IF(ISNA(VLOOKUP($F$2:$F$478,pos,3,FALSE))=FALSE,VLOOKUP($F108:$F566,pos,3,FALSE),"OP"),"") ->  | N108: =IF($C108="RM",IF(ISNA(VLOOKUP($F108:$F$471,pos,4,FALSE))=FALSE,VLOOKUP($F$2:$F$471,pos,4,FALSE),""),"") ->  | O108: =IF($C108="RM",IF(ISNA(VLOOKUP($F$2:$F$478,pos,5,FALSE))=FALSE,VLOOKUP($F$2:$F$478,pos,5,FALSE),IF(ISNA(VLOOKUP($F$2:$F$478,lot,5,FALSE))=FALSE,VLOOKUP($F$2:$F$478,lot,5,FALSE),0)),"") ->  | P108: =IF($H108>0,VLOOKUP($D:$D,prix,15,FALSE),"") -> 14.25 | Q108: =IF($C108="RM",$O108*$G108,"") ->  | R108: =IF($H108>0,$H108*$P108,"") -> 74.955 | T108: =IF($F108>0,VALUE(LEFT($F108,4)),"") -> 6153 | U108: =IF(F108>0,IF(ISERROR(SEARCH("*FZ*",$E108))=FALSE,"FZ",IF(ISERROR(SEARCH("*FR*",$E108))=FALSE,"FR","Aucun")),"") -> FR | V108: =IF($C108="RM",IF($U108="FR",IF(ISNA(VLOOKUP($F:$F,lot,6,FALSE))=TRUE,VLOOKUP($T:$T,date,2,FALSE),VLOOKUP($F:$F,lot,6,FALSE)),""),"") ->  | W108: =IF($C108="RM",IF($U108="Fz",IF(ISNA(VLOOKUP($F:$F,lot,6,FALSE))=TRUE,VLOOKUP($T:$T,date,2,FALSE),VLOOKUP($F:$F,lot,6,FALSE)),""),"") ->  | X108: =IF($C108="FG",VLOOKUP($A:$A,op,4,FALSE),"") ->  | Y108: 2016-04-26 | Z108: =IF(C108="rm",IF(U108="aucun","OK",IF(U108="fz",IF(Y108-W108>730,Y108-W108,"OK"),IF(Y108-V108<1,1,Y108-V108))),"") -> 
A109: 6153B022 Total | G109: =SUBTOTAL(9,G107:G108) -> 10.71 | H109: =SUBTOTAL(9,H107:H108) -> 5.26 | Q109: =SUBTOTAL(9,Q107:Q108) -> 123.8037122 | R109: =SUBTOTAL(9,R107:R108) -> 74.955
A110: 6153B058 | B110: Beef | C110: RM | D110: 41347 | E110: CUBES DE PORC*IN PROCESS* CODE: 41270 FR | F110: 6094B07212 | G110: 2.5 | K110: =IF(ISNA(VLOOKUP($D:$D,rend,2,FALSE))=FALSE,VLOOKUP($D:$D,rend,2,FALSE),"") -> 0.9009024599 | L110: =IF($C110="RM",IF(ISNA(VLOOKUP($F$2:$F$478,pos,2,FALSE))=FALSE,VLOOKUP($F110:$F$478,pos,2,FALSE),IF(ISNA(VLOOKUP($F$2:$F$478,lot,2,FALSE))=FALSE,VLOOKUP($F$2:$F$478,lot,2,FALSE),"MANQUANT")),"") -> 6094B07AC | M110: =IF($C110="RM",IF(ISNA(VLOOKUP($F$2:$F$478,pos,3,FALSE))=FALSE,VLOOKUP($F110:$F567,pos,3,FALSE),"OP"),"") -> OP | N110: =IF($C110="RM",IF(ISNA(VLOOKUP($F110:$F$471,pos,4,FALSE))=FALSE,VLOOKUP($F$2:$F$471,pos,4,FALSE),""),"") ->  | O110: =IF($C110="RM",IF(ISNA(VLOOKUP($F$2:$F$478,pos,5,FALSE))=FALSE,VLOOKUP($F$2:$F$478,pos,5,FALSE),IF(ISNA(VLOOKUP($F$2:$F$478,lot,5,FALSE))=FALSE,VLOOKUP($F$2:$F$478,lot,5,FALSE),0)),"") -> 4.638176672 | P110: =IF($H110>0,VLOOKUP($D:$D,prix,15,FALSE),"") ->  | Q110: =IF($C110="RM",$O110*$G110,"") -> 11.59544168 | R110: =IF($H110>0,$H110*$P110,"") ->  | T110: =IF($F110>0,VALUE(LEFT($F110,4)),"") -> 6094 | U110: =IF(F110>0,IF(ISERROR(SEARCH("*FZ*",$E110))=FALSE,"FZ",IF(ISERROR(SEARCH("*FR*",$E110))=FALSE,"FR","Aucun")),"") -> FR | V110: =IF($C110="RM",IF($U110="FR",IF(ISNA(VLOOKUP($F:$F,lot,6,FALSE))=TRUE,VLOOKUP($T:$T,date,2,FALSE),VLOOKUP($F:$F,lot,6,FALSE)),""),"") -> 2016-04-25 | W110: =IF($C110="RM",IF($U110="Fz",IF(ISNA(VLOOKUP($F:$F,lot,6,FALSE))=TRUE,VLOOKUP($T:$T,date,2,FALSE),VLOOKUP($F:$F,lot,6,FALSE)),""),"") ->  | X110: =IF($C110="FG",VLOOKUP($A:$A,op,4,FALSE),"") ->  | Y110: 2016-04-26 | Z110: =IF(C110="rm",IF(U110="aucun","OK",IF(U110="fz",IF(Y110-W110>730,Y110-W110,"OK"),IF(Y110-V110<1,1,Y110-V110))),"") -> 1
A111: 6153B058 | B111: Beef | C111: RM | D111: 41347 | E111: CUBES DE PORC*IN PROCESS* CODE: 41270 FR | F111: 6153B058 | G111: 60 | K111: =IF(ISNA(VLOOKUP($D:$D,rend,2,FALSE))=FALSE,VLOOKUP($D:$D,rend,2,FALSE),"") -> 0.9009024599 | L111: =IF($C111="RM",IF(ISNA(VLOOKUP($F$2:$F$478,pos,2,FALSE))=FALSE,VLOOKUP($F111:$F$478,pos,2,FALSE),IF(ISNA(VLOOKUP($F$2:$F$478,lot,2,FALSE))=FALSE,VLOOKUP($F$2:$F$478,lot,2,FALSE),"MANQUANT")),"") -> 6153B05B | M111: =IF($C111="RM",IF(ISNA(VLOOKUP($F$2:$F$478,pos,3,FALSE))=FALSE,VLOOKUP($F111:$F568,pos,3,FALSE),"OP"),"") -> OP | N111: =IF($C111="RM",IF(ISNA(VLOOKUP($F111:$F$471,pos,4,FALSE))=FALSE,VLOOKUP($F$2:$F$471,pos,4,FALSE),""),"") ->  | O111: =IF($C111="RM",IF(ISNA(VLOOKUP($F$2:$F$478,pos,5,FALSE))=FALSE,VLOOKUP($F$2:$F$478,pos,5,FALSE),IF(ISNA(VLOOKUP($F$2:$F$478,lot,5,FALSE))=FALSE,VLOOKUP($F$2:$F$478,lot,5,FALSE),0)),"") -> 2.942812251 | P111: =IF($H111>0,VLOOKUP($D:$D,prix,15,FALSE),"") ->  | Q111: =IF($C111="RM",$O111*$G111,"") -> 176.5687351 | R111: =IF($H111>0,$H111*$P111,"") ->  | T111: =IF($F111>0,VALUE(LEFT($F111,4)),"") -> 6153 | U111: =IF(F111>0,IF(ISERROR(SEARCH("*FZ*",$E111))=FALSE,"FZ",IF(ISERROR(SEARCH("*FR*",$E111))=FALSE,"FR","Aucun")),"") -> FR | V111: =IF($C111="RM",IF($U111="FR",IF(ISNA(VLOOKUP($F:$F,lot,6,FALSE))=TRUE,VLOOKUP($T:$T,date,2,FALSE),VLOOKUP($F:$F,lot,6,FALSE)),""),"") -> 2016-03-31 | W111: =IF($C111="RM",IF($U111="Fz",IF(ISNA(VLOOKUP($F:$F,lot,6,FALSE))=TRUE,VLOOKUP($T:$T,date,2,FALSE),VLOOKUP($F:$F,lot,6,FALSE)),""),"") ->  | X111: =IF($C111="FG",VLOOKUP($A:$A,op,4,FALSE),"") ->  | Y111: 2016-04-26 | Z111: =IF(C111="rm",IF(U111="aucun","OK",IF(U111="fz",IF(Y111-W111>730,Y111-W111,"OK"),IF(Y111-V111<1,1,Y111-V111))),"") -> 26
A112: 6153B058 | B112: Beef | C112: RM | D112: 41020 | E112: PORK BUCKEYE (U.S.) FR | F112: 6164B06 | G112: 2.5 | K112: =IF(ISNA(VLOOKUP($D:$D,rend,2,FALSE))=FALSE,VLOOKUP($D:$D,rend,2,FALSE),"") -> 0.8455678596 | L112: =IF($C112="RM",IF(ISNA(VLOOKUP($F$2:$F$478,pos,2,FALSE))=FALSE,VLOOKUP($F112:$F$478,pos,2,FALSE),IF(ISNA(VLOOKUP($F$2:$F$478,lot,2,FALSE))=FALSE,VLOOKUP($F$2:$F$478,lot,2,FALSE),"MANQUANT")),"") -> PO-0021732 | M112: =IF($C112="RM",IF(ISNA(VLOOKUP($F$2:$F$478,pos,3,FALSE))=FALSE,VLOOKUP($F112:$F569,pos,3,FALSE),"OP"),"") -> DECA | N112: =IF($C112="RM",IF(ISNA(VLOOKUP($F112:$F$471,pos,4,FALSE))=FALSE,VLOOKUP($F$2:$F$471,pos,4,FALSE),""),"") -> 1215.037882 | O112: =IF($C112="RM",IF(ISNA(VLOOKUP($F$2:$F$478,pos,5,FALSE))=FALSE,VLOOKUP($F$2:$F$478,pos,5,FALSE),IF(ISNA(VLOOKUP($F$2:$F$478,lot,5,FALSE))=FALSE,VLOOKUP($F$2:$F$478,lot,5,FALSE),0)),"") -> 3.1 | P112: =IF($H112>0,VLOOKUP($D:$D,prix,15,FALSE),"") ->  | Q112: =IF($C112="RM",$O112*$G112,"") -> 7.75 | R112: =IF($H112>0,$H112*$P112,"") ->  | T112: =IF($F112>0,VALUE(LEFT($F112,4)),"") -> 6164 | U112: =IF(F112>0,IF(ISERROR(SEARCH("*FZ*",$E112))=FALSE,"FZ",IF(ISERROR(SEARCH("*FR*",$E112))=FALSE,"FR","Aucun")),"") -> FR | V112: =IF($C112="RM",IF($U112="FR",IF(ISNA(VLOOKUP($F:$F,lot,6,FALSE))=TRUE,VLOOKUP($T:$T,date,2,FALSE),VLOOKUP($F:$F,lot,6,FALSE)),""),"") -> 2016-04-13 | W112: =IF($C112="RM",IF($U112="Fz",IF(ISNA(VLOOKUP($F:$F,lot,6,FALSE))=TRUE,VLOOKUP($T:$T,date,2,FALSE),VLOOKUP($F:$F,lot,6,FALSE)),""),"") ->  | X112: =IF($C112="FG",VLOOKUP($A:$A,op,4,FALSE),"") ->  | Y112: 2016-04-26 | Z112: =IF(C112="rm",IF(U112="aucun","OK",IF(U112="fz",IF(Y112-W112>730,Y112-W112,"OK"),IF(Y112-V112<1,1,Y112-V112))),"") -> 13
A113: 6153B058 | B113: Beef | C113: FG | D113: 41263 | E113: CUBES DE PORC ( BUCKEYE )**2 X 2.5 KG FZ #D | F113: 6153B0510 | H113: 50 | K113: =IF(ISNA(VLOOKUP($D:$D,rend,2,FALSE))=FALSE,VLOOKUP($D:$D,rend,2,FALSE),"") -> 0.8910880443 | L113: =IF($C113="RM",IF(ISNA(VLOOKUP($F$2:$F$478,pos,2,FALSE))=FALSE,VLOOKUP($F113:$F$478,pos,2,FALSE),IF(ISNA(VLOOKUP($F$2:$F$478,lot,2,FALSE))=FALSE,VLOOKUP($F$2:$F$478,lot,2,FALSE),"MANQUANT")),"") ->  | M113: =IF($C113="RM",IF(ISNA(VLOOKUP($F$2:$F$478,pos,3,FALSE))=FALSE,VLOOKUP($F113:$F570,pos,3,FALSE),"OP"),"") ->  | N113: =IF($C113="RM",IF(ISNA(VLOOKUP($F113:$F$471,pos,4,FALSE))=FALSE,VLOOKUP($F$2:$F$471,pos,4,FALSE),""),"") ->  | O113: =IF($C113="RM",IF(ISNA(VLOOKUP($F$2:$F$478,pos,5,FALSE))=FALSE,VLOOKUP($F$2:$F$478,pos,5,FALSE),IF(ISNA(VLOOKUP($F$2:$F$478,lot,5,FALSE))=FALSE,VLOOKUP($F$2:$F$478,lot,5,FALSE),0)),"") ->  | P113: =IF($H113>0,VLOOKUP($D:$D,prix,15,FALSE),"") -> 5.5 | Q113: =IF($C113="RM",$O113*$G113,"") ->  | R113: =IF($H113>0,$H113*$P113,"") -> 275 | T113: =IF($F113>0,VALUE(LEFT($F113,4)),"") -> 6153 | U113: =IF(F113>0,IF(ISERROR(SEARCH("*FZ*",$E113))=FALSE,"FZ",IF(ISERROR(SEARCH("*FR*",$E113))=FALSE,"FR","Aucun")),"") -> FZ | V113: =IF($C113="RM",IF($U113="FR",IF(ISNA(VLOOKUP($F:$F,lot,6,FALSE))=TRUE,VLOOKUP($T:$T,date,2,FALSE),VLOOKUP($F:$F,lot,6,FALSE)),""),"") ->  | W113: =IF($C113="RM",IF($U113="Fz",IF(ISNA(VLOOKUP($F:$F,lot,6,FALSE))=TRUE,VLOOKUP($T:$T,date,2,FALSE),VLOOKUP($F:$F,lot,6,FALSE)),""),"") ->  | X113: =IF($C113="FG",VLOOKUP($A:$A,op,4,FALSE),"") ->  | Y113: 2016-04-26 | Z113: =IF(C113="rm",IF(U113="aucun","OK",IF(U113="fz",IF(Y113-W113>730,Y113-W113,"OK"),IF(Y113-V113<1,1,Y113-V113))),"") -> 
A114: 6153B058 | B114: Beef | C114: FG | D114: 41250 | E114: PORK BUCKEYE CUBED**15-20 GRAMS**25 KG/CS FR @P | F114: 6153B0511 | H114: 15 | K114: =IF(ISNA(VLOOKUP($D:$D,rend,2,FALSE))=FALSE,VLOOKUP($D:$D,rend,2,FALSE),"") -> 0.9232813806 | L114: =IF($C114="RM",IF(ISNA(VLOOKUP($F$2:$F$478,pos,2,FALSE))=FALSE,VLOOKUP($F114:$F$478,pos,2,FALSE),IF(ISNA(VLOOKUP($F$2:$F$478,lot,2,FALSE))=FALSE,VLOOKUP($F$2:$F$478,lot,2,FALSE),"MANQUANT")),"") ->  | M114: =IF($C114="RM",IF(ISNA(VLOOKUP($F$2:$F$478,pos,3,FALSE))=FALSE,VLOOKUP($F114:$F571,pos,3,FALSE),"OP"),"") ->  | N114: =IF($C114="RM",IF(ISNA(VLOOKUP($F114:$F$471,pos,4,FALSE))=FALSE,VLOOKUP($F$2:$F$471,pos,4,FALSE),""),"") ->  | O114: =IF($C114="RM",IF(ISNA(VLOOKUP($F$2:$F$478,pos,5,FALSE))=FALSE,VLOOKUP($F$2:$F$478,pos,5,FALSE),IF(ISNA(VLOOKUP($F$2:$F$478,lot,5,FALSE))=FALSE,VLOOKUP($F$2:$F$478,lot,5,FALSE),0)),"") ->  | P114: =IF($H114>0,VLOOKUP($D:$D,prix,15,FALSE),"") -> 5.5 | Q114: =IF($C114="RM",$O114*$G114,"") ->  | R114: =IF($H114>0,$H114*$P114,"") -> 82.5 | T114: =IF($F114>0,VALUE(LEFT($F114,4)),"") -> 6153 | U114: =IF(F114>0,IF(ISERROR(SEARCH("*FZ*",$E114))=FALSE,"FZ",IF(ISERROR(SEARCH("*FR*",$E114))=FALSE,"FR","Aucun")),"") -> FR | V114: =IF($C114="RM",IF($U114="FR",IF(ISNA(VLOOKUP($F:$F,lot,6,FALSE))=TRUE,VLOOKUP($T:$T,date,2,FALSE),VLOOKUP($F:$F,lot,6,FALSE)),""),"") ->  | W114: =IF($C114="RM",IF($U114="Fz",IF(ISNA(VLOOKUP($F:$F,lot,6,FALSE))=TRUE,VLOOKUP($T:$T,date,2,FALSE),VLOOKUP($F:$F,lot,6,FALSE)),""),"") ->  | X114: =IF($C114="FG",VLOOKUP($A:$A,op,4,FALSE),"") ->  | Y114: 2016-04-26 | Z114: =IF(C114="rm",IF(U114="aucun","OK",IF(U114="fz",IF(Y114-W114>730,Y114-W114,"OK"),IF(Y114-V114<1,1,Y114-V114))),"") -> 
A115: 6153B058 Total | G115: =SUBTOTAL(9,G110:G114) -> 65 | H115: =SUBTOTAL(9,H110:H114) -> 65 | Q115: =SUBTOTAL(9,Q110:Q114) -> 195.9141768 | R115: =SUBTOTAL(9,R110:R114) -> 357.5
A116: 6164B06 | B116: Beef | C116: RM | D116: 41020 | E116: PORK BUCKEYE (U.S.) FR | F116: 6153B05 | G116: 16.32 | K116: =IF(ISNA(VLOOKUP($D:$D,rend,2,FALSE))=FALSE,VLOOKUP($D:$D,rend,2,FALSE),"") -> 0.8455678596 | L116: =IF($C116="RM",IF(ISNA(VLOOKUP($F$2:$F$478,pos,2,FALSE))=FALSE,VLOOKUP($F116:$F$478,pos,2,FALSE),IF(ISNA(VLOOKUP($F$2:$F$478,lot,2,FALSE))=FALSE,VLOOKUP($F$2:$F$478,lot,2,FALSE),"MANQUANT")),"") -> PO-0021691 | M116: =IF($C116="RM",IF(ISNA(VLOOKUP($F$2:$F$478,pos,3,FALSE))=FALSE,VLOOKUP($F116:$F572,pos,3,FALSE),"OP"),"") -> DECA | N116: =IF($C116="RM",IF(ISNA(VLOOKUP($F116:$F$471,pos,4,FALSE))=FALSE,VLOOKUP($F$2:$F$471,pos,4,FALSE),""),"") -> 1170.261298 | O116: =IF($C116="RM",IF(ISNA(VLOOKUP($F$2:$F$478,pos,5,FALSE))=FALSE,VLOOKUP($F$2:$F$478,pos,5,FALSE),IF(ISNA(VLOOKUP($F$2:$F$478,lot,5,FALSE))=FALSE,VLOOKUP($F$2:$F$478,lot,5,FALSE),0)),"") -> 3.12 | P116: =IF($H116>0,VLOOKUP($D:$D,prix,15,FALSE),"") ->  | Q116: =IF($C116="RM",$O116*$G116,"") -> 50.9184 | R116: =IF($H116>0,$H116*$P116,"") ->  | T116: =IF($F116>0,VALUE(LEFT($F116,4)),"") -> 6153 | U116: =IF(F116>0,IF(ISERROR(SEARCH("*FZ*",$E116))=FALSE,"FZ",IF(ISERROR(SEARCH("*FR*",$E116))=FALSE,"FR","Aucun")),"") -> FR | V116: =IF($C116="RM",IF($U116="FR",IF(ISNA(VLOOKUP($F:$F,lot,6,FALSE))=TRUE,VLOOKUP($T:$T,date,2,FALSE),VLOOKUP($F:$F,lot,6,FALSE)),""),"") -> 2016-04-05 | W116: =IF($C116="RM",IF($U116="Fz",IF(ISNA(VLOOKUP($F:$F,lot,6,FALSE))=TRUE,VLOOKUP($T:$T,date,2,FALSE),VLOOKUP($F:$F,lot,6,FALSE)),""),"") ->  | X116: =IF($C116="FG",VLOOKUP($A:$A,op,4,FALSE),"") ->  | Y116: 2016-04-26 | Z116: =IF(C116="rm",IF(U116="aucun","OK",IF(U116="fz",IF(Y116-W116>730,Y116-W116,"OK"),IF(Y116-V116<1,1,Y116-V116))),"") -> 21
A117: 6164B06 | B117: Beef | C117: RM | D117: 41020 | E117: PORK BUCKEYE (U.S.) FR | F117: 6164B06 | G117: 37.87 | K117: =IF(ISNA(VLOOKUP($D:$D,rend,2,FALSE))=FALSE,VLOOKUP($D:$D,rend,2,FALSE),"") -> 0.8455678596 | L117: =IF($C117="RM",IF(ISNA(VLOOKUP($F$2:$F$478,pos,2,FALSE))=FALSE,VLOOKUP($F117:$F$478,pos,2,FALSE),IF(ISNA(VLOOKUP($F$2:$F$478,lot,2,FALSE))=FALSE,VLOOKUP($F$2:$F$478,lot,2,FALSE),"MANQUANT")),"") -> PO-0021732 | M117: =IF($C117="RM",IF(ISNA(VLOOKUP($F$2:$F$478,pos,3,FALSE))=FALSE,VLOOKUP($F117:$F573,pos,3,FALSE),"OP"),"") -> DECA | N117: =IF($C117="RM",IF(ISNA(VLOOKUP($F117:$F$471,pos,4,FALSE))=FALSE,VLOOKUP($F$2:$F$471,pos,4,FALSE),""),"") -> 1215.037882 | O117: =IF($C117="RM",IF(ISNA(VLOOKUP($F$2:$F$478,pos,5,FALSE))=FALSE,VLOOKUP($F$2:$F$478,pos,5,FALSE),IF(ISNA(VLOOKUP($F$2:$F$478,lot,5,FALSE))=FALSE,VLOOKUP($F$2:$F$478,lot,5,FALSE),0)),"") -> 3.1 | P117: =IF($H117>0,VLOOKUP($D:$D,prix,15,FALSE),"") ->  | Q117: =IF($C117="RM",$O117*$G117,"") -> 117.397 | R117: =IF($H117>0,$H117*$P117,"") ->  | T117: =IF($F117>0,VALUE(LEFT($F117,4)),"") -> 6164 | U117: =IF(F117>0,IF(ISERROR(SEARCH("*FZ*",$E117))=FALSE,"FZ",IF(ISERROR(SEARCH("*FR*",$E117))=FALSE,"FR","Aucun")),"") -> FR | V117: =IF($C117="RM",IF($U117="FR",IF(ISNA(VLOOKUP($F:$F,lot,6,FALSE))=TRUE,VLOOKUP($T:$T,date,2,FALSE),VLOOKUP($F:$F,lot,6,FALSE)),""),"") -> 2016-04-13 | W117: =IF($C117="RM",IF($U117="Fz",IF(ISNA(VLOOKUP($F:$F,lot,6,FALSE))=TRUE,VLOOKUP($T:$T,date,2,FALSE),VLOOKUP($F:$F,lot,6,FALSE)),""),"") ->  | X117: =IF($C117="FG",VLOOKUP($A:$A,op,4,FALSE),"") ->  | Y117: 2016-04-26 | Z117: =IF(C117="rm",IF(U117="aucun","OK",IF(U117="fz",IF(Y117-W117>730,Y117-W117,"OK"),IF(Y117-V117<1,1,Y117-V117))),"") -> 13
A118: 6164B06 | B118: Beef | C118: FG | D118: 41217 | E118: BONELESS PORK SIRLOIN STRIPS *1/4" X 3"* 5 X 1 KG FZ #D | F118: 6164B061 | H118: 4.98 | K118: =IF(ISNA(VLOOKUP($D:$D,rend,2,FALSE))=FALSE,VLOOKUP($D:$D,rend,2,FALSE),"") -> 0.6695230734 | L118: =IF($C118="RM",IF(ISNA(VLOOKUP($F$2:$F$478,pos,2,FALSE))=FALSE,VLOOKUP($F118:$F$478,pos,2,FALSE),IF(ISNA(VLOOKUP($F$2:$F$478,lot,2,FALSE))=FALSE,VLOOKUP($F$2:$F$478,lot,2,FALSE),"MANQUANT")),"") ->  | M118: =IF($C118="RM",IF(ISNA(VLOOKUP($F$2:$F$478,pos,3,FALSE))=FALSE,VLOOKUP($F118:$F574,pos,3,FALSE),"OP"),"") ->  | N118: =IF($C118="RM",IF(ISNA(VLOOKUP($F118:$F$471,pos,4,FALSE))=FALSE,VLOOKUP($F$2:$F$471,pos,4,FALSE),""),"") ->  | O118: =IF($C118="RM",IF(ISNA(VLOOKUP($F$2:$F$478,pos,5,FALSE))=FALSE,VLOOKUP($F$2:$F$478,pos,5,FALSE),IF(ISNA(VLOOKUP($F$2:$F$478,lot,5,FALSE))=FALSE,VLOOKUP($F$2:$F$478,lot,5,FALSE),0)),"") ->  | P118: =IF($H118>0,VLOOKUP($D:$D,prix,15,FALSE),"") -> 7.5 | Q118: =IF($C118="RM",$O118*$G118,"") ->  | R118: =IF($H118>0,$H118*$P118,"") -> 37.35 | T118: =IF($F118>0,VALUE(LEFT($F118,4)),"") -> 6164 | U118: =IF(F118>0,IF(ISERROR(SEARCH("*FZ*",$E118))=FALSE,"FZ",IF(ISERROR(SEARCH("*FR*",$E118))=FALSE,"FR","Aucun")),"") -> FZ | V118: =IF($C118="RM",IF($U118="FR",IF(ISNA(VLOOKUP($F:$F,lot,6,FALSE))=TRUE,VLOOKUP($T:$T,date,2,FALSE),VLOOKUP($F:$F,lot,6,FALSE)),""),"") ->  | W118: =IF($C118="RM",IF($U118="Fz",IF(ISNA(VLOOKUP($F:$F,lot,6,FALSE))=TRUE,VLOOKUP($T:$T,date,2,FALSE),VLOOKUP($F:$F,lot,6,FALSE)),""),"") ->  | X118: =IF($C118="FG",VLOOKUP($A:$A,op,4,FALSE),"") ->  | Y118: 2016-04-26 | Z118: =IF(C118="rm",IF(U118="aucun","OK",IF(U118="fz",IF(Y118-W118>730,Y118-W118,"OK"),IF(Y118-V118<1,1,Y118-V118))),"") -> 
A119: 6164B06 | B119: Beef | C119: FG | D119: 41312 | E119: ESCALOPE DE PORC TENDERIZE**6X4X110GR (105-115GR,2.64KG/CS) BTE A+ PORTION FZ @P | F119: 6164B062 | H119: 31.68 | K119: =IF(ISNA(VLOOKUP($D:$D,rend,2,FALSE))=FALSE,VLOOKUP($D:$D,rend,2,FALSE),"") -> 1 | L119: =IF($C119="RM",IF(ISNA(VLOOKUP($F$2:$F$478,pos,2,FALSE))=FALSE,VLOOKUP($F119:$F$478,pos,2,FALSE),IF(ISNA(VLOOKUP($F$2:$F$478,lot,2,FALSE))=FALSE,VLOOKUP($F$2:$F$478,lot,2,FALSE),"MANQUANT")),"") ->  | M119: =IF($C119="RM",IF(ISNA(VLOOKUP($F$2:$F$478,pos,3,FALSE))=FALSE,VLOOKUP($F119:$F575,pos,3,FALSE),"OP"),"") ->  | N119: =IF($C119="RM",IF(ISNA(VLOOKUP($F119:$F$471,pos,4,FALSE))=FALSE,VLOOKUP($F$2:$F$471,pos,4,FALSE),""),"") ->  | O119: =IF($C119="RM",IF(ISNA(VLOOKUP($F$2:$F$478,pos,5,FALSE))=FALSE,VLOOKUP($F$2:$F$478,pos,5,FALSE),IF(ISNA(VLOOKUP($F$2:$F$478,lot,5,FALSE))=FALSE,VLOOKUP($F$2:$F$478,lot,5,FALSE),0)),"") ->  | P119: =IF($H119>0,VLOOKUP($D:$D,prix,15,FALSE),"") -> 7 | Q119: =IF($C119="RM",$O119*$G119,"") ->  | R119: =IF($H119>0,$H119*$P119,"") -> 221.76 | T119: =IF($F119>0,VALUE(LEFT($F119,4)),"") -> 6164 | U119: =IF(F119>0,IF(ISERROR(SEARCH("*FZ*",$E119))=FALSE,"FZ",IF(ISERROR(SEARCH("*FR*",$E119))=FALSE,"FR","Aucun")),"") -> FZ | V119: =IF($C119="RM",IF($U119="FR",IF(ISNA(VLOOKUP($F:$F,lot,6,FALSE))=TRUE,VLOOKUP($T:$T,date,2,FALSE),VLOOKUP($F:$F,lot,6,FALSE)),""),"") ->  | W119: =IF($C119="RM",IF($U119="Fz",IF(ISNA(VLOOKUP($F:$F,lot,6,FALSE))=TRUE,VLOOKUP($T:$T,date,2,FALSE),VLOOKUP($F:$F,lot,6,FALSE)),""),"") ->  | X119: =IF($C119="FG",VLOOKUP($A:$A,op,4,FALSE),"") ->  | Y119: 2016-04-26 | Z119: =IF(C119="rm",IF(U119="aucun","OK",IF(U119="fz",IF(Y119-W119>730,Y119-W119,"OK"),IF(Y119-V119<1,1,Y119-V119))),"") -> 
A120: 6164B06 Total | G120: =SUBTOTAL(9,G116:G119) -> 54.19 | H120: =SUBTOTAL(9,H116:H119) -> 36.66 | Q120: =SUBTOTAL(9,Q116:Q119) -> 168.3154 | R120: =SUBTOTAL(9,R116:R119) -> 259.11
A121: 6165B02I | B121: Beef | C121: RM | D121: 1 | E121: ING EAU | F121: 5166AS | G121: 29.88 | K121: =IF(ISNA(VLOOKUP($D:$D,rend,2,FALSE))=FALSE,VLOOKUP($D:$D,rend,2,FALSE),"") ->  | L121: =IF($C121="RM",IF(ISNA(VLOOKUP($F$2:$F$478,pos,2,FALSE))=FALSE,VLOOKUP($F121:$F$478,pos,2,FALSE),IF(ISNA(VLOOKUP($F$2:$F$478,lot,2,FALSE))=FALSE,VLOOKUP($F$2:$F$478,lot,2,FALSE),"MANQUANT")),"") -> Aucun | M121: =IF($C121="RM",IF(ISNA(VLOOKUP($F$2:$F$478,pos,3,FALSE))=FALSE,VLOOKUP($F121:$F576,pos,3,FALSE),"OP"),"") -> Aucun | N121: =IF($C121="RM",IF(ISNA(VLOOKUP($F121:$F$471,pos,4,FALSE))=FALSE,VLOOKUP($F$2:$F$471,pos,4,FALSE),""),"") -> 0 | O121: =IF($C121="RM",IF(ISNA(VLOOKUP($F$2:$F$478,pos,5,FALSE))=FALSE,VLOOKUP($F$2:$F$478,pos,5,FALSE),IF(ISNA(VLOOKUP($F$2:$F$478,lot,5,FALSE))=FALSE,VLOOKUP($F$2:$F$478,lot,5,FALSE),0)),"") -> 0 | P121: =IF($H121>0,VLOOKUP($D:$D,prix,15,FALSE),"") ->  | Q121: =IF($C121="RM",$O121*$G121,"") -> 0 | R121: =IF($H121>0,$H121*$P121,"") ->  | T121: =IF($F121>0,VALUE(LEFT($F121,4)),"") -> 5166 | U121: =IF(F121>0,IF(ISERROR(SEARCH("*FZ*",$E121))=FALSE,"FZ",IF(ISERROR(SEARCH("*FR*",$E121))=FALSE,"FR","Aucun")),"") -> Aucun | V121: =IF($C121="RM",IF($U121="FR",IF(ISNA(VLOOKUP($F:$F,lot,6,FALSE))=TRUE,VLOOKUP($T:$T,date,2,FALSE),VLOOKUP($F:$F,lot,6,FALSE)),""),"") ->  | W121: =IF($C121="RM",IF($U121="Fz",IF(ISNA(VLOOKUP($F:$F,lot,6,FALSE))=TRUE,VLOOKUP($T:$T,date,2,FALSE),VLOOKUP($F:$F,lot,6,FALSE)),""),"") ->  | X121: =IF($C121="FG",VLOOKUP($A:$A,op,4,FALSE),"") ->  | Y121: 2016-04-26 | Z121: =IF(C121="rm",IF(U121="aucun","OK",IF(U121="fz",IF(Y121-W121>730,Y121-W121,"OK"),IF(Y121-V121<1,1,Y121-V121))),"") -> OK
A122: 6165B02I | B122: Beef | C122: RM | D122: 30031 | E122: BEEF HEAD MEAT FZ | F122: 5232B08 | G122: 81.27 | K122: =IF(ISNA(VLOOKUP($D:$D,rend,2,FALSE))=FALSE,VLOOKUP($D:$D,rend,2,FALSE),"") -> 0.942234504 | L122: =IF($C122="RM",IF(ISNA(VLOOKUP($F$2:$F$478,pos,2,FALSE))=FALSE,VLOOKUP($F122:$F$478,pos,2,FALSE),IF(ISNA(VLOOKUP($F$2:$F$478,lot,2,FALSE))=FALSE,VLOOKUP($F$2:$F$478,lot,2,FALSE),"MANQUANT")),"") -> PO-0021612 | M122: =IF($C122="RM",IF(ISNA(VLOOKUP($F$2:$F$478,pos,3,FALSE))=FALSE,VLOOKUP($F122:$F577,pos,3,FALSE),"OP"),"") -> C&C | N122: =IF($C122="RM",IF(ISNA(VLOOKUP($F122:$F$471,pos,4,FALSE))=FALSE,VLOOKUP($F$2:$F$471,pos,4,FALSE),""),"") -> 2722 | O122: =IF($C122="RM",IF(ISNA(VLOOKUP($F$2:$F$478,pos,5,FALSE))=FALSE,VLOOKUP($F$2:$F$478,pos,5,FALSE),IF(ISNA(VLOOKUP($F$2:$F$478,lot,5,FALSE))=FALSE,VLOOKUP($F$2:$F$478,lot,5,FALSE),0)),"") -> 2.15 | P122: =IF($H122>0,VLOOKUP($D:$D,prix,15,FALSE),"") ->  | Q122: =IF($C122="RM",$O122*$G122,"") -> 174.7305 | R122: =IF($H122>0,$H122*$P122,"") ->  | T122: =IF($F122>0,VALUE(LEFT($F122,4)),"") -> 5232 | U122: =IF(F122>0,IF(ISERROR(SEARCH("*FZ*",$E122))=FALSE,"FZ",IF(ISERROR(SEARCH("*FR*",$E122))=FALSE,"FR","Aucun")),"") -> FZ | V122: =IF($C122="RM",IF($U122="FR",IF(ISNA(VLOOKUP($F:$F,lot,6,FALSE))=TRUE,VLOOKUP($T:$T,date,2,FALSE),VLOOKUP($F:$F,lot,6,FALSE)),""),"") ->  | W122: =IF($C122="RM",IF($U122="Fz",IF(ISNA(VLOOKUP($F:$F,lot,6,FALSE))=TRUE,VLOOKUP($T:$T,date,2,FALSE),VLOOKUP($F:$F,lot,6,FALSE)),""),"") -> 2015-06-01 | X122: =IF($C122="FG",VLOOKUP($A:$A,op,4,FALSE),"") ->  | Y122: 2016-04-26 | Z122: =IF(C122="rm",IF(U122="aucun","OK",IF(U122="fz",IF(Y122-W122>730,Y122-W122,"OK"),IF(Y122-V122<1,1,Y122-V122))),"") -> OK
A123: 6165B02I | B123: Beef | C123: RM | D123: 30015 | E123: STEER BEEF HEARTS COA REQUIS FZ | F123: 6124B04 | G123: 325.1 | K123: =IF(ISNA(VLOOKUP($D:$D,rend,2,FALSE))=FALSE,VLOOKUP($D:$D,rend,2,FALSE),"") -> 0.9329692343 | L123: =IF($C123="RM",IF(ISNA(VLOOKUP($F$2:$F$478,pos,2,FALSE))=FALSE,VLOOKUP($F123:$F$478,pos,2,FALSE),IF(ISNA(VLOOKUP($F$2:$F$478,lot,2,FALSE))=FALSE,VLOOKUP($F$2:$F$478,lot,2,FALSE),"MANQUANT")),"") -> PO-0021564 | M123: =IF($C123="RM",IF(ISNA(VLOOKUP($F$2:$F$478,pos,3,FALSE))=FALSE,VLOOKUP($F123:$F578,pos,3,FALSE),"OP"),"") -> CHIS | N123: =IF($C123="RM",IF(ISNA(VLOOKUP($F123:$F$471,pos,4,FALSE))=FALSE,VLOOKUP($F$2:$F$471,pos,4,FALSE),""),"") -> 18285.12 | O123: =IF($C123="RM",IF(ISNA(VLOOKUP($F$2:$F$478,pos,5,FALSE))=FALSE,VLOOKUP($F$2:$F$478,pos,5,FALSE),IF(ISNA(VLOOKUP($F$2:$F$478,lot,5,FALSE))=FALSE,VLOOKUP($F$2:$F$478,lot,5,FALSE),0)),"") -> 1.5 | P123: =IF($H123>0,VLOOKUP($D:$D,prix,15,FALSE),"") ->  | Q123: =IF($C123="RM",$O123*$G123,"") -> 487.65 | R123: =IF($H123>0,$H123*$P123,"") ->  | T123: =IF($F123>0,VALUE(LEFT($F123,4)),"") -> 6124 | U123: =IF(F123>0,IF(ISERROR(SEARCH("*FZ*",$E123))=FALSE,"FZ",IF(ISERROR(SEARCH("*FR*",$E123))=FALSE,"FR","Aucun")),"") -> FZ | V123: =IF($C123="RM",IF($U123="FR",IF(ISNA(VLOOKUP($F:$F,lot,6,FALSE))=TRUE,VLOOKUP($T:$T,date,2,FALSE),VLOOKUP($F:$F,lot,6,FALSE)),""),"") ->  | W123: =IF($C123="RM",IF($U123="Fz",IF(ISNA(VLOOKUP($F:$F,lot,6,FALSE))=TRUE,VLOOKUP($T:$T,date,2,FALSE),VLOOKUP($F:$F,lot,6,FALSE)),""),"") -> 2016-03-16 | X123: =IF($C123="FG",VLOOKUP($A:$A,op,4,FALSE),"") ->  | Y123: 2016-04-26 | Z123: =IF(C123="rm",IF(U123="aucun","OK",IF(U123="fz",IF(Y123-W123>730,Y123-W123,"OK"),IF(Y123-V123<1,1,Y123-V123))),"") -> OK
A124: 6165B02I | B124: Beef | C124: RM | D124: 30028 | E124: BONELESS **90 % BEEF (RM )**COA REQUIRED FR #D | F124: 6165B02 | G124: 163.75 | K124: =IF(ISNA(VLOOKUP($D:$D,rend,2,FALSE))=FALSE,VLOOKUP($D:$D,rend,2,FALSE),"") -> 0.9406880987 | L124: =IF($C124="RM",IF(ISNA(VLOOKUP($F$2:$F$478,pos,2,FALSE))=FALSE,VLOOKUP($F124:$F$478,pos,2,FALSE),IF(ISNA(VLOOKUP($F$2:$F$478,lot,2,FALSE))=FALSE,VLOOKUP($F$2:$F$478,lot,2,FALSE),"MANQUANT")),"") -> PO-0021747 | M124: =IF($C124="RM",IF(ISNA(VLOOKUP($F$2:$F$478,pos,3,FALSE))=FALSE,VLOOKUP($F124:$F579,pos,3,FALSE),"OP"),"") -> RYDI | N124: =IF($C124="RM",IF(ISNA(VLOOKUP($F124:$F$471,pos,4,FALSE))=FALSE,VLOOKUP($F$2:$F$471,pos,4,FALSE),""),"") -> 1720 | O124: =IF($C124="RM",IF(ISNA(VLOOKUP($F$2:$F$478,pos,5,FALSE))=FALSE,VLOOKUP($F$2:$F$478,pos,5,FALSE),IF(ISNA(VLOOKUP($F$2:$F$478,lot,5,FALSE))=FALSE,VLOOKUP($F$2:$F$478,lot,5,FALSE),0)),"") -> 6.52 | P124: =IF($H124>0,VLOOKUP($D:$D,prix,15,FALSE),"") ->  | Q124: =IF($C124="RM",$O124*$G124,"") -> 1067.65 | R124: =IF($H124>0,$H124*$P124,"") ->  | T124: =IF($F124>0,VALUE(LEFT($F124,4)),"") -> 6165 | U124: =IF(F124>0,IF(ISERROR(SEARCH("*FZ*",$E124))=FALSE,"FZ",IF(ISERROR(SEARCH("*FR*",$E124))=FALSE,"FR","Aucun")),"") -> FR | V124: =IF($C124="RM",IF($U124="FR",IF(ISNA(VLOOKUP($F:$F,lot,6,FALSE))=TRUE,VLOOKUP($T:$T,date,2,FALSE),VLOOKUP($F:$F,lot,6,FALSE)),""),"") -> 2016-04-14 | W124: =IF($C124="RM",IF($U124="Fz",IF(ISNA(VLOOKUP($F:$F,lot,6,FALSE))=TRUE,VLOOKUP($T:$T,date,2,FALSE),VLOOKUP($F:$F,lot,6,FALSE)),""),"") ->  | X124: =IF($C124="FG",VLOOKUP($A:$A,op,4,FALSE),"") ->  | Y124: 2016-04-26 | Z124: =IF(C124="rm",IF(U124="aucun","OK",IF(U124="fz",IF(Y124-W124>730,Y124-W124,"OK"),IF(Y124-V124<1,1,Y124-V124))),"") -> 12
A125: 6165B02I | B125: Beef | C125: FG | D125: 21019 | E125: LEAN GROUNDD BEEF (2 X 2.5KG) *BOITE BLANCHE* FZ #D** | F125: 6165B0217 | H125: 600 | K125: =IF(ISNA(VLOOKUP($D:$D,rend,2,FALSE))=FALSE,VLOOKUP($D:$D,rend,2,FALSE),"") -> 1 | L125: =IF($C125="RM",IF(ISNA(VLOOKUP($F$2:$F$478,pos,2,FALSE))=FALSE,VLOOKUP($F125:$F$478,pos,2,FALSE),IF(ISNA(VLOOKUP($F$2:$F$478,lot,2,FALSE))=FALSE,VLOOKUP($F$2:$F$478,lot,2,FALSE),"MANQUANT")),"") ->  | M125: =IF($C125="RM",IF(ISNA(VLOOKUP($F$2:$F$478,pos,3,FALSE))=FALSE,VLOOKUP($F125:$F580,pos,3,FALSE),"OP"),"") ->  | N125: =IF($C125="RM",IF(ISNA(VLOOKUP($F125:$F$471,pos,4,FALSE))=FALSE,VLOOKUP($F$2:$F$471,pos,4,FALSE),""),"") ->  | O125: =IF($C125="RM",IF(ISNA(VLOOKUP($F$2:$F$478,pos,5,FALSE))=FALSE,VLOOKUP($F$2:$F$478,pos,5,FALSE),IF(ISNA(VLOOKUP($F$2:$F$478,lot,5,FALSE))=FALSE,VLOOKUP($F$2:$F$478,lot,5,FALSE),0)),"") ->  | P125: =IF($H125>0,VLOOKUP($D:$D,prix,15,FALSE),"") -> 5.2 | Q125: =IF($C125="RM",$O125*$G125,"") ->  | R125: =IF($H125>0,$H125*$P125,"") -> 3120 | T125: =IF($F125>0,VALUE(LEFT($F125,4)),"") -> 6165 | U125: =IF(F125>0,IF(ISERROR(SEARCH("*FZ*",$E125))=FALSE,"FZ",IF(ISERROR(SEARCH("*FR*",$E125))=FALSE,"FR","Aucun")),"") -> FZ | V125: =IF($C125="RM",IF($U125="FR",IF(ISNA(VLOOKUP($F:$F,lot,6,FALSE))=TRUE,VLOOKUP($T:$T,date,2,FALSE),VLOOKUP($F:$F,lot,6,FALSE)),""),"") ->  | W125: =IF($C125="RM",IF($U125="Fz",IF(ISNA(VLOOKUP($F:$F,lot,6,FALSE))=TRUE,VLOOKUP($T:$T,date,2,FALSE),VLOOKUP($F:$F,lot,6,FALSE)),""),"") ->  | X125: =IF($C125="FG",VLOOKUP($A:$A,op,4,FALSE),"") ->  | Y125: 2016-04-26 | Z125: =IF(C125="rm",IF(U125="aucun","OK",IF(U125="fz",IF(Y125-W125>730,Y125-W125,"OK"),IF(Y125-V125<1,1,Y125-V125))),"") -> 
A126: 6165B02I Total | G126: =SUBTOTAL(9,G121:G125) -> 600 | H126: =SUBTOTAL(9,H121:H125) -> 600 | Q126: =SUBTOTAL(9,Q121:Q125) -> 1730.0305 | R126: =SUBTOTAL(9,R121:R125) -> 3120
A127: 6165B02J | B127: Beef | C127: RM | D127: 1 | E127: ING EAU | F127: 5166AS | G127: 148.81 | K127: =IF(ISNA(VLOOKUP($D:$D,rend,2,FALSE))=FALSE,VLOOKUP($D:$D,rend,2,FALSE),"") ->  | L127: =IF($C127="RM",IF(ISNA(VLOOKUP($F$2:$F$478,pos,2,FALSE))=FALSE,VLOOKUP($F127:$F$478,pos,2,FALSE),IF(ISNA(VLOOKUP($F$2:$F$478,lot,2,FALSE))=FALSE,VLOOKUP($F$2:$F$478,lot,2,FALSE),"MANQUANT")),"") -> Aucun | M127: =IF($C127="RM",IF(ISNA(VLOOKUP($F$2:$F$478,pos,3,FALSE))=FALSE,VLOOKUP($F127:$F581,pos,3,FALSE),"OP"),"") -> Aucun | N127: =IF($C127="RM",IF(ISNA(VLOOKUP($F127:$F$471,pos,4,FALSE))=FALSE,VLOOKUP($F$2:$F$471,pos,4,FALSE),""),"") -> 0 | O127: =IF($C127="RM",IF(ISNA(VLOOKUP($F$2:$F$478,pos,5,FALSE))=FALSE,VLOOKUP($F$2:$F$478,pos,5,FALSE),IF(ISNA(VLOOKUP($F$2:$F$478,lot,5,FALSE))=FALSE,VLOOKUP($F$2:$F$478,lot,5,FALSE),0)),"") -> 0 | P127: =IF($H127>0,VLOOKUP($D:$D,prix,15,FALSE),"") ->  | Q127: =IF($C127="RM",$O127*$G127,"") -> 0 | R127: =IF($H127>0,$H127*$P127,"") ->  | T127: =IF($F127>0,VALUE(LEFT($F127,4)),"") -> 5166 | U127: =IF(F127>0,IF(ISERROR(SEARCH("*FZ*",$E127))=FALSE,"FZ",IF(ISERROR(SEARCH("*FR*",$E127))=FALSE,"FR","Aucun")),"") -> Aucun | V127: =IF($C127="RM",IF($U127="FR",IF(ISNA(VLOOKUP($F:$F,lot,6,FALSE))=TRUE,VLOOKUP($T:$T,date,2,FALSE),VLOOKUP($F:$F,lot,6,FALSE)),""),"") ->  | W127: =IF($C127="RM",IF($U127="Fz",IF(ISNA(VLOOKUP($F:$F,lot,6,FALSE))=TRUE,VLOOKUP($T:$T,date,2,FALSE),VLOOKUP($F:$F,lot,6,FALSE)),""),"") ->  | X127: =IF($C127="FG",VLOOKUP($A:$A,op,4,FALSE),"") ->  | Y127: 2016-04-26 | Z127: =IF(C127="rm",IF(U127="aucun","OK",IF(U127="fz",IF(Y127-W127>730,Y127-W127,"OK"),IF(Y127-V127<1,1,Y127-V127))),"") -> OK
A128: 6165B02J | B128: Beef | C128: RM | D128: 30032 | E128: BONELESS BEEF 65% TRIMMINGS**RM COA REQUIS FZ #D | F128: 5472B04 | G128: 27 | K128: =IF(ISNA(VLOOKUP($D:$D,rend,2,FALSE))=FALSE,VLOOKUP($D:$D,rend,2,FALSE),"") -> 0.9410735268 | L128: =IF($C128="RM",IF(ISNA(VLOOKUP($F$2:$F$478,pos,2,FALSE))=FALSE,VLOOKUP($F128:$F$478,pos,2,FALSE),IF(ISNA(VLOOKUP($F$2:$F$478,lot,2,FALSE))=FALSE,VLOOKUP($F$2:$F$478,lot,2,FALSE),"MANQUANT")),"") -> PO-0021789 | M128: =IF($C128="RM",IF(ISNA(VLOOKUP($F$2:$F$478,pos,3,FALSE))=FALSE,VLOOKUP($F128:$F582,pos,3,FALSE),"OP"),"") -> CHIS | N128: =IF($C128="RM",IF(ISNA(VLOOKUP($F128:$F$471,pos,4,FALSE))=FALSE,VLOOKUP($F$2:$F$471,pos,4,FALSE),""),"") -> 24171.36 | O128: =IF($C128="RM",IF(ISNA(VLOOKUP($F$2:$F$478,pos,5,FALSE))=FALSE,VLOOKUP($F$2:$F$478,pos,5,FALSE),IF(ISNA(VLOOKUP($F$2:$F$478,lot,5,FALSE))=FALSE,VLOOKUP($F$2:$F$478,lot,5,FALSE),0)),"") -> 3.15 | P128: =IF($H128>0,VLOOKUP($D:$D,prix,15,FALSE),"") ->  | Q128: =IF($C128="RM",$O128*$G128,"") -> 85.05 | R128: =IF($H128>0,$H128*$P128,"") ->  | T128: =IF($F128>0,VALUE(LEFT($F128,4)),"") -> 5472 | U128: =IF(F128>0,IF(ISERROR(SEARCH("*FZ*",$E128))=FALSE,"FZ",IF(ISERROR(SEARCH("*FR*",$E128))=FALSE,"FR","Aucun")),"") -> FZ | V128: =IF($C128="RM",IF($U128="FR",IF(ISNA(VLOOKUP($F:$F,lot,6,FALSE))=TRUE,VLOOKUP($T:$T,date,2,FALSE),VLOOKUP($F:$F,lot,6,FALSE)),""),"") ->  | W128: =IF($C128="RM",IF($U128="Fz",IF(ISNA(VLOOKUP($F:$F,lot,6,FALSE))=TRUE,VLOOKUP($T:$T,date,2,FALSE),VLOOKUP($F:$F,lot,6,FALSE)),""),"") -> 2015-11-16 | X128: =IF($C128="FG",VLOOKUP($A:$A,op,4,FALSE),"") ->  | Y128: 2016-04-26 | Z128: =IF(C128="rm",IF(U128="aucun","OK",IF(U128="fz",IF(Y128-W128>730,Y128-W128,"OK"),IF(Y128-V128<1,1,Y128-V128))),"") -> OK
A129: 6165B02J | B129: Beef | C129: RM | D129: 30015 | E129: STEER BEEF HEARTS COA REQUIS FZ | F129: 6124B04 | G129: 1218 | K129: =IF(ISNA(VLOOKUP($D:$D,rend,2,FALSE))=FALSE,VLOOKUP($D:$D,rend,2,FALSE),"") -> 0.9329692343 | L129: =IF($C129="RM",IF(ISNA(VLOOKUP($F$2:$F$478,pos,2,FALSE))=FALSE,VLOOKUP($F129:$F$478,pos,2,FALSE),IF(ISNA(VLOOKUP($F$2:$F$478,lot,2,FALSE))=FALSE,VLOOKUP($F$2:$F$478,lot,2,FALSE),"MANQUANT")),"") -> PO-0021564 | M129: =IF($C129="RM",IF(ISNA(VLOOKUP($F$2:$F$478,pos,3,FALSE))=FALSE,VLOOKUP($F129:$F583,pos,3,FALSE),"OP"),"") -> CHIS | N129: =IF($C129="RM",IF(ISNA(VLOOKUP($F129:$F$471,pos,4,FALSE))=FALSE,VLOOKUP($F$2:$F$471,pos,4,FALSE),""),"") -> 18285.12 | O129: =IF($C129="RM",IF(ISNA(VLOOKUP($F$2:$F$478,pos,5,FALSE))=FALSE,VLOOKUP($F$2:$F$478,pos,5,FALSE),IF(ISNA(VLOOKUP($F$2:$F$478,lot,5,FALSE))=FALSE,VLOOKUP($F$2:$F$478,lot,5,FALSE),0)),"") -> 1.5 | P129: =IF($H129>0,VLOOKUP($D:$D,prix,15,FALSE),"") ->  | Q129: =IF($C129="RM",$O129*$G129,"") -> 1827 | R129: =IF($H129>0,$H129*$P129,"") ->  | T129: =IF($F129>0,VALUE(LEFT($F129,4)),"") -> 6124 | U129: =IF(F129>0,IF(ISERROR(SEARCH("*FZ*",$E129))=FALSE,"FZ",IF(ISERROR(SEARCH("*FR*",$E129))=FALSE,"FR","Aucun")),"") -> FZ | V129: =IF($C129="RM",IF($U129="FR",IF(ISNA(VLOOKUP($F:$F,lot,6,FALSE))=TRUE,VLOOKUP($T:$T,date,2,FALSE),VLOOKUP($F:$F,lot,6,FALSE)),""),"") ->  | W129: =IF($C129="RM",IF($U129="Fz",IF(ISNA(VLOOKUP($F:$F,lot,6,FALSE))=TRUE,VLOOKUP($T:$T,date,2,FALSE),VLOOKUP($F:$F,lot,6,FALSE)),""),"") -> 2016-03-16 | X129: =IF($C129="FG",VLOOKUP($A:$A,op,4,FALSE),"") ->  | Y129: 2016-04-26 | Z129: =IF(C129="rm",IF(U129="aucun","OK",IF(U129="fz",IF(Y129-W129>730,Y129-W129,"OK"),IF(Y129-V129<1,1,Y129-V129))),"") -> OK
A130: 6165B02J | B130: Beef | C130: RM | D130: 30028 | E130: BONELESS **90 % BEEF (RM )**COA REQUIRED FR #D | F130: 6165B02 | G130: 424 | K130: =IF(ISNA(VLOOKUP($D:$D,rend,2,FALSE))=FALSE,VLOOKUP($D:$D,rend,2,FALSE),"") -> 0.9406880987 | L130: =IF($C130="RM",IF(ISNA(VLOOKUP($F$2:$F$478,pos,2,FALSE))=FALSE,VLOOKUP($F130:$F$478,pos,2,FALSE),IF(ISNA(VLOOKUP($F$2:$F$478,lot,2,FALSE))=FALSE,VLOOKUP($F$2:$F$478,lot,2,FALSE),"MANQUANT")),"") -> PO-0021747 | M130: =IF($C130="RM",IF(ISNA(VLOOKUP($F$2:$F$478,pos,3,FALSE))=FALSE,VLOOKUP($F130:$F584,pos,3,FALSE),"OP"),"") -> RYDI | N130: =IF($C130="RM",IF(ISNA(VLOOKUP($F130:$F$471,pos,4,FALSE))=FALSE,VLOOKUP($F$2:$F$471,pos,4,FALSE),""),"") -> 1720 | O130: =IF($C130="RM",IF(ISNA(VLOOKUP($F$2:$F$478,pos,5,FALSE))=FALSE,VLOOKUP($F$2:$F$478,pos,5,FALSE),IF(ISNA(VLOOKUP($F$2:$F$478,lot,5,FALSE))=FALSE,VLOOKUP($F$2:$F$478,lot,5,FALSE),0)),"") -> 6.52 | P130: =IF($H130>0,VLOOKUP($D:$D,prix,15,FALSE),"") ->  | Q130: =IF($C130="RM",$O130*$G130,"") -> 2764.48 | R130: =IF($H130>0,$H130*$P130,"") ->  | T130: =IF($F130>0,VALUE(LEFT($F130,4)),"") -> 6165 | U130: =IF(F130>0,IF(ISERROR(SEARCH("*FZ*",$E130))=FALSE,"FZ",IF(ISERROR(SEARCH("*FR*",$E130))=FALSE,"FR","Aucun")),"") -> FR | V130: =IF($C130="RM",IF($U130="FR",IF(ISNA(VLOOKUP($F:$F,lot,6,FALSE))=TRUE,VLOOKUP($T:$T,date,2,FALSE),VLOOKUP($F:$F,lot,6,FALSE)),""),"") -> 2016-04-14 | W130: =IF($C130="RM",IF($U130="Fz",IF(ISNA(VLOOKUP($F:$F,lot,6,FALSE))=TRUE,VLOOKUP($T:$T,date,2,FALSE),VLOOKUP($F:$F,lot,6,FALSE)),""),"") ->  | X130: =IF($C130="FG",VLOOKUP($A:$A,op,4,FALSE),"") ->  | Y130: 2016-04-26 | Z130: =IF(C130="rm",IF(U130="aucun","OK",IF(U130="fz",IF(Y130-W130>730,Y130-W130,"OK"),IF(Y130-V130<1,1,Y130-V130))),"") -> 12
A131: 6165B02J | B131: Beef | C131: RM | D131: 30028 | E131: BONELESS **90 % BEEF (RM )**COA REQUIRED FR #D | F131: 6166B02 | G131: 798 | K131: =IF(ISNA(VLOOKUP($D:$D,rend,2,FALSE))=FALSE,VLOOKUP($D:$D,rend,2,FALSE),"") -> 0.9406880987 | L131: =IF($C131="RM",IF(ISNA(VLOOKUP($F$2:$F$478,pos,2,FALSE))=FALSE,VLOOKUP($F131:$F$478,pos,2,FALSE),IF(ISNA(VLOOKUP($F$2:$F$478,lot,2,FALSE))=FALSE,VLOOKUP($F$2:$F$478,lot,2,FALSE),"MANQUANT")),"") -> PO-0021748 | M131: =IF($C131="RM",IF(ISNA(VLOOKUP($F$2:$F$478,pos,3,FALSE))=FALSE,VLOOKUP($F131:$F585,pos,3,FALSE),"OP"),"") -> RYDI | N131: =IF($C131="RM",IF(ISNA(VLOOKUP($F131:$F$471,pos,4,FALSE))=FALSE,VLOOKUP($F$2:$F$471,pos,4,FALSE),""),"") -> 1731 | O131: =IF($C131="RM",IF(ISNA(VLOOKUP($F$2:$F$478,pos,5,FALSE))=FALSE,VLOOKUP($F$2:$F$478,pos,5,FALSE),IF(ISNA(VLOOKUP($F$2:$F$478,lot,5,FALSE))=FALSE,VLOOKUP($F$2:$F$478,lot,5,FALSE),0)),"") -> 6.68 | P131: =IF($H131>0,VLOOKUP($D:$D,prix,15,FALSE),"") ->  | Q131: =IF($C131="RM",$O131*$G131,"") -> 5330.64 | R131: =IF($H131>0,$H131*$P131,"") ->  | T131: =IF($F131>0,VALUE(LEFT($F131,4)),"") -> 6166 | U131: =IF(F131>0,IF(ISERROR(SEARCH("*FZ*",$E131))=FALSE,"FZ",IF(ISERROR(SEARCH("*FR*",$E131))=FALSE,"FR","Aucun")),"") -> FR | V131: =IF($C131="RM",IF($U131="FR",IF(ISNA(VLOOKUP($F:$F,lot,6,FALSE))=TRUE,VLOOKUP($T:$T,date,2,FALSE),VLOOKUP($F:$F,lot,6,FALSE)),""),"") -> 2016-04-15 | W131: =IF($C131="RM",IF($U131="Fz",IF(ISNA(VLOOKUP($F:$F,lot,6,FALSE))=TRUE,VLOOKUP($T:$T,date,2,FALSE),VLOOKUP($F:$F,lot,6,FALSE)),""),"") ->  | X131: =IF($C131="FG",VLOOKUP($A:$A,op,4,FALSE),"") ->  | Y131: 2016-04-26 | Z131: =IF(C131="rm",IF(U131="aucun","OK",IF(U131="fz",IF(Y131-W131>730,Y131-W131,"OK"),IF(Y131-V131<1,1,Y131-V131))),"") -> 11
A132: 6165B02J | B132: Beef | C132: RM | D132: 30001 | E132: BNLS BEEF TRIMMINGS 65%**RAW MATERIAL* COA REQUIS FR #D | F132: 6172B02 | G132: 48 | K132: =IF(ISNA(VLOOKUP($D:$D,rend,2,FALSE))=FALSE,VLOOKUP($D:$D,rend,2,FALSE),"") -> 0.9387197344 | L132: =IF($C132="RM",IF(ISNA(VLOOKUP($F$2:$F$478,pos,2,FALSE))=FALSE,VLOOKUP($F132:$F$478,pos,2,FALSE),IF(ISNA(VLOOKUP($F$2:$F$478,lot,2,FALSE))=FALSE,VLOOKUP($F$2:$F$478,lot,2,FALSE),"MANQUANT")),"") -> PO-0021748 | M132: =IF($C132="RM",IF(ISNA(VLOOKUP($F$2:$F$478,pos,3,FALSE))=FALSE,VLOOKUP($F132:$F586,pos,3,FALSE),"OP"),"") -> RYDI | N132: =IF($C132="RM",IF(ISNA(VLOOKUP($F132:$F$471,pos,4,FALSE))=FALSE,VLOOKUP($F$2:$F$471,pos,4,FALSE),""),"") -> 800 | O132: =IF($C132="RM",IF(ISNA(VLOOKUP($F$2:$F$478,pos,5,FALSE))=FALSE,VLOOKUP($F$2:$F$478,pos,5,FALSE),IF(ISNA(VLOOKUP($F$2:$F$478,lot,5,FALSE))=FALSE,VLOOKUP($F$2:$F$478,lot,5,FALSE),0)),"") -> 4.04 | P132: =IF($H132>0,VLOOKUP($D:$D,prix,15,FALSE),"") ->  | Q132: =IF($C132="RM",$O132*$G132,"") -> 193.92 | R132: =IF($H132>0,$H132*$P132,"") ->  | T132: =IF($F132>0,VALUE(LEFT($F132,4)),"") -> 6172 | U132: =IF(F132>0,IF(ISERROR(SEARCH("*FZ*",$E132))=FALSE,"FZ",IF(ISERROR(SEARCH("*FR*",$E132))=FALSE,"FR","Aucun")),"") -> FR | V132: =IF($C132="RM",IF($U132="FR",IF(ISNA(VLOOKUP($F:$F,lot,6,FALSE))=TRUE,VLOOKUP($T:$T,date,2,FALSE),VLOOKUP($F:$F,lot,6,FALSE)),""),"") -> 2016-04-18 | W132: =IF($C132="RM",IF($U132="Fz",IF(ISNA(VLOOKUP($F:$F,lot,6,FALSE))=TRUE,VLOOKUP($T:$T,date,2,FALSE),VLOOKUP($F:$F,lot,6,FALSE)),""),"") ->  | X132: =IF($C132="FG",VLOOKUP($A:$A,op,4,FALSE),"") ->  | Y132: 2016-04-26 | Z132: =IF(C132="rm",IF(U132="aucun","OK",IF(U132="fz",IF(Y132-W132>730,Y132-W132,"OK"),IF(Y132-V132<1,1,Y132-V132))),"") -> 8
A133: 6165B02J | B133: Beef | C133: RM | D133: 30028 | E133: BONELESS **90 % BEEF (RM )**COA REQUIRED FR #D | F133: 6174B02 | G133: 266 | K133: =IF(ISNA(VLOOKUP($D:$D,rend,2,FALSE))=FALSE,VLOOKUP($D:$D,rend,2,FALSE),"") -> 0.9406880987 | L133: =IF($C133="RM",IF(ISNA(VLOOKUP($F$2:$F$478,pos,2,FALSE))=FALSE,VLOOKUP($F133:$F$478,pos,2,FALSE),IF(ISNA(VLOOKUP($F$2:$F$478,lot,2,FALSE))=FALSE,VLOOKUP($F$2:$F$478,lot,2,FALSE),"MANQUANT")),"") -> PO-0021749 | M133: =IF($C133="RM",IF(ISNA(VLOOKUP($F$2:$F$478,pos,3,FALSE))=FALSE,VLOOKUP($F133:$F587,pos,3,FALSE),"OP"),"") -> RYDI | N133: =IF($C133="RM",IF(ISNA(VLOOKUP($F133:$F$471,pos,4,FALSE))=FALSE,VLOOKUP($F$2:$F$471,pos,4,FALSE),""),"") -> 866.5 | O133: =IF($C133="RM",IF(ISNA(VLOOKUP($F$2:$F$478,pos,5,FALSE))=FALSE,VLOOKUP($F$2:$F$478,pos,5,FALSE),IF(ISNA(VLOOKUP($F$2:$F$478,lot,5,FALSE))=FALSE,VLOOKUP($F$2:$F$478,lot,5,FALSE),0)),"") -> 6.68 | P133: =IF($H133>0,VLOOKUP($D:$D,prix,15,FALSE),"") ->  | Q133: =IF($C133="RM",$O133*$G133,"") -> 1776.88 | R133: =IF($H133>0,$H133*$P133,"") ->  | T133: =IF($F133>0,VALUE(LEFT($F133,4)),"") -> 6174 | U133: =IF(F133>0,IF(ISERROR(SEARCH("*FZ*",$E133))=FALSE,"FZ",IF(ISERROR(SEARCH("*FR*",$E133))=FALSE,"FR","Aucun")),"") -> FR | V133: =IF($C133="RM",IF($U133="FR",IF(ISNA(VLOOKUP($F:$F,lot,6,FALSE))=TRUE,VLOOKUP($T:$T,date,2,FALSE),VLOOKUP($F:$F,lot,6,FALSE)),""),"") -> 2016-04-20 | W133: =IF($C133="RM",IF($U133="Fz",IF(ISNA(VLOOKUP($F:$F,lot,6,FALSE))=TRUE,VLOOKUP($T:$T,date,2,FALSE),VLOOKUP($F:$F,lot,6,FALSE)),""),"") ->  | X133: =IF($C133="FG",VLOOKUP($A:$A,op,4,FALSE),"") ->  | Y133: 2016-04-26 | Z133: =IF(C133="rm",IF(U133="aucun","OK",IF(U133="fz",IF(Y133-W133>730,Y133-W133,"OK"),IF(Y133-V133<1,1,Y133-V133))),"") -> 6
A134: 6165B02J | B134: Beef | C134: RM | D134: 30001 | E134: BNLS BEEF TRIMMINGS 65%**RAW MATERIAL* COA REQUIS FR #D | F134: 6175B07 | G134: 70 | K134: =IF(ISNA(VLOOKUP($D:$D,rend,2,FALSE))=FALSE,VLOOKUP($D:$D,rend,2,FALSE),"") -> 0.9387197344 | L134: =IF($C134="RM",IF(ISNA(VLOOKUP($F$2:$F$478,pos,2,FALSE))=FALSE,VLOOKUP($F134:$F$478,pos,2,FALSE),IF(ISNA(VLOOKUP($F$2:$F$478,lot,2,FALSE))=FALSE,VLOOKUP($F$2:$F$478,lot,2,FALSE),"MANQUANT")),"") -> PO-0021815 | M134: =IF($C134="RM",IF(ISNA(VLOOKUP($F$2:$F$478,pos,3,FALSE))=FALSE,VLOOKUP($F134:$F588,pos,3,FALSE),"OP"),"") -> RYDI | N134: =IF($C134="RM",IF(ISNA(VLOOKUP($F134:$F$471,pos,4,FALSE))=FALSE,VLOOKUP($F$2:$F$471,pos,4,FALSE),""),"") -> 800 | O134: =IF($C134="RM",IF(ISNA(VLOOKUP($F$2:$F$478,pos,5,FALSE))=FALSE,VLOOKUP($F$2:$F$478,pos,5,FALSE),IF(ISNA(VLOOKUP($F$2:$F$478,lot,5,FALSE))=FALSE,VLOOKUP($F$2:$F$478,lot,5,FALSE),0)),"") -> 3.79 | P134: =IF($H134>0,VLOOKUP($D:$D,prix,15,FALSE),"") ->  | Q134: =IF($C134="RM",$O134*$G134,"") -> 265.3 | R134: =IF($H134>0,$H134*$P134,"") ->  | T134: =IF($F134>0,VALUE(LEFT($F134,4)),"") -> 6175 | U134: =IF(F134>0,IF(ISERROR(SEARCH("*FZ*",$E134))=FALSE,"FZ",IF(ISERROR(SEARCH("*FR*",$E134))=FALSE,"FR","Aucun")),"") -> FR | V134: =IF($C134="RM",IF($U134="FR",IF(ISNA(VLOOKUP($F:$F,lot,6,FALSE))=TRUE,VLOOKUP($T:$T,date,2,FALSE),VLOOKUP($F:$F,lot,6,FALSE)),""),"") -> 2016-04-21 | W134: =IF($C134="RM",IF($U134="Fz",IF(ISNA(VLOOKUP($F:$F,lot,6,FALSE))=TRUE,VLOOKUP($T:$T,date,2,FALSE),VLOOKUP($F:$F,lot,6,FALSE)),""),"") ->  | X134: =IF($C134="FG",VLOOKUP($A:$A,op,4,FALSE),"") ->  | Y134: 2016-04-26 | Z134: =IF(C134="rm",IF(U134="aucun","OK",IF(U134="fz",IF(Y134-W134>730,Y134-W134,"OK"),IF(Y134-V134<1,1,Y134-V134))),"") -> 5
A135: 6165B02J | B135: Beef | C135: FG | D135: 21017 | E135: LEAN GROUND BEEF ANGUS ALPHA (4 X .400gr, 1.6 KG) 10 SAC/ CAISSE FZ #D | F135: 6165B0218 | H135: 2992 | K135: =IF(ISNA(VLOOKUP($D:$D,rend,2,FALSE))=FALSE,VLOOKUP($D:$D,rend,2,FALSE),"") -> 1 | L135: =IF($C135="RM",IF(ISNA(VLOOKUP($F$2:$F$478,pos,2,FALSE))=FALSE,VLOOKUP($F135:$F$478,pos,2,FALSE),IF(ISNA(VLOOKUP($F$2:$F$478,lot,2,FALSE))=FALSE,VLOOKUP($F$2:$F$478,lot,2,FALSE),"MANQUANT")),"") ->  | M135: =IF($C135="RM",IF(ISNA(VLOOKUP($F$2:$F$478,pos,3,FALSE))=FALSE,VLOOKUP($F135:$F589,pos,3,FALSE),"OP"),"") ->  | N135: =IF($C135="RM",IF(ISNA(VLOOKUP($F135:$F$471,pos,4,FALSE))=FALSE,VLOOKUP($F$2:$F$471,pos,4,FALSE),""),"") ->  | O135: =IF($C135="RM",IF(ISNA(VLOOKUP($F$2:$F$478,pos,5,FALSE))=FALSE,VLOOKUP($F$2:$F$478,pos,5,FALSE),IF(ISNA(VLOOKUP($F$2:$F$478,lot,5,FALSE))=FALSE,VLOOKUP($F$2:$F$478,lot,5,FALSE),0)),"") ->  | P135: =IF($H135>0,VLOOKUP($D:$D,prix,15,FALSE),"") -> 6.25 | Q135: =IF($C135="RM",$O135*$G135,"") ->  | R135: =IF($H135>0,$H135*$P135,"") -> 18700 | T135: =IF($F135>0,VALUE(LEFT($F135,4)),"") -> 6165 | U135: =IF(F135>0,IF(ISERROR(SEARCH("*FZ*",$E135))=FALSE,"FZ",IF(ISERROR(SEARCH("*FR*",$E135))=FALSE,"FR","Aucun")),"") -> FZ | V135: =IF($C135="RM",IF($U135="FR",IF(ISNA(VLOOKUP($F:$F,lot,6,FALSE))=TRUE,VLOOKUP($T:$T,date,2,FALSE),VLOOKUP($F:$F,lot,6,FALSE)),""),"") ->  | W135: =IF($C135="RM",IF($U135="Fz",IF(ISNA(VLOOKUP($F:$F,lot,6,FALSE))=TRUE,VLOOKUP($T:$T,date,2,FALSE),VLOOKUP($F:$F,lot,6,FALSE)),""),"") ->  | X135: =IF($C135="FG",VLOOKUP($A:$A,op,4,FALSE),"") ->  | Y135: 2016-04-26 | Z135: =IF(C135="rm",IF(U135="aucun","OK",IF(U135="fz",IF(Y135-W135>730,Y135-W135,"OK"),IF(Y135-V135<1,1,Y135-V135))),"") -> 
A136: 6165B02J | B136: Beef | C136: FG | D136: 21018 | E136: MIX GROUND BEEF AND PORK ( 4X 500 GR, 2 KG) 8 SAC/ CAISSE FZ #D | F136: 6165B0219 | H136: 0 | K136: =IF(ISNA(VLOOKUP($D:$D,rend,2,FALSE))=FALSE,VLOOKUP($D:$D,rend,2,FALSE),"") -> 1 | L136: =IF($C136="RM",IF(ISNA(VLOOKUP($F$2:$F$478,pos,2,FALSE))=FALSE,VLOOKUP($F136:$F$478,pos,2,FALSE),IF(ISNA(VLOOKUP($F$2:$F$478,lot,2,FALSE))=FALSE,VLOOKUP($F$2:$F$478,lot,2,FALSE),"MANQUANT")),"") ->  | M136: =IF($C136="RM",IF(ISNA(VLOOKUP($F$2:$F$478,pos,3,FALSE))=FALSE,VLOOKUP($F136:$F590,pos,3,FALSE),"OP"),"") ->  | N136: =IF($C136="RM",IF(ISNA(VLOOKUP($F136:$F$471,pos,4,FALSE))=FALSE,VLOOKUP($F$2:$F$471,pos,4,FALSE),""),"") ->  | O136: =IF($C136="RM",IF(ISNA(VLOOKUP($F$2:$F$478,pos,5,FALSE))=FALSE,VLOOKUP($F$2:$F$478,pos,5,FALSE),IF(ISNA(VLOOKUP($F$2:$F$478,lot,5,FALSE))=FALSE,VLOOKUP($F$2:$F$478,lot,5,FALSE),0)),"") ->  | P136: =IF($H136>0,VLOOKUP($D:$D,prix,15,FALSE),"") ->  | Q136: =IF($C136="RM",$O136*$G136,"") ->  | R136: =IF($H136>0,$H136*$P136,"") ->  | T136: =IF($F136>0,VALUE(LEFT($F136,4)),"") -> 6165 | U136: =IF(F136>0,IF(ISERROR(SEARCH("*FZ*",$E136))=FALSE,"FZ",IF(ISERROR(SEARCH("*FR*",$E136))=FALSE,"FR","Aucun")),"") -> FZ | V136: =IF($C136="RM",IF($U136="FR",IF(ISNA(VLOOKUP($F:$F,lot,6,FALSE))=TRUE,VLOOKUP($T:$T,date,2,FALSE),VLOOKUP($F:$F,lot,6,FALSE)),""),"") ->  | W136: =IF($C136="RM",IF($U136="Fz",IF(ISNA(VLOOKUP($F:$F,lot,6,FALSE))=TRUE,VLOOKUP($T:$T,date,2,FALSE),VLOOKUP($F:$F,lot,6,FALSE)),""),"") ->  | X136: =IF($C136="FG",VLOOKUP($A:$A,op,4,FALSE),"") ->  | Y136: 2016-04-26 | Z136: =IF(C136="rm",IF(U136="aucun","OK",IF(U136="fz",IF(Y136-W136>730,Y136-W136,"OK"),IF(Y136-V136<1,1,Y136-V136))),"") -> 
A137: 6165B02J | B137: Beef | C137: FG | D137: 31503 | E137: LEAN GROUND BEEF *IN PROCESS* CODE: 32004,005,012,014,016,023,031,033 FR | F137: 6165B0221 | H137: 5.84 | K137: =IF(ISNA(VLOOKUP($D:$D,rend,2,FALSE))=FALSE,VLOOKUP($D:$D,rend,2,FALSE),"") -> 0.9570692006 | L137: =IF($C137="RM",IF(ISNA(VLOOKUP($F$2:$F$478,pos,2,FALSE))=FALSE,VLOOKUP($F137:$F$478,pos,2,FALSE),IF(ISNA(VLOOKUP($F$2:$F$478,lot,2,FALSE))=FALSE,VLOOKUP($F$2:$F$478,lot,2,FALSE),"MANQUANT")),"") ->  | M137: =IF($C137="RM",IF(ISNA(VLOOKUP($F$2:$F$478,pos,3,FALSE))=FALSE,VLOOKUP($F137:$F591,pos,3,FALSE),"OP"),"") ->  | N137: =IF($C137="RM",IF(ISNA(VLOOKUP($F137:$F$471,pos,4,FALSE))=FALSE,VLOOKUP($F$2:$F$471,pos,4,FALSE),""),"") ->  | O137: =IF($C137="RM",IF(ISNA(VLOOKUP($F$2:$F$478,pos,5,FALSE))=FALSE,VLOOKUP($F$2:$F$478,pos,5,FALSE),IF(ISNA(VLOOKUP($F$2:$F$478,lot,5,FALSE))=FALSE,VLOOKUP($F$2:$F$478,lot,5,FALSE),0)),"") ->  | P137: =IF($H137>0,VLOOKUP($D:$D,prix,15,FALSE),"") -> 7.65 | Q137: =IF($C137="RM",$O137*$G137,"") ->  | R137: =IF($H137>0,$H137*$P137,"") -> 44.676 | T137: =IF($F137>0,VALUE(LEFT($F137,4)),"") -> 6165 | U137: =IF(F137>0,IF(ISERROR(SEARCH("*FZ*",$E137))=FALSE,"FZ",IF(ISERROR(SEARCH("*FR*",$E137))=FALSE,"FR","Aucun")),"") -> FR | V137: =IF($C137="RM",IF($U137="FR",IF(ISNA(VLOOKUP($F:$F,lot,6,FALSE))=TRUE,VLOOKUP($T:$T,date,2,FALSE),VLOOKUP($F:$F,lot,6,FALSE)),""),"") ->  | W137: =IF($C137="RM",IF($U137="Fz",IF(ISNA(VLOOKUP($F:$F,lot,6,FALSE))=TRUE,VLOOKUP($T:$T,date,2,FALSE),VLOOKUP($F:$F,lot,6,FALSE)),""),"") ->  | X137: =IF($C137="FG",VLOOKUP($A:$A,op,4,FALSE),"") ->  | Y137: 2016-04-26 | Z137: =IF(C137="rm",IF(U137="aucun","OK",IF(U137="fz",IF(Y137-W137>730,Y137-W137,"OK"),IF(Y137-V137<1,1,Y137-V137))),"") -> 
A138: 6165B02J Total | G138: =SUBTOTAL(9,G127:G137) -> 2999.81 | H138: =SUBTOTAL(9,H127:H137) -> 2997.84 | Q138: =SUBTOTAL(9,Q127:Q137) -> 12243.27 | R138: =SUBTOTAL(9,R127:R137) -> 18744.676
A139: 6165B02K | B139: Beef | C139: RM | D139: 1 | E139: ING EAU | F139: 5166AS | G139: 2 | K139: =IF(ISNA(VLOOKUP($D:$D,rend,2,FALSE))=FALSE,VLOOKUP($D:$D,rend,2,FALSE),"") ->  | L139: =IF($C139="RM",IF(ISNA(VLOOKUP($F$2:$F$478,pos,2,FALSE))=FALSE,VLOOKUP($F139:$F$478,pos,2,FALSE),IF(ISNA(VLOOKUP($F$2:$F$478,lot,2,FALSE))=FALSE,VLOOKUP($F$2:$F$478,lot,2,FALSE),"MANQUANT")),"") -> Aucun | M139: =IF($C139="RM",IF(ISNA(VLOOKUP($F$2:$F$478,pos,3,FALSE))=FALSE,VLOOKUP($F139:$F592,pos,3,FALSE),"OP"),"") -> Aucun | N139: =IF($C139="RM",IF(ISNA(VLOOKUP($F139:$F$471,pos,4,FALSE))=FALSE,VLOOKUP($F$2:$F$471,pos,4,FALSE),""),"") -> 0 | O139: =IF($C139="RM",IF(ISNA(VLOOKUP($F$2:$F$478,pos,5,FALSE))=FALSE,VLOOKUP($F$2:$F$478,pos,5,FALSE),IF(ISNA(VLOOKUP($F$2:$F$478,lot,5,FALSE))=FALSE,VLOOKUP($F$2:$F$478,lot,5,FALSE),0)),"") -> 0 | P139: =IF($H139>0,VLOOKUP($D:$D,prix,15,FALSE),"") ->  | Q139: =IF($C139="RM",$O139*$G139,"") -> 0 | R139: =IF($H139>0,$H139*$P139,"") ->  | T139: =IF($F139>0,VALUE(LEFT($F139,4)),"") -> 5166 | U139: =IF(F139>0,IF(ISERROR(SEARCH("*FZ*",$E139))=FALSE,"FZ",IF(ISERROR(SEARCH("*FR*",$E139))=FALSE,"FR","Aucun")),"") -> Aucun | V139: =IF($C139="RM",IF($U139="FR",IF(ISNA(VLOOKUP($F:$F,lot,6,FALSE))=TRUE,VLOOKUP($T:$T,date,2,FALSE),VLOOKUP($F:$F,lot,6,FALSE)),""),"") ->  | W139: =IF($C139="RM",IF($U139="Fz",IF(ISNA(VLOOKUP($F:$F,lot,6,FALSE))=TRUE,VLOOKUP($T:$T,date,2,FALSE),VLOOKUP($F:$F,lot,6,FALSE)),""),"") ->  | X139: =IF($C139="FG",VLOOKUP($A:$A,op,4,FALSE),"") ->  | Y139: 2016-04-26 | Z139: =IF(C139="rm",IF(U139="aucun","OK",IF(U139="fz",IF(Y139-W139>730,Y139-W139,"OK"),IF(Y139-V139<1,1,Y139-V139))),"") -> OK
A140: 6165B02K | B140: Beef | C140: RM | D140: 30032 | E140: BONELESS BEEF 65% TRIMMINGS**RM COA REQUIS FZ #D | F140: 5472B04 | G140: 54.4 | K140: =IF(ISNA(VLOOKUP($D:$D,rend,2,FALSE))=FALSE,VLOOKUP($D:$D,rend,2,FALSE),"") -> 0.9410735268 | L140: =IF($C140="RM",IF(ISNA(VLOOKUP($F$2:$F$478,pos,2,FALSE))=FALSE,VLOOKUP($F140:$F$478,pos,2,FALSE),IF(ISNA(VLOOKUP($F$2:$F$478,lot,2,FALSE))=FALSE,VLOOKUP($F$2:$F$478,lot,2,FALSE),"MANQUANT")),"") -> PO-0021789 | M140: =IF($C140="RM",IF(ISNA(VLOOKUP($F$2:$F$478,pos,3,FALSE))=FALSE,VLOOKUP($F140:$F593,pos,3,FALSE),"OP"),"") -> CHIS | N140: =IF($C140="RM",IF(ISNA(VLOOKUP($F140:$F$471,pos,4,FALSE))=FALSE,VLOOKUP($F$2:$F$471,pos,4,FALSE),""),"") -> 24171.36 | O140: =IF($C140="RM",IF(ISNA(VLOOKUP($F$2:$F$478,pos,5,FALSE))=FALSE,VLOOKUP($F$2:$F$478,pos,5,FALSE),IF(ISNA(VLOOKUP($F$2:$F$478,lot,5,FALSE))=FALSE,VLOOKUP($F$2:$F$478,lot,5,FALSE),0)),"") -> 3.15 | P140: =IF($H140>0,VLOOKUP($D:$D,prix,15,FALSE),"") ->  | Q140: =IF($C140="RM",$O140*$G140,"") -> 171.36 | R140: =IF($H140>0,$H140*$P140,"") ->  | T140: =IF($F140>0,VALUE(LEFT($F140,4)),"") -> 5472 | U140: =IF(F140>0,IF(ISERROR(SEARCH("*FZ*",$E140))=FALSE,"FZ",IF(ISERROR(SEARCH("*FR*",$E140))=FALSE,"FR","Aucun")),"") -> FZ | V140: =IF($C140="RM",IF($U140="FR",IF(ISNA(VLOOKUP($F:$F,lot,6,FALSE))=TRUE,VLOOKUP($T:$T,date,2,FALSE),VLOOKUP($F:$F,lot,6,FALSE)),""),"") ->  | W140: =IF($C140="RM",IF($U140="Fz",IF(ISNA(VLOOKUP($F:$F,lot,6,FALSE))=TRUE,VLOOKUP($T:$T,date,2,FALSE),VLOOKUP($F:$F,lot,6,FALSE)),""),"") -> 2015-11-16 | X140: =IF($C140="FG",VLOOKUP($A:$A,op,4,FALSE),"") ->  | Y140: 2016-04-26 | Z140: =IF(C140="rm",IF(U140="aucun","OK",IF(U140="fz",IF(Y140-W140>730,Y140-W140,"OK"),IF(Y140-V140<1,1,Y140-V140))),"") -> OK
A141: 6165B02K | B141: Beef | C141: RM | D141: 9 | E141: GLACE CONCASSEE | F141: 6046AS01 | G141: 2 | K141: =IF(ISNA(VLOOKUP($D:$D,rend,2,FALSE))=FALSE,VLOOKUP($D:$D,rend,2,FALSE),"") ->  | L141: =IF($C141="RM",IF(ISNA(VLOOKUP($F$2:$F$478,pos,2,FALSE))=FALSE,VLOOKUP($F141:$F$478,pos,2,FALSE),IF(ISNA(VLOOKUP($F$2:$F$478,lot,2,FALSE))=FALSE,VLOOKUP($F$2:$F$478,lot,2,FALSE),"MANQUANT")),"") -> PO-0021148 | M141: =IF($C141="RM",IF(ISNA(VLOOKUP($F$2:$F$478,pos,3,FALSE))=FALSE,VLOOKUP($F141:$F594,pos,3,FALSE),"OP"),"") -> GLACIER | N141: =IF($C141="RM",IF(ISNA(VLOOKUP($F141:$F$471,pos,4,FALSE))=FALSE,VLOOKUP($F$2:$F$471,pos,4,FALSE),""),"") -> 1000 | O141: =IF($C141="RM",IF(ISNA(VLOOKUP($F$2:$F$478,pos,5,FALSE))=FALSE,VLOOKUP($F$2:$F$478,pos,5,FALSE),IF(ISNA(VLOOKUP($F$2:$F$478,lot,5,FALSE))=FALSE,VLOOKUP($F$2:$F$478,lot,5,FALSE),0)),"") -> 0.425 | P141: =IF($H141>0,VLOOKUP($D:$D,prix,15,FALSE),"") ->  | Q141: =IF($C141="RM",$O141*$G141,"") -> 0.85 | R141: =IF($H141>0,$H141*$P141,"") ->  | T141: =IF($F141>0,VALUE(LEFT($F141,4)),"") -> 6046 | U141: =IF(F141>0,IF(ISERROR(SEARCH("*FZ*",$E141))=FALSE,"FZ",IF(ISERROR(SEARCH("*FR*",$E141))=FALSE,"FR","Aucun")),"") -> Aucun | V141: =IF($C141="RM",IF($U141="FR",IF(ISNA(VLOOKUP($F:$F,lot,6,FALSE))=TRUE,VLOOKUP($T:$T,date,2,FALSE),VLOOKUP($F:$F,lot,6,FALSE)),""),"") ->  | W141: =IF($C141="RM",IF($U141="Fz",IF(ISNA(VLOOKUP($F:$F,lot,6,FALSE))=TRUE,VLOOKUP($T:$T,date,2,FALSE),VLOOKUP($F:$F,lot,6,FALSE)),""),"") ->  | X141: =IF($C141="FG",VLOOKUP($A:$A,op,4,FALSE),"") ->  | Y141: 2016-04-26 | Z141: =IF(C141="rm",IF(U141="aucun","OK",IF(U141="fz",IF(Y141-W141>730,Y141-W141,"OK"),IF(Y141-V141<1,1,Y141-V141))),"") -> OK
A142: 6165B02K | B142: Beef | C142: RM | D142: 30010 | E142: BONELESS BEEF *RM*95%* COA REQUIS FZ | F142: 6046B04 | G142: 54.4 | K142: =IF(ISNA(VLOOKUP($D:$D,rend,2,FALSE))=FALSE,VLOOKUP($D:$D,rend,2,FALSE),"") -> 0.9387103571 | L142: =IF($C142="RM",IF(ISNA(VLOOKUP($F$2:$F$478,pos,2,FALSE))=FALSE,VLOOKUP($F142:$F$478,pos,2,FALSE),IF(ISNA(VLOOKUP($F$2:$F$478,lot,2,FALSE))=FALSE,VLOOKUP($F$2:$F$478,lot,2,FALSE),"MANQUANT")),"") -> PO-0021001 | M142: =IF($C142="RM",IF(ISNA(VLOOKUP($F$2:$F$478,pos,3,FALSE))=FALSE,VLOOKUP($F142:$F595,pos,3,FALSE),"OP"),"") -> CHIS | N142: =IF($C142="RM",IF(ISNA(VLOOKUP($F142:$F$471,pos,4,FALSE))=FALSE,VLOOKUP($F$2:$F$471,pos,4,FALSE),""),"") -> 17965.2 | O142: =IF($C142="RM",IF(ISNA(VLOOKUP($F$2:$F$478,pos,5,FALSE))=FALSE,VLOOKUP($F$2:$F$478,pos,5,FALSE),IF(ISNA(VLOOKUP($F$2:$F$478,lot,5,FALSE))=FALSE,VLOOKUP($F$2:$F$478,lot,5,FALSE),0)),"") -> 5.86 | P142: =IF($H142>0,VLOOKUP($D:$D,prix,15,FALSE),"") ->  | Q142: =IF($C142="RM",$O142*$G142,"") -> 318.784 | R142: =IF($H142>0,$H142*$P142,"") ->  | T142: =IF($F142>0,VALUE(LEFT($F142,4)),"") -> 6046 | U142: =IF(F142>0,IF(ISERROR(SEARCH("*FZ*",$E142))=FALSE,"FZ",IF(ISERROR(SEARCH("*FR*",$E142))=FALSE,"FR","Aucun")),"") -> FZ | V142: =IF($C142="RM",IF($U142="FR",IF(ISNA(VLOOKUP($F:$F,lot,6,FALSE))=TRUE,VLOOKUP($T:$T,date,2,FALSE),VLOOKUP($F:$F,lot,6,FALSE)),""),"") ->  | W142: =IF($C142="RM",IF($U142="Fz",IF(ISNA(VLOOKUP($F:$F,lot,6,FALSE))=TRUE,VLOOKUP($T:$T,date,2,FALSE),VLOOKUP($F:$F,lot,6,FALSE)),""),"") -> 2016-01-22 | X142: =IF($C142="FG",VLOOKUP($A:$A,op,4,FALSE),"") ->  | Y142: 2016-04-26 | Z142: =IF(C142="rm",IF(U142="aucun","OK",IF(U142="fz",IF(Y142-W142>730,Y142-W142,"OK"),IF(Y142-V142<1,1,Y142-V142))),"") -> OK
A143: 6165B02K | B143: Beef | C143: RM | D143: 30015 | E143: STEER BEEF HEARTS COA REQUIS FZ | F143: 6124B04 | G143: 27.2 | K143: =IF(ISNA(VLOOKUP($D:$D,rend,2,FALSE))=FALSE,VLOOKUP($D:$D,rend,2,FALSE),"") -> 0.9329692343 | L143: =IF($C143="RM",IF(ISNA(VLOOKUP($F$2:$F$478,pos,2,FALSE))=FALSE,VLOOKUP($F143:$F$478,pos,2,FALSE),IF(ISNA(VLOOKUP($F$2:$F$478,lot,2,FALSE))=FALSE,VLOOKUP($F$2:$F$478,lot,2,FALSE),"MANQUANT")),"") -> PO-0021564 | M143: =IF($C143="RM",IF(ISNA(VLOOKUP($F$2:$F$478,pos,3,FALSE))=FALSE,VLOOKUP($F143:$F596,pos,3,FALSE),"OP"),"") -> CHIS | N143: =IF($C143="RM",IF(ISNA(VLOOKUP($F143:$F$471,pos,4,FALSE))=FALSE,VLOOKUP($F$2:$F$471,pos,4,FALSE),""),"") -> 18285.12 | O143: =IF($C143="RM",IF(ISNA(VLOOKUP($F$2:$F$478,pos,5,FALSE))=FALSE,VLOOKUP($F$2:$F$478,pos,5,FALSE),IF(ISNA(VLOOKUP($F$2:$F$478,lot,5,FALSE))=FALSE,VLOOKUP($F$2:$F$478,lot,5,FALSE),0)),"") -> 1.5 | P143: =IF($H143>0,VLOOKUP($D:$D,prix,15,FALSE),"") ->  | Q143: =IF($C143="RM",$O143*$G143,"") -> 40.8 | R143: =IF($H143>0,$H143*$P143,"") ->  | T143: =IF($F143>0,VALUE(LEFT($F143,4)),"") -> 6124 | U143: =IF(F143>0,IF(ISERROR(SEARCH("*FZ*",$E143))=FALSE,"FZ",IF(ISERROR(SEARCH("*FR*",$E143))=FALSE,"FR","Aucun")),"") -> FZ | V143: =IF($C143="RM",IF($U143="FR",IF(ISNA(VLOOKUP($F:$F,lot,6,FALSE))=TRUE,VLOOKUP($T:$T,date,2,FALSE),VLOOKUP($F:$F,lot,6,FALSE)),""),"") ->  | W143: =IF($C143="RM",IF($U143="Fz",IF(ISNA(VLOOKUP($F:$F,lot,6,FALSE))=TRUE,VLOOKUP($T:$T,date,2,FALSE),VLOOKUP($F:$F,lot,6,FALSE)),""),"") -> 2016-03-16 | X143: =IF($C143="FG",VLOOKUP($A:$A,op,4,FALSE),"") ->  | Y143: 2016-04-26 | Z143: =IF(C143="rm",IF(U143="aucun","OK",IF(U143="fz",IF(Y143-W143>730,Y143-W143,"OK"),IF(Y143-V143<1,1,Y143-V143))),"") -> OK
A144: 6165B02K | B144: Beef | C144: RM | D144: 30028 | E144: BONELESS **90 % BEEF (RM )**COA REQUIRED FR #D | F144: 6165B02 | G144: 60 | K144: =IF(ISNA(VLOOKUP($D:$D,rend,2,FALSE))=FALSE,VLOOKUP($D:$D,rend,2,FALSE),"") -> 0.9406880987 | L144: =IF($C144="RM",IF(ISNA(VLOOKUP($F$2:$F$478,pos,2,FALSE))=FALSE,VLOOKUP($F144:$F$478,pos,2,FALSE),IF(ISNA(VLOOKUP($F$2:$F$478,lot,2,FALSE))=FALSE,VLOOKUP($F$2:$F$478,lot,2,FALSE),"MANQUANT")),"") -> PO-0021747 | M144: =IF($C144="RM",IF(ISNA(VLOOKUP($F$2:$F$478,pos,3,FALSE))=FALSE,VLOOKUP($F144:$F597,pos,3,FALSE),"OP"),"") -> RYDI | N144: =IF($C144="RM",IF(ISNA(VLOOKUP($F144:$F$471,pos,4,FALSE))=FALSE,VLOOKUP($F$2:$F$471,pos,4,FALSE),""),"") -> 1720 | O144: =IF($C144="RM",IF(ISNA(VLOOKUP($F$2:$F$478,pos,5,FALSE))=FALSE,VLOOKUP($F$2:$F$478,pos,5,FALSE),IF(ISNA(VLOOKUP($F$2:$F$478,lot,5,FALSE))=FALSE,VLOOKUP($F$2:$F$478,lot,5,FALSE),0)),"") -> 6.52 | P144: =IF($H144>0,VLOOKUP($D:$D,prix,15,FALSE),"") ->  | Q144: =IF($C144="RM",$O144*$G144,"") -> 391.2 | R144: =IF($H144>0,$H144*$P144,"") ->  | T144: =IF($F144>0,VALUE(LEFT($F144,4)),"") -> 6165 | U144: =IF(F144>0,IF(ISERROR(SEARCH("*FZ*",$E144))=FALSE,"FZ",IF(ISERROR(SEARCH("*FR*",$E144))=FALSE,"FR","Aucun")),"") -> FR | V144: =IF($C144="RM",IF($U144="FR",IF(ISNA(VLOOKUP($F:$F,lot,6,FALSE))=TRUE,VLOOKUP($T:$T,date,2,FALSE),VLOOKUP($F:$F,lot,6,FALSE)),""),"") -> 2016-04-14 | W144: =IF($C144="RM",IF($U144="Fz",IF(ISNA(VLOOKUP($F:$F,lot,6,FALSE))=TRUE,VLOOKUP($T:$T,date,2,FALSE),VLOOKUP($F:$F,lot,6,FALSE)),""),"") ->  | X144: =IF($C144="FG",VLOOKUP($A:$A,op,4,FALSE),"") ->  | Y144: 2016-04-26 | Z144: =IF(C144="rm",IF(U144="aucun","OK",IF(U144="fz",IF(Y144-W144>730,Y144-W144,"OK"),IF(Y144-V144<1,1,Y144-V144))),"") -> 12
A145: 6165B02K | B145: Beef | C145: FG | D145: 11154 | E145: BEEF BURGER PRIMAGO 4 OZ**36/CS**4.08KG/CS FZ #D | F145: 6165B0220 | H145: 195.84 | K145: =IF(ISNA(VLOOKUP($D:$D,rend,2,FALSE))=FALSE,VLOOKUP($D:$D,rend,2,FALSE),"") -> 0.9547309901 | L145: =IF($C145="RM",IF(ISNA(VLOOKUP($F$2:$F$478,pos,2,FALSE))=FALSE,VLOOKUP($F145:$F$478,pos,2,FALSE),IF(ISNA(VLOOKUP($F$2:$F$478,lot,2,FALSE))=FALSE,VLOOKUP($F$2:$F$478,lot,2,FALSE),"MANQUANT")),"") ->  | M145: =IF($C145="RM",IF(ISNA(VLOOKUP($F$2:$F$478,pos,3,FALSE))=FALSE,VLOOKUP($F145:$F598,pos,3,FALSE),"OP"),"") ->  | N145: =IF($C145="RM",IF(ISNA(VLOOKUP($F145:$F$471,pos,4,FALSE))=FALSE,VLOOKUP($F$2:$F$471,pos,4,FALSE),""),"") ->  | O145: =IF($C145="RM",IF(ISNA(VLOOKUP($F$2:$F$478,pos,5,FALSE))=FALSE,VLOOKUP($F$2:$F$478,pos,5,FALSE),IF(ISNA(VLOOKUP($F$2:$F$478,lot,5,FALSE))=FALSE,VLOOKUP($F$2:$F$478,lot,5,FALSE),0)),"") ->  | P145: =IF($H145>0,VLOOKUP($D:$D,prix,15,FALSE),"") -> 7.303921569 | Q145: =IF($C145="RM",$O145*$G145,"") ->  | R145: =IF($H145>0,$H145*$P145,"") -> 1430.4 | T145: =IF($F145>0,VALUE(LEFT($F145,4)),"") -> 6165 | U145: =IF(F145>0,IF(ISERROR(SEARCH("*FZ*",$E145))=FALSE,"FZ",IF(ISERROR(SEARCH("*FR*",$E145))=FALSE,"FR","Aucun")),"") -> FZ | V145: =IF($C145="RM",IF($U145="FR",IF(ISNA(VLOOKUP($F:$F,lot,6,FALSE))=TRUE,VLOOKUP($T:$T,date,2,FALSE),VLOOKUP($F:$F,lot,6,FALSE)),""),"") ->  | W145: =IF($C145="RM",IF($U145="Fz",IF(ISNA(VLOOKUP($F:$F,lot,6,FALSE))=TRUE,VLOOKUP($T:$T,date,2,FALSE),VLOOKUP($F:$F,lot,6,FALSE)),""),"") ->  | X145: =IF($C145="FG",VLOOKUP($A:$A,op,4,FALSE),"") ->  | Y145: 2016-04-26 | Z145: =IF(C145="rm",IF(U145="aucun","OK",IF(U145="fz",IF(Y145-W145>730,Y145-W145,"OK"),IF(Y145-V145<1,1,Y145-V145))),"") -> 
A146: 6165B02K Total | G146: =SUBTOTAL(9,G139:G145) -> 200 | H146: =SUBTOTAL(9,H139:H145) -> 195.84 | Q146: =SUBTOTAL(9,Q139:Q145) -> 922.994 | R146: =SUBTOTAL(9,R139:R145) -> 1430.4
A147: 6166B02D | B147: Beef | C147: RM | D147: 30010 | E147: BONELESS BEEF *RM*95%* COA REQUIS FZ | F147: 6046B04 | G147: 108 | K147: =IF(ISNA(VLOOKUP($D:$D,rend,2,FALSE))=FALSE,VLOOKUP($D:$D,rend,2,FALSE),"") -> 0.9387103571 | L147: =IF($C147="RM",IF(ISNA(VLOOKUP($F$2:$F$478,pos,2,FALSE))=FALSE,VLOOKUP($F147:$F$478,pos,2,FALSE),IF(ISNA(VLOOKUP($F$2:$F$478,lot,2,FALSE))=FALSE,VLOOKUP($F$2:$F$478,lot,2,FALSE),"MANQUANT")),"") -> PO-0021001 | M147: =IF($C147="RM",IF(ISNA(VLOOKUP($F$2:$F$478,pos,3,FALSE))=FALSE,VLOOKUP($F147:$F599,pos,3,FALSE),"OP"),"") -> CHIS | N147: =IF($C147="RM",IF(ISNA(VLOOKUP($F147:$F$471,pos,4,FALSE))=FALSE,VLOOKUP($F$2:$F$471,pos,4,FALSE),""),"") -> 17965.2 | O147: =IF($C147="RM",IF(ISNA(VLOOKUP($F$2:$F$478,pos,5,FALSE))=FALSE,VLOOKUP($F$2:$F$478,pos,5,FALSE),IF(ISNA(VLOOKUP($F$2:$F$478,lot,5,FALSE))=FALSE,VLOOKUP($F$2:$F$478,lot,5,FALSE),0)),"") -> 5.86 | P147: =IF($H147>0,VLOOKUP($D:$D,prix,15,FALSE),"") ->  | Q147: =IF($C147="RM",$O147*$G147,"") -> 632.88 | R147: =IF($H147>0,$H147*$P147,"") ->  | T147: =IF($F147>0,VALUE(LEFT($F147,4)),"") -> 6046 | U147: =IF(F147>0,IF(ISERROR(SEARCH("*FZ*",$E147))=FALSE,"FZ",IF(ISERROR(SEARCH("*FR*",$E147))=FALSE,"FR","Aucun")),"") -> FZ | V147: =IF($C147="RM",IF($U147="FR",IF(ISNA(VLOOKUP($F:$F,lot,6,FALSE))=TRUE,VLOOKUP($T:$T,date,2,FALSE),VLOOKUP($F:$F,lot,6,FALSE)),""),"") ->  | W147: =IF($C147="RM",IF($U147="Fz",IF(ISNA(VLOOKUP($F:$F,lot,6,FALSE))=TRUE,VLOOKUP($T:$T,date,2,FALSE),VLOOKUP($F:$F,lot,6,FALSE)),""),"") -> 2016-01-22 | X147: =IF($C147="FG",VLOOKUP($A:$A,op,4,FALSE),"") ->  | Y147: 2016-04-26 | Z147: =IF(C147="rm",IF(U147="aucun","OK",IF(U147="fz",IF(Y147-W147>730,Y147-W147,"OK"),IF(Y147-V147<1,1,Y147-V147))),"") -> OK
A148: 6166B02D | B148: Beef | C148: RM | D148: 30028 | E148: BONELESS **90 % BEEF (RM )**COA REQUIRED FR #D | F148: 6166B02 | G148: 132 | K148: =IF(ISNA(VLOOKUP($D:$D,rend,2,FALSE))=FALSE,VLOOKUP($D:$D,rend,2,FALSE),"") -> 0.9406880987 | L148: =IF($C148="RM",IF(ISNA(VLOOKUP($F$2:$F$478,pos,2,FALSE))=FALSE,VLOOKUP($F148:$F$478,pos,2,FALSE),IF(ISNA(VLOOKUP($F$2:$F$478,lot,2,FALSE))=FALSE,VLOOKUP($F$2:$F$478,lot,2,FALSE),"MANQUANT")),"") -> PO-0021748 | M148: =IF($C148="RM",IF(ISNA(VLOOKUP($F$2:$F$478,pos,3,FALSE))=FALSE,VLOOKUP($F148:$F600,pos,3,FALSE),"OP"),"") -> RYDI | N148: =IF($C148="RM",IF(ISNA(VLOOKUP($F148:$F$471,pos,4,FALSE))=FALSE,VLOOKUP($F$2:$F$471,pos,4,FALSE),""),"") -> 1731 | O148: =IF($C148="RM",IF(ISNA(VLOOKUP($F$2:$F$478,pos,5,FALSE))=FALSE,VLOOKUP($F$2:$F$478,pos,5,FALSE),IF(ISNA(VLOOKUP($F$2:$F$478,lot,5,FALSE))=FALSE,VLOOKUP($F$2:$F$478,lot,5,FALSE),0)),"") -> 6.68 | P148: =IF($H148>0,VLOOKUP($D:$D,prix,15,FALSE),"") ->  | Q148: =IF($C148="RM",$O148*$G148,"") -> 881.76 | R148: =IF($H148>0,$H148*$P148,"") ->  | T148: =IF($F148>0,VALUE(LEFT($F148,4)),"") -> 6166 | U148: =IF(F148>0,IF(ISERROR(SEARCH("*FZ*",$E148))=FALSE,"FZ",IF(ISERROR(SEARCH("*FR*",$E148))=FALSE,"FR","Aucun")),"") -> FR | V148: =IF($C148="RM",IF($U148="FR",IF(ISNA(VLOOKUP($F:$F,lot,6,FALSE))=TRUE,VLOOKUP($T:$T,date,2,FALSE),VLOOKUP($F:$F,lot,6,FALSE)),""),"") -> 2016-04-15 | W148: =IF($C148="RM",IF($U148="Fz",IF(ISNA(VLOOKUP($F:$F,lot,6,FALSE))=TRUE,VLOOKUP($T:$T,date,2,FALSE),VLOOKUP($F:$F,lot,6,FALSE)),""),"") ->  | X148: =IF($C148="FG",VLOOKUP($A:$A,op,4,FALSE),"") ->  | Y148: 2016-04-26 | Z148: =IF(C148="rm",IF(U148="aucun","OK",IF(U148="fz",IF(Y148-W148>730,Y148-W148,"OK"),IF(Y148-V148<1,1,Y148-V148))),"") -> 11
A149: 6166B02D | B149: Beef | C149: RM | D149: 30001 | E149: BNLS BEEF TRIMMINGS 65%**RAW MATERIAL* COA REQUIS FR #D | F149: 6172B02 | G149: 160 | K149: =IF(ISNA(VLOOKUP($D:$D,rend,2,FALSE))=FALSE,VLOOKUP($D:$D,rend,2,FALSE),"") -> 0.9387197344 | L149: =IF($C149="RM",IF(ISNA(VLOOKUP($F$2:$F$478,pos,2,FALSE))=FALSE,VLOOKUP($F149:$F$478,pos,2,FALSE),IF(ISNA(VLOOKUP($F$2:$F$478,lot,2,FALSE))=FALSE,VLOOKUP($F$2:$F$478,lot,2,FALSE),"MANQUANT")),"") -> PO-0021748 | M149: =IF($C149="RM",IF(ISNA(VLOOKUP($F$2:$F$478,pos,3,FALSE))=FALSE,VLOOKUP($F149:$F601,pos,3,FALSE),"OP"),"") -> RYDI | N149: =IF($C149="RM",IF(ISNA(VLOOKUP($F149:$F$471,pos,4,FALSE))=FALSE,VLOOKUP($F$2:$F$471,pos,4,FALSE),""),"") -> 800 | O149: =IF($C149="RM",IF(ISNA(VLOOKUP($F$2:$F$478,pos,5,FALSE))=FALSE,VLOOKUP($F$2:$F$478,pos,5,FALSE),IF(ISNA(VLOOKUP($F$2:$F$478,lot,5,FALSE))=FALSE,VLOOKUP($F$2:$F$478,lot,5,FALSE),0)),"") -> 4.04 | P149: =IF($H149>0,VLOOKUP($D:$D,prix,15,FALSE),"") ->  | Q149: =IF($C149="RM",$O149*$G149,"") -> 646.4 | R149: =IF($H149>0,$H149*$P149,"") ->  | T149: =IF($F149>0,VALUE(LEFT($F149,4)),"") -> 6172 | U149: =IF(F149>0,IF(ISERROR(SEARCH("*FZ*",$E149))=FALSE,"FZ",IF(ISERROR(SEARCH("*FR*",$E149))=FALSE,"FR","Aucun")),"") -> FR | V149: =IF($C149="RM",IF($U149="FR",IF(ISNA(VLOOKUP($F:$F,lot,6,FALSE))=TRUE,VLOOKUP($T:$T,date,2,FALSE),VLOOKUP($F:$F,lot,6,FALSE)),""),"") -> 2016-04-18 | W149: =IF($C149="RM",IF($U149="Fz",IF(ISNA(VLOOKUP($F:$F,lot,6,FALSE))=TRUE,VLOOKUP($T:$T,date,2,FALSE),VLOOKUP($F:$F,lot,6,FALSE)),""),"") ->  | X149: =IF($C149="FG",VLOOKUP($A:$A,op,4,FALSE),"") ->  | Y149: 2016-04-26 | Z149: =IF(C149="rm",IF(U149="aucun","OK",IF(U149="fz",IF(Y149-W149>730,Y149-W149,"OK"),IF(Y149-V149<1,1,Y149-V149))),"") -> 8
A150: 6166B02D | B150: Beef | C150: FG | D150: 32013 | E150: MEDIUM GROUND BEEF 2X2.5 KG* BOTE BLANCHE FR @P | F150: 6166B0210 | H150: 5 | K150: =IF(ISNA(VLOOKUP($D:$D,rend,2,FALSE))=FALSE,VLOOKUP($D:$D,rend,2,FALSE),"") -> 0.912135857 | L150: =IF($C150="RM",IF(ISNA(VLOOKUP($F$2:$F$478,pos,2,FALSE))=FALSE,VLOOKUP($F150:$F$478,pos,2,FALSE),IF(ISNA(VLOOKUP($F$2:$F$478,lot,2,FALSE))=FALSE,VLOOKUP($F$2:$F$478,lot,2,FALSE),"MANQUANT")),"") ->  | M150: =IF($C150="RM",IF(ISNA(VLOOKUP($F$2:$F$478,pos,3,FALSE))=FALSE,VLOOKUP($F150:$F602,pos,3,FALSE),"OP"),"") ->  | N150: =IF($C150="RM",IF(ISNA(VLOOKUP($F150:$F$471,pos,4,FALSE))=FALSE,VLOOKUP($F$2:$F$471,pos,4,FALSE),""),"") ->  | O150: =IF($C150="RM",IF(ISNA(VLOOKUP($F$2:$F$478,pos,5,FALSE))=FALSE,VLOOKUP($F$2:$F$478,pos,5,FALSE),IF(ISNA(VLOOKUP($F$2:$F$478,lot,5,FALSE))=FALSE,VLOOKUP($F$2:$F$478,lot,5,FALSE),0)),"") ->  | P150: =IF($H150>0,VLOOKUP($D:$D,prix,15,FALSE),"") -> 6.9 | Q150: =IF($C150="RM",$O150*$G150,"") ->  | R150: =IF($H150>0,$H150*$P150,"") -> 34.5 | T150: =IF($F150>0,VALUE(LEFT($F150,4)),"") -> 6166 | U150: =IF(F150>0,IF(ISERROR(SEARCH("*FZ*",$E150))=FALSE,"FZ",IF(ISERROR(SEARCH("*FR*",$E150))=FALSE,"FR","Aucun")),"") -> FR | V150: =IF($C150="RM",IF($U150="FR",IF(ISNA(VLOOKUP($F:$F,lot,6,FALSE))=TRUE,VLOOKUP($T:$T,date,2,FALSE),VLOOKUP($F:$F,lot,6,FALSE)),""),"") ->  | W150: =IF($C150="RM",IF($U150="Fz",IF(ISNA(VLOOKUP($F:$F,lot,6,FALSE))=TRUE,VLOOKUP($T:$T,date,2,FALSE),VLOOKUP($F:$F,lot,6,FALSE)),""),"") ->  | X150: =IF($C150="FG",VLOOKUP($A:$A,op,4,FALSE),"") ->  | Y150: 2016-04-26 | Z150: =IF(C150="rm",IF(U150="aucun","OK",IF(U150="fz",IF(Y150-W150>730,Y150-W150,"OK"),IF(Y150-V150<1,1,Y150-V150))),"") -> 
A151: 6166B02D | B151: Beef | C151: FG | D151: 32022 | E151: MEDIUM GROUND BEEF* 2 X 2.5 KG TUBE FZ #D | F151: 6166B0211 | H151: 20 | K151: =IF(ISNA(VLOOKUP($D:$D,rend,2,FALSE))=FALSE,VLOOKUP($D:$D,rend,2,FALSE),"") -> 0.9708581457 | L151: =IF($C151="RM",IF(ISNA(VLOOKUP($F$2:$F$478,pos,2,FALSE))=FALSE,VLOOKUP($F151:$F$478,pos,2,FALSE),IF(ISNA(VLOOKUP($F$2:$F$478,lot,2,FALSE))=FALSE,VLOOKUP($F$2:$F$478,lot,2,FALSE),"MANQUANT")),"") ->  | M151: =IF($C151="RM",IF(ISNA(VLOOKUP($F$2:$F$478,pos,3,FALSE))=FALSE,VLOOKUP($F151:$F603,pos,3,FALSE),"OP"),"") ->  | N151: =IF($C151="RM",IF(ISNA(VLOOKUP($F151:$F$471,pos,4,FALSE))=FALSE,VLOOKUP($F$2:$F$471,pos,4,FALSE),""),"") ->  | O151: =IF($C151="RM",IF(ISNA(VLOOKUP($F$2:$F$478,pos,5,FALSE))=FALSE,VLOOKUP($F$2:$F$478,pos,5,FALSE),IF(ISNA(VLOOKUP($F$2:$F$478,lot,5,FALSE))=FALSE,VLOOKUP($F$2:$F$478,lot,5,FALSE),0)),"") ->  | P151: =IF($H151>0,VLOOKUP($D:$D,prix,15,FALSE),"") -> 6.95 | Q151: =IF($C151="RM",$O151*$G151,"") ->  | R151: =IF($H151>0,$H151*$P151,"") -> 139 | T151: =IF($F151>0,VALUE(LEFT($F151,4)),"") -> 6166 | U151: =IF(F151>0,IF(ISERROR(SEARCH("*FZ*",$E151))=FALSE,"FZ",IF(ISERROR(SEARCH("*FR*",$E151))=FALSE,"FR","Aucun")),"") -> FZ | V151: =IF($C151="RM",IF($U151="FR",IF(ISNA(VLOOKUP($F:$F,lot,6,FALSE))=TRUE,VLOOKUP($T:$T,date,2,FALSE),VLOOKUP($F:$F,lot,6,FALSE)),""),"") ->  | W151: =IF($C151="RM",IF($U151="Fz",IF(ISNA(VLOOKUP($F:$F,lot,6,FALSE))=TRUE,VLOOKUP($T:$T,date,2,FALSE),VLOOKUP($F:$F,lot,6,FALSE)),""),"") ->  | X151: =IF($C151="FG",VLOOKUP($A:$A,op,4,FALSE),"") ->  | Y151: 2016-04-26 | Z151: =IF(C151="rm",IF(U151="aucun","OK",IF(U151="fz",IF(Y151-W151>730,Y151-W151,"OK"),IF(Y151-V151<1,1,Y151-V151))),"") -> 
A152: 6166B02D | B152: Beef | C152: FG | D152: 32001 | E152: 2X REGULAR GROUND BEEF (TUBE) FR #D | F152: 6166B0212 | H152: 225 | K152: =IF(ISNA(VLOOKUP($D:$D,rend,2,FALSE))=FALSE,VLOOKUP($D:$D,rend,2,FALSE),"") -> 0.9605741596 | L152: =IF($C152="RM",IF(ISNA(VLOOKUP($F$2:$F$478,pos,2,FALSE))=FALSE,VLOOKUP($F152:$F$478,pos,2,FALSE),IF(ISNA(VLOOKUP($F$2:$F$478,lot,2,FALSE))=FALSE,VLOOKUP($F$2:$F$478,lot,2,FALSE),"MANQUANT")),"") ->  | M152: =IF($C152="RM",IF(ISNA(VLOOKUP($F$2:$F$478,pos,3,FALSE))=FALSE,VLOOKUP($F152:$F604,pos,3,FALSE),"OP"),"") ->  | N152: =IF($C152="RM",IF(ISNA(VLOOKUP($F152:$F$471,pos,4,FALSE))=FALSE,VLOOKUP($F$2:$F$471,pos,4,FALSE),""),"") ->  | O152: =IF($C152="RM",IF(ISNA(VLOOKUP($F$2:$F$478,pos,5,FALSE))=FALSE,VLOOKUP($F$2:$F$478,pos,5,FALSE),IF(ISNA(VLOOKUP($F$2:$F$478,lot,5,FALSE))=FALSE,VLOOKUP($F$2:$F$478,lot,5,FALSE),0)),"") ->  | P152: =IF($H152>0,VLOOKUP($D:$D,prix,15,FALSE),"") -> 6.9 | Q152: =IF($C152="RM",$O152*$G152,"") ->  | R152: =IF($H152>0,$H152*$P152,"") -> 1552.5 | T152: =IF($F152>0,VALUE(LEFT($F152,4)),"") -> 6166 | U152: =IF(F152>0,IF(ISERROR(SEARCH("*FZ*",$E152))=FALSE,"FZ",IF(ISERROR(SEARCH("*FR*",$E152))=FALSE,"FR","Aucun")),"") -> FR | V152: =IF($C152="RM",IF($U152="FR",IF(ISNA(VLOOKUP($F:$F,lot,6,FALSE))=TRUE,VLOOKUP($T:$T,date,2,FALSE),VLOOKUP($F:$F,lot,6,FALSE)),""),"") ->  | W152: =IF($C152="RM",IF($U152="Fz",IF(ISNA(VLOOKUP($F:$F,lot,6,FALSE))=TRUE,VLOOKUP($T:$T,date,2,FALSE),VLOOKUP($F:$F,lot,6,FALSE)),""),"") ->  | X152: =IF($C152="FG",VLOOKUP($A:$A,op,4,FALSE),"") ->  | Y152: 2016-04-26 | Z152: =IF(C152="rm",IF(U152="aucun","OK",IF(U152="fz",IF(Y152-W152>730,Y152-W152,"OK"),IF(Y152-V152<1,1,Y152-V152))),"") -> 
A153: 6166B02D | B153: Beef | C153: FG | D153: 32002 | E153: MEDIUM GROUND BEEF 2X (STEAK BEC) 2X2.5KG VAC BAG FR #D | F153: 6166B029 | H153: 150 | K153: =IF(ISNA(VLOOKUP($D:$D,rend,2,FALSE))=FALSE,VLOOKUP($D:$D,rend,2,FALSE),"") -> 0.9797520012 | L153: =IF($C153="RM",IF(ISNA(VLOOKUP($F$2:$F$478,pos,2,FALSE))=FALSE,VLOOKUP($F153:$F$478,pos,2,FALSE),IF(ISNA(VLOOKUP($F$2:$F$478,lot,2,FALSE))=FALSE,VLOOKUP($F$2:$F$478,lot,2,FALSE),"MANQUANT")),"") ->  | M153: =IF($C153="RM",IF(ISNA(VLOOKUP($F$2:$F$478,pos,3,FALSE))=FALSE,VLOOKUP($F153:$F605,pos,3,FALSE),"OP"),"") ->  | N153: =IF($C153="RM",IF(ISNA(VLOOKUP($F153:$F$471,pos,4,FALSE))=FALSE,VLOOKUP($F$2:$F$471,pos,4,FALSE),""),"") ->  | O153: =IF($C153="RM",IF(ISNA(VLOOKUP($F$2:$F$478,pos,5,FALSE))=FALSE,VLOOKUP($F$2:$F$478,pos,5,FALSE),IF(ISNA(VLOOKUP($F$2:$F$478,lot,5,FALSE))=FALSE,VLOOKUP($F$2:$F$478,lot,5,FALSE),0)),"") ->  | P153: =IF($H153>0,VLOOKUP($D:$D,prix,15,FALSE),"") -> 6.9 | Q153: =IF($C153="RM",$O153*$G153,"") ->  | R153: =IF($H153>0,$H153*$P153,"") -> 1035 | T153: =IF($F153>0,VALUE(LEFT($F153,4)),"") -> 6166 | U153: =IF(F153>0,IF(ISERROR(SEARCH("*FZ*",$E153))=FALSE,"FZ",IF(ISERROR(SEARCH("*FR*",$E153))=FALSE,"FR","Aucun")),"") -> FR | V153: =IF($C153="RM",IF($U153="FR",IF(ISNA(VLOOKUP($F:$F,lot,6,FALSE))=TRUE,VLOOKUP($T:$T,date,2,FALSE),VLOOKUP($F:$F,lot,6,FALSE)),""),"") ->  | W153: =IF($C153="RM",IF($U153="Fz",IF(ISNA(VLOOKUP($F:$F,lot,6,FALSE))=TRUE,VLOOKUP($T:$T,date,2,FALSE),VLOOKUP($F:$F,lot,6,FALSE)),""),"") ->  | X153: =IF($C153="FG",VLOOKUP($A:$A,op,4,FALSE),"") ->  | Y153: 2016-04-26 | Z153: =IF(C153="rm",IF(U153="aucun","OK",IF(U153="fz",IF(Y153-W153>730,Y153-W153,"OK"),IF(Y153-V153<1,1,Y153-V153))),"") -> 
A154: 6166B02D Total | G154: =SUBTOTAL(9,G147:G153) -> 400 | H154: =SUBTOTAL(9,H147:H153) -> 400 | Q154: =SUBTOTAL(9,Q147:Q153) -> 2161.04 | R154: =SUBTOTAL(9,R147:R153) -> 2761
A155: 6166B02E | B155: Beef | C155: RM | D155: 30010 | E155: BONELESS BEEF *RM*95%* COA REQUIS FZ | F155: 6046B04 | G155: 27 | K155: =IF(ISNA(VLOOKUP($D:$D,rend,2,FALSE))=FALSE,VLOOKUP($D:$D,rend,2,FALSE),"") -> 0.9387103571 | L155: =IF($C155="RM",IF(ISNA(VLOOKUP($F$2:$F$478,pos,2,FALSE))=FALSE,VLOOKUP($F155:$F$478,pos,2,FALSE),IF(ISNA(VLOOKUP($F$2:$F$478,lot,2,FALSE))=FALSE,VLOOKUP($F$2:$F$478,lot,2,FALSE),"MANQUANT")),"") -> PO-0021001 | M155: =IF($C155="RM",IF(ISNA(VLOOKUP($F$2:$F$478,pos,3,FALSE))=FALSE,VLOOKUP($F155:$F606,pos,3,FALSE),"OP"),"") -> CHIS | N155: =IF($C155="RM",IF(ISNA(VLOOKUP($F155:$F$471,pos,4,FALSE))=FALSE,VLOOKUP($F$2:$F$471,pos,4,FALSE),""),"") -> 17965.2 | O155: =IF($C155="RM",IF(ISNA(VLOOKUP($F$2:$F$478,pos,5,FALSE))=FALSE,VLOOKUP($F$2:$F$478,pos,5,FALSE),IF(ISNA(VLOOKUP($F$2:$F$478,lot,5,FALSE))=FALSE,VLOOKUP($F$2:$F$478,lot,5,FALSE),0)),"") -> 5.86 | P155: =IF($H155>0,VLOOKUP($D:$D,prix,15,FALSE),"") ->  | Q155: =IF($C155="RM",$O155*$G155,"") -> 158.22 | R155: =IF($H155>0,$H155*$P155,"") ->  | T155: =IF($F155>0,VALUE(LEFT($F155,4)),"") -> 6046 | U155: =IF(F155>0,IF(ISERROR(SEARCH("*FZ*",$E155))=FALSE,"FZ",IF(ISERROR(SEARCH("*FR*",$E155))=FALSE,"FR","Aucun")),"") -> FZ | V155: =IF($C155="RM",IF($U155="FR",IF(ISNA(VLOOKUP($F:$F,lot,6,FALSE))=TRUE,VLOOKUP($T:$T,date,2,FALSE),VLOOKUP($F:$F,lot,6,FALSE)),""),"") ->  | W155: =IF($C155="RM",IF($U155="Fz",IF(ISNA(VLOOKUP($F:$F,lot,6,FALSE))=TRUE,VLOOKUP($T:$T,date,2,FALSE),VLOOKUP($F:$F,lot,6,FALSE)),""),"") -> 2016-01-22 | X155: =IF($C155="FG",VLOOKUP($A:$A,op,4,FALSE),"") ->  | Y155: 2016-04-26 | Z155: =IF(C155="rm",IF(U155="aucun","OK",IF(U155="fz",IF(Y155-W155>730,Y155-W155,"OK"),IF(Y155-V155<1,1,Y155-V155))),"") -> OK
A156: 6166B02E | B156: Beef | C156: RM | D156: 30028 | E156: BONELESS **90 % BEEF (RM )**COA REQUIRED FR #D | F156: 6166B02 | G156: 49 | K156: =IF(ISNA(VLOOKUP($D:$D,rend,2,FALSE))=FALSE,VLOOKUP($D:$D,rend,2,FALSE),"") -> 0.9406880987 | L156: =IF($C156="RM",IF(ISNA(VLOOKUP($F$2:$F$478,pos,2,FALSE))=FALSE,VLOOKUP($F156:$F$478,pos,2,FALSE),IF(ISNA(VLOOKUP($F$2:$F$478,lot,2,FALSE))=FALSE,VLOOKUP($F$2:$F$478,lot,2,FALSE),"MANQUANT")),"") -> PO-0021748 | M156: =IF($C156="RM",IF(ISNA(VLOOKUP($F$2:$F$478,pos,3,FALSE))=FALSE,VLOOKUP($F156:$F607,pos,3,FALSE),"OP"),"") -> RYDI | N156: =IF($C156="RM",IF(ISNA(VLOOKUP($F156:$F$471,pos,4,FALSE))=FALSE,VLOOKUP($F$2:$F$471,pos,4,FALSE),""),"") -> 1731 | O156: =IF($C156="RM",IF(ISNA(VLOOKUP($F$2:$F$478,pos,5,FALSE))=FALSE,VLOOKUP($F$2:$F$478,pos,5,FALSE),IF(ISNA(VLOOKUP($F$2:$F$478,lot,5,FALSE))=FALSE,VLOOKUP($F$2:$F$478,lot,5,FALSE),0)),"") -> 6.68 | P156: =IF($H156>0,VLOOKUP($D:$D,prix,15,FALSE),"") ->  | Q156: =IF($C156="RM",$O156*$G156,"") -> 327.32 | R156: =IF($H156>0,$H156*$P156,"") ->  | T156: =IF($F156>0,VALUE(LEFT($F156,4)),"") -> 6166 | U156: =IF(F156>0,IF(ISERROR(SEARCH("*FZ*",$E156))=FALSE,"FZ",IF(ISERROR(SEARCH("*FR*",$E156))=FALSE,"FR","Aucun")),"") -> FR | V156: =IF($C156="RM",IF($U156="FR",IF(ISNA(VLOOKUP($F:$F,lot,6,FALSE))=TRUE,VLOOKUP($T:$T,date,2,FALSE),VLOOKUP($F:$F,lot,6,FALSE)),""),"") -> 2016-04-15 | W156: =IF($C156="RM",IF($U156="Fz",IF(ISNA(VLOOKUP($F:$F,lot,6,FALSE))=TRUE,VLOOKUP($T:$T,date,2,FALSE),VLOOKUP($F:$F,lot,6,FALSE)),""),"") ->  | X156: =IF($C156="FG",VLOOKUP($A:$A,op,4,FALSE),"") ->  | Y156: 2016-04-26 | Z156: =IF(C156="rm",IF(U156="aucun","OK",IF(U156="fz",IF(Y156-W156>730,Y156-W156,"OK"),IF(Y156-V156<1,1,Y156-V156))),"") -> 11
A157: 6166B02E | B157: Beef | C157: RM | D157: 30001 | E157: BNLS BEEF TRIMMINGS 65%**RAW MATERIAL* COA REQUIS FR #D | F157: 6172B02 | G157: 24 | K157: =IF(ISNA(VLOOKUP($D:$D,rend,2,FALSE))=FALSE,VLOOKUP($D:$D,rend,2,FALSE),"") -> 0.9387197344 | L157: =IF($C157="RM",IF(ISNA(VLOOKUP($F$2:$F$478,pos,2,FALSE))=FALSE,VLOOKUP($F157:$F$478,pos,2,FALSE),IF(ISNA(VLOOKUP($F$2:$F$478,lot,2,FALSE))=FALSE,VLOOKUP($F$2:$F$478,lot,2,FALSE),"MANQUANT")),"") -> PO-0021748 | M157: =IF($C157="RM",IF(ISNA(VLOOKUP($F$2:$F$478,pos,3,FALSE))=FALSE,VLOOKUP($F157:$F608,pos,3,FALSE),"OP"),"") -> RYDI | N157: =IF($C157="RM",IF(ISNA(VLOOKUP($F157:$F$471,pos,4,FALSE))=FALSE,VLOOKUP($F$2:$F$471,pos,4,FALSE),""),"") -> 800 | O157: =IF($C157="RM",IF(ISNA(VLOOKUP($F$2:$F$478,pos,5,FALSE))=FALSE,VLOOKUP($F$2:$F$478,pos,5,FALSE),IF(ISNA(VLOOKUP($F$2:$F$478,lot,5,FALSE))=FALSE,VLOOKUP($F$2:$F$478,lot,5,FALSE),0)),"") -> 4.04 | P157: =IF($H157>0,VLOOKUP($D:$D,prix,15,FALSE),"") ->  | Q157: =IF($C157="RM",$O157*$G157,"") -> 96.96 | R157: =IF($H157>0,$H157*$P157,"") ->  | T157: =IF($F157>0,VALUE(LEFT($F157,4)),"") -> 6172 | U157: =IF(F157>0,IF(ISERROR(SEARCH("*FZ*",$E157))=FALSE,"FZ",IF(ISERROR(SEARCH("*FR*",$E157))=FALSE,"FR","Aucun")),"") -> FR | V157: =IF($C157="RM",IF($U157="FR",IF(ISNA(VLOOKUP($F:$F,lot,6,FALSE))=TRUE,VLOOKUP($T:$T,date,2,FALSE),VLOOKUP($F:$F,lot,6,FALSE)),""),"") -> 2016-04-18 | W157: =IF($C157="RM",IF($U157="Fz",IF(ISNA(VLOOKUP($F:$F,lot,6,FALSE))=TRUE,VLOOKUP($T:$T,date,2,FALSE),VLOOKUP($F:$F,lot,6,FALSE)),""),"") ->  | X157: =IF($C157="FG",VLOOKUP($A:$A,op,4,FALSE),"") ->  | Y157: 2016-04-26 | Z157: =IF(C157="rm",IF(U157="aucun","OK",IF(U157="fz",IF(Y157-W157>730,Y157-W157,"OK"),IF(Y157-V157<1,1,Y157-V157))),"") -> 8
A158: 6166B02E | B158: Beef | C158: FG | D158: 32004 | E158: 2X SPECIAL MAIGRE GROUND BEEF (VAC BAG) FR #D | F158: 6166B0213 | H158: 50 | K158: =IF(ISNA(VLOOKUP($D:$D,rend,2,FALSE))=FALSE,VLOOKUP($D:$D,rend,2,FALSE),"") -> 0.9638441701 | L158: =IF($C158="RM",IF(ISNA(VLOOKUP($F$2:$F$478,pos,2,FALSE))=FALSE,VLOOKUP($F158:$F$478,pos,2,FALSE),IF(ISNA(VLOOKUP($F$2:$F$478,lot,2,FALSE))=FALSE,VLOOKUP($F$2:$F$478,lot,2,FALSE),"MANQUANT")),"") ->  | M158: =IF($C158="RM",IF(ISNA(VLOOKUP($F$2:$F$478,pos,3,FALSE))=FALSE,VLOOKUP($F158:$F609,pos,3,FALSE),"OP"),"") ->  | N158: =IF($C158="RM",IF(ISNA(VLOOKUP($F158:$F$471,pos,4,FALSE))=FALSE,VLOOKUP($F$2:$F$471,pos,4,FALSE),""),"") ->  | O158: =IF($C158="RM",IF(ISNA(VLOOKUP($F$2:$F$478,pos,5,FALSE))=FALSE,VLOOKUP($F$2:$F$478,pos,5,FALSE),IF(ISNA(VLOOKUP($F$2:$F$478,lot,5,FALSE))=FALSE,VLOOKUP($F$2:$F$478,lot,5,FALSE),0)),"") ->  | P158: =IF($H158>0,VLOOKUP($D:$D,prix,15,FALSE),"") -> 7.75 | Q158: =IF($C158="RM",$O158*$G158,"") ->  | R158: =IF($H158>0,$H158*$P158,"") -> 387.5 | T158: =IF($F158>0,VALUE(LEFT($F158,4)),"") -> 6166 | U158: =IF(F158>0,IF(ISERROR(SEARCH("*FZ*",$E158))=FALSE,"FZ",IF(ISERROR(SEARCH("*FR*",$E158))=FALSE,"FR","Aucun")),"") -> FR | V158: =IF($C158="RM",IF($U158="FR",IF(ISNA(VLOOKUP($F:$F,lot,6,FALSE))=TRUE,VLOOKUP($T:$T,date,2,FALSE),VLOOKUP($F:$F,lot,6,FALSE)),""),"") ->  | W158: =IF($C158="RM",IF($U158="Fz",IF(ISNA(VLOOKUP($F:$F,lot,6,FALSE))=TRUE,VLOOKUP($T:$T,date,2,FALSE),VLOOKUP($F:$F,lot,6,FALSE)),""),"") ->  | X158: =IF($C158="FG",VLOOKUP($A:$A,op,4,FALSE),"") ->  | Y158: 2016-04-26 | Z158: =IF(C158="rm",IF(U158="aucun","OK",IF(U158="fz",IF(Y158-W158>730,Y158-W158,"OK"),IF(Y158-V158<1,1,Y158-V158))),"") -> 
A159: 6166B02E | B159: Beef | C159: FG | D159: 32005 | E159: LEAN GROUND BEEF CHUCK* VAC BAG X 2.5KG FR #D | F159: 6166B0214 | H159: 35 | K159: =IF(ISNA(VLOOKUP($D:$D,rend,2,FALSE))=FALSE,VLOOKUP($D:$D,rend,2,FALSE),"") -> 0.9341969015 | L159: =IF($C159="RM",IF(ISNA(VLOOKUP($F$2:$F$478,pos,2,FALSE))=FALSE,VLOOKUP($F159:$F$478,pos,2,FALSE),IF(ISNA(VLOOKUP($F$2:$F$478,lot,2,FALSE))=FALSE,VLOOKUP($F$2:$F$478,lot,2,FALSE),"MANQUANT")),"") ->  | M159: =IF($C159="RM",IF(ISNA(VLOOKUP($F$2:$F$478,pos,3,FALSE))=FALSE,VLOOKUP($F159:$F610,pos,3,FALSE),"OP"),"") ->  | N159: =IF($C159="RM",IF(ISNA(VLOOKUP($F159:$F$471,pos,4,FALSE))=FALSE,VLOOKUP($F$2:$F$471,pos,4,FALSE),""),"") ->  | O159: =IF($C159="RM",IF(ISNA(VLOOKUP($F$2:$F$478,pos,5,FALSE))=FALSE,VLOOKUP($F$2:$F$478,pos,5,FALSE),IF(ISNA(VLOOKUP($F$2:$F$478,lot,5,FALSE))=FALSE,VLOOKUP($F$2:$F$478,lot,5,FALSE),0)),"") ->  | P159: =IF($H159>0,VLOOKUP($D:$D,prix,15,FALSE),"") -> 8 | Q159: =IF($C159="RM",$O159*$G159,"") ->  | R159: =IF($H159>0,$H159*$P159,"") -> 280 | T159: =IF($F159>0,VALUE(LEFT($F159,4)),"") -> 6166 | U159: =IF(F159>0,IF(ISERROR(SEARCH("*FZ*",$E159))=FALSE,"FZ",IF(ISERROR(SEARCH("*FR*",$E159))=FALSE,"FR","Aucun")),"") -> FR | V159: =IF($C159="RM",IF($U159="FR",IF(ISNA(VLOOKUP($F:$F,lot,6,FALSE))=TRUE,VLOOKUP($T:$T,date,2,FALSE),VLOOKUP($F:$F,lot,6,FALSE)),""),"") ->  | W159: =IF($C159="RM",IF($U159="Fz",IF(ISNA(VLOOKUP($F:$F,lot,6,FALSE))=TRUE,VLOOKUP($T:$T,date,2,FALSE),VLOOKUP($F:$F,lot,6,FALSE)),""),"") ->  | X159: =IF($C159="FG",VLOOKUP($A:$A,op,4,FALSE),"") ->  | Y159: 2016-04-26 | Z159: =IF(C159="rm",IF(U159="aucun","OK",IF(U159="fz",IF(Y159-W159>730,Y159-W159,"OK"),IF(Y159-V159<1,1,Y159-V159))),"") -> 
A160: 6166B02E | B160: Beef | C160: FG | D160: 32023 | E160: LEAN GROUND BEEF** 2X 2.5 KG TUBE FZ #D | F160: 6166B0215 | H160: 15 | K160: =IF(ISNA(VLOOKUP($D:$D,rend,2,FALSE))=FALSE,VLOOKUP($D:$D,rend,2,FALSE),"") -> 0.9786711032 | L160: =IF($C160="RM",IF(ISNA(VLOOKUP($F$2:$F$478,pos,2,FALSE))=FALSE,VLOOKUP($F160:$F$478,pos,2,FALSE),IF(ISNA(VLOOKUP($F$2:$F$478,lot,2,FALSE))=FALSE,VLOOKUP($F$2:$F$478,lot,2,FALSE),"MANQUANT")),"") ->  | M160: =IF($C160="RM",IF(ISNA(VLOOKUP($F$2:$F$478,pos,3,FALSE))=FALSE,VLOOKUP($F160:$F611,pos,3,FALSE),"OP"),"") ->  | N160: =IF($C160="RM",IF(ISNA(VLOOKUP($F160:$F$471,pos,4,FALSE))=FALSE,VLOOKUP($F$2:$F$471,pos,4,FALSE),""),"") ->  | O160: =IF($C160="RM",IF(ISNA(VLOOKUP($F$2:$F$478,pos,5,FALSE))=FALSE,VLOOKUP($F$2:$F$478,pos,5,FALSE),IF(ISNA(VLOOKUP($F$2:$F$478,lot,5,FALSE))=FALSE,VLOOKUP($F$2:$F$478,lot,5,FALSE),0)),"") ->  | P160: =IF($H160>0,VLOOKUP($D:$D,prix,15,FALSE),"") -> 7.65 | Q160: =IF($C160="RM",$O160*$G160,"") ->  | R160: =IF($H160>0,$H160*$P160,"") -> 114.75 | T160: =IF($F160>0,VALUE(LEFT($F160,4)),"") -> 6166 | U160: =IF(F160>0,IF(ISERROR(SEARCH("*FZ*",$E160))=FALSE,"FZ",IF(ISERROR(SEARCH("*FR*",$E160))=FALSE,"FR","Aucun")),"") -> FZ | V160: =IF($C160="RM",IF($U160="FR",IF(ISNA(VLOOKUP($F:$F,lot,6,FALSE))=TRUE,VLOOKUP($T:$T,date,2,FALSE),VLOOKUP($F:$F,lot,6,FALSE)),""),"") ->  | W160: =IF($C160="RM",IF($U160="Fz",IF(ISNA(VLOOKUP($F:$F,lot,6,FALSE))=TRUE,VLOOKUP($T:$T,date,2,FALSE),VLOOKUP($F:$F,lot,6,FALSE)),""),"") ->  | X160: =IF($C160="FG",VLOOKUP($A:$A,op,4,FALSE),"") ->  | Y160: 2016-04-26 | Z160: =IF(C160="rm",IF(U160="aucun","OK",IF(U160="fz",IF(Y160-W160>730,Y160-W160,"OK"),IF(Y160-V160<1,1,Y160-V160))),"") -> 
A161: 6166B02E Total | G161: =SUBTOTAL(9,G155:G160) -> 100 | H161: =SUBTOTAL(9,H155:H160) -> 100 | Q161: =SUBTOTAL(9,Q155:Q160) -> 582.5 | R161: =SUBTOTAL(9,R155:R160) -> 782.25
A162: 6166B02F | B162: Beef | C162: RM | D162: 31500 | E162: BEEF HOUSE TRIMMINGS FR @P | F162: 5406B042 | G162: 13.94 | K162: =IF(ISNA(VLOOKUP($D:$D,rend,2,FALSE))=FALSE,VLOOKUP($D:$D,rend,2,FALSE),"") -> 0.921966717 | L162: =IF($C162="RM",IF(ISNA(VLOOKUP($F$2:$F$478,pos,2,FALSE))=FALSE,VLOOKUP($F162:$F$478,pos,2,FALSE),IF(ISNA(VLOOKUP($F$2:$F$478,lot,2,FALSE))=FALSE,VLOOKUP($F$2:$F$478,lot,2,FALSE),"MANQUANT")),"") -> 5406B04 | M162: =IF($C162="RM",IF(ISNA(VLOOKUP($F$2:$F$478,pos,3,FALSE))=FALSE,VLOOKUP($F162:$F612,pos,3,FALSE),"OP"),"") -> OP | N162: =IF($C162="RM",IF(ISNA(VLOOKUP($F162:$F$471,pos,4,FALSE))=FALSE,VLOOKUP($F$2:$F$471,pos,4,FALSE),""),"") ->  | O162: =IF($C162="RM",IF(ISNA(VLOOKUP($F$2:$F$478,pos,5,FALSE))=FALSE,VLOOKUP($F$2:$F$478,pos,5,FALSE),IF(ISNA(VLOOKUP($F$2:$F$478,lot,5,FALSE))=FALSE,VLOOKUP($F$2:$F$478,lot,5,FALSE),0)),"") -> 14.54751671 | P162: =IF($H162>0,VLOOKUP($D:$D,prix,15,FALSE),"") ->  | Q162: =IF($C162="RM",$O162*$G162,"") -> 202.7923829 | R162: =IF($H162>0,$H162*$P162,"") ->  | T162: =IF($F162>0,VALUE(LEFT($F162,4)),"") -> 5406 | U162: =IF(F162>0,IF(ISERROR(SEARCH("*FZ*",$E162))=FALSE,"FZ",IF(ISERROR(SEARCH("*FR*",$E162))=FALSE,"FR","Aucun")),"") -> FR | V162: =IF($C162="RM",IF($U162="FR",IF(ISNA(VLOOKUP($F:$F,lot,6,FALSE))=TRUE,VLOOKUP($T:$T,date,2,FALSE),VLOOKUP($F:$F,lot,6,FALSE)),""),"") -> 2015-10-02 | W162: =IF($C162="RM",IF($U162="Fz",IF(ISNA(VLOOKUP($F:$F,lot,6,FALSE))=TRUE,VLOOKUP($T:$T,date,2,FALSE),VLOOKUP($F:$F,lot,6,FALSE)),""),"") ->  | X162: =IF($C162="FG",VLOOKUP($A:$A,op,4,FALSE),"") ->  | Y162: 2016-04-26 | Z162: =IF(C162="rm",IF(U162="aucun","OK",IF(U162="fz",IF(Y162-W162>730,Y162-W162,"OK"),IF(Y162-V162<1,1,Y162-V162))),"") -> 207
A163: 6166B02F | B163: Beef | C163: RM | D163: 30028 | E163: BONELESS **90 % BEEF (RM )**COA REQUIRED FR #D | F163: 6166B02 | G163: 36.06 | K163: =IF(ISNA(VLOOKUP($D:$D,rend,2,FALSE))=FALSE,VLOOKUP($D:$D,rend,2,FALSE),"") -> 0.9406880987 | L163: =IF($C163="RM",IF(ISNA(VLOOKUP($F$2:$F$478,pos,2,FALSE))=FALSE,VLOOKUP($F163:$F$478,pos,2,FALSE),IF(ISNA(VLOOKUP($F$2:$F$478,lot,2,FALSE))=FALSE,VLOOKUP($F$2:$F$478,lot,2,FALSE),"MANQUANT")),"") -> PO-0021748 | M163: =IF($C163="RM",IF(ISNA(VLOOKUP($F$2:$F$478,pos,3,FALSE))=FALSE,VLOOKUP($F163:$F613,pos,3,FALSE),"OP"),"") -> RYDI | N163: =IF($C163="RM",IF(ISNA(VLOOKUP($F163:$F$471,pos,4,FALSE))=FALSE,VLOOKUP($F$2:$F$471,pos,4,FALSE),""),"") -> 1731 | O163: =IF($C163="RM",IF(ISNA(VLOOKUP($F$2:$F$478,pos,5,FALSE))=FALSE,VLOOKUP($F$2:$F$478,pos,5,FALSE),IF(ISNA(VLOOKUP($F$2:$F$478,lot,5,FALSE))=FALSE,VLOOKUP($F$2:$F$478,lot,5,FALSE),0)),"") -> 6.68 | P163: =IF($H163>0,VLOOKUP($D:$D,prix,15,FALSE),"") ->  | Q163: =IF($C163="RM",$O163*$G163,"") -> 240.8808 | R163: =IF($H163>0,$H163*$P163,"") ->  | T163: =IF($F163>0,VALUE(LEFT($F163,4)),"") -> 6166 | U163: =IF(F163>0,IF(ISERROR(SEARCH("*FZ*",$E163))=FALSE,"FZ",IF(ISERROR(SEARCH("*FR*",$E163))=FALSE,"FR","Aucun")),"") -> FR | V163: =IF($C163="RM",IF($U163="FR",IF(ISNA(VLOOKUP($F:$F,lot,6,FALSE))=TRUE,VLOOKUP($T:$T,date,2,FALSE),VLOOKUP($F:$F,lot,6,FALSE)),""),"") -> 2016-04-15 | W163: =IF($C163="RM",IF($U163="Fz",IF(ISNA(VLOOKUP($F:$F,lot,6,FALSE))=TRUE,VLOOKUP($T:$T,date,2,FALSE),VLOOKUP($F:$F,lot,6,FALSE)),""),"") ->  | X163: =IF($C163="FG",VLOOKUP($A:$A,op,4,FALSE),"") ->  | Y163: 2016-04-26 | Z163: =IF(C163="rm",IF(U163="aucun","OK",IF(U163="fz",IF(Y163-W163>730,Y163-W163,"OK"),IF(Y163-V163<1,1,Y163-V163))),"") -> 11
A164: 6166B02F | B164: Beef | C164: FG | D164: 11188 | E164: BEEF BURGER IMPERIO 1/3 LIVRE**5.3 OZ ( 24/CS 3.63KG/CS) FZ #D | F164: 6166B0217 | H164: 0 | K164: =IF(ISNA(VLOOKUP($D:$D,rend,2,FALSE))=FALSE,VLOOKUP($D:$D,rend,2,FALSE),"") -> 0.9741650707 | L164: =IF($C164="RM",IF(ISNA(VLOOKUP($F$2:$F$478,pos,2,FALSE))=FALSE,VLOOKUP($F164:$F$478,pos,2,FALSE),IF(ISNA(VLOOKUP($F$2:$F$478,lot,2,FALSE))=FALSE,VLOOKUP($F$2:$F$478,lot,2,FALSE),"MANQUANT")),"") ->  | M164: =IF($C164="RM",IF(ISNA(VLOOKUP($F$2:$F$478,pos,3,FALSE))=FALSE,VLOOKUP($F164:$F614,pos,3,FALSE),"OP"),"") ->  | N164: =IF($C164="RM",IF(ISNA(VLOOKUP($F164:$F$471,pos,4,FALSE))=FALSE,VLOOKUP($F$2:$F$471,pos,4,FALSE),""),"") ->  | O164: =IF($C164="RM",IF(ISNA(VLOOKUP($F$2:$F$478,pos,5,FALSE))=FALSE,VLOOKUP($F$2:$F$478,pos,5,FALSE),IF(ISNA(VLOOKUP($F$2:$F$478,lot,5,FALSE))=FALSE,VLOOKUP($F$2:$F$478,lot,5,FALSE),0)),"") ->  | P164: =IF($H164>0,VLOOKUP($D:$D,prix,15,FALSE),"") ->  | Q164: =IF($C164="RM",$O164*$G164,"") ->  | R164: =IF($H164>0,$H164*$P164,"") ->  | T164: =IF($F164>0,VALUE(LEFT($F164,4)),"") -> 6166 | U164: =IF(F164>0,IF(ISERROR(SEARCH("*FZ*",$E164))=FALSE,"FZ",IF(ISERROR(SEARCH("*FR*",$E164))=FALSE,"FR","Aucun")),"") -> FZ | V164: =IF($C164="RM",IF($U164="FR",IF(ISNA(VLOOKUP($F:$F,lot,6,FALSE))=TRUE,VLOOKUP($T:$T,date,2,FALSE),VLOOKUP($F:$F,lot,6,FALSE)),""),"") ->  | W164: =IF($C164="RM",IF($U164="Fz",IF(ISNA(VLOOKUP($F:$F,lot,6,FALSE))=TRUE,VLOOKUP($T:$T,date,2,FALSE),VLOOKUP($F:$F,lot,6,FALSE)),""),"") ->  | X164: =IF($C164="FG",VLOOKUP($A:$A,op,4,FALSE),"") ->  | Y164: 2016-04-26 | Z164: =IF(C164="rm",IF(U164="aucun","OK",IF(U164="fz",IF(Y164-W164>730,Y164-W164,"OK"),IF(Y164-V164<1,1,Y164-V164))),"") -> 
A165: 6166B02F | B165: Beef | C165: FG | D165: 11101 | E165: BEEF*PATTIES*3OZ*60/CS*5.1KG**60/CS**FR | F165: 6166B0218 | H165: 0 | K165: =IF(ISNA(VLOOKUP($D:$D,rend,2,FALSE))=FALSE,VLOOKUP($D:$D,rend,2,FALSE),"") -> 0.8645598709 | L165: =IF($C165="RM",IF(ISNA(VLOOKUP($F$2:$F$478,pos,2,FALSE))=FALSE,VLOOKUP($F165:$F$478,pos,2,FALSE),IF(ISNA(VLOOKUP($F$2:$F$478,lot,2,FALSE))=FALSE,VLOOKUP($F$2:$F$478,lot,2,FALSE),"MANQUANT")),"") ->  | M165: =IF($C165="RM",IF(ISNA(VLOOKUP($F$2:$F$478,pos,3,FALSE))=FALSE,VLOOKUP($F165:$F615,pos,3,FALSE),"OP"),"") ->  | N165: =IF($C165="RM",IF(ISNA(VLOOKUP($F165:$F$471,pos,4,FALSE))=FALSE,VLOOKUP($F$2:$F$471,pos,4,FALSE),""),"") ->  | O165: =IF($C165="RM",IF(ISNA(VLOOKUP($F$2:$F$478,pos,5,FALSE))=FALSE,VLOOKUP($F$2:$F$478,pos,5,FALSE),IF(ISNA(VLOOKUP($F$2:$F$478,lot,5,FALSE))=FALSE,VLOOKUP($F$2:$F$478,lot,5,FALSE),0)),"") ->  | P165: =IF($H165>0,VLOOKUP($D:$D,prix,15,FALSE),"") ->  | Q165: =IF($C165="RM",$O165*$G165,"") ->  | R165: =IF($H165>0,$H165*$P165,"") ->  | T165: =IF($F165>0,VALUE(LEFT($F165,4)),"") -> 6166 | U165: =IF(F165>0,IF(ISERROR(SEARCH("*FZ*",$E165))=FALSE,"FZ",IF(ISERROR(SEARCH("*FR*",$E165))=FALSE,"FR","Aucun")),"") -> FR | V165: =IF($C165="RM",IF($U165="FR",IF(ISNA(VLOOKUP($F:$F,lot,6,FALSE))=TRUE,VLOOKUP($T:$T,date,2,FALSE),VLOOKUP($F:$F,lot,6,FALSE)),""),"") ->  | W165: =IF($C165="RM",IF($U165="Fz",IF(ISNA(VLOOKUP($F:$F,lot,6,FALSE))=TRUE,VLOOKUP($T:$T,date,2,FALSE),VLOOKUP($F:$F,lot,6,FALSE)),""),"") ->  | X165: =IF($C165="FG",VLOOKUP($A:$A,op,4,FALSE),"") ->  | Y165: 2016-04-26 | Z165: =IF(C165="rm",IF(U165="aucun","OK",IF(U165="fz",IF(Y165-W165>730,Y165-W165,"OK"),IF(Y165-V165<1,1,Y165-V165))),"") -> 
A166: 6166B02F | B166: Beef | C166: FG | D166: 32001 | E166: 2X REGULAR GROUND BEEF (TUBE) FR #D | F166: 6166B0219 | H166: 0 | K166: =IF(ISNA(VLOOKUP($D:$D,rend,2,FALSE))=FALSE,VLOOKUP($D:$D,rend,2,FALSE),"") -> 0.9605741596 | L166: =IF($C166="RM",IF(ISNA(VLOOKUP($F$2:$F$478,pos,2,FALSE))=FALSE,VLOOKUP($F166:$F$478,pos,2,FALSE),IF(ISNA(VLOOKUP($F$2:$F$478,lot,2,FALSE))=FALSE,VLOOKUP($F$2:$F$478,lot,2,FALSE),"MANQUANT")),"") ->  | M166: =IF($C166="RM",IF(ISNA(VLOOKUP($F$2:$F$478,pos,3,FALSE))=FALSE,VLOOKUP($F166:$F616,pos,3,FALSE),"OP"),"") ->  | N166: =IF($C166="RM",IF(ISNA(VLOOKUP($F166:$F$471,pos,4,FALSE))=FALSE,VLOOKUP($F$2:$F$471,pos,4,FALSE),""),"") ->  | O166: =IF($C166="RM",IF(ISNA(VLOOKUP($F$2:$F$478,pos,5,FALSE))=FALSE,VLOOKUP($F$2:$F$478,pos,5,FALSE),IF(ISNA(VLOOKUP($F$2:$F$478,lot,5,FALSE))=FALSE,VLOOKUP($F$2:$F$478,lot,5,FALSE),0)),"") ->  | P166: =IF($H166>0,VLOOKUP($D:$D,prix,15,FALSE),"") ->  | Q166: =IF($C166="RM",$O166*$G166,"") ->  | R166: =IF($H166>0,$H166*$P166,"") ->  | T166: =IF($F166>0,VALUE(LEFT($F166,4)),"") -> 6166 | U166: =IF(F166>0,IF(ISERROR(SEARCH("*FZ*",$E166))=FALSE,"FZ",IF(ISERROR(SEARCH("*FR*",$E166))=FALSE,"FR","Aucun")),"") -> FR | V166: =IF($C166="RM",IF($U166="FR",IF(ISNA(VLOOKUP($F:$F,lot,6,FALSE))=TRUE,VLOOKUP($T:$T,date,2,FALSE),VLOOKUP($F:$F,lot,6,FALSE)),""),"") ->  | W166: =IF($C166="RM",IF($U166="Fz",IF(ISNA(VLOOKUP($F:$F,lot,6,FALSE))=TRUE,VLOOKUP($T:$T,date,2,FALSE),VLOOKUP($F:$F,lot,6,FALSE)),""),"") ->  | X166: =IF($C166="FG",VLOOKUP($A:$A,op,4,FALSE),"") ->  | Y166: 2016-04-26 | Z166: =IF(C166="rm",IF(U166="aucun","OK",IF(U166="fz",IF(Y166-W166>730,Y166-W166,"OK"),IF(Y166-V166<1,1,Y166-V166))),"") -> 
A167: 6166B02F | B167: Beef | C167: FG | D167: 32021 | E167: REGULAR GROUND BEEF* 4 X 2.5 KG TUBES FROZEN | F167: 6166B0220 | H167: 0 | K167: =IF(ISNA(VLOOKUP($D:$D,rend,2,FALSE))=FALSE,VLOOKUP($D:$D,rend,2,FALSE),"") ->  | L167: =IF($C167="RM",IF(ISNA(VLOOKUP($F$2:$F$478,pos,2,FALSE))=FALSE,VLOOKUP($F167:$F$478,pos,2,FALSE),IF(ISNA(VLOOKUP($F$2:$F$478,lot,2,FALSE))=FALSE,VLOOKUP($F$2:$F$478,lot,2,FALSE),"MANQUANT")),"") ->  | M167: =IF($C167="RM",IF(ISNA(VLOOKUP($F$2:$F$478,pos,3,FALSE))=FALSE,VLOOKUP($F167:$F617,pos,3,FALSE),"OP"),"") ->  | N167: =IF($C167="RM",IF(ISNA(VLOOKUP($F167:$F$471,pos,4,FALSE))=FALSE,VLOOKUP($F$2:$F$471,pos,4,FALSE),""),"") ->  | O167: =IF($C167="RM",IF(ISNA(VLOOKUP($F$2:$F$478,pos,5,FALSE))=FALSE,VLOOKUP($F$2:$F$478,pos,5,FALSE),IF(ISNA(VLOOKUP($F$2:$F$478,lot,5,FALSE))=FALSE,VLOOKUP($F$2:$F$478,lot,5,FALSE),0)),"") ->  | P167: =IF($H167>0,VLOOKUP($D:$D,prix,15,FALSE),"") ->  | Q167: =IF($C167="RM",$O167*$G167,"") ->  | R167: =IF($H167>0,$H167*$P167,"") ->  | T167: =IF($F167>0,VALUE(LEFT($F167,4)),"") -> 6166 | U167: =IF(F167>0,IF(ISERROR(SEARCH("*FZ*",$E167))=FALSE,"FZ",IF(ISERROR(SEARCH("*FR*",$E167))=FALSE,"FR","Aucun")),"") -> FR | V167: =IF($C167="RM",IF($U167="FR",IF(ISNA(VLOOKUP($F:$F,lot,6,FALSE))=TRUE,VLOOKUP($T:$T,date,2,FALSE),VLOOKUP($F:$F,lot,6,FALSE)),""),"") ->  | W167: =IF($C167="RM",IF($U167="Fz",IF(ISNA(VLOOKUP($F:$F,lot,6,FALSE))=TRUE,VLOOKUP($T:$T,date,2,FALSE),VLOOKUP($F:$F,lot,6,FALSE)),""),"") ->  | X167: =IF($C167="FG",VLOOKUP($A:$A,op,4,FALSE),"") ->  | Y167: 2016-04-26 | Z167: =IF(C167="rm",IF(U167="aucun","OK",IF(U167="fz",IF(Y167-W167>730,Y167-W167,"OK"),IF(Y167-V167<1,1,Y167-V167))),"") -> 
A168: 6166B02F | B168: Beef | C168: FG | D168: 32026 | E168: REGULAR GROUND BEEF 75% (2 X 2.5kG) tUBE *BOITE BLANCHE* FR #D | F168: 6166B0221 | H168: 0 | K168: =IF(ISNA(VLOOKUP($D:$D,rend,2,FALSE))=FALSE,VLOOKUP($D:$D,rend,2,FALSE),"") -> 1 | L168: =IF($C168="RM",IF(ISNA(VLOOKUP($F$2:$F$478,pos,2,FALSE))=FALSE,VLOOKUP($F168:$F$478,pos,2,FALSE),IF(ISNA(VLOOKUP($F$2:$F$478,lot,2,FALSE))=FALSE,VLOOKUP($F$2:$F$478,lot,2,FALSE),"MANQUANT")),"") ->  | M168: =IF($C168="RM",IF(ISNA(VLOOKUP($F$2:$F$478,pos,3,FALSE))=FALSE,VLOOKUP($F168:$F618,pos,3,FALSE),"OP"),"") ->  | N168: =IF($C168="RM",IF(ISNA(VLOOKUP($F168:$F$471,pos,4,FALSE))=FALSE,VLOOKUP($F$2:$F$471,pos,4,FALSE),""),"") ->  | O168: =IF($C168="RM",IF(ISNA(VLOOKUP($F$2:$F$478,pos,5,FALSE))=FALSE,VLOOKUP($F$2:$F$478,pos,5,FALSE),IF(ISNA(VLOOKUP($F$2:$F$478,lot,5,FALSE))=FALSE,VLOOKUP($F$2:$F$478,lot,5,FALSE),0)),"") ->  | P168: =IF($H168>0,VLOOKUP($D:$D,prix,15,FALSE),"") ->  | Q168: =IF($C168="RM",$O168*$G168,"") ->  | R168: =IF($H168>0,$H168*$P168,"") ->  | T168: =IF($F168>0,VALUE(LEFT($F168,4)),"") -> 6166 | U168: =IF(F168>0,IF(ISERROR(SEARCH("*FZ*",$E168))=FALSE,"FZ",IF(ISERROR(SEARCH("*FR*",$E168))=FALSE,"FR","Aucun")),"") -> FR | V168: =IF($C168="RM",IF($U168="FR",IF(ISNA(VLOOKUP($F:$F,lot,6,FALSE))=TRUE,VLOOKUP($T:$T,date,2,FALSE),VLOOKUP($F:$F,lot,6,FALSE)),""),"") ->  | W168: =IF($C168="RM",IF($U168="Fz",IF(ISNA(VLOOKUP($F:$F,lot,6,FALSE))=TRUE,VLOOKUP($T:$T,date,2,FALSE),VLOOKUP($F:$F,lot,6,FALSE)),""),"") ->  | X168: =IF($C168="FG",VLOOKUP($A:$A,op,4,FALSE),"") ->  | Y168: 2016-04-26 | Z168: =IF(C168="rm",IF(U168="aucun","OK",IF(U168="fz",IF(Y168-W168>730,Y168-W168,"OK"),IF(Y168-V168<1,1,Y168-V168))),"") -> 
A169: 6166B02F | B169: Beef | C169: FG | D169: 32027 | E169: 2X REGULAR GROUND BEEF 70% (2 X 2.5KG) TUBE *BOITE BLANCHE* FR #D | F169: 6166B0222 | H169: 0 | K169: =IF(ISNA(VLOOKUP($D:$D,rend,2,FALSE))=FALSE,VLOOKUP($D:$D,rend,2,FALSE),"") ->  | L169: =IF($C169="RM",IF(ISNA(VLOOKUP($F$2:$F$478,pos,2,FALSE))=FALSE,VLOOKUP($F169:$F$478,pos,2,FALSE),IF(ISNA(VLOOKUP($F$2:$F$478,lot,2,FALSE))=FALSE,VLOOKUP($F$2:$F$478,lot,2,FALSE),"MANQUANT")),"") ->  | M169: =IF($C169="RM",IF(ISNA(VLOOKUP($F$2:$F$478,pos,3,FALSE))=FALSE,VLOOKUP($F169:$F619,pos,3,FALSE),"OP"),"") ->  | N169: =IF($C169="RM",IF(ISNA(VLOOKUP($F169:$F$471,pos,4,FALSE))=FALSE,VLOOKUP($F$2:$F$471,pos,4,FALSE),""),"") ->  | O169: =IF($C169="RM",IF(ISNA(VLOOKUP($F$2:$F$478,pos,5,FALSE))=FALSE,VLOOKUP($F$2:$F$478,pos,5,FALSE),IF(ISNA(VLOOKUP($F$2:$F$478,lot,5,FALSE))=FALSE,VLOOKUP($F$2:$F$478,lot,5,FALSE),0)),"") ->  | P169: =IF($H169>0,VLOOKUP($D:$D,prix,15,FALSE),"") ->  | Q169: =IF($C169="RM",$O169*$G169,"") ->  | R169: =IF($H169>0,$H169*$P169,"") ->  | T169: =IF($F169>0,VALUE(LEFT($F169,4)),"") -> 6166 | U169: =IF(F169>0,IF(ISERROR(SEARCH("*FZ*",$E169))=FALSE,"FZ",IF(ISERROR(SEARCH("*FR*",$E169))=FALSE,"FR","Aucun")),"") -> FR | V169: =IF($C169="RM",IF($U169="FR",IF(ISNA(VLOOKUP($F:$F,lot,6,FALSE))=TRUE,VLOOKUP($T:$T,date,2,FALSE),VLOOKUP($F:$F,lot,6,FALSE)),""),"") ->  | W169: =IF($C169="RM",IF($U169="Fz",IF(ISNA(VLOOKUP($F:$F,lot,6,FALSE))=TRUE,VLOOKUP($T:$T,date,2,FALSE),VLOOKUP($F:$F,lot,6,FALSE)),""),"") ->  | X169: =IF($C169="FG",VLOOKUP($A:$A,op,4,FALSE),"") ->  | Y169: 2016-04-26 | Z169: =IF(C169="rm",IF(U169="aucun","OK",IF(U169="fz",IF(Y169-W169>730,Y169-W169,"OK"),IF(Y169-V169<1,1,Y169-V169))),"") -> 
A170: 6166B02F | B170: Beef | C170: FG | D170: 32028 | E170: 1X REGULAR GROUND BEEF 70% (2 X 2.5KG) TUBE *BOITE BLANCHE* FR #D | F170: 6166B0223 | H170: 0 | K170: =IF(ISNA(VLOOKUP($D:$D,rend,2,FALSE))=FALSE,VLOOKUP($D:$D,rend,2,FALSE),"") ->  | L170: =IF($C170="RM",IF(ISNA(VLOOKUP($F$2:$F$478,pos,2,FALSE))=FALSE,VLOOKUP($F170:$F$478,pos,2,FALSE),IF(ISNA(VLOOKUP($F$2:$F$478,lot,2,FALSE))=FALSE,VLOOKUP($F$2:$F$478,lot,2,FALSE),"MANQUANT")),"") ->  | M170: =IF($C170="RM",IF(ISNA(VLOOKUP($F$2:$F$478,pos,3,FALSE))=FALSE,VLOOKUP($F170:$F620,pos,3,FALSE),"OP"),"") ->  | N170: =IF($C170="RM",IF(ISNA(VLOOKUP($F170:$F$471,pos,4,FALSE))=FALSE,VLOOKUP($F$2:$F$471,pos,4,FALSE),""),"") ->  | O170: =IF($C170="RM",IF(ISNA(VLOOKUP($F$2:$F$478,pos,5,FALSE))=FALSE,VLOOKUP($F$2:$F$478,pos,5,FALSE),IF(ISNA(VLOOKUP($F$2:$F$478,lot,5,FALSE))=FALSE,VLOOKUP($F$2:$F$478,lot,5,FALSE),0)),"") ->  | P170: =IF($H170>0,VLOOKUP($D:$D,prix,15,FALSE),"") ->  | Q170: =IF($C170="RM",$O170*$G170,"") ->  | R170: =IF($H170>0,$H170*$P170,"") ->  | T170: =IF($F170>0,VALUE(LEFT($F170,4)),"") -> 6166 | U170: =IF(F170>0,IF(ISERROR(SEARCH("*FZ*",$E170))=FALSE,"FZ",IF(ISERROR(SEARCH("*FR*",$E170))=FALSE,"FR","Aucun")),"") -> FR | V170: =IF($C170="RM",IF($U170="FR",IF(ISNA(VLOOKUP($F:$F,lot,6,FALSE))=TRUE,VLOOKUP($T:$T,date,2,FALSE),VLOOKUP($F:$F,lot,6,FALSE)),""),"") ->  | W170: =IF($C170="RM",IF($U170="Fz",IF(ISNA(VLOOKUP($F:$F,lot,6,FALSE))=TRUE,VLOOKUP($T:$T,date,2,FALSE),VLOOKUP($F:$F,lot,6,FALSE)),""),"") ->  | X170: =IF($C170="FG",VLOOKUP($A:$A,op,4,FALSE),"") ->  | Y170: 2016-04-26 | Z170: =IF(C170="rm",IF(U170="aucun","OK",IF(U170="fz",IF(Y170-W170>730,Y170-W170,"OK"),IF(Y170-V170<1,1,Y170-V170))),"") -> 
A171: 6166B02F | B171: Beef | C171: FG | D171: 32035 | E171: REGULAR GROUND BEEF***2 X 2.5 TUBES**INSTITUTIONS FZ @D | F171: 6166B0224 | H171: 0 | K171: =IF(ISNA(VLOOKUP($D:$D,rend,2,FALSE))=FALSE,VLOOKUP($D:$D,rend,2,FALSE),"") -> 0.8752106923 | L171: =IF($C171="RM",IF(ISNA(VLOOKUP($F$2:$F$478,pos,2,FALSE))=FALSE,VLOOKUP($F171:$F$478,pos,2,FALSE),IF(ISNA(VLOOKUP($F$2:$F$478,lot,2,FALSE))=FALSE,VLOOKUP($F$2:$F$478,lot,2,FALSE),"MANQUANT")),"") ->  | M171: =IF($C171="RM",IF(ISNA(VLOOKUP($F$2:$F$478,pos,3,FALSE))=FALSE,VLOOKUP($F171:$F621,pos,3,FALSE),"OP"),"") ->  | N171: =IF($C171="RM",IF(ISNA(VLOOKUP($F171:$F$471,pos,4,FALSE))=FALSE,VLOOKUP($F$2:$F$471,pos,4,FALSE),""),"") ->  | O171: =IF($C171="RM",IF(ISNA(VLOOKUP($F$2:$F$478,pos,5,FALSE))=FALSE,VLOOKUP($F$2:$F$478,pos,5,FALSE),IF(ISNA(VLOOKUP($F$2:$F$478,lot,5,FALSE))=FALSE,VLOOKUP($F$2:$F$478,lot,5,FALSE),0)),"") ->  | P171: =IF($H171>0,VLOOKUP($D:$D,prix,15,FALSE),"") ->  | Q171: =IF($C171="RM",$O171*$G171,"") ->  | R171: =IF($H171>0,$H171*$P171,"") ->  | T171: =IF($F171>0,VALUE(LEFT($F171,4)),"") -> 6166 | U171: =IF(F171>0,IF(ISERROR(SEARCH("*FZ*",$E171))=FALSE,"FZ",IF(ISERROR(SEARCH("*FR*",$E171))=FALSE,"FR","Aucun")),"") -> FZ | V171: =IF($C171="RM",IF($U171="FR",IF(ISNA(VLOOKUP($F:$F,lot,6,FALSE))=TRUE,VLOOKUP($T:$T,date,2,FALSE),VLOOKUP($F:$F,lot,6,FALSE)),""),"") ->  | W171: =IF($C171="RM",IF($U171="Fz",IF(ISNA(VLOOKUP($F:$F,lot,6,FALSE))=TRUE,VLOOKUP($T:$T,date,2,FALSE),VLOOKUP($F:$F,lot,6,FALSE)),""),"") ->  | X171: =IF($C171="FG",VLOOKUP($A:$A,op,4,FALSE),"") ->  | Y171: 2016-04-26 | Z171: =IF(C171="rm",IF(U171="aucun","OK",IF(U171="fz",IF(Y171-W171>730,Y171-W171,"OK"),IF(Y171-V171<1,1,Y171-V171))),"") -> 
A172: 6166B02F | B172: Beef | C172: FG | D172: 32000 | E172: 1X REGULAR GROUND BEEF ( 2.5 kg/SAC) FR #D | F172: 6166B028 | H172: 50 | K172: =IF(ISNA(VLOOKUP($D:$D,rend,2,FALSE))=FALSE,VLOOKUP($D:$D,rend,2,FALSE),"") -> 0.9506813032 | L172: =IF($C172="RM",IF(ISNA(VLOOKUP($F$2:$F$478,pos,2,FALSE))=FALSE,VLOOKUP($F172:$F$478,pos,2,FALSE),IF(ISNA(VLOOKUP($F$2:$F$478,lot,2,FALSE))=FALSE,VLOOKUP($F$2:$F$478,lot,2,FALSE),"MANQUANT")),"") ->  | M172: =IF($C172="RM",IF(ISNA(VLOOKUP($F$2:$F$478,pos,3,FALSE))=FALSE,VLOOKUP($F172:$F622,pos,3,FALSE),"OP"),"") ->  | N172: =IF($C172="RM",IF(ISNA(VLOOKUP($F172:$F$471,pos,4,FALSE))=FALSE,VLOOKUP($F$2:$F$471,pos,4,FALSE),""),"") ->  | O172: =IF($C172="RM",IF(ISNA(VLOOKUP($F$2:$F$478,pos,5,FALSE))=FALSE,VLOOKUP($F$2:$F$478,pos,5,FALSE),IF(ISNA(VLOOKUP($F$2:$F$478,lot,5,FALSE))=FALSE,VLOOKUP($F$2:$F$478,lot,5,FALSE),0)),"") ->  | P172: =IF($H172>0,VLOOKUP($D:$D,prix,15,FALSE),"") -> 6 | Q172: =IF($C172="RM",$O172*$G172,"") ->  | R172: =IF($H172>0,$H172*$P172,"") -> 300 | T172: =IF($F172>0,VALUE(LEFT($F172,4)),"") -> 6166 | U172: =IF(F172>0,IF(ISERROR(SEARCH("*FZ*",$E172))=FALSE,"FZ",IF(ISERROR(SEARCH("*FR*",$E172))=FALSE,"FR","Aucun")),"") -> FR | V172: =IF($C172="RM",IF($U172="FR",IF(ISNA(VLOOKUP($F:$F,lot,6,FALSE))=TRUE,VLOOKUP($T:$T,date,2,FALSE),VLOOKUP($F:$F,lot,6,FALSE)),""),"") ->  | W172: =IF($C172="RM",IF($U172="Fz",IF(ISNA(VLOOKUP($F:$F,lot,6,FALSE))=TRUE,VLOOKUP($T:$T,date,2,FALSE),VLOOKUP($F:$F,lot,6,FALSE)),""),"") ->  | X172: =IF($C172="FG",VLOOKUP($A:$A,op,4,FALSE),"") ->  | Y172: 2016-04-26 | Z172: =IF(C172="rm",IF(U172="aucun","OK",IF(U172="fz",IF(Y172-W172>730,Y172-W172,"OK"),IF(Y172-V172<1,1,Y172-V172))),"") -> 
A173: 6166B02F Total | G173: =SUBTOTAL(9,G162:G172) -> 50 | H173: =SUBTOTAL(9,H162:H172) -> 50 | Q173: =SUBTOTAL(9,Q162:Q172) -> 443.6731829 | R173: =SUBTOTAL(9,R162:R172) -> 300
A174: 6166B02G | B174: Beef | C174: RM | D174: 30028 | E174: BONELESS **90 % BEEF (RM )**COA REQUIRED FR #D | F174: 6166B02 | G174: 4.5 | K174: =IF(ISNA(VLOOKUP($D:$D,rend,2,FALSE))=FALSE,VLOOKUP($D:$D,rend,2,FALSE),"") -> 0.9406880987 | L174: =IF($C174="RM",IF(ISNA(VLOOKUP($F$2:$F$478,pos,2,FALSE))=FALSE,VLOOKUP($F174:$F$478,pos,2,FALSE),IF(ISNA(VLOOKUP($F$2:$F$478,lot,2,FALSE))=FALSE,VLOOKUP($F$2:$F$478,lot,2,FALSE),"MANQUANT")),"") -> PO-0021748 | M174: =IF($C174="RM",IF(ISNA(VLOOKUP($F$2:$F$478,pos,3,FALSE))=FALSE,VLOOKUP($F174:$F623,pos,3,FALSE),"OP"),"") -> RYDI | N174: =IF($C174="RM",IF(ISNA(VLOOKUP($F174:$F$471,pos,4,FALSE))=FALSE,VLOOKUP($F$2:$F$471,pos,4,FALSE),""),"") -> 1731 | O174: =IF($C174="RM",IF(ISNA(VLOOKUP($F$2:$F$478,pos,5,FALSE))=FALSE,VLOOKUP($F$2:$F$478,pos,5,FALSE),IF(ISNA(VLOOKUP($F$2:$F$478,lot,5,FALSE))=FALSE,VLOOKUP($F$2:$F$478,lot,5,FALSE),0)),"") -> 6.68 | P174: =IF($H174>0,VLOOKUP($D:$D,prix,15,FALSE),"") ->  | Q174: =IF($C174="RM",$O174*$G174,"") -> 30.06 | R174: =IF($H174>0,$H174*$P174,"") ->  | T174: =IF($F174>0,VALUE(LEFT($F174,4)),"") -> 6166 | U174: =IF(F174>0,IF(ISERROR(SEARCH("*FZ*",$E174))=FALSE,"FZ",IF(ISERROR(SEARCH("*FR*",$E174))=FALSE,"FR","Aucun")),"") -> FR | V174: =IF($C174="RM",IF($U174="FR",IF(ISNA(VLOOKUP($F:$F,lot,6,FALSE))=TRUE,VLOOKUP($T:$T,date,2,FALSE),VLOOKUP($F:$F,lot,6,FALSE)),""),"") -> 2016-04-15 | W174: =IF($C174="RM",IF($U174="Fz",IF(ISNA(VLOOKUP($F:$F,lot,6,FALSE))=TRUE,VLOOKUP($T:$T,date,2,FALSE),VLOOKUP($F:$F,lot,6,FALSE)),""),"") ->  | X174: =IF($C174="FG",VLOOKUP($A:$A,op,4,FALSE),"") ->  | Y174: 2016-04-26 | Z174: =IF(C174="rm",IF(U174="aucun","OK",IF(U174="fz",IF(Y174-W174>730,Y174-W174,"OK"),IF(Y174-V174<1,1,Y174-V174))),"") -> 11
A175: 6166B02G | B175: Beef | C175: RM | D175: 30001 | E175: BNLS BEEF TRIMMINGS 65%**RAW MATERIAL* COA REQUIS FR #D | F175: 6172B02 | G175: 5.5 | K175: =IF(ISNA(VLOOKUP($D:$D,rend,2,FALSE))=FALSE,VLOOKUP($D:$D,rend,2,FALSE),"") -> 0.9387197344 | L175: =IF($C175="RM",IF(ISNA(VLOOKUP($F$2:$F$478,pos,2,FALSE))=FALSE,VLOOKUP($F175:$F$478,pos,2,FALSE),IF(ISNA(VLOOKUP($F$2:$F$478,lot,2,FALSE))=FALSE,VLOOKUP($F$2:$F$478,lot,2,FALSE),"MANQUANT")),"") -> PO-0021748 | M175: =IF($C175="RM",IF(ISNA(VLOOKUP($F$2:$F$478,pos,3,FALSE))=FALSE,VLOOKUP($F175:$F624,pos,3,FALSE),"OP"),"") -> RYDI | N175: =IF($C175="RM",IF(ISNA(VLOOKUP($F175:$F$471,pos,4,FALSE))=FALSE,VLOOKUP($F$2:$F$471,pos,4,FALSE),""),"") -> 800 | O175: =IF($C175="RM",IF(ISNA(VLOOKUP($F$2:$F$478,pos,5,FALSE))=FALSE,VLOOKUP($F$2:$F$478,pos,5,FALSE),IF(ISNA(VLOOKUP($F$2:$F$478,lot,5,FALSE))=FALSE,VLOOKUP($F$2:$F$478,lot,5,FALSE),0)),"") -> 4.04 | P175: =IF($H175>0,VLOOKUP($D:$D,prix,15,FALSE),"") ->  | Q175: =IF($C175="RM",$O175*$G175,"") -> 22.22 | R175: =IF($H175>0,$H175*$P175,"") ->  | T175: =IF($F175>0,VALUE(LEFT($F175,4)),"") -> 6172 | U175: =IF(F175>0,IF(ISERROR(SEARCH("*FZ*",$E175))=FALSE,"FZ",IF(ISERROR(SEARCH("*FR*",$E175))=FALSE,"FR","Aucun")),"") -> FR | V175: =IF($C175="RM",IF($U175="FR",IF(ISNA(VLOOKUP($F:$F,lot,6,FALSE))=TRUE,VLOOKUP($T:$T,date,2,FALSE),VLOOKUP($F:$F,lot,6,FALSE)),""),"") -> 2016-04-18 | W175: =IF($C175="RM",IF($U175="Fz",IF(ISNA(VLOOKUP($F:$F,lot,6,FALSE))=TRUE,VLOOKUP($T:$T,date,2,FALSE),VLOOKUP($F:$F,lot,6,FALSE)),""),"") ->  | X175: =IF($C175="FG",VLOOKUP($A:$A,op,4,FALSE),"") ->  | Y175: 2016-04-26 | Z175: =IF(C175="rm",IF(U175="aucun","OK",IF(U175="fz",IF(Y175-W175>730,Y175-W175,"OK"),IF(Y175-V175<1,1,Y175-V175))),"") -> 8
A176: 6166B02G | B176: Beef | C176: FG | D176: 32026 | E176: REGULAR GROUND BEEF 75% (2 X 2.5kG) tUBE *BOITE BLANCHE* FR #D | F176: 6166B0216 | H176: 10 | K176: =IF(ISNA(VLOOKUP($D:$D,rend,2,FALSE))=FALSE,VLOOKUP($D:$D,rend,2,FALSE),"") -> 1 | L176: =IF($C176="RM",IF(ISNA(VLOOKUP($F$2:$F$478,pos,2,FALSE))=FALSE,VLOOKUP($F176:$F$478,pos,2,FALSE),IF(ISNA(VLOOKUP($F$2:$F$478,lot,2,FALSE))=FALSE,VLOOKUP($F$2:$F$478,lot,2,FALSE),"MANQUANT")),"") ->  | M176: =IF($C176="RM",IF(ISNA(VLOOKUP($F$2:$F$478,pos,3,FALSE))=FALSE,VLOOKUP($F176:$F625,pos,3,FALSE),"OP"),"") ->  | N176: =IF($C176="RM",IF(ISNA(VLOOKUP($F176:$F$471,pos,4,FALSE))=FALSE,VLOOKUP($F$2:$F$471,pos,4,FALSE),""),"") ->  | O176: =IF($C176="RM",IF(ISNA(VLOOKUP($F$2:$F$478,pos,5,FALSE))=FALSE,VLOOKUP($F$2:$F$478,pos,5,FALSE),IF(ISNA(VLOOKUP($F$2:$F$478,lot,5,FALSE))=FALSE,VLOOKUP($F$2:$F$478,lot,5,FALSE),0)),"") ->  | P176: =IF($H176>0,VLOOKUP($D:$D,prix,15,FALSE),"") -> 6.99 | Q176: =IF($C176="RM",$O176*$G176,"") ->  | R176: =IF($H176>0,$H176*$P176,"") -> 69.9 | T176: =IF($F176>0,VALUE(LEFT($F176,4)),"") -> 6166 | U176: =IF(F176>0,IF(ISERROR(SEARCH("*FZ*",$E176))=FALSE,"FZ",IF(ISERROR(SEARCH("*FR*",$E176))=FALSE,"FR","Aucun")),"") -> FR | V176: =IF($C176="RM",IF($U176="FR",IF(ISNA(VLOOKUP($F:$F,lot,6,FALSE))=TRUE,VLOOKUP($T:$T,date,2,FALSE),VLOOKUP($F:$F,lot,6,FALSE)),""),"") ->  | W176: =IF($C176="RM",IF($U176="Fz",IF(ISNA(VLOOKUP($F:$F,lot,6,FALSE))=TRUE,VLOOKUP($T:$T,date,2,FALSE),VLOOKUP($F:$F,lot,6,FALSE)),""),"") ->  | X176: =IF($C176="FG",VLOOKUP($A:$A,op,4,FALSE),"") ->  | Y176: 2016-04-26 | Z176: =IF(C176="rm",IF(U176="aucun","OK",IF(U176="fz",IF(Y176-W176>730,Y176-W176,"OK"),IF(Y176-V176<1,1,Y176-V176))),"") -> 
A177: 6166B02G Total | G177: =SUBTOTAL(9,G174:G176) -> 10 | H177: =SUBTOTAL(9,H174:H176) -> 10 | Q177: =SUBTOTAL(9,Q174:Q176) -> 52.28 | R177: =SUBTOTAL(9,R174:R176) -> 69.9
A178: 6173B011 | B178: Beef | C178: RM | D178: 41348 | E178: PORK BUTTS SLICED FOR GYRO *IN PROCESS* CODE: 41252 FR | F178: 6173B011 | G178: 115.4 | K178: =IF(ISNA(VLOOKUP($D:$D,rend,2,FALSE))=FALSE,VLOOKUP($D:$D,rend,2,FALSE),"") -> 0.8235565523 | L178: =IF($C178="RM",IF(ISNA(VLOOKUP($F$2:$F$478,pos,2,FALSE))=FALSE,VLOOKUP($F178:$F$478,pos,2,FALSE),IF(ISNA(VLOOKUP($F$2:$F$478,lot,2,FALSE))=FALSE,VLOOKUP($F$2:$F$478,lot,2,FALSE),"MANQUANT")),"") -> 6173B01 | M178: =IF($C178="RM",IF(ISNA(VLOOKUP($F$2:$F$478,pos,3,FALSE))=FALSE,VLOOKUP($F178:$F626,pos,3,FALSE),"OP"),"") -> OP | N178: =IF($C178="RM",IF(ISNA(VLOOKUP($F178:$F$471,pos,4,FALSE))=FALSE,VLOOKUP($F$2:$F$471,pos,4,FALSE),""),"") ->  | O178: =IF($C178="RM",IF(ISNA(VLOOKUP($F$2:$F$478,pos,5,FALSE))=FALSE,VLOOKUP($F$2:$F$478,pos,5,FALSE),IF(ISNA(VLOOKUP($F$2:$F$478,lot,5,FALSE))=FALSE,VLOOKUP($F$2:$F$478,lot,5,FALSE),0)),"") -> 3.16341344 | P178: =IF($H178>0,VLOOKUP($D:$D,prix,15,FALSE),"") ->  | Q178: =IF($C178="RM",$O178*$G178,"") -> 365.0579109 | R178: =IF($H178>0,$H178*$P178,"") ->  | T178: =IF($F178>0,VALUE(LEFT($F178,4)),"") -> 6173 | U178: =IF(F178>0,IF(ISERROR(SEARCH("*FZ*",$E178))=FALSE,"FZ",IF(ISERROR(SEARCH("*FR*",$E178))=FALSE,"FR","Aucun")),"") -> FR | V178: =IF($C178="RM",IF($U178="FR",IF(ISNA(VLOOKUP($F:$F,lot,6,FALSE))=TRUE,VLOOKUP($T:$T,date,2,FALSE),VLOOKUP($F:$F,lot,6,FALSE)),""),"") -> 2016-04-19 | W178: =IF($C178="RM",IF($U178="Fz",IF(ISNA(VLOOKUP($F:$F,lot,6,FALSE))=TRUE,VLOOKUP($T:$T,date,2,FALSE),VLOOKUP($F:$F,lot,6,FALSE)),""),"") ->  | X178: =IF($C178="FG",VLOOKUP($A:$A,op,4,FALSE),"") ->  | Y178: 2016-04-26 | Z178: =IF(C178="rm",IF(U178="aucun","OK",IF(U178="fz",IF(Y178-W178>730,Y178-W178,"OK"),IF(Y178-V178<1,1,Y178-V178))),"") -> 7
A179: 6173B011 | B179: Beef | C179: FG | D179: 41252 | E179: PORK BUTTS SLICED FOR GYRO FR @P | F179: 6173B014 | H179: 91.58 | K179: =IF(ISNA(VLOOKUP($D:$D,rend,2,FALSE))=FALSE,VLOOKUP($D:$D,rend,2,FALSE),"") -> 0.8863776935 | L179: =IF($C179="RM",IF(ISNA(VLOOKUP($F$2:$F$478,pos,2,FALSE))=FALSE,VLOOKUP($F179:$F$478,pos,2,FALSE),IF(ISNA(VLOOKUP($F$2:$F$478,lot,2,FALSE))=FALSE,VLOOKUP($F$2:$F$478,lot,2,FALSE),"MANQUANT")),"") ->  | M179: =IF($C179="RM",IF(ISNA(VLOOKUP($F$2:$F$478,pos,3,FALSE))=FALSE,VLOOKUP($F179:$F627,pos,3,FALSE),"OP"),"") ->  | N179: =IF($C179="RM",IF(ISNA(VLOOKUP($F179:$F$471,pos,4,FALSE))=FALSE,VLOOKUP($F$2:$F$471,pos,4,FALSE),""),"") ->  | O179: =IF($C179="RM",IF(ISNA(VLOOKUP($F$2:$F$478,pos,5,FALSE))=FALSE,VLOOKUP($F$2:$F$478,pos,5,FALSE),IF(ISNA(VLOOKUP($F$2:$F$478,lot,5,FALSE))=FALSE,VLOOKUP($F$2:$F$478,lot,5,FALSE),0)),"") ->  | P179: =IF($H179>0,VLOOKUP($D:$D,prix,15,FALSE),"") -> 5.35 | Q179: =IF($C179="RM",$O179*$G179,"") ->  | R179: =IF($H179>0,$H179*$P179,"") -> 489.953 | T179: =IF($F179>0,VALUE(LEFT($F179,4)),"") -> 6173 | U179: =IF(F179>0,IF(ISERROR(SEARCH("*FZ*",$E179))=FALSE,"FZ",IF(ISERROR(SEARCH("*FR*",$E179))=FALSE,"FR","Aucun")),"") -> FR | V179: =IF($C179="RM",IF($U179="FR",IF(ISNA(VLOOKUP($F:$F,lot,6,FALSE))=TRUE,VLOOKUP($T:$T,date,2,FALSE),VLOOKUP($F:$F,lot,6,FALSE)),""),"") ->  | W179: =IF($C179="RM",IF($U179="Fz",IF(ISNA(VLOOKUP($F:$F,lot,6,FALSE))=TRUE,VLOOKUP($T:$T,date,2,FALSE),VLOOKUP($F:$F,lot,6,FALSE)),""),"") ->  | X179: =IF($C179="FG",VLOOKUP($A:$A,op,4,FALSE),"") ->  | Y179: 2016-04-26 | Z179: =IF(C179="rm",IF(U179="aucun","OK",IF(U179="fz",IF(Y179-W179>730,Y179-W179,"OK"),IF(Y179-V179<1,1,Y179-V179))),"") -> 
A180: 6173B011 | B180: Beef | C180: FG | D180: 41253 | E180: PORK BUTTS CUBED FR @P | F180: 6173B015 | H180: 23.82 | K180: =IF(ISNA(VLOOKUP($D:$D,rend,2,FALSE))=FALSE,VLOOKUP($D:$D,rend,2,FALSE),"") -> 0.9050956538 | L180: =IF($C180="RM",IF(ISNA(VLOOKUP($F$2:$F$478,pos,2,FALSE))=FALSE,VLOOKUP($F180:$F$478,pos,2,FALSE),IF(ISNA(VLOOKUP($F$2:$F$478,lot,2,FALSE))=FALSE,VLOOKUP($F$2:$F$478,lot,2,FALSE),"MANQUANT")),"") ->  | M180: =IF($C180="RM",IF(ISNA(VLOOKUP($F$2:$F$478,pos,3,FALSE))=FALSE,VLOOKUP($F180:$F628,pos,3,FALSE),"OP"),"") ->  | N180: =IF($C180="RM",IF(ISNA(VLOOKUP($F180:$F$471,pos,4,FALSE))=FALSE,VLOOKUP($F$2:$F$471,pos,4,FALSE),""),"") ->  | O180: =IF($C180="RM",IF(ISNA(VLOOKUP($F$2:$F$478,pos,5,FALSE))=FALSE,VLOOKUP($F$2:$F$478,pos,5,FALSE),IF(ISNA(VLOOKUP($F$2:$F$478,lot,5,FALSE))=FALSE,VLOOKUP($F$2:$F$478,lot,5,FALSE),0)),"") ->  | P180: =IF($H180>0,VLOOKUP($D:$D,prix,15,FALSE),"") -> 5.35 | Q180: =IF($C180="RM",$O180*$G180,"") ->  | R180: =IF($H180>0,$H180*$P180,"") -> 127.437 | T180: =IF($F180>0,VALUE(LEFT($F180,4)),"") -> 6173 | U180: =IF(F180>0,IF(ISERROR(SEARCH("*FZ*",$E180))=FALSE,"FZ",IF(ISERROR(SEARCH("*FR*",$E180))=FALSE,"FR","Aucun")),"") -> FR | V180: =IF($C180="RM",IF($U180="FR",IF(ISNA(VLOOKUP($F:$F,lot,6,FALSE))=TRUE,VLOOKUP($T:$T,date,2,FALSE),VLOOKUP($F:$F,lot,6,FALSE)),""),"") ->  | W180: =IF($C180="RM",IF($U180="Fz",IF(ISNA(VLOOKUP($F:$F,lot,6,FALSE))=TRUE,VLOOKUP($T:$T,date,2,FALSE),VLOOKUP($F:$F,lot,6,FALSE)),""),"") ->  | X180: =IF($C180="FG",VLOOKUP($A:$A,op,4,FALSE),"") ->  | Y180: 2016-04-26 | Z180: =IF(C180="rm",IF(U180="aucun","OK",IF(U180="fz",IF(Y180-W180>730,Y180-W180,"OK"),IF(Y180-V180<1,1,Y180-V180))),"") -> 
A181: 6173B011 Total | G181: =SUBTOTAL(9,G178:G180) -> 115.4 | H181: =SUBTOTAL(9,H178:H180) -> 115.4 | Q181: =SUBTOTAL(9,Q178:Q180) -> 365.0579109 | R181: =SUBTOTAL(9,R178:R180) -> 617.39
A182: 6175B05 | B182: Beef | C182: RM | D182: 30019 | E182: BEEF SHOULDER CLODS**RAW MATERIAL***COA REQUIRED FR #D | F182: 6175B05 | G182: 5.22 | K182: =IF(ISNA(VLOOKUP($D:$D,rend,2,FALSE))=FALSE,VLOOKUP($D:$D,rend,2,FALSE),"") -> 0.9633436446 | L182: =IF($C182="RM",IF(ISNA(VLOOKUP($F$2:$F$478,pos,2,FALSE))=FALSE,VLOOKUP($F182:$F$478,pos,2,FALSE),IF(ISNA(VLOOKUP($F$2:$F$478,lot,2,FALSE))=FALSE,VLOOKUP($F$2:$F$478,lot,2,FALSE),"MANQUANT")),"") -> PO-0021815 | M182: =IF($C182="RM",IF(ISNA(VLOOKUP($F$2:$F$478,pos,3,FALSE))=FALSE,VLOOKUP($F182:$F629,pos,3,FALSE),"OP"),"") -> RYDI | N182: =IF($C182="RM",IF(ISNA(VLOOKUP($F182:$F$471,pos,4,FALSE))=FALSE,VLOOKUP($F$2:$F$471,pos,4,FALSE),""),"") -> 742.5 | O182: =IF($C182="RM",IF(ISNA(VLOOKUP($F$2:$F$478,pos,5,FALSE))=FALSE,VLOOKUP($F$2:$F$478,pos,5,FALSE),IF(ISNA(VLOOKUP($F$2:$F$478,lot,5,FALSE))=FALSE,VLOOKUP($F$2:$F$478,lot,5,FALSE),0)),"") -> 7.28 | P182: =IF($H182>0,VLOOKUP($D:$D,prix,15,FALSE),"") ->  | Q182: =IF($C182="RM",$O182*$G182,"") -> 38.0016 | R182: =IF($H182>0,$H182*$P182,"") ->  | T182: =IF($F182>0,VALUE(LEFT($F182,4)),"") -> 6175 | U182: =IF(F182>0,IF(ISERROR(SEARCH("*FZ*",$E182))=FALSE,"FZ",IF(ISERROR(SEARCH("*FR*",$E182))=FALSE,"FR","Aucun")),"") -> FR | V182: =IF($C182="RM",IF($U182="FR",IF(ISNA(VLOOKUP($F:$F,lot,6,FALSE))=TRUE,VLOOKUP($T:$T,date,2,FALSE),VLOOKUP($F:$F,lot,6,FALSE)),""),"") -> 2016-04-21 | W182: =IF($C182="RM",IF($U182="Fz",IF(ISNA(VLOOKUP($F:$F,lot,6,FALSE))=TRUE,VLOOKUP($T:$T,date,2,FALSE),VLOOKUP($F:$F,lot,6,FALSE)),""),"") ->  | X182: =IF($C182="FG",VLOOKUP($A:$A,op,4,FALSE),"") ->  | Y182: 2016-04-26 | Z182: =IF(C182="rm",IF(U182="aucun","OK",IF(U182="fz",IF(Y182-W182>730,Y182-W182,"OK"),IF(Y182-V182<1,1,Y182-V182))),"") -> 5
A183: 6175B05 | B183: Beef | C183: FG | D183: 30303 | E183: BONELESS BEEF SHOULDER ROLL FR #D | F183: 6175B051 | H183: 5.22 | K183: =IF(ISNA(VLOOKUP($D:$D,rend,2,FALSE))=FALSE,VLOOKUP($D:$D,rend,2,FALSE),"") -> 0.8200157453 | L183: =IF($C183="RM",IF(ISNA(VLOOKUP($F$2:$F$478,pos,2,FALSE))=FALSE,VLOOKUP($F183:$F$478,pos,2,FALSE),IF(ISNA(VLOOKUP($F$2:$F$478,lot,2,FALSE))=FALSE,VLOOKUP($F$2:$F$478,lot,2,FALSE),"MANQUANT")),"") ->  | M183: =IF($C183="RM",IF(ISNA(VLOOKUP($F$2:$F$478,pos,3,FALSE))=FALSE,VLOOKUP($F183:$F630,pos,3,FALSE),"OP"),"") ->  | N183: =IF($C183="RM",IF(ISNA(VLOOKUP($F183:$F$471,pos,4,FALSE))=FALSE,VLOOKUP($F$2:$F$471,pos,4,FALSE),""),"") ->  | O183: =IF($C183="RM",IF(ISNA(VLOOKUP($F$2:$F$478,pos,5,FALSE))=FALSE,VLOOKUP($F$2:$F$478,pos,5,FALSE),IF(ISNA(VLOOKUP($F$2:$F$478,lot,5,FALSE))=FALSE,VLOOKUP($F$2:$F$478,lot,5,FALSE),0)),"") ->  | P183: =IF($H183>0,VLOOKUP($D:$D,prix,15,FALSE),"") -> 12 | Q183: =IF($C183="RM",$O183*$G183,"") ->  | R183: =IF($H183>0,$H183*$P183,"") -> 62.64 | T183: =IF($F183>0,VALUE(LEFT($F183,4)),"") -> 6175 | U183: =IF(F183>0,IF(ISERROR(SEARCH("*FZ*",$E183))=FALSE,"FZ",IF(ISERROR(SEARCH("*FR*",$E183))=FALSE,"FR","Aucun")),"") -> FR | V183: =IF($C183="RM",IF($U183="FR",IF(ISNA(VLOOKUP($F:$F,lot,6,FALSE))=TRUE,VLOOKUP($T:$T,date,2,FALSE),VLOOKUP($F:$F,lot,6,FALSE)),""),"") ->  | W183: =IF($C183="RM",IF($U183="Fz",IF(ISNA(VLOOKUP($F:$F,lot,6,FALSE))=TRUE,VLOOKUP($T:$T,date,2,FALSE),VLOOKUP($F:$F,lot,6,FALSE)),""),"") ->  | X183: =IF($C183="FG",VLOOKUP($A:$A,op,4,FALSE),"") ->  | Y183: 2016-04-26 | Z183: =IF(C183="rm",IF(U183="aucun","OK",IF(U183="fz",IF(Y183-W183>730,Y183-W183,"OK"),IF(Y183-V183<1,1,Y183-V183))),"") -> 
A184: 6175B05 Total | G184: =SUBTOTAL(9,G182:G183) -> 5.22 | H184: =SUBTOTAL(9,H182:H183) -> 5.22 | Q184: =SUBTOTAL(9,Q182:Q183) -> 38.0016 | R184: =SUBTOTAL(9,R182:R183) -> 62.64
A185: 6172P09 | B185: Chicken | C185: FG | D185: 35824 | E185: CHICKEN THIGHS BONELESS FR @P | F185: 6172P091 | H185: -20 | K185: =IF(ISNA(VLOOKUP($D:$D,rend,2,FALSE))=FALSE,VLOOKUP($D:$D,rend,2,FALSE),"") -> 0.6805233391 | L185: =IF($C185="RM",IF(ISNA(VLOOKUP($F$2:$F$478,pos,2,FALSE))=FALSE,VLOOKUP($F185:$F$478,pos,2,FALSE),IF(ISNA(VLOOKUP($F$2:$F$478,lot,2,FALSE))=FALSE,VLOOKUP($F$2:$F$478,lot,2,FALSE),"MANQUANT")),"") ->  | M185: =IF($C185="RM",IF(ISNA(VLOOKUP($F$2:$F$478,pos,3,FALSE))=FALSE,VLOOKUP($F185:$F631,pos,3,FALSE),"OP"),"") ->  | N185: =IF($C185="RM",IF(ISNA(VLOOKUP($F185:$F$471,pos,4,FALSE))=FALSE,VLOOKUP($F$2:$F$471,pos,4,FALSE),""),"") ->  | O185: =IF($C185="RM",IF(ISNA(VLOOKUP($F$2:$F$478,pos,5,FALSE))=FALSE,VLOOKUP($F$2:$F$478,pos,5,FALSE),IF(ISNA(VLOOKUP($F$2:$F$478,lot,5,FALSE))=FALSE,VLOOKUP($F$2:$F$478,lot,5,FALSE),0)),"") ->  | P185: =IF($H185>0,VLOOKUP($D:$D,prix,15,FALSE),"") ->  | Q185: =IF($C185="RM",$O185*$G185,"") ->  | R185: =IF($H185>0,$H185*$P185,"") ->  | T185: =IF($F185>0,VALUE(LEFT($F185,4)),"") -> 6172 | U185: =IF(F185>0,IF(ISERROR(SEARCH("*FZ*",$E185))=FALSE,"FZ",IF(ISERROR(SEARCH("*FR*",$E185))=FALSE,"FR","Aucun")),"") -> FR | V185: =IF($C185="RM",IF($U185="FR",IF(ISNA(VLOOKUP($F:$F,lot,6,FALSE))=TRUE,VLOOKUP($T:$T,date,2,FALSE),VLOOKUP($F:$F,lot,6,FALSE)),""),"") ->  | W185: =IF($C185="RM",IF($U185="Fz",IF(ISNA(VLOOKUP($F:$F,lot,6,FALSE))=TRUE,VLOOKUP($T:$T,date,2,FALSE),VLOOKUP($F:$F,lot,6,FALSE)),""),"") ->  | X185: =IF($C185="FG",VLOOKUP($A:$A,op,4,FALSE),"") -> 2016-04-18 | Y185: 2016-04-26 | Z185: =IF(C185="rm",IF(U185="aucun","OK",IF(U185="fz",IF(Y185-W185>730,Y185-W185,"OK"),IF(Y185-V185<1,1,Y185-V185))),"") -> 
A186: 6172P09 Total | G186: =SUBTOTAL(9,G185:G185) -> 0 | H186: =SUBTOTAL(9,H185:H185) -> -20 | Q186: =SUBTOTAL(9,Q185:Q185) -> 0 | R186: =SUBTOTAL(9,R185:R185) -> 0
A187: 6172P091D | B187: Chicken | C187: RM | D187: 35824 | E187: CHICKEN THIGHS BONELESS FR @P | F187: 6172P091 | G187: 20 | K187: =IF(ISNA(VLOOKUP($D:$D,rend,2,FALSE))=FALSE,VLOOKUP($D:$D,rend,2,FALSE),"") -> 0.6805233391 | L187: =IF($C187="RM",IF(ISNA(VLOOKUP($F$2:$F$478,pos,2,FALSE))=FALSE,VLOOKUP($F187:$F$478,pos,2,FALSE),IF(ISNA(VLOOKUP($F$2:$F$478,lot,2,FALSE))=FALSE,VLOOKUP($F$2:$F$478,lot,2,FALSE),"MANQUANT")),"") -> 6172P09 | M187: =IF($C187="RM",IF(ISNA(VLOOKUP($F$2:$F$478,pos,3,FALSE))=FALSE,VLOOKUP($F187:$F632,pos,3,FALSE),"OP"),"") -> OP | N187: =IF($C187="RM",IF(ISNA(VLOOKUP($F187:$F$471,pos,4,FALSE))=FALSE,VLOOKUP($F$2:$F$471,pos,4,FALSE),""),"") ->  | O187: =IF($C187="RM",IF(ISNA(VLOOKUP($F$2:$F$478,pos,5,FALSE))=FALSE,VLOOKUP($F$2:$F$478,pos,5,FALSE),IF(ISNA(VLOOKUP($F$2:$F$478,lot,5,FALSE))=FALSE,VLOOKUP($F$2:$F$478,lot,5,FALSE),0)),"") -> 4.965221583 | P187: =IF($H187>0,VLOOKUP($D:$D,prix,15,FALSE),"") ->  | Q187: =IF($C187="RM",$O187*$G187,"") -> 99.30443166 | R187: =IF($H187>0,$H187*$P187,"") ->  | T187: =IF($F187>0,VALUE(LEFT($F187,4)),"") -> 6172 | U187: =IF(F187>0,IF(ISERROR(SEARCH("*FZ*",$E187))=FALSE,"FZ",IF(ISERROR(SEARCH("*FR*",$E187))=FALSE,"FR","Aucun")),"") -> FR | V187: =IF($C187="RM",IF($U187="FR",IF(ISNA(VLOOKUP($F:$F,lot,6,FALSE))=TRUE,VLOOKUP($T:$T,date,2,FALSE),VLOOKUP($F:$F,lot,6,FALSE)),""),"") -> 2016-04-18 | W187: =IF($C187="RM",IF($U187="Fz",IF(ISNA(VLOOKUP($F:$F,lot,6,FALSE))=TRUE,VLOOKUP($T:$T,date,2,FALSE),VLOOKUP($F:$F,lot,6,FALSE)),""),"") ->  | X187: =IF($C187="FG",VLOOKUP($A:$A,op,4,FALSE),"") ->  | Y187: 2016-04-26 | Z187: =IF(C187="rm",IF(U187="aucun","OK",IF(U187="fz",IF(Y187-W187>730,Y187-W187,"OK"),IF(Y187-V187<1,1,Y187-V187))),"") -> 8
A188: 6172P091D | B188: Chicken | C188: FG | D188: 35824 | E188: CHICKEN THIGHS BONELESS FR @P | F188: 6172P0912 | H188: 40 | K188: =IF(ISNA(VLOOKUP($D:$D,rend,2,FALSE))=FALSE,VLOOKUP($D:$D,rend,2,FALSE),"") -> 0.6805233391 | L188: =IF($C188="RM",IF(ISNA(VLOOKUP($F$2:$F$478,pos,2,FALSE))=FALSE,VLOOKUP($F188:$F$478,pos,2,FALSE),IF(ISNA(VLOOKUP($F$2:$F$478,lot,2,FALSE))=FALSE,VLOOKUP($F$2:$F$478,lot,2,FALSE),"MANQUANT")),"") ->  | M188: =IF($C188="RM",IF(ISNA(VLOOKUP($F$2:$F$478,pos,3,FALSE))=FALSE,VLOOKUP($F188:$F633,pos,3,FALSE),"OP"),"") ->  | N188: =IF($C188="RM",IF(ISNA(VLOOKUP($F188:$F$471,pos,4,FALSE))=FALSE,VLOOKUP($F$2:$F$471,pos,4,FALSE),""),"") ->  | O188: =IF($C188="RM",IF(ISNA(VLOOKUP($F$2:$F$478,pos,5,FALSE))=FALSE,VLOOKUP($F$2:$F$478,pos,5,FALSE),IF(ISNA(VLOOKUP($F$2:$F$478,lot,5,FALSE))=FALSE,VLOOKUP($F$2:$F$478,lot,5,FALSE),0)),"") ->  | P188: =IF($H188>0,VLOOKUP($D:$D,prix,15,FALSE),"") -> 6.75 | Q188: =IF($C188="RM",$O188*$G188,"") ->  | R188: =IF($H188>0,$H188*$P188,"") -> 270 | T188: =IF($F188>0,VALUE(LEFT($F188,4)),"") -> 6172 | U188: =IF(F188>0,IF(ISERROR(SEARCH("*FZ*",$E188))=FALSE,"FZ",IF(ISERROR(SEARCH("*FR*",$E188))=FALSE,"FR","Aucun")),"") -> FR | V188: =IF($C188="RM",IF($U188="FR",IF(ISNA(VLOOKUP($F:$F,lot,6,FALSE))=TRUE,VLOOKUP($T:$T,date,2,FALSE),VLOOKUP($F:$F,lot,6,FALSE)),""),"") ->  | W188: =IF($C188="RM",IF($U188="Fz",IF(ISNA(VLOOKUP($F:$F,lot,6,FALSE))=TRUE,VLOOKUP($T:$T,date,2,FALSE),VLOOKUP($F:$F,lot,6,FALSE)),""),"") ->  | X188: =IF($C188="FG",VLOOKUP($A:$A,op,4,FALSE),"") ->  | Y188: 2016-04-26 | Z188: =IF(C188="rm",IF(U188="aucun","OK",IF(U188="fz",IF(Y188-W188>730,Y188-W188,"OK"),IF(Y188-V188<1,1,Y188-V188))),"") -> 
A189: 6172P091D Total | G189: =SUBTOTAL(9,G187:G188) -> 20 | H189: =SUBTOTAL(9,H187:H188) -> 40 | Q189: =SUBTOTAL(9,Q187:Q188) -> 99.30443166 | R189: =SUBTOTAL(9,R187:R188) -> 270
A190: 6172P096 | B190: Chicken | C190: FG | D190: 35824 | E190: CHICKEN THIGHS BONELESS FR @P | F190: 6172P0910 | H190: 0 | K190: =IF(ISNA(VLOOKUP($D:$D,rend,2,FALSE))=FALSE,VLOOKUP($D:$D,rend,2,FALSE),"") -> 0.6805233391 | L190: =IF($C190="RM",IF(ISNA(VLOOKUP($F$2:$F$478,pos,2,FALSE))=FALSE,VLOOKUP($F190:$F$478,pos,2,FALSE),IF(ISNA(VLOOKUP($F$2:$F$478,lot,2,FALSE))=FALSE,VLOOKUP($F$2:$F$478,lot,2,FALSE),"MANQUANT")),"") ->  | M190: =IF($C190="RM",IF(ISNA(VLOOKUP($F$2:$F$478,pos,3,FALSE))=FALSE,VLOOKUP($F190:$F634,pos,3,FALSE),"OP"),"") ->  | N190: =IF($C190="RM",IF(ISNA(VLOOKUP($F190:$F$471,pos,4,FALSE))=FALSE,VLOOKUP($F$2:$F$471,pos,4,FALSE),""),"") ->  | O190: =IF($C190="RM",IF(ISNA(VLOOKUP($F$2:$F$478,pos,5,FALSE))=FALSE,VLOOKUP($F$2:$F$478,pos,5,FALSE),IF(ISNA(VLOOKUP($F$2:$F$478,lot,5,FALSE))=FALSE,VLOOKUP($F$2:$F$478,lot,5,FALSE),0)),"") ->  | P190: =IF($H190>0,VLOOKUP($D:$D,prix,15,FALSE),"") ->  | Q190: =IF($C190="RM",$O190*$G190,"") ->  | R190: =IF($H190>0,$H190*$P190,"") ->  | T190: =IF($F190>0,VALUE(LEFT($F190,4)),"") -> 6172 | U190: =IF(F190>0,IF(ISERROR(SEARCH("*FZ*",$E190))=FALSE,"FZ",IF(ISERROR(SEARCH("*FR*",$E190))=FALSE,"FR","Aucun")),"") -> FR | V190: =IF($C190="RM",IF($U190="FR",IF(ISNA(VLOOKUP($F:$F,lot,6,FALSE))=TRUE,VLOOKUP($T:$T,date,2,FALSE),VLOOKUP($F:$F,lot,6,FALSE)),""),"") ->  | W190: =IF($C190="RM",IF($U190="Fz",IF(ISNA(VLOOKUP($F:$F,lot,6,FALSE))=TRUE,VLOOKUP($T:$T,date,2,FALSE),VLOOKUP($F:$F,lot,6,FALSE)),""),"") ->  | X190: =IF($C190="FG",VLOOKUP($A:$A,op,4,FALSE),"") -> 2016-04-18 | Y190: 2016-04-26 | Z190: =IF(C190="rm",IF(U190="aucun","OK",IF(U190="fz",IF(Y190-W190>730,Y190-W190,"OK"),IF(Y190-V190<1,1,Y190-V190))),"") -> 
A191: 6172P096 Total | G191: =SUBTOTAL(9,G190:G190) -> 0 | H191: =SUBTOTAL(9,H190:H190) -> 0 | Q191: =SUBTOTAL(9,Q190:Q190) -> 0 | R191: =SUBTOTAL(9,R190:R190) -> 0
A192: 6172P096B | B192: Chicken | C192: RM | D192: 35824 | E192: CHICKEN THIGHS BONELESS FR @P | F192: 6172P096 | G192: 10 | K192: =IF(ISNA(VLOOKUP($D:$D,rend,2,FALSE))=FALSE,VLOOKUP($D:$D,rend,2,FALSE),"") -> 0.6805233391 | L192: =IF($C192="RM",IF(ISNA(VLOOKUP($F$2:$F$478,pos,2,FALSE))=FALSE,VLOOKUP($F192:$F$478,pos,2,FALSE),IF(ISNA(VLOOKUP($F$2:$F$478,lot,2,FALSE))=FALSE,VLOOKUP($F$2:$F$478,lot,2,FALSE),"MANQUANT")),"") -> 6172P091C | M192: =IF($C192="RM",IF(ISNA(VLOOKUP($F$2:$F$478,pos,3,FALSE))=FALSE,VLOOKUP($F192:$F635,pos,3,FALSE),"OP"),"") -> OP | N192: =IF($C192="RM",IF(ISNA(VLOOKUP($F192:$F$471,pos,4,FALSE))=FALSE,VLOOKUP($F$2:$F$471,pos,4,FALSE),""),"") ->  | O192: =IF($C192="RM",IF(ISNA(VLOOKUP($F$2:$F$478,pos,5,FALSE))=FALSE,VLOOKUP($F$2:$F$478,pos,5,FALSE),IF(ISNA(VLOOKUP($F$2:$F$478,lot,5,FALSE))=FALSE,VLOOKUP($F$2:$F$478,lot,5,FALSE),0)),"") -> 4.965221583 | P192: =IF($H192>0,VLOOKUP($D:$D,prix,15,FALSE),"") ->  | Q192: =IF($C192="RM",$O192*$G192,"") -> 49.65221583 | R192: =IF($H192>0,$H192*$P192,"") ->  | T192: =IF($F192>0,VALUE(LEFT($F192,4)),"") -> 6172 | U192: =IF(F192>0,IF(ISERROR(SEARCH("*FZ*",$E192))=FALSE,"FZ",IF(ISERROR(SEARCH("*FR*",$E192))=FALSE,"FR","Aucun")),"") -> FR | V192: =IF($C192="RM",IF($U192="FR",IF(ISNA(VLOOKUP($F:$F,lot,6,FALSE))=TRUE,VLOOKUP($T:$T,date,2,FALSE),VLOOKUP($F:$F,lot,6,FALSE)),""),"") -> 2016-04-18 | W192: =IF($C192="RM",IF($U192="Fz",IF(ISNA(VLOOKUP($F:$F,lot,6,FALSE))=TRUE,VLOOKUP($T:$T,date,2,FALSE),VLOOKUP($F:$F,lot,6,FALSE)),""),"") ->  | X192: =IF($C192="FG",VLOOKUP($A:$A,op,4,FALSE),"") ->  | Y192: 2016-04-26 | Z192: =IF(C192="rm",IF(U192="aucun","OK",IF(U192="fz",IF(Y192-W192>730,Y192-W192,"OK"),IF(Y192-V192<1,1,Y192-V192))),"") -> 8
A193: 6172P096B | B193: Chicken | C193: FG | D193: 35824 | E193: CHICKEN THIGHS BONELESS FR @P | F193: 6172P0911 | H193: 10 | K193: =IF(ISNA(VLOOKUP($D:$D,rend,2,FALSE))=FALSE,VLOOKUP($D:$D,rend,2,FALSE),"") -> 0.6805233391 | L193: =IF($C193="RM",IF(ISNA(VLOOKUP($F$2:$F$478,pos,2,FALSE))=FALSE,VLOOKUP($F193:$F$478,pos,2,FALSE),IF(ISNA(VLOOKUP($F$2:$F$478,lot,2,FALSE))=FALSE,VLOOKUP($F$2:$F$478,lot,2,FALSE),"MANQUANT")),"") ->  | M193: =IF($C193="RM",IF(ISNA(VLOOKUP($F$2:$F$478,pos,3,FALSE))=FALSE,VLOOKUP($F193:$F636,pos,3,FALSE),"OP"),"") ->  | N193: =IF($C193="RM",IF(ISNA(VLOOKUP($F193:$F$471,pos,4,FALSE))=FALSE,VLOOKUP($F$2:$F$471,pos,4,FALSE),""),"") ->  | O193: =IF($C193="RM",IF(ISNA(VLOOKUP($F$2:$F$478,pos,5,FALSE))=FALSE,VLOOKUP($F$2:$F$478,pos,5,FALSE),IF(ISNA(VLOOKUP($F$2:$F$478,lot,5,FALSE))=FALSE,VLOOKUP($F$2:$F$478,lot,5,FALSE),0)),"") ->  | P193: =IF($H193>0,VLOOKUP($D:$D,prix,15,FALSE),"") -> 6.75 | Q193: =IF($C193="RM",$O193*$G193,"") ->  | R193: =IF($H193>0,$H193*$P193,"") -> 67.5 | T193: =IF($F193>0,VALUE(LEFT($F193,4)),"") -> 6172 | U193: =IF(F193>0,IF(ISERROR(SEARCH("*FZ*",$E193))=FALSE,"FZ",IF(ISERROR(SEARCH("*FR*",$E193))=FALSE,"FR","Aucun")),"") -> FR | V193: =IF($C193="RM",IF($U193="FR",IF(ISNA(VLOOKUP($F:$F,lot,6,FALSE))=TRUE,VLOOKUP($T:$T,date,2,FALSE),VLOOKUP($F:$F,lot,6,FALSE)),""),"") ->  | W193: =IF($C193="RM",IF($U193="Fz",IF(ISNA(VLOOKUP($F:$F,lot,6,FALSE))=TRUE,VLOOKUP($T:$T,date,2,FALSE),VLOOKUP($F:$F,lot,6,FALSE)),""),"") ->  | X193: =IF($C193="FG",VLOOKUP($A:$A,op,4,FALSE),"") ->  | Y193: 2016-04-26 | Z193: =IF(C193="rm",IF(U193="aucun","OK",IF(U193="fz",IF(Y193-W193>730,Y193-W193,"OK"),IF(Y193-V193<1,1,Y193-V193))),"") -> 
A194: 6172P096B Total | G194: =SUBTOTAL(9,G192:G193) -> 10 | H194: =SUBTOTAL(9,H192:H193) -> 10 | Q194: =SUBTOTAL(9,Q192:Q193) -> 49.65221583 | R194: =SUBTOTAL(9,R192:R193) -> 67.5
A195: 6174P0622 | B195: Chicken | C195: RM | D195: 37010 | E195: CHICKEN SEASONED *IN PROCESS* CODE: 27054 FR @P | F195: 6174P0622 | G195: 223 | K195: =IF(ISNA(VLOOKUP($D:$D,rend,2,FALSE))=FALSE,VLOOKUP($D:$D,rend,2,FALSE),"") -> 0.9658534122 | L195: =IF($C195="RM",IF(ISNA(VLOOKUP($F$2:$F$478,pos,2,FALSE))=FALSE,VLOOKUP($F195:$F$478,pos,2,FALSE),IF(ISNA(VLOOKUP($F$2:$F$478,lot,2,FALSE))=FALSE,VLOOKUP($F$2:$F$478,lot,2,FALSE),"MANQUANT")),"") -> 6174P0615 | M195: =IF($C195="RM",IF(ISNA(VLOOKUP($F$2:$F$478,pos,3,FALSE))=FALSE,VLOOKUP($F195:$F637,pos,3,FALSE),"OP"),"") -> OP | N195: =IF($C195="RM",IF(ISNA(VLOOKUP($F195:$F$471,pos,4,FALSE))=FALSE,VLOOKUP($F$2:$F$471,pos,4,FALSE),""),"") ->  | O195: =IF($C195="RM",IF(ISNA(VLOOKUP($F$2:$F$478,pos,5,FALSE))=FALSE,VLOOKUP($F$2:$F$478,pos,5,FALSE),IF(ISNA(VLOOKUP($F$2:$F$478,lot,5,FALSE))=FALSE,VLOOKUP($F$2:$F$478,lot,5,FALSE),0)),"") -> 3.602124563 | P195: =IF($H195>0,VLOOKUP($D:$D,prix,15,FALSE),"") ->  | Q195: =IF($C195="RM",$O195*$G195,"") -> 803.2737776 | R195: =IF($H195>0,$H195*$P195,"") ->  | T195: =IF($F195>0,VALUE(LEFT($F195,4)),"") -> 6174 | U195: =IF(F195>0,IF(ISERROR(SEARCH("*FZ*",$E195))=FALSE,"FZ",IF(ISERROR(SEARCH("*FR*",$E195))=FALSE,"FR","Aucun")),"") -> FR | V195: =IF($C195="RM",IF($U195="FR",IF(ISNA(VLOOKUP($F:$F,lot,6,FALSE))=TRUE,VLOOKUP($T:$T,date,2,FALSE),VLOOKUP($F:$F,lot,6,FALSE)),""),"") -> 2016-04-20 | W195: =IF($C195="RM",IF($U195="Fz",IF(ISNA(VLOOKUP($F:$F,lot,6,FALSE))=TRUE,VLOOKUP($T:$T,date,2,FALSE),VLOOKUP($F:$F,lot,6,FALSE)),""),"") ->  | X195: =IF($C195="FG",VLOOKUP($A:$A,op,4,FALSE),"") ->  | Y195: 2016-04-26 | Z195: =IF(C195="rm",IF(U195="aucun","OK",IF(U195="fz",IF(Y195-W195>730,Y195-W195,"OK"),IF(Y195-V195<1,1,Y195-V195))),"") -> 6
A196: 6174P0622 | B196: Chicken | C196: FG | D196: 27054 | E196: DEMI-POIT. POUL F TRIM BBQ COTES-LEVEES (120-130GR)(2 X 18 UN)**4.5KG/CS FR @P | F196: 6174P0623 | H196: 171 | K196: =IF(ISNA(VLOOKUP($D:$D,rend,2,FALSE))=FALSE,VLOOKUP($D:$D,rend,2,FALSE),"") -> 0.9620354447 | L196: =IF($C196="RM",IF(ISNA(VLOOKUP($F$2:$F$478,pos,2,FALSE))=FALSE,VLOOKUP($F196:$F$478,pos,2,FALSE),IF(ISNA(VLOOKUP($F$2:$F$478,lot,2,FALSE))=FALSE,VLOOKUP($F$2:$F$478,lot,2,FALSE),"MANQUANT")),"") ->  | M196: =IF($C196="RM",IF(ISNA(VLOOKUP($F$2:$F$478,pos,3,FALSE))=FALSE,VLOOKUP($F196:$F638,pos,3,FALSE),"OP"),"") ->  | N196: =IF($C196="RM",IF(ISNA(VLOOKUP($F196:$F$471,pos,4,FALSE))=FALSE,VLOOKUP($F$2:$F$471,pos,4,FALSE),""),"") ->  | O196: =IF($C196="RM",IF(ISNA(VLOOKUP($F$2:$F$478,pos,5,FALSE))=FALSE,VLOOKUP($F$2:$F$478,pos,5,FALSE),IF(ISNA(VLOOKUP($F$2:$F$478,lot,5,FALSE))=FALSE,VLOOKUP($F$2:$F$478,lot,5,FALSE),0)),"") ->  | P196: =IF($H196>0,VLOOKUP($D:$D,prix,15,FALSE),"") -> 10.72 | Q196: =IF($C196="RM",$O196*$G196,"") ->  | R196: =IF($H196>0,$H196*$P196,"") -> 1833.12 | T196: =IF($F196>0,VALUE(LEFT($F196,4)),"") -> 6174 | U196: =IF(F196>0,IF(ISERROR(SEARCH("*FZ*",$E196))=FALSE,"FZ",IF(ISERROR(SEARCH("*FR*",$E196))=FALSE,"FR","Aucun")),"") -> FR | V196: =IF($C196="RM",IF($U196="FR",IF(ISNA(VLOOKUP($F:$F,lot,6,FALSE))=TRUE,VLOOKUP($T:$T,date,2,FALSE),VLOOKUP($F:$F,lot,6,FALSE)),""),"") ->  | W196: =IF($C196="RM",IF($U196="Fz",IF(ISNA(VLOOKUP($F:$F,lot,6,FALSE))=TRUE,VLOOKUP($T:$T,date,2,FALSE),VLOOKUP($F:$F,lot,6,FALSE)),""),"") ->  | X196: =IF($C196="FG",VLOOKUP($A:$A,op,4,FALSE),"") ->  | Y196: 2016-04-26 | Z196: =IF(C196="rm",IF(U196="aucun","OK",IF(U196="fz",IF(Y196-W196>730,Y196-W196,"OK"),IF(Y196-V196<1,1,Y196-V196))),"") -> 
A197: 6174P0622 | B197: Chicken | C197: FG | D197: 37010 | E197: CHICKEN SEASONED *IN PROCESS* CODE: 27054 FR @P | F197: 6174P0624 | H197: 31.5 | K197: =IF(ISNA(VLOOKUP($D:$D,rend,2,FALSE))=FALSE,VLOOKUP($D:$D,rend,2,FALSE),"") -> 0.9658534122 | L197: =IF($C197="RM",IF(ISNA(VLOOKUP($F$2:$F$478,pos,2,FALSE))=FALSE,VLOOKUP($F197:$F$478,pos,2,FALSE),IF(ISNA(VLOOKUP($F$2:$F$478,lot,2,FALSE))=FALSE,VLOOKUP($F$2:$F$478,lot,2,FALSE),"MANQUANT")),"") ->  | M197: =IF($C197="RM",IF(ISNA(VLOOKUP($F$2:$F$478,pos,3,FALSE))=FALSE,VLOOKUP($F197:$F639,pos,3,FALSE),"OP"),"") ->  | N197: =IF($C197="RM",IF(ISNA(VLOOKUP($F197:$F$471,pos,4,FALSE))=FALSE,VLOOKUP($F$2:$F$471,pos,4,FALSE),""),"") ->  | O197: =IF($C197="RM",IF(ISNA(VLOOKUP($F$2:$F$478,pos,5,FALSE))=FALSE,VLOOKUP($F$2:$F$478,pos,5,FALSE),IF(ISNA(VLOOKUP($F$2:$F$478,lot,5,FALSE))=FALSE,VLOOKUP($F$2:$F$478,lot,5,FALSE),0)),"") ->  | P197: =IF($H197>0,VLOOKUP($D:$D,prix,15,FALSE),"") -> 10.72 | Q197: =IF($C197="RM",$O197*$G197,"") ->  | R197: =IF($H197>0,$H197*$P197,"") -> 337.68 | T197: =IF($F197>0,VALUE(LEFT($F197,4)),"") -> 6174 | U197: =IF(F197>0,IF(ISERROR(SEARCH("*FZ*",$E197))=FALSE,"FZ",IF(ISERROR(SEARCH("*FR*",$E197))=FALSE,"FR","Aucun")),"") -> FR | V197: =IF($C197="RM",IF($U197="FR",IF(ISNA(VLOOKUP($F:$F,lot,6,FALSE))=TRUE,VLOOKUP($T:$T,date,2,FALSE),VLOOKUP($F:$F,lot,6,FALSE)),""),"") ->  | W197: =IF($C197="RM",IF($U197="Fz",IF(ISNA(VLOOKUP($F:$F,lot,6,FALSE))=TRUE,VLOOKUP($T:$T,date,2,FALSE),VLOOKUP($F:$F,lot,6,FALSE)),""),"") ->  | X197: =IF($C197="FG",VLOOKUP($A:$A,op,4,FALSE),"") ->  | Y197: 2016-04-26 | Z197: =IF(C197="rm",IF(U197="aucun","OK",IF(U197="fz",IF(Y197-W197>730,Y197-W197,"OK"),IF(Y197-V197<1,1,Y197-V197))),"") -> 
A198: 6174P0622 Total | G198: =SUBTOTAL(9,G195:G197) -> 223 | H198: =SUBTOTAL(9,H195:H197) -> 202.5 | Q198: =SUBTOTAL(9,Q195:Q197) -> 803.2737776 | R198: =SUBTOTAL(9,R195:R197) -> 2170.8
A199: 6174P0812 | B199: Chicken | C199: RM | D199: 37005 | E199: POULET ASSAISONNE *IN PROCESS* CODE 27051 FR @P | F199: 6174P0812 | G199: 63 | K199: =IF(ISNA(VLOOKUP($D:$D,rend,2,FALSE))=FALSE,VLOOKUP($D:$D,rend,2,FALSE),"") -> 0.9696479452 | L199: =IF($C199="RM",IF(ISNA(VLOOKUP($F$2:$F$478,pos,2,FALSE))=FALSE,VLOOKUP($F199:$F$478,pos,2,FALSE),IF(ISNA(VLOOKUP($F$2:$F$478,lot,2,FALSE))=FALSE,VLOOKUP($F$2:$F$478,lot,2,FALSE),"MANQUANT")),"") -> 6174P087B | M199: =IF($C199="RM",IF(ISNA(VLOOKUP($F$2:$F$478,pos,3,FALSE))=FALSE,VLOOKUP($F199:$F640,pos,3,FALSE),"OP"),"") -> OP | N199: =IF($C199="RM",IF(ISNA(VLOOKUP($F199:$F$471,pos,4,FALSE))=FALSE,VLOOKUP($F$2:$F$471,pos,4,FALSE),""),"") ->  | O199: =IF($C199="RM",IF(ISNA(VLOOKUP($F$2:$F$478,pos,5,FALSE))=FALSE,VLOOKUP($F$2:$F$478,pos,5,FALSE),IF(ISNA(VLOOKUP($F$2:$F$478,lot,5,FALSE))=FALSE,VLOOKUP($F$2:$F$478,lot,5,FALSE),0)),"") -> 5.771741887 | P199: =IF($H199>0,VLOOKUP($D:$D,prix,15,FALSE),"") ->  | Q199: =IF($C199="RM",$O199*$G199,"") -> 363.6197389 | R199: =IF($H199>0,$H199*$P199,"") ->  | T199: =IF($F199>0,VALUE(LEFT($F199,4)),"") -> 6174 | U199: =IF(F199>0,IF(ISERROR(SEARCH("*FZ*",$E199))=FALSE,"FZ",IF(ISERROR(SEARCH("*FR*",$E199))=FALSE,"FR","Aucun")),"") -> FR | V199: =IF($C199="RM",IF($U199="FR",IF(ISNA(VLOOKUP($F:$F,lot,6,FALSE))=TRUE,VLOOKUP($T:$T,date,2,FALSE),VLOOKUP($F:$F,lot,6,FALSE)),""),"") -> 2016-04-18 | W199: =IF($C199="RM",IF($U199="Fz",IF(ISNA(VLOOKUP($F:$F,lot,6,FALSE))=TRUE,VLOOKUP($T:$T,date,2,FALSE),VLOOKUP($F:$F,lot,6,FALSE)),""),"") ->  | X199: =IF($C199="FG",VLOOKUP($A:$A,op,4,FALSE),"") ->  | Y199: 2016-04-26 | Z199: =IF(C199="rm",IF(U199="aucun","OK",IF(U199="fz",IF(Y199-W199>730,Y199-W199,"OK"),IF(Y199-V199<1,1,Y199-V199))),"") -> 8
A200: 6174P0812 | B200: Chicken | C200: FG | D200: 27051 | E200: CHIPOTLE SEASONED BNLS CH BREAST F-TRIM**120-130g (2 SACX18 UN)**4.5 kg FR #D | F200: 6174P0815 | H200: 63 | K200: =IF(ISNA(VLOOKUP($D:$D,rend,2,FALSE))=FALSE,VLOOKUP($D:$D,rend,2,FALSE),"") -> 0.9651264131 | L200: =IF($C200="RM",IF(ISNA(VLOOKUP($F$2:$F$478,pos,2,FALSE))=FALSE,VLOOKUP($F200:$F$478,pos,2,FALSE),IF(ISNA(VLOOKUP($F$2:$F$478,lot,2,FALSE))=FALSE,VLOOKUP($F$2:$F$478,lot,2,FALSE),"MANQUANT")),"") ->  | M200: =IF($C200="RM",IF(ISNA(VLOOKUP($F$2:$F$478,pos,3,FALSE))=FALSE,VLOOKUP($F200:$F641,pos,3,FALSE),"OP"),"") ->  | N200: =IF($C200="RM",IF(ISNA(VLOOKUP($F200:$F$471,pos,4,FALSE))=FALSE,VLOOKUP($F$2:$F$471,pos,4,FALSE),""),"") ->  | O200: =IF($C200="RM",IF(ISNA(VLOOKUP($F$2:$F$478,pos,5,FALSE))=FALSE,VLOOKUP($F$2:$F$478,pos,5,FALSE),IF(ISNA(VLOOKUP($F$2:$F$478,lot,5,FALSE))=FALSE,VLOOKUP($F$2:$F$478,lot,5,FALSE),0)),"") ->  | P200: =IF($H200>0,VLOOKUP($D:$D,prix,15,FALSE),"") -> 10.72 | Q200: =IF($C200="RM",$O200*$G200,"") ->  | R200: =IF($H200>0,$H200*$P200,"") -> 675.36 | T200: =IF($F200>0,VALUE(LEFT($F200,4)),"") -> 6174 | U200: =IF(F200>0,IF(ISERROR(SEARCH("*FZ*",$E200))=FALSE,"FZ",IF(ISERROR(SEARCH("*FR*",$E200))=FALSE,"FR","Aucun")),"") -> FR | V200: =IF($C200="RM",IF($U200="FR",IF(ISNA(VLOOKUP($F:$F,lot,6,FALSE))=TRUE,VLOOKUP($T:$T,date,2,FALSE),VLOOKUP($F:$F,lot,6,FALSE)),""),"") ->  | W200: =IF($C200="RM",IF($U200="Fz",IF(ISNA(VLOOKUP($F:$F,lot,6,FALSE))=TRUE,VLOOKUP($T:$T,date,2,FALSE),VLOOKUP($F:$F,lot,6,FALSE)),""),"") ->  | X200: =IF($C200="FG",VLOOKUP($A:$A,op,4,FALSE),"") ->  | Y200: 2016-04-26 | Z200: =IF(C200="rm",IF(U200="aucun","OK",IF(U200="fz",IF(Y200-W200>730,Y200-W200,"OK"),IF(Y200-V200<1,1,Y200-V200))),"") -> 
... 218 more rows

Sheet Production Mar avant macro
A1: ID_ALPHA_ARCHIVE_PRODUCTION_PER_DAY | B1: id_production_order_header | C1: no_production_order | D1: production_priority | E1: date_production_start | F1: material_type | G1: batch_no | H1: qty | I1: no_product | J1: description | K1: id_product | L1: unit | M1: factor | N1: total | O1: qty_billed | P1: total_billed | Q1: qty_stock | R1: total_stock | S1: total_purchase | T1: unit_price_min | U1: date_created
A2: 107539 | B2: 31891 | C2: 6176P02 | D2: Chicken | E2: 2016-04-25 | F2: RM | G2: 6176P02 | H2: 85.5 | I2: 35004 | J2: CH.BREAST NO BACK *CANADIAN**AIR** FR #D | K2: 215 | L2: KG | S2: 446.7375 | T2: 5.225 | U2: 2016-04-26
A3: 107540 | B3: 31891 | C3: 6176P02 | D3: Chicken | E3: 2016-04-25 | F3: RM | G3: 6176P0215 | H3: 189 | I3: 37004 | J3: BONELESS CH.BREAST *IN PROCESS* FR @P | K3: 965 | L3: KG | S3: 1346.625 | T3: 7.125 | U3: 2016-04-26
A4: 107541 | B4: 31892 | C4: 6176P011 | D4: Chicken | E4: 2016-04-25 | F4: RM | G4: 6176P011 | H4: 4898.82 | I4: 37004 | J4: BONELESS CH.BREAST *IN PROCESS* FR @P | K4: 965 | L4: KG | S4: 34904.0925 | T4: 7.125 | U4: 2016-04-26
A5: 107542 | B5: 31911 | C5: 6176P05 | D5: Chicken | E5: 2016-04-25 | F5: RM | G5: 5325AS01 | H5: 2.97 | I5: 6 | J5: ING BSA 2B5F019 / ASS COTES-LEVEES POULET SAUPOUDRE / ALLERG: SULFITES | K5: 1168 | L5: KG | S5: 27.1161 | T5: 94.05 | U5: 2016-04-26
A6: 107543 | B6: 31911 | C6: 6176P05 | D6: Chicken | E6: 2016-04-25 | F6: RM | G6: 5502EM02 | H6: 128 | I6: 131 | J6: EMB FLEXO F8149A / 26020 (LOBLAW) / ETIQUETTE CUISSE POULET | K6: 1885 | L6: UN | S6: 3.4944 | T6: 94.05 | U6: 2016-04-26
A7: 107544 | B7: 31911 | C7: 6176P05 | D7: Chicken | E7: 2016-04-25 | F7: RM | G7: 5525EM01 | H7: 128 | I7: 108 | J7: EMB ALIMENTS QUEBEC / ETIQUETTE ALIMENTS DU QUEBEC (LOBLAW) | K7: 1658 | L7: UN | S7: 12038.4 | T7: 94.05 | U7: 2016-04-26
A8: 107545 | B8: 31911 | C8: 6176P05 | D8: Chicken | E8: 2016-04-25 | F8: RM | G8: 6146EM02 | H8: 128 | I8: 125 | J8: EMB HEAT SEALING 023038 / 8D PZ40 BLACK PADDED (LOBLAW)/ 400/CS | K8: 1878 | L8: UN | S8: 24.96 | T8: 94.05 | U8: 2016-04-26
A9: 107546 | B9: 31911 | C9: 6176P05 | D9: Chicken | E9: 2016-04-25 | F9: RM | G9: 6154EM01 | H9: 16 | I9: 303 | J9: EMB BELLEY SAL04-1290 / TRAY BOX TOP (LOBLAW)/ 8X260 | K9: 1881 | L9: UN | S9: 1504.8 | T9: 94.05 | U9: 2016-04-26
A10: 107547 | B10: 31911 | C10: 6176P05 | D10: Chicken | E10: 2016-04-25 | F10: RM | G10: 6174P02 | H10: 22.6 | I10: 35006 | J10: CH.LEGS *WHOLE* FR #D | K10: 253 | L10: KG | S10: 48.3075 | T10: 2.1375 | U10: 2016-04-26
A11: 107548 | B11: 31911 | C11: 6176P05 | D11: Chicken | E11: 2016-04-25 | F11: RM | G11: 6176EM04 | H11: 16 | I11: 304 | J11: EMB BELLEY SAL04-1300 / TRAY BOX BOTTOM (LOBLAW)/ 8X260 | K11: 1882 | L11: UN | S11: 1504.8 | T11: 94.05 | U11: 2016-04-26
A12: 107549 | B12: 31911 | C12: 6176P05 | D12: Chicken | E12: 2016-04-25 | F12: RM | G12: 6176P05 | H12: 108.83 | I12: 35006 | J12: CH.LEGS *WHOLE* FR #D | K12: 253 | L12: KG | S12: 232.624125 | T12: 2.1375 | U12: 2016-04-26
A13: 107550 | B13: 31915 | C13: 6176P07 | D13: Chicken | E13: 2016-04-25 | F13: RM | G13: 6176P07 | H13: 26.9 | I13: 35015 | J13: WHOLE CHICKEN* EXCELDOR 1.77-1.82 KG***AIR CHILLED***TIED FR #D | K13: 868 | L13: KG | S13: 114.9975 | T13: 4.275 | U13: 2016-04-26
A14: 107551 | B14: 31915 | C14: 6176P07 | D14: Chicken | E14: 2016-04-25 | F14: RM | G14: 6176P071 | H14: 5.48 | I14: 35703 | J14: BBQ CHICKEN 1.9-2.2 KG **4 (UNIT/ CAISSES) FR #D | K14: 208 | L14: KG | S14: 23.89554 | T14: 4.3605 | U14: 2016-04-26
A15: 107552 | B15: 31944 | C15: 6176P03 | D15: Chicken | E15: 2016-04-25 | F15: RM | G15: 6176P03 | H15: 1744.47 | I15: 35008 | J15: CHICKEN THIGHS WHOLE FR #D | K15: 258 | L15: KG | S15: 6380.399025 | T15: 3.6575 | U15: 2016-04-26
A16: 107553 | B16: 31945 | C16: 6055B04L | D16: Beef | E16: 2016-04-26 | F16: RM | G16: 6055B04 | H16: 44 | I16: 30020 | J16: BEEF RIB* RTS*** AA FR #D | K16: 35 | L16: KG | S16: 704 | T16: 17.1 | U16: 2016-04-26
A17: 107554 | B17: 31945 | C17: 6055B04L | D17: Beef | E17: 2016-04-26 | F17: RM | G17: 6055B0466 | H17: 19.02 | I17: 31506 | J17: BEEF RIB STEAK *IN PROCESS* CODE: 30409, 30714, 30415, 30460, 30420 FR | K17: 1809 | L17: KG | S17: 334.2765 | T17: 17.575 | U17: 2016-04-26
A18: 107555 | B18: 31945 | C18: 6055B04L | D18: Beef | E18: 2016-04-26 | F18: RM | G18: 6055B0475 | H18: 14.28 | I18: 31506 | J18: BEEF RIB STEAK *IN PROCESS* CODE: 30409, 30714, 30415, 30460, 30420 FR | K18: 1809 | L18: KG | S18: 250.971 | T18: 17.575 | U18: 2016-04-26
A19: 107556 | B19: 31945 | C19: 6055B04L | D19: Beef | E19: 2016-04-26 | F19: RM | G19: 6076B0174 | H19: 10 | I19: 31506 | J19: BEEF RIB STEAK *IN PROCESS* CODE: 30409, 30714, 30415, 30460, 30420 FR | K19: 1809 | L19: KG | S19: 175.75 | T19: 17.575 | U19: 2016-04-26
A20: 107557 | B20: 31946 | C20: 6166B02D | D20: Beef | E20: 2016-04-26 | F20: RM | G20: 6046B04 | H20: 108 | I20: 30010 | J20: BONELESS BEEF *RM*95%* COA REQUIS FZ | K20: 10 | L20: KG | S20: 632.88 | T20: 7.4955 | U20: 2016-04-26
A21: 107558 | B21: 31946 | C21: 6166B02D | D21: Beef | E21: 2016-04-26 | F21: RM | G21: 6166B02 | H21: 132 | I21: 30028 | J21: BONELESS **90 % BEEF (RM )**COA REQUIRED FR #D | K21: 1128 | L21: KG | S21: 1127.346 | T21: 8.5405 | U21: 2016-04-26
A22: 107559 | B22: 31946 | C22: 6166B02D | D22: Beef | E22: 2016-04-26 | F22: RM | G22: 6172B02 | H22: 160 | I22: 30001 | J22: BNLS BEEF TRIMMINGS 65%**RAW MATERIAL* COA REQUIS FR #D | K22: 1 | L22: KG | S22: 684 | T22: 4.275 | U22: 2016-04-26
A23: 107560 | B23: 31947 | C23: 6166B02E | D23: Beef | E23: 2016-04-26 | F23: RM | G23: 6046B04 | H23: 27 | I23: 30010 | J23: BONELESS BEEF *RM*95%* COA REQUIS FZ | K23: 10 | L23: KG | S23: 158.22 | T23: 7.4955 | U23: 2016-04-26
A24: 107561 | B24: 31947 | C24: 6166B02E | D24: Beef | E24: 2016-04-26 | F24: RM | G24: 6166B02 | H24: 49 | I24: 30028 | J24: BONELESS **90 % BEEF (RM )**COA REQUIRED FR #D | K24: 1128 | L24: KG | S24: 418.4845 | T24: 8.5405 | U24: 2016-04-26
A25: 107562 | B25: 31947 | C25: 6166B02E | D25: Beef | E25: 2016-04-26 | F25: RM | G25: 6172B02 | H25: 24 | I25: 30001 | J25: BNLS BEEF TRIMMINGS 65%**RAW MATERIAL* COA REQUIS FR #D | K25: 1 | L25: KG | S25: 102.6 | T25: 4.275 | U25: 2016-04-26
A26: 107563 | B26: 31948 | C26: 6166B02F | D26: Beef | E26: 2016-04-26 | F26: RM | G26: 5406B042 | H26: 13.94 | I26: 31500 | J26: BEEF HOUSE TRIMMINGS FR @P | K26: 1306 | L26: KG | S26: 132.43 | T26: 9.5 | U26: 2016-04-26
A27: 107564 | B27: 31948 | C27: 6166B02F | D27: Beef | E27: 2016-04-26 | F27: RM | G27: 6166B02 | H27: 36.06 | I27: 30028 | J27: BONELESS **90 % BEEF (RM )**COA REQUIRED FR #D | K27: 1128 | L27: KG | S27: 307.97043 | T27: 8.5405 | U27: 2016-04-26
A28: 107565 | B28: 31949 | C28: 6094B07206 | D28: Beef | E28: 2016-04-26 | F28: RM | G28: 6094B07206 | H28: 37.8 | I28: 41344 | J28: PORK CHOPS SEASONED BBQ SPARERIBS *IN PROCESS* CODE: 24007,24008 FR | K28: 1818 | L28: KG | S28: 219.051 | T28: 5.795 | U28: 2016-04-26
A29: 107566 | B29: 31950 | C29: 6094B07208 | D29: Beef | E29: 2016-04-26 | F29: RM | G29: 6094B07208 | H29: 502.2 | I29: 41344 | J29: PORK CHOPS SEASONED BBQ SPARERIBS *IN PROCESS* CODE: 24007,24008 FR | K29: 1818 | L29: KG | S29: 2910.249 | T29: 5.795 | U29: 2016-04-26
A30: 107567 | B30: 31951 | C30: 6094B07209 | D30: Beef | E30: 2016-04-26 | F30: RM | G30: 6094B07209 | H30: 136 | I30: 41345 | J30: PORK ROAST SEASONED BBQ*IN PROCESS* CODE: 24006 (4 X 1.7 KG/CS**6.8 KG/CS) FR | K30: 1855 | L30: KG | S30: 788.12 | T30: 5.795 | U30: 2016-04-26
A31: 107568 | B31: 31952 | C31: 5484B0786B | D31: Beef | E31: 2016-04-26 | F31: RM | G31: 5484B0786 | H31: 21.6 | I31: 41342 | J31: TEXAN MEDALLION *IN PROCESS* CODE: 24003 (3X 12) FR #D | K31: 1585 | L31: KG | S31: 181.602 | T31: 8.4075 | U31: 2016-04-26
A32: 107569 | B32: 31953 | C32: 6166B02G | D32: Beef | E32: 2016-04-26 | F32: RM | G32: 6166B02 | H32: 4.5 | I32: 30028 | J32: BONELESS **90 % BEEF (RM )**COA REQUIRED FR #D | K32: 1128 | L32: KG | S32: 38.43225 | T32: 8.5405 | U32: 2016-04-26
A33: 107570 | B33: 31953 | C33: 6166B02G | D33: Beef | E33: 2016-04-26 | F33: RM | G33: 6172B02 | H33: 5.5 | I33: 30001 | J33: BNLS BEEF TRIMMINGS 65%**RAW MATERIAL* COA REQUIS FR #D | K33: 1 | L33: KG | S33: 23.5125 | T33: 4.275 | U33: 2016-04-26
A34: 107571 | B34: 31954 | C34: 6103B033 | D34: Beef | E34: 2016-04-26 | F34: RM | G34: 5166AS | H34: 169.4 | I34: 1 | J34: ING EAU | K34: 1031 | L34: KG | S34: 15932.07 | T34: 94.05 | U34: 2016-04-26
A35: 107572 | B35: 31954 | C35: 6103B033 | D35: Beef | E35: 2016-04-26 | F35: RM | G35: 6055AS01 | H35: 2.59 | I35: 16 | J35: ING BSA 2A8E033 / TRIPOLYPHOSPHATE DE SODIUM GRANULE (3562) / ALLERG: AUCUN | K35: 1634 | L35: KG | S35: 7.2002 | T35: 94.05 | U35: 2016-04-26
A36: 107573 | B36: 31954 | C36: 6103B033 | D36: Beef | E36: 2016-04-26 | F36: RM | G36: 6103B033 | H36: 433.1 | I36: 31505 | J36: BEEF CUBES *IN PROCESS* CODE: 30314, 30304 FR | K36: 1808 | L36: KG | S36: 4525.895 | T36: 10.45 | U36: 2016-04-26
A37: 107574 | B37: 31954 | C37: 6103B033 | D37: Beef | E37: 2016-04-26 | F37: RM | G37: 6133AS01 | H37: 4.88 | I37: 15 | J37: ING BSA 2B1A038 / SEL HI GRADE POLY OU TOP FLO / ALLERG: AUCUN | K37: 1633 | L37: KG | S37: 1.9032 | T37: 94.05 | U37: 2016-04-26
A38: 107575 | B38: 31955 | C38: 6125B11I | D38: Beef | E38: 2016-04-26 | F38: RM | G38: 6125B11 | H38: 95.4 | I38: 30180 | J38: BEEF INSIDE ROUND* AA**regular FR #D | K38: 102 | L38: KG | S38: 676.386191 | T38: 7.5905 | U38: 2016-04-26
A39: 107576 | B39: 31955 | C39: 6125B11I | D39: Beef | E39: 2016-04-26 | F39: RM | G39: 6142B04 | H39: 32.09 | I39: 30180 | J39: BEEF INSIDE ROUND* AA**regular FR #D | K39: 102 | L39: KG | S39: 243.579145 | T39: 7.5905 | U39: 2016-04-26
A40: 107577 | B40: 31956 | C40: 6153B058 | D40: Beef | E40: 2016-04-26 | F40: RM | G40: 6094B07212 | H40: 2.5 | I40: 41347 | J40: CUBES DE PORC*IN PROCESS* CODE: 41270 FR | K40: 1859 | L40: KG | S40: 13.0625 | T40: 5.225 | U40: 2016-04-26
A41: 107578 | B41: 31956 | C41: 6153B058 | D41: Beef | E41: 2016-04-26 | F41: RM | G41: 6153B058 | H41: 60 | I41: 41347 | J41: CUBES DE PORC*IN PROCESS* CODE: 41270 FR | K41: 1859 | L41: KG | S41: 313.5 | T41: 5.225 | U41: 2016-04-26
A42: 107579 | B42: 31956 | C42: 6153B058 | D42: Beef | E42: 2016-04-26 | F42: RM | G42: 6164B06 | H42: 2.5 | I42: 41020 | J42: PORK BUCKEYE (U.S.) FR | K42: 406 | L42: KG | S42: 8.90625 | T42: 3.5625 | U42: 2016-04-26
A43: 107580 | B43: 31957 | C43: 6094B07AD | D43: Beef | E43: 2016-04-26 | F43: RM | G43: 6094B07 | H43: 326.56 | I43: 41071 | J43: BONELESS PORK LOINS STRIPS MAIN MUSCLE FZ #D | K43: 1707 | L43: KG | S43: 1322.568 | T43: 4.5125 | U43: 2016-04-26
A44: 107581 | B44: 31958 | C44: 6165B02I | D44: Beef | E44: 2016-04-26 | F44: RM | G44: 5166AS | H44: 29.88 | I44: 1 | J44: ING EAU | K44: 1031 | L44: KG | S44: 2810.214 | T44: 94.05 | U44: 2016-04-26
A45: 107582 | B45: 31958 | C45: 6165B02I | D45: Beef | E45: 2016-04-26 | F45: RM | G45: 5232B08 | H45: 81.27 | I45: 30031 | J45: BEEF HEAD MEAT FZ | K45: 1136 | L45: KG | S45: 174.7305 | T45: 2.85 | U45: 2016-04-26
A46: 107583 | B46: 31958 | C46: 6165B02I | D46: Beef | E46: 2016-04-26 | F46: RM | G46: 6124B04 | H46: 325.1 | I46: 30015 | J46: STEER BEEF HEARTS COA REQUIS FZ | K46: 739 | L46: KG | S46: 487.65 | T46: 3.04 | U46: 2016-04-26
A47: 107584 | B47: 31958 | C47: 6165B02I | D47: Beef | E47: 2016-04-26 | F47: RM | G47: 6165B02 | H47: 163.75 | I47: 30028 | J47: BONELESS **90 % BEEF (RM )**COA REQUIRED FR #D | K47: 1128 | L47: KG | S47: 1067.65 | T47: 8.5405 | U47: 2016-04-26
A48: 107585 | B48: 31959 | C48: 6144B0112B | D48: Beef | E48: 2016-04-26 | F48: RM | G48: 6144B0112 | H48: 18.4 | I48: 45207 | J48: BONELESS VEAL FOR CUTLETS *IN PROCESS* CODE: 45202,203,206,209,210 FR | K48: 1309 | L48: KG | S48: 249.09 | T48: 13.5375 | U48: 2016-04-26
A49: 107586 | B49: 31960 | C49: 6104B06B | D49: Beef | E49: 2016-04-26 | F49: RM | G49: 6104B06 | H49: 86.6 | I49: 30041 | J49: BEEF STRIPLOIN BNLS AAH 0X1 FR | K49: 60 | L49: KG | S49: 1505.974346 | T49: 18.05 | U49: 2016-04-26
A50: 107587 | B50: 31961 | C50: 5484B0791 | D50: Beef | E50: 2016-04-26 | F50: RM | G50: 5166AS | H50: 82.66 | I50: 1 | J50: ING EAU | K50: 1031 | L50: KG | S50: 7774.173 | T50: 94.05 | U50: 2016-04-26
A51: 107588 | B51: 31961 | C51: 5484B0791 | D51: Beef | E51: 2016-04-26 | F51: RM | G51: 5484B0784 | H51: 20.66 | I51: 41341 | J51: PORK FILET *IN PROCESS* FR #D | K51: 1450 | L51: KG | S51: 120.70605 | T51: 5.8425 | U51: 2016-04-26
A52: 107589 | B52: 31961 | C52: 5484B0791 | D52: Beef | E52: 2016-04-26 | F52: RM | G52: 5484B0786 | H52: 1.88 | I52: 41342 | J52: TEXAN MEDALLION *IN PROCESS* CODE: 24003 (3X 12) FR #D | K52: 1585 | L52: KG | S52: 15.8061 | T52: 8.4075 | U52: 2016-04-26
